Workbook

Sheet Instructions
I2: Validation - Croisement des tables
B3: Instructions:
A4: 1 | B4: Dupliquer votre modèle de détermination avant de passer aux étapes suivantes. | I4: Ovoltotrec | J4: Rapport GTYF | K4: Rapport ECONO
A5: 2 | B5: Coller les OUTPUTs ci-dessous dans votre modèle de détermination. | I5: =VLOOKUP("Ovoltotrec",Output!$C:$AM,8,FALSE) -> 5510800 | J5: =VLOOKUP("OVOLTOTREC",GTYF!$C:$AQ,8,FALSE)=I5 -> TRUE | K5: =VLOOKUP("OVOLTOTREC",Econo!$C:$AQ,8,FALSE)=I5 -> TRUE
B6: Outputs pour Cahier_Détermination_2023
A7: 3 | B7: Ajouter l'agrégat FCIMPROD_SNAT au thème 5 de la section LANSCAPE de votre modèle et les courbes SNAT
B8: *AGGREGATE FCIMPROD_SNAT FCxxxx
A9: 4 | B9: Copier coller la syntaxe TARGET_GTYF_DET, TARGET_ECONO, TARGET AREA, TARGET DETAIL (voir plus bas) dans la section "Reports" du scénario de détermination.
B10: *TARGET GTYF_DET.dbf
B11: *TARGET_ECONO.dbf
B12: *TARGET AREA.dbf et *TARGET DETAIL.dbf
A13: 5 | B13: Insérer la syntaxe économique dans les sections Output, Lanscape, …
A14: 6 | B14: Compiler le scénario (Faire une fleche sur vos scénarios)
A15: 7 | B15: Ouvrir vos rapports Output, GTYF et ECONO directement de WS. Contrôle A --> Contrôle C
A16: 8 | B16: Copier/coller vos rapports Output, GTYF et ECONO dans les onglets appropriés. Attention de respecter le nombres de colonnes. Les onglets Output, GTYF et ECONO sont préformatés et contiennent des formules aux colonnes AM à AP.
A17: 9 | B17: Valider que la cellule I5 indique vrai lorsque vous aurez collé vos données dans les onglets "Output", "GTYF" et ÉCONO" pour s'assurer que les données proviennent de la même optimisation.
A18: 10 | B18: Utiliser le fichier DBF pour copier/coller votre calendrier de COS dans l'onglet Cedule_COS et y ajouter les COS absents (COS fermés ou toujours ouverts) et compléter leur calendrier par des "0" ou des "1".
A19: 11 | B19: Compléter toutes les cellules et onglets de couleur | D19: jaune
A20: 12 | B20: Notez que les tableaux 9, 10, 13, 15 et 17 ont des instructions particulières

Sheet Suivi_modif
B2: Modifications apportées au cahier:
B3: Version originale (v1) | C3: Version de départ
B4: Version modifiée 2 novembre 2021 (v2) | C4: Correction du calcul de % de sapin en P0 (cellule O9)
B5: Version modifiée 4 novembre 2021 (v3) | C5: Correction du % récolte volume sur pied destiné à l'aménagement (Tableau - CelluleV59)
B6: Version modifiée 4 novembre 2021 (v3) | C6: Correction des valideurs Vrai/Faux (Tableau - Cellule W101, W102, W103)
B7: Version modifiée 8 novembre 2021 (v4) | C7: Onglet "UTA" - Amélioration de la syntaxe des rechercheV
B8: Version modifiée 8 novembre 2021 (v4) | C8: Tableau 3 - ligne 50: changé la police de caractère pour du Arial
B9: Version modifiée 9 novembre 2021 (v5) | C9: Onglet "Target_ECONO": La syntaxe du rapport a été corrigée.
B10: Version modifiée 11 novembre 2021 (v6) | C10: Tableau 1 - Entente Crie - Correction pour considérer le code "EXEC" pour les UA avec Entente Crie
B11: Version modifiée 15 novembre 2021 (v7) | C11: Tableau 3 - ligne 49 en caractère gras - ligne 51 en caractère normal
B12: Version modifiée 19 novembre 2021 (v8) | C12: Tableau 9 - Dernière ligne du tableau effacée
B13: Version modifiée 22 novembre 2021 (v9) | C13: Tableau 4 - Première colonne (ha/an) changé la mise en forme pour avoir des 0 ha/an au lieu de "-" Voir figure --> Format: Nombre - Utiliser séparateur de millier - sans décimales
B14: Version modifiée 25 novembre 2021 (v10) | C14: Tableau 8, cellules G102 (Coupes partielles de peuplements résineux) et G103 (Coupes partielles de peuplements de feuillus tolérants et de pins) arrondies à la dizaine près et ajouté note en bas
B15: Version modifiée 10 décembre 2021 (v11) | C15: Tableau 10 - Correction de la mise en forme de l'écart en % des plantations

Sheet Tableaux
T1: Instructions : Compléter les cellules oranges | AB1: Avec l'utilisation de l'outil à Éric
B2: PROER1 : vous pouvez utiliser l'outil FoxPro pour compléter les cellules oranges : | T2: 1) Cellule V11 : Inscrire la superficie totale brute de la carte WS | AB2: 1273654
B3: l'outil intérroge la carte Woodstock et met les valeurs dans un fichier Excel | T3: 2) Cellule V15 : Inscrire la superficie WS des GS RP1 et RP2 (ça ne devrait être que du EXEX et EXTI) | AB3: 0
B4: interroge_carte_WS_pour cahier_analyse.FXP | T4: 3) Cellule V24 : Inscrire la superficie WS des GS RP3 à RP9 sur INC | AB4: 17279.5
B5: T:\Donnees\Courant\CPF_2023-2028\Comite_Vague_2\30_Phase1\32_Sce1\Outils | T5: 4) Cellule V25 : Inscrire la superficie WS des GS SNAT sur INC (qui ne sont pas des RP) | AB5: 55738.1
T6: 5) Cellules L20 à S21 : Inscrire la superficie de la carte WS pour chacune des cases oranges
B7: Catégories | I7: Superficie | Z7: Total | AA7: Sup_aff | AB7: 1831.9
I8: ha | J8: % | V8: Période | Z8: Total | AA8: Sup_empche | AB8: 15383.4
B9: Superficie totale du territoire d'analyse (EXHU exclu) | I9: =V11-V16 -> 1273009.9 | J9: =IFERROR(I9/I9,"-") -> 1 | S9: =LEFT(B$25,10) -> Tableau 1. | T9: Output | U9: Superficie | V9: 0 | Z9: Total | AA9: Sup_ecot | AB9: 9259.4
B10: Pertes (emprise chemin, écotone, improductif) | I10: =U20+V20+Y20 -> 27773.5 | J10: =I10/I9 -> 0.0218171909 | S10: =LEFT(B$25,10) -> Tableau 1. | T10: OSUPTOT | U10: WS | V10: =VLOOKUP(T10,Output!$C:$H,6,FALSE) -> 1247503.4 | Z10: INC | AA10: Sup_brivAB | AB10: 33019
B11: Territoire improductif (EXEX + EXTI) | I11: =SUM(V13:V14) -> 181630.3 | J11: =I11/I9 -> 0.1426778378 | S11: Tableau 1. | U11: Brute | V11: =AB2 -> 1273654 | X11: Sup_soustraite : | Y11: =T20+U20+V20+Y20+AA20 -> 61970.1 | Z11: INC | AA11: Sup_brivCD | AB11: 28213.5
B12: sans possibilité de remise en production | I12: =I11-I13 -> 181630.3 | J12: - | S12: Tableau 1. | U12: pertes | V12: =U20+V20+Y20 -> 27773.5 | X12: Sup nette : | Y12: =V11-Y11 -> 1211683.9 | Z12: Total | AA12: Sup_impro | AB12: 3130.7
B13: avec possibilité de remise en production (RP1 et RP2) | I13: =V15 -> 0 | J13: - | S13: Tableau 1. | T13: OSUPEXEX | U13: EXEX | V13: =VLOOKUP(T13,Output!$C:$H,6,FALSE) -> 94830 | Z13: Total | AA13: Sup_pentf | AB13: 32364.7
S14: Tableau 1. | T14: OSUPEXTI | U14: EXTI | V14: =VLOOKUP(T14,Output!$C:$H,6,FALSE) -> 86800.3 | Z14: INC | AA14: Sup_pentf | AB14: 26005.4
B15: Territoire inclus dans l’UA mais exclu des activités d'aménagement (EXIN) | I15: =V17+X17+Y17 -> 172539.8 | J15: =I15/I9 -> 0.1355368878 | S15: Tableau 1. | U15: RP1/RP2 | V15: =AB3 -> 0 | X15: Superficie | Y15: sup_redu
B16: pentes abruptes et sommets (codes F et S) --> potentiellement récoltables | I16: =AA21 -> 26005.4 | J16: - | S16: Tableau 1. | T16: OSUPEXHU | U16: EXHU | V16: =VLOOKUP(T16,Output!$C:$H,6,FALSE) -> 644.1 | X16: EXEC | Y16: EXEC
B17: bandes riveraines (densité AB) --> potentiellement récoltables | I17: =W21 -> 33019 | J17: - | S17: Tableau 1. | T17: OSUPEXIN | U17: EXIN | V17: =VLOOKUP(T17,Output!$C:$H,6,FALSE) -> 172539.8
B18: bandes riveraines (densité CD) --> potentiellement récoltables | I18: =X21 -> 28213.5 | J18: - | S18: Tableau 1. | T18: ↓ | U18: ↓ | V18: ↓ | Y18: ↓ | AA18: ↓
B19: autres | I19: =I15-I16-I17-I18 -> 85301.9 | S19: Tableau 1. | T19: Sup_aff | U19: Sup_empche | V19: Sup_ecot | W19: Sup_brivAB | X19: Sup_brivCD | Y19: Sup_impro | Z19: Sup_aut | AA19: Sup_pentf
B20: Territoire destiné à l'aménagement forestier (INC) | I20: =V22 -> 892689.2 | J20: =I20/I9 -> 0.7012429361 | S20: Tableau 1. | T20: =AB7 -> 1831.9 | U20: =AB8 -> 15383.4 | V20: =AB9 -> 9259.4 | Y20: =AB12 -> 3130.7 | AA20: =AB13 -> 32364.7 | AB20: Total
B21: forestier exploitable | I21: =V22-I22-I23 -> 819671.6 | J21: - | S21: Tableau 1. | W21: =AB10 -> 33019 | X21: =AB11 -> 28213.5 | AA21: =AB14 -> 26005.4 | AB21: INC
B22: forestier inexploitable avec possibilité de remise en production (RP3 à RP15) | I22: =V24 -> 17279.5 | J22: - | S22: Tableau 1. | T22: OSUPINC | U22: INC | V22: =VLOOKUP(T22,Output!$C:$H,6,FALSE) -> 892689.2
B23: forestier inexploitable sans possibilité de remise en production (SNAT) | I23: =V25 -> 55738.1 | J23: - | S23: Tableau 1.
S24: Tableau 1. | U24: RP3 à RP9 | V24: =AB4 -> 17279.5
B25: Tableau 1. Répartition de la superficie de l'unité d'aménagement pas catégorie de territoire | S25: Tableau 1. | U25: SNAT | V25: =AB5 -> 55738.1
B26: Catégories | F26: Superficies
F27: Hectares | G27: %
B28: Superficie totale de l’unité d’aménagement | F28: =ROUND(I9,-1) -> 1273010 | G28: =F28/F28 -> 1
B29: Retraits de superficie
B30: Territoire non forestier | F30: =ROUND(I10+I11,-1) -> 209400 | G30: =F30/F28 -> 0.1644920307
B31: Territoire forestier peu productif (30 à 50 m³/ha) | F31: =ROUND(I22+I23,-1) -> 73020 | G31: =F31/F28 -> 0.057360115
B32: Territoire forestier exclu de l’aménagement | F32: =ROUND(F28-F30-F31-F33,-1) -> 170920 | G32: =F32/F28 -> 0.1342644598 | N32: À compléter UA : | O32: UA:
B33: Superficie destinée à l’aménagement forestier | F33: =ROUND(I21,-1) -> 819670 | G33: =F33/F28 -> 0.6438833945 | O33: 02751 | T33: Légende | U33: Output | V33: P2@P6
S34: =LEFT(B$46,10) -> Tableau 3. | T34: Sepm | U34: OVOLGSEPMREC | V34: =IFERROR(VLOOKUP($U34,Output!$C:$AM,37,FALSE)/5,0) -> 891511.48
S35: Tableau 3.
C36: CONS_DET_NC_027-51.xlsx | E36: Valeurs avant corretion du modèle | S36: Tableau 3. | T36: Tho | U36: OVOLTHOREC | V36: =IFERROR(VLOOKUP($U36,Output!$C:$AM,37,FALSE)/5,0) -> 48.3676
S37: Tableau 3. | T37: Pru | U37: OVOLPRUREC | V37: =IFERROR(VLOOKUP($U37,Output!$C:$AM,37,FALSE)/5,0) -> 0
S38: Tableau 3. | T38: Pins | U38: OVOLGPINSREC | V38: =IFERROR(VLOOKUP($U38,Output!$C:$AM,37,FALSE)/5,0) -> 443.9524
S39: Tableau 3. | T39: Peu | U39: OVOLGPEUREC | V39: =IFERROR(VLOOKUP($U39,Output!$C:$AM,37,FALSE)/5,0) -> 76501.3608
S40: Tableau 3. | T40: Bop | U40: OVOLGBPREC | V40: =IFERROR(VLOOKUP($U40,Output!$C:$AM,37,FALSE)/5,0) -> 129576.6
S41: Tableau 3. | T41: Boj | U41: OVOLBOJREC | V41: =IFERROR(VLOOKUP($U41,Output!$C:$AM,37,FALSE)/5,0) -> 168.2936
S42: Tableau 3. | T42: Ers | U42: OVOLERSREC | V42: =IFERROR(VLOOKUP($U42,Output!$C:$AM,37,FALSE)/5,0) -> 0
S43: Tableau 3. | T43: Err | U43: OVOLGEROREC | V43: =IFERROR(VLOOKUP($U43,Output!$C:$AM,37,FALSE)/5,0) -> 3548.4512
S44: Tableau 3. | T44: Autre .F. (Auf) | V44: =V47-V42-V41 -> 361.4944
D45: THO ajusté | J45: Erables ajusté | S45: Tableau 3. | T45: résineux | U45: OVOLGRREC | V45: =IFERROR(VLOOKUP($U45,Output!$C:$AM,37,FALSE)/5,0) -> 892003.8
B46: Tableau 3. Possibilités forestières par essence ou par groupe d’essences et écart avec la période 2018-2023 | S46: Tableau 3. | T46: intolérant | U46: OVOLGFIREC | V46: =IFERROR(VLOOKUP($U46,Output!$C:$AM,37,FALSE)/5,0) -> 209626.412
B47: Périodes | C47: ="Possibilités forestières (m"&CHAR(179)&" bruts/an)" -> Possibilités forestières (m³ bruts/an) | S47: Tableau 3. | T47: Tolérant | U47: OVOLGFTREC | V47: =IFERROR(VLOOKUP($U47,Output!$C:$AM,37,FALSE)/5,0) -> 529.788
C48: SEPM | D48: Thuya | E48: Pruche | F48: Pins blanc et rouge | G48: Peupliers | H48: Bouleau à papier | I48: Bouleau jaune | J48: Érables à sucre et rouge | K48: Autres feuillus durs | L48: Total | N48: Possibilité forestière unitaire (PAC / Sup destinée à l'aménagement) | S48: Tableau 3. | T48: Total récoltés | U48: OVOLTOTREC | V48: =IFERROR(VLOOKUP($U48,Output!$C:$AM,37,FALSE)/5,0) -> 1102160
B49: 2023-2028 | C49: =ROUND(V$34,-2) -> 891500 | D49: 100 | E49: =ROUND(V$37,-2) -> 0 | F49: =ROUND(V$38,-2) -> 400 | G49: =ROUND(V$39,-2) -> 76500 | H49: =ROUND(V$40,-2) -> 129600 | I49: =ROUND(V$41,-2) -> 200 | J49: 3600 | K49: =ROUND(V$44,-2) -> 400 | L49: =SUM(C49:K49) -> 1102300 | N49: =V57 -> 1.344638696 | S49: Tableau 3. | T49: FN sur pied | U49: OVOLGFNREC | V49: =IFERROR(VLOOKUP($U49,Output!$C:$AM,37,FALSE)/5,0) -> 361.4944
C50: =C49/$L$49 -> 0.8087634945 | D50: 9.071940488e-05 | E50: 0 | F50: 0.0003628776195 | G50: 0.06940034473 | H50: 0.1175723487 | I50: 0.0001814388098 | J50: 0.003265898576 | K50: 0.0003628776195 | L50: =SUM(C50:K50) -> 1 | S50: Tableau 3. | T50: ER | V50: =V42+V43 -> 3548.4512
B51: 2018-2023 | C51: =VLOOKUP($O$33,DataLocal!$A$6:$W$35,13,FALSE) -> 881400 | D51: =VLOOKUP($O$33,DataLocal!$A$6:$W$35,14,FALSE) -> 0 | E51: =VLOOKUP($O$33,DataLocal!$A$6:$W$35,15,FALSE) -> 0 | F51: =VLOOKUP($O$33,DataLocal!$A$6:$W$35,16,FALSE) -> 100 | G51: =VLOOKUP($O$33,DataLocal!$A$6:$W$35,17,FALSE) -> 73500 | H51: =VLOOKUP($O$33,DataLocal!$A$6:$W$35,18,FALSE) -> 108900 | I51: =VLOOKUP($O$33,DataLocal!$A$6:$W$35,19,FALSE) -> 1200 | J51: =VLOOKUP($O$33,DataLocal!$A$6:$W$35,20,FALSE) -> 1500 | K51: =VLOOKUP($O$33,DataLocal!$A$6:$W$35,21,FALSE) -> 200 | L51: =VLOOKUP($O$33,DataLocal!$A$6:$W$35,23,FALSE) -> 1066800 | N51: % du volume sur pied initial | S51: Tableau 3. | U51: OVOLSABREC | V51: =IFERROR(VLOOKUP($U51,Output!$C:$AM,37,FALSE)/5,0) -> 144621.3848
B52: Écart | C52: =IFERROR((C49/C$51)-1,0) -> 0.01145904243 | D52: 0 | E52: 0 | F52: 3 | G52: 0.04081632653 | H52: 0.1900826446 | I52: -0.8333333333 | J52: 1.4 | K52: 1 | L52: 0.03327709036 | N52: =V59 -> 0.02192982282 | S52: Tableau 3. | U52: OVOLGEPXREC | V52: =IFERROR(VLOOKUP($U52,Output!$C:$AM,37,FALSE)/5,0) -> 660951.2408
B53: ="Répartition de la composante SEPM des possibilités forestières 2023-2028 : sapin ("&IFERROR(ROUND(V51/V34*100,0),0)&"%), épinettes ("&IFERROR(ROUND(V52/V34*100,0),0)&"%), pin gris ("&IFERROR(ROUND(V53/V34*100,0),0)&"%) et mélèzes ("&IFERROR(ROUND(V54/V34*100,0),0)&"%)." -> Répartition de la composante SEPM des possibilités forestières 2023-2028 : sapin (16%), épinettes (74%), pin gris (9%) et mélèzes (0%). | S53: Tableau 3. | U53: OVOLGPGREC | V53: =IFERROR(VLOOKUP($U53,Output!$C:$AM,37,FALSE)/5,0) -> 82563.9372
B54: ="Répartition de la composante Érables à sucre et rouge des possibilités forestières 2023-2028 : érable à sucre("&IFERROR(ROUND(V42/(V42+V43)*100,0),0)&"%) et érable rouge ("&IFERROR(ROUND(V43/(V42+V43)*100,0),0)&"%)." -> Répartition de la composante Érables à sucre et rouge des possibilités forestières 2023-2028 : érable à sucre(0%) et érable rouge (100%). | S54: Tableau 3. | U54: OVOLGMLREC | V54: =IFERROR(VLOOKUP($U54,Output!$C:$AM,37,FALSE)/5,0) -> 3374.9172
B55: Copier/Coller le tableau ci-dessus avec les lignes 53 et 54 | S55: Tableau 3. | U55: OSUPINC | V55: =IFERROR(VLOOKUP($U55,Output!$C:$AM,6,FALSE),0) -> 892689.2
S56: Tableau 3. | U56: OVOLTOTPIEDINC | V56: =IFERROR(VLOOKUP($U56,Output!$C:$AM,7,FALSE),0) -> 48840907.41
S57: Tableau 3. | U57: Possibilité forestière unitaire | V57: =IFERROR(V48/F33,0) -> 1.344638696
S58: Tableau 3. | U58: % récolte volume sur pied
U59: % récolte volume sur pied destiné à l'aménagement | V59: =V48/Figures!V19 -> 0.02192982282
B61: Tableau 4. Répartition des superficies récoltées et des possibilités forestières par grand type de forêt
B62: Grands types de forêt | D62: Superficie récoltée* | H62: Possibilités forestières* | S62: =LEFT(B$61,10) -> Tableau 4. | V62: Output total non arrondi | W62: Écart entre la somme du tableau et le output total
D63: Coupes totales | F63: Coupes partielles | H63: Résineux | J63: Feuillus tolérants | L63: Feuillus intolérants | N63: Total | S63: Tableau 4. | T63: Total | Z63: P2 à P6
D64: ha/an | E64: % | F64: ha/an | G64: % | H64: m³ bruts/an | I64: % | J64: ="m"&CHAR(179)&" bruts/an" -> m³ bruts/an | K64: % | L64: ="m"&CHAR(179)&" bruts/an" -> m³ bruts/an | M64: % | N64: ="m"&CHAR(179)&" bruts/an" -> m³ bruts/an | O64: % | S64: Tableau 4. | T64: ha/an | U64: % | Y64: Famille de courbe | Z64: OSUPINC | AA64: OSUPREALREGAFIN | AB64: OSUPREALREGAPAR | AC64: OSUPREALREGAPRE | AD64: OVOLGRREC | AE64: OVOLGAURREC | AF64: OVOLGFIREC | AG64: OVOLGFTREC | AH64: OVOLTOTREC
B65: Bétulaies blanches | D65: =ROUND(AA65/5,-1) -> 440 | E65: =IFERROR(D65/D$79,0) -> 0.0496054115 | F65: =ROUND(AB65/5,-1) -> 0 | G65: =IFERROR(F65/F$79,0) -> 0 | H65: =ROUND(AD65/5,-2) -> 7600 | I65: =IFERROR(H65/H$79,0) -> 0.008519224302 | J65: =ROUND(AG65/5,-2) -> 200 | K65: =IFERROR(J65/J$79,0) -> 0.4 | L65: =ROUND(AF65/5,-2) -> 66200 | M65: =L65/L$79 -> 0.3159904535 | N65: =H65+J65+L65 -> 74000 | O65: =N65/$N$79 -> 0.06714454224 | S65: Tableau 4. | T65: =D65+F65 -> 440 | U65: =IFERROR(T65/T$79,0) -> 0.04550155119 | V65: =(AA65+AB65)/5 -> 435.5976 | W65: =T65-V65 -> 4.4024 | Y65: (FCTYF_BOP) | Z65: =VLOOKUP(Z$64&$Y65,GTYF!$C:$AP,6,FALSE) -> 33861 | AA65: =VLOOKUP(AA$64&$Y65,GTYF!$C:$AP,37,FALSE) -> 2177.988 | AB65: =VLOOKUP(AB$64&$Y65,GTYF!$C:$AP,37,FALSE) -> 0 | AC65: =VLOOKUP(AC$64&$Y65,GTYF!$C:$AP,37,FALSE) -> 2177.988 | AD65: =VLOOKUP(AD$64&$Y65,GTYF!$C:$AP,37,FALSE) -> 38070.248 | AE65: =VLOOKUP(AE$64&$Y65,GTYF!$C:$AP,37,FALSE) -> 62.412 | AF65: =VLOOKUP(AF$64&$Y65,GTYF!$C:$AP,37,FALSE) -> 331174.86 | AG65: =VLOOKUP(AG$64&$Y65,GTYF!$C:$AP,37,FALSE) -> 1228.796 | AH65: =VLOOKUP(AH$64&$Y65,GTYF!$C:$AP,37,FALSE) -> 370473.902
B66: Bétulaies blanches à résineux | D66: 220 | E66: =IFERROR(D66/D$79,0) -> 0.02480270575 | F66: 0 | G66: =IFERROR(F66/F$79,0) -> 0 | H66: =ROUND(AD66/5,-2) -> 11600 | I66: =IFERROR(H66/H$79,0) -> 0.01300302657 | J66: =ROUND(AG66/5,-2) -> 100 | K66: 0.2 | L66: =ROUND(AF66/5,-2) -> 21400 | M66: =L66/L$79 -> 0.1021479714 | N66: =H66+J66+L66 -> 33100 | O66: 0.03003357227 | S66: Tableau 4. | T66: 220 | U66: =IFERROR(T66/T$79,0) -> 0.02275077559 | V66: =(AA66+AB66)/5 -> 223.0264 | W66: -3.0264 | Y66: (FCTYF_BOPR) | Z66: =VLOOKUP(Z$64&$Y66,GTYF!$C:$AP,6,FALSE) -> 17535.6 | AA66: =VLOOKUP(AA$64&$Y66,GTYF!$C:$AP,37,FALSE) -> 1115.132 | AB66: =VLOOKUP(AB$64&$Y66,GTYF!$C:$AP,37,FALSE) -> 0 | AC66: =VLOOKUP(AC$64&$Y66,GTYF!$C:$AP,37,FALSE) -> 1115.132 | AD66: =VLOOKUP(AD$64&$Y66,GTYF!$C:$AP,37,FALSE) -> 57919.47 | AE66: =VLOOKUP(AE$64&$Y66,GTYF!$C:$AP,37,FALSE) -> 0 | AF66: =VLOOKUP(AF$64&$Y66,GTYF!$C:$AP,37,FALSE) -> 106906.666 | AG66: =VLOOKUP(AG$64&$Y66,GTYF!$C:$AP,37,FALSE) -> 310.892 | AH66: =VLOOKUP(AH$64&$Y66,GTYF!$C:$AP,37,FALSE) -> 165137.026
B67: Cédrières | D67: 0 | E67: 0 | F67: 0 | G67: 0 | H67: =ROUND(AD67/5,-2) -> 0 | I67: 0 | J67: 0 | K67: 0 | L67: 0 | M67: 0 | N67: 0 | O67: 0 | S67: Tableau 4. | T67: 0 | U67: 0 | V67: =(AA67+AB67)/5 -> 0 | W67: 0 | Y67: (FCTYF_THO) | Z67: =VLOOKUP(Z$64&$Y67,GTYF!$C:$AP,6,FALSE) -> 0 | AA67: =VLOOKUP(AA$64&$Y67,GTYF!$C:$AP,37,FALSE) -> 0 | AB67: =VLOOKUP(AB$64&$Y67,GTYF!$C:$AP,37,FALSE) -> 0 | AC67: =VLOOKUP(AC$64&$Y67,GTYF!$C:$AP,37,FALSE) -> 0 | AD67: =VLOOKUP(AD$64&$Y67,GTYF!$C:$AP,37,FALSE) -> 0 | AE67: =VLOOKUP(AE$64&$Y67,GTYF!$C:$AP,37,FALSE) -> 0 | AF67: =VLOOKUP(AF$64&$Y67,GTYF!$C:$AP,37,FALSE) -> 0 | AG67: =VLOOKUP(AG$64&$Y67,GTYF!$C:$AP,37,FALSE) -> 0 | AH67: =VLOOKUP(AH$64&$Y67,GTYF!$C:$AP,37,FALSE) -> 0
B68: Érablières rouges | D68: 0 | E68: 0 | F68: 0 | G68: 0 | H68: 0 | I68: 0 | J68: 0 | K68: 0 | L68: 0 | M68: 0 | N68: 0 | O68: 0 | S68: Tableau 4. | T68: 0 | U68: 0 | V68: =(AA68+AB68)/5 -> 0 | W68: 0 | Y68: (FCTYF_ERO) | Z68: =VLOOKUP(Z$64&$Y68,GTYF!$C:$AP,6,FALSE) -> 0 | AA68: =VLOOKUP(AA$64&$Y68,GTYF!$C:$AP,37,FALSE) -> 0 | AB68: =VLOOKUP(AB$64&$Y68,GTYF!$C:$AP,37,FALSE) -> 0 | AC68: =VLOOKUP(AC$64&$Y68,GTYF!$C:$AP,37,FALSE) -> 0 | AD68: =VLOOKUP(AD$64&$Y68,GTYF!$C:$AP,37,FALSE) -> 0 | AE68: =VLOOKUP(AE$64&$Y68,GTYF!$C:$AP,37,FALSE) -> 0 | AF68: =VLOOKUP(AF$64&$Y68,GTYF!$C:$AP,37,FALSE) -> 0 | AG68: =VLOOKUP(AG$64&$Y68,GTYF!$C:$AP,37,FALSE) -> 0 | AH68: =VLOOKUP(AH$64&$Y68,GTYF!$C:$AP,37,FALSE) -> 0
B69: Feuillus tolérants | D69: 0 | E69: 0 | F69: 0 | G69: 0 | H69: 0 | I69: 0 | J69: 0 | K69: 0 | L69: 0 | M69: 0 | N69: 0 | O69: 0 | S69: Tableau 4. | T69: 0 | U69: 0 | V69: 0 | W69: 0 | Y69: (FCTYF_FT) | Z69: =VLOOKUP(Z$64&$Y69,GTYF!$C:$AP,6,FALSE) -> 0 | AA69: =VLOOKUP(AA$64&$Y69,GTYF!$C:$AP,37,FALSE) -> 0 | AB69: =VLOOKUP(AB$64&$Y69,GTYF!$C:$AP,37,FALSE) -> 0 | AC69: =VLOOKUP(AC$64&$Y69,GTYF!$C:$AP,37,FALSE) -> 0 | AD69: =VLOOKUP(AD$64&$Y69,GTYF!$C:$AP,37,FALSE) -> 0 | AE69: =VLOOKUP(AE$64&$Y69,GTYF!$C:$AP,37,FALSE) -> 0 | AF69: =VLOOKUP(AF$64&$Y69,GTYF!$C:$AP,37,FALSE) -> 0 | AG69: =VLOOKUP(AG$64&$Y69,GTYF!$C:$AP,37,FALSE) -> 0 | AH69: =VLOOKUP(AH$64&$Y69,GTYF!$C:$AP,37,FALSE) -> 0
B70: Feuillus tolérants à résineux | D70: 0 | E70: 0 | F70: 0 | G70: 0 | H70: 0 | I70: 0 | J70: 0 | K70: 0 | L70: 0 | M70: 0 | N70: 0 | O70: 0 | S70: Tableau 4. | T70: 0 | U70: 0 | V70: 0 | W70: 0 | Y70: (FCTYF_FTR) | Z70: =VLOOKUP(Z$64&$Y70,GTYF!$C:$AP,6,FALSE) -> 0 | AA70: =VLOOKUP(AA$64&$Y70,GTYF!$C:$AP,37,FALSE) -> 0 | AB70: =VLOOKUP(AB$64&$Y70,GTYF!$C:$AP,37,FALSE) -> 0 | AC70: =VLOOKUP(AC$64&$Y70,GTYF!$C:$AP,37,FALSE) -> 0 | AD70: =VLOOKUP(AD$64&$Y70,GTYF!$C:$AP,37,FALSE) -> 0 | AE70: =VLOOKUP(AE$64&$Y70,GTYF!$C:$AP,37,FALSE) -> 0 | AF70: =VLOOKUP(AF$64&$Y70,GTYF!$C:$AP,37,FALSE) -> 0 | AG70: =VLOOKUP(AG$64&$Y70,GTYF!$C:$AP,37,FALSE) -> 0 | AH70: =VLOOKUP(AH$64&$Y70,GTYF!$C:$AP,37,FALSE) -> 0
B71: Pessières | D71: =ROUND(AA71/5,-1) -> 5920 | E71: 0.6674182638 | F71: 790 | G71: 0.9875 | H71: 650200 | I71: 0.7288420581 | J71: 100 | K71: 0.2 | L71: 27400 | M71: 0.1307875895 | N71: 677700 | O71: 0.6149169767 | S71: Tableau 4. | T71: 6710 | U71: 0.6938986556 | V71: 6711.5496 | W71: =T71-V71 -> -1.5496 | Y71: (FCTYF_EPX) | Z71: =VLOOKUP(Z$64&$Y71,GTYF!$C:$AP,6,FALSE) -> 466837.5 | AA71: =VLOOKUP(AA$64&$Y71,GTYF!$C:$AP,37,FALSE) -> 29600.088 | AB71: =VLOOKUP(AB$64&$Y71,GTYF!$C:$AP,37,FALSE) -> 3957.66 | AC71: =VLOOKUP(AC$64&$Y71,GTYF!$C:$AP,37,FALSE) -> 33557.748 | AD71: =VLOOKUP(AD$64&$Y71,GTYF!$C:$AP,37,FALSE) -> 3251190.906 | AE71: =VLOOKUP(AE$64&$Y71,GTYF!$C:$AP,37,FALSE) -> 1799.436 | AF71: =VLOOKUP(AF$64&$Y71,GTYF!$C:$AP,37,FALSE) -> 136955.804 | AG71: =VLOOKUP(AG$64&$Y71,GTYF!$C:$AP,37,FALSE) -> 331.616 | AH71: =VLOOKUP(AH$64&$Y71,GTYF!$C:$AP,37,FALSE) -> 3388478.33
B72: Peupleraies | D72: 300 | E72: 0.03382187148 | F72: 0 | G72: 0 | H72: 4000 | I72: 0.004483802264 | J72: 100 | K72: 0.2 | L72: 50200 | M72: 0.2396181384 | N72: 54300 | O72: 0.04926957626 | S72: Tableau 4. | T72: 300 | U72: 0.0310237849 | V72: 301.954 | W72: -1.954 | Y72: (FCTYF_PEU) | Z72: =VLOOKUP(Z$64&$Y72,GTYF!$C:$AP,6,FALSE) -> 13769.8 | AA72: =VLOOKUP(AA$64&$Y72,GTYF!$C:$AP,37,FALSE) -> 1509.77 | AB72: =VLOOKUP(AB$64&$Y72,GTYF!$C:$AP,37,FALSE) -> 0 | AC72: =VLOOKUP(AC$64&$Y72,GTYF!$C:$AP,37,FALSE) -> 1509.77 | AD72: =VLOOKUP(AD$64&$Y72,GTYF!$C:$AP,37,FALSE) -> 19866.034 | AE72: =VLOOKUP(AE$64&$Y72,GTYF!$C:$AP,37,FALSE) -> 29.892 | AF72: =VLOOKUP(AF$64&$Y72,GTYF!$C:$AP,37,FALSE) -> 250966.88 | AG72: =VLOOKUP(AG$64&$Y72,GTYF!$C:$AP,37,FALSE) -> 524.404 | AH72: =VLOOKUP(AH$64&$Y72,GTYF!$C:$AP,37,FALSE) -> 271357.318
B73: Peupleraies à résineux | D73: 80 | E73: 0.009019165727 | F73: 0 | G73: 0 | H73: 4400 | I73: 0.004932182491 | J73: 0 | K73: 0 | L73: 8100 | M73: 0.03866348449 | N73: 12500 | O73: 0.01134198349 | S73: Tableau 4. | T73: 80 | U73: 0.008273009307 | V73: 83.294 | W73: -3.294 | Y73: (FCTYF_PEUR) | Z73: =VLOOKUP(Z$64&$Y73,GTYF!$C:$AP,6,FALSE) -> 7069.7 | AA73: =VLOOKUP(AA$64&$Y73,GTYF!$C:$AP,37,FALSE) -> 416.47 | AB73: =VLOOKUP(AB$64&$Y73,GTYF!$C:$AP,37,FALSE) -> 0 | AC73: =VLOOKUP(AC$64&$Y73,GTYF!$C:$AP,37,FALSE) -> 416.47 | AD73: =VLOOKUP(AD$64&$Y73,GTYF!$C:$AP,37,FALSE) -> 21800.588 | AE73: =VLOOKUP(AE$64&$Y73,GTYF!$C:$AP,37,FALSE) -> 57.89 | AF73: =VLOOKUP(AF$64&$Y73,GTYF!$C:$AP,37,FALSE) -> 40718.048 | AG73: =VLOOKUP(AG$64&$Y73,GTYF!$C:$AP,37,FALSE) -> 126.932 | AH73: =VLOOKUP(AH$64&$Y73,GTYF!$C:$AP,37,FALSE) -> 62645.568
B74: Pinèdes blanches | D74: 0 | E74: 0 | F74: 0 | G74: 0 | H74: 0 | I74: 0 | J74: 0 | K74: 0 | L74: 0 | M74: 0 | N74: 0 | O74: 0 | S74: Tableau 4. | T74: 0 | U74: 0 | V74: 0 | W74: 0 | Y74: (FCTYF_PIN) | Z74: =VLOOKUP(Z$64&$Y74,GTYF!$C:$AP,6,FALSE) -> 0 | AA74: =VLOOKUP(AA$64&$Y74,GTYF!$C:$AP,37,FALSE) -> 0 | AB74: =VLOOKUP(AB$64&$Y74,GTYF!$C:$AP,37,FALSE) -> 0 | AC74: =VLOOKUP(AC$64&$Y74,GTYF!$C:$AP,37,FALSE) -> 0 | AD74: =VLOOKUP(AD$64&$Y74,GTYF!$C:$AP,37,FALSE) -> 0 | AE74: =VLOOKUP(AE$64&$Y74,GTYF!$C:$AP,37,FALSE) -> 0 | AF74: =VLOOKUP(AF$64&$Y74,GTYF!$C:$AP,37,FALSE) -> 0 | AG74: =VLOOKUP(AG$64&$Y74,GTYF!$C:$AP,37,FALSE) -> 0 | AH74: =VLOOKUP(AH$64&$Y74,GTYF!$C:$AP,37,FALSE) -> 0
B75: Pinèdes grises | D75: 550 | E75: 0.06200676437 | F75: 10 | G75: 0.0125 | H75: 72600 | I75: 0.0813810111 | J75: 0 | K75: 0 | L75: 4900 | M75: 0.02338902148 | N75: 77500 | O75: 0.07032029761 | S75: Tableau 4. | T75: 560 | U75: 0.05791106515 | V75: 562.478 | W75: -2.478 | Y75: (FCTYF_PIG) | Z75: =VLOOKUP(Z$64&$Y75,GTYF!$C:$AP,6,FALSE) -> 62505.7 | AA75: =VLOOKUP(AA$64&$Y75,GTYF!$C:$AP,37,FALSE) -> 2746.61 | AB75: =VLOOKUP(AB$64&$Y75,GTYF!$C:$AP,37,FALSE) -> 65.78 | AC75: =VLOOKUP(AC$64&$Y75,GTYF!$C:$AP,37,FALSE) -> 2812.39 | AD75: =VLOOKUP(AD$64&$Y75,GTYF!$C:$AP,37,FALSE) -> 362813.444 | AE75: =VLOOKUP(AE$64&$Y75,GTYF!$C:$AP,37,FALSE) -> 7.68 | AF75: =VLOOKUP(AF$64&$Y75,GTYF!$C:$AP,37,FALSE) -> 24719.678 | AG75: =VLOOKUP(AG$64&$Y75,GTYF!$C:$AP,37,FALSE) -> 0 | AH75: =VLOOKUP(AH$64&$Y75,GTYF!$C:$AP,37,FALSE) -> 387533.124
B76: Prucheraies | D76: 0 | E76: 0 | F76: 0 | G76: 0 | H76: 0 | I76: 0 | J76: 0 | K76: 0 | L76: 0 | M76: 0 | N76: 0 | O76: 0 | S76: Tableau 4. | T76: 0 | U76: 0 | V76: 0 | W76: 0 | Y76: (FCTYF_PRU) | Z76: =VLOOKUP(Z$64&$Y76,GTYF!$C:$AP,6,FALSE) -> 0 | AA76: =VLOOKUP(AA$64&$Y76,GTYF!$C:$AP,37,FALSE) -> 0 | AB76: =VLOOKUP(AB$64&$Y76,GTYF!$C:$AP,37,FALSE) -> 0 | AC76: =VLOOKUP(AC$64&$Y76,GTYF!$C:$AP,37,FALSE) -> 0 | AD76: =VLOOKUP(AD$64&$Y76,GTYF!$C:$AP,37,FALSE) -> 0 | AE76: =VLOOKUP(AE$64&$Y76,GTYF!$C:$AP,37,FALSE) -> 0 | AF76: =VLOOKUP(AF$64&$Y76,GTYF!$C:$AP,37,FALSE) -> 0 | AG76: =VLOOKUP(AG$64&$Y76,GTYF!$C:$AP,37,FALSE) -> 0 | AH76: =VLOOKUP(AH$64&$Y76,GTYF!$C:$AP,37,FALSE) -> 0
B77: Résineux à feuillus | D77: 530 | E77: 0.05975197294 | F77: 0 | G77: 0 | H77: 43300 | I77: 0.04853715951 | J77: 0 | K77: 0 | L77: 21600 | M77: 0.1031026253 | N77: 64900 | O77: 0.05888757826 | S77: Tableau 4. | T77: 530 | U77: 0.05480868666 | V77: 530.3344 | W77: -0.3344 | Y77: (FCTYF_RF) | Z77: =VLOOKUP(Z$64&$Y77,GTYF!$C:$AP,6,FALSE) -> 95406 | AA77: =VLOOKUP(AA$64&$Y77,GTYF!$C:$AP,37,FALSE) -> 2651.672 | AB77: =VLOOKUP(AB$64&$Y77,GTYF!$C:$AP,37,FALSE) -> 0 | AC77: =VLOOKUP(AC$64&$Y77,GTYF!$C:$AP,37,FALSE) -> 2651.672 | AD77: =VLOOKUP(AD$64&$Y77,GTYF!$C:$AP,37,FALSE) -> 216484.26 | AE77: =VLOOKUP(AE$64&$Y77,GTYF!$C:$AP,37,FALSE) -> 504.29 | AF77: =VLOOKUP(AF$64&$Y77,GTYF!$C:$AP,37,FALSE) -> 108189.146 | AG77: =VLOOKUP(AG$64&$Y77,GTYF!$C:$AP,37,FALSE) -> 16.844 | AH77: =VLOOKUP(AH$64&$Y77,GTYF!$C:$AP,37,FALSE) -> 324690.25
B78: Sapinières | D78: 830 | E78: 0.09357384442 | F78: 0 | G78: 0 | H78: 98400 | I78: 0.1103015357 | J78: =ROUND(AG78/5,-2) -> 0 | K78: 0 | L78: 9700 | M78: 0.04630071599 | N78: 108100 | O78: 0.09808547319 | S78: Tableau 4. | T78: 830 | U78: 0.08583247156 | V78: 826.476 | W78: 3.524 | Y78: (FCTYF_SAB) | Z78: =VLOOKUP(Z$64&$Y78,GTYF!$C:$AP,6,FALSE) -> 122685.5 | AA78: =VLOOKUP(AA$64&$Y78,GTYF!$C:$AP,37,FALSE) -> 4131.82 | AB78: =VLOOKUP(AB$64&$Y78,GTYF!$C:$AP,37,FALSE) -> 0.56 | AC78: =VLOOKUP(AC$64&$Y78,GTYF!$C:$AP,37,FALSE) -> 4132.38 | AD78: =VLOOKUP(AD$64&$Y78,GTYF!$C:$AP,37,FALSE) -> 491874.05 | AE78: =VLOOKUP(AE$64&$Y78,GTYF!$C:$AP,37,FALSE) -> 0 | AF78: =VLOOKUP(AF$64&$Y78,GTYF!$C:$AP,37,FALSE) -> 48500.97 | AG78: =VLOOKUP(AG$64&$Y78,GTYF!$C:$AP,37,FALSE) -> 109.46 | AH78: =VLOOKUP(AH$64&$Y78,GTYF!$C:$AP,37,FALSE) -> 540484.48
B79: Total | D79: =SUM(D65:D78) -> 8870 | E79: =SUM(E65:E78) -> 1 | F79: =SUM(F65:F78) -> 800 | G79: =SUM(G65:G78) -> 1 | H79: =SUM(H65:H78) -> 892100 | I79: =SUM(I65:I78) -> 1 | J79: 500 | K79: 1 | L79: 209500 | M79: 1 | N79: =SUM(N65:N78) -> 1102100 | O79: 1 | S79: Tableau 4. | T79: =SUM(T65:T78) -> 9670 | U79: =SUM(U65:U78) -> 1 | V79: =SUM(V65:V78) -> 9674.71 | W79: -4.71 | Y79: Somme | Z79: =SUM(Z65:Z78) -> 819670.8 | AA79: =SUM(AA65:AA78) -> 44349.55 | AB79: =SUM(AB65:AB78) -> 4024 | AC79: =SUM(AC65:AC78) -> 48373.55
B80: * Les superficies sont arrondies à la dizaine près et les volumes à la centaine près. Cette opération peut engendrer de légères distorsions sur les sommes | S80: Tableau 4. | Y80: Total (Output) | Z80: =VLOOKUP(Z$64,Output!$C:$AP,6,FALSE) -> 892689.2
Y81: Écart | Z81: =Z79-Z80 -> -73018.4
N82: Écart de possibilité
N83: =Instructions!I5/5-N79 -> 60 | O83: Valideur
B84: Tableau 8. Traitements commerciaux supportant les possibilités forestières
B85: Traitements commerciaux (récolte) | G85: Superficie annuelle moyenne (ha/an) | H85: Superficie antérieure (ha/an) | I85: Écart (ha/an)
T88: Légende | U88: Name | V88: PERIOD2@6
B89: Coupe avec protection de la régénération et des sols (CPRS) | G89: =IFERROR(ROUND(V89,-1),0)-G90-G91 -> 8870 | H89: =IFERROR(ROUND(VLOOKUP(O33,DataLocal!$A:$BH,37,FALSE),-1),0) -> 8820 | I89: =G89-H89 -> 50 | S89: =LEFT(B$84,10) -> Tableau 8. | T89: Coupes avec protection de la régénération et des sols (CPRS) | U89: OSUPCT | V89: =IFERROR(VLOOKUP(U89,Output!$C:$AQ,37,FALSE)/5,"0000") -> 8869.9092
B90: Coupe avec protection des petites tiges marchandes (CPPTM) | G90: =IFERROR(ROUND(V90,-1),0) -> 0 | H90: =IFERROR(ROUND(VLOOKUP(O33,DataLocal!$A:$BH,38,FALSE),-1),0) -> 0 | I90: =G90-H90 -> 0 | S90: Tableau 8. | T90: Coupe avec protection des petites tiges marchandes (CPPTM) | U90: OSUPREALACPPTM | V90: =IFERROR(VLOOKUP(U90,Output!$C:$AQ,37,FALSE)/5,"0000") -> 0
B91: Coupe avec réserve de semenciers (CRS) | G91: =IFERROR(ROUND(V91,-1),0) -> 0 | H91: =IFERROR(ROUND(VLOOKUP(33,DataLocal!$A:$BH,39,FALSE),-1),0) -> 0 | I91: 0 | K91: % de sup INC | S91: Tableau 8. | T91: Coupe avec réserve de semenciers (CRS) | U91: OSUPREALACRS | V91: =IFERROR(VLOOKUP(U91,Output!$C:$AQ,37,FALSE)/5,"0000") -> 0
B92: Total des coupes finales | G92: =SUM(G89:G91) -> 8870 | H92: =SUM(H89:H91) -> 8820 | I92: 50 | K92: =G92/$I$20 -> 0.009936268972 | S92: Tableau 8.
B93: Éclaircie commerciale | G93: =IFERROR(ROUND(V93,-1),0) -> 20 | H93: =IFERROR(ROUND(VLOOKUP(O33,DataLocal!$A:$BH,40,FALSE),-1),0) -> 20 | I93: 0 | S93: Tableau 8. | T93: Éclaircie commerciale (EC) | U93: OSUPEC_SEPM | V93: =IFERROR(VLOOKUP(U93,Output!$C:$AQ,37,FALSE)/5,"0000") -> 22
B94: Coupe progressive régulière | G94: =IFERROR(ROUND(V94+V95,-1),0) -> 0 | H94: =IFERROR(ROUND(VLOOKUP(O33,DataLocal!$A:$BH,41,FALSE),-1),0) -> 1840 | I94: -1840 | S94: Tableau 8. | T94: Coupe progressive régulière initiale (CPROG) | U94: OSUPCPROG_INI | V94: =IFERROR(VLOOKUP(U94,Output!$C:$AQ,37,FALSE)/5,"0000") -> 0000
B95: Coupe progressive irrégulière à régénération lente (CPIL) | G95: =IFERROR(ROUND(V96+V97,-1),0) -> 780 | H95: =IFERROR(ROUND(VLOOKUP(O33,DataLocal!$A:$BH,42,FALSE),-1),0) -> 0 | I95: 780 | S95: Tableau 8. | T95: Coupe progressive régulière finale (CPROG) | U95: OSUPCPROG_FIN | V95: =IFERROR(VLOOKUP(U95,Output!$C:$AQ,37,FALSE)/5,"0000") -> 0000
B96: Coupe progressive irrégulière à couvert permanent (CPICP) | G96: =IFERROR(ROUND(V98,-1),0) -> 0 | H96: =IFERROR(ROUND(VLOOKUP(O33,DataLocal!$A:$BH,43,FALSE),-1),0) -> 0 | I96: 0 | S96: Tableau 8. | T96: Coupe progessive irrégulière initiale (CPIRL) | U96: OSUPCPIRL_INI | V96: =IFERROR(VLOOKUP(U96,Output!$C:$AQ,37,FALSE)/5,"0000") -> 782.8
B97: Coupes de jardinage ou d'amélioration | G97: =IFERROR(ROUND(V99,-1),0) -> 0 | H97: =IFERROR(ROUND(VLOOKUP(O33,DataLocal!$A:$BH,44,FALSE),-1),0) -> 0 | I97: 0 | T97: Coupe progessive irrégulière finale (CPIRL) | U97: OSUPCPIRL_FIN | V97: =IFERROR(VLOOKUP(U97,Output!$C:$AQ,37,FALSE)/5,"0000") -> 0
B98: Total des coupes partielles | G98: =SUM(G93:G97) -> 800 | H98: =SUM(H93:H97) -> 1860 | I98: -1060 | K98: =G98/$I$20 -> 0.0008961685657 | S98: =LEFT(B$84,10) -> Tableau 8. | T98: Coupe à couvert permanent (CPICP) | U98: OSUPCPICP | V98: =IFERROR(VLOOKUP(U98,Output!$C:$AQ,37,FALSE)/5,"0000") -> 0000
B99: Total des activités de récolte | G99: =G92+G98 -> 9670 | H99: =H98+H92 -> 10680 | I99: -1010 | K99: =G99/$I$20 -> 0.01083243754 | S99: =LEFT(B$84,10) -> Tableau 8. | T99: Coupe de jardinage (CJ) | U99: OSUPCJ | V99: =IFERROR(VLOOKUP(U99,Output!$C:$AQ,37,FALSE)/5,"0000") -> 0000
B100: % des coupes totales / récolte | G100: =IFERROR(G92/G99,0) -> 0.9172699069 | H100: =IFERROR(H92/H99,0) -> 0.8258426966 | I100: =ROUND(G100-H100,2) -> 0.09 | W100: Valideur
B101: % des coupes partielles / récolte | G101: =IFERROR(G98/G99,0) -> 0.08273009307 | H101: =IFERROR(H98/H99,0) -> 0.1741573034 | I101: =ROUND(G101-H101,2) -> -0.09 | S101: =LEFT(B$84,10) -> Tableau 8. | U101: OSUPREALREGAPAR | V101: =VLOOKUP(U101,Output!$C:$AQ,37,FALSE)/5 -> 804.8 | W101: =ROUND(SUM(V93:V99),0)=ROUND(V101,0) -> TRUE
B102: Coupes partielles de peuplements résineux | G102: =ROUND((AB67+AB71+AB75+AB76+AB77+AB78)/5,-1) -> 800 | H102: =IFERROR(ROUND(VLOOKUP(O33,DataLocal!$A:$BH,45,FALSE),-1),0) -> 1860 | I102: -1060 | S102: =LEFT(B$84,10) -> Tableau 8. | U102: OSUPREALREGAFIN | V102: =VLOOKUP(U102,Output!$C:$AQ,37,FALSE)/5 -> 8869.9092 | W102: =ROUND((V89),0)=ROUND(V102,0) -> TRUE
B103: Coupes partielles de peuplements de feuillus tolérants et de pins | G103: =ROUND((AB69+AB70+AB74)/5,-1) -> 0 | H103: =IFERROR(ROUND(VLOOKUP(O33,DataLocal!$A:$BH,46,FALSE),-1),0) -> 0 | I103: 0 | S103: =LEFT(B$84,10) -> Tableau 8. | U103: OSUPREALREGAPRE | V103: =VLOOKUP(U103,Output!$C:$AQ,37,FALSE)/5 -> 9674.7092 | W103: =ROUND(V89+SUM(V93:V99),0)=ROUND(V103,0) -> TRUE
B104: * Les superficies sont arrondies à la dizaine près. Cette opération peut engendrer de légères distorsions sur les sommes.
B109: Tableau 9. Variables descriptives reliées aux coupes partielles et totales par grand type de forêt | L109: La CRV est-elle compabilisée avec les coupes partielles (regaPar)?
B110: Grands types de forêt | E110: Coupes partielles | H110: Coupes totales | L110: Si Oui - Remplacer alors les valeurs (colonne H et I) par celles-ci
E111: Rotation moyenne | F111: Prélèvement moyen | G111: Surface terrière moyenne avant coupe | H111: Âge moyen des peuplements | I111: Volume moyen toutes essences | J111: Dimension des bois SEPM | M111: Âge moyen des peuplements | N111: Volume moyen toutes essences
S113: Référence Tableau 63 du cahier d'analyse VF
E115: Années | F115: ="m"&CHAR(179)&"/ha" -> m³/ha | G115: ="m"&CHAR(178)&"/ha" -> m²/ha | H115: Années | I115: ="m"&CHAR(179)&"/an" -> m³/an | J115: ="dcm"&CHAR(179)&"/tige" -> dcm³/tige | M115: Années | N115: ="m"&CHAR(179)&"/an" -> m³/an | S115: =LEFT(B$109,10) -> Tableau 9. | V115: OSUPREALREGAPRE | W115: OSUPINC | X115: OVOLGSEPMRECREGAFIN | Y115: ONBTGSEPMRECREGAFIN | Z115: OVOLTOTRECACT | AA115: OVOLTOTRECACFP | AB115: OVOLTOTRECACRS | AC115: OVOLTOTRECACPPTM | AD115: OSUPREALREGAFIN | AE115: OVOLTOTRECACRV | AF115: OAGETOTRECACT | AG115: OAGETOTRECACFP | AH115: OAGETOTRECACRS | AI115: OAGETOTRECACPPTM | AJ115: OSUPREALREGAFIN | AK115: OAGETOTRECACRV | AM115: OVOLTOTRECaEC | AN115: OVOLTOTRECaEC2 | AO115: OVOLTOTRECaEC3 | AP115: OVOLTOTRECaCA | AQ115: OVOLTOTRECaCA2 | AR115: OVOLTOTRECaCPROG | AS115: OVOLTOTRECaCPIL | AT115: OVOLTOTRECaCPIP | AU115: OVOLTOTRECaCPFORT | AV115: OVOLTOTRECaCPFAIBL | AW115: OVOLTOTRECaCP | AX115: OVOLTOTRECaCPJ | AY115: OVOLTOTRECaCJ | AZ115: SOMME | BA115: OSUPREALREGAPAR
B116: =T116 -> Bétulaies blanches | E116: - | F116: =IFERROR($AZ116/$BA116,"-") -> - | G116: - | H116: =IFERROR(($AF116+$AG116+$AH116+$AI116+$AK116)/$AJ116*5,"-") -> 99.13040384 | I116: =IFERROR(($Z116+$AA116+$AB116+$AC116+$AE116)/$AD116,"-") -> 170.0991475 | J116: =(IFERROR(X116/Y116*1000,"-")) -> 116.6609845 | M116: =IFERROR(($AF116+$AG116+$AH116+$AI116)/$AJ116*5,"-") -> 99.13040384 | N116: =IFERROR(($Z116+$AA116+$AB116+$AC116)/$AD116,"-") -> 170.0991475 | S116: =LEFT(B$109,10) -> Tableau 9. | T116: Bétulaies blanches | U116: (FCTYF_BOP) | V116: =VLOOKUP(V$115&$U116,GTYF!$C:$AQ,37,FALSE) -> 2177.988 | W116: =VLOOKUP(W$115&$U116,GTYF!$C:$AQ,6,FALSE) -> 33861 | X116: =VLOOKUP(X$115&$U116,GTYF!$C:$AQ,37,FALSE) -> 38007.834 | Y116: =VLOOKUP(Y$115&$U116,GTYF!$C:$AQ,37,FALSE) -> 325797.302 | Z116: =VLOOKUP(Z$115&$U116,GTYF!$C:$AQ,37,FALSE) -> 370473.902 | AA116: =VLOOKUP(AA$115&$U116,GTYF!$C:$AQ,37,FALSE) -> 0 | AB116: =VLOOKUP(AB$115&$U116,GTYF!$C:$AQ,37,FALSE) -> 0 | AC116: =VLOOKUP(AC$115&$U116,GTYF!$C:$AQ,37,FALSE) -> 0 | AD116: =VLOOKUP(AD$115&$U116,GTYF!$C:$AQ,37,FALSE) -> 2177.988 | AE116: =VLOOKUP(AE$115&$U116,GTYF!$C:$AQ,37,FALSE) -> 0 | AF116: =VLOOKUP(AF$115&$U116,GTYF!$C:$AQ,37,FALSE) -> 43180.966 | AG116: =VLOOKUP(AG$115&$U116,GTYF!$C:$AQ,37,FALSE) -> 0 | AH116: =VLOOKUP(AH$115&$U116,GTYF!$C:$AQ,37,FALSE) -> 0 | AI116: =VLOOKUP(AI$115&$U116,GTYF!$C:$AQ,37,FALSE) -> 0 | AJ116: =VLOOKUP(AJ$115&$U116,GTYF!$C:$AQ,37,FALSE) -> 2177.988 | AK116: =VLOOKUP(AK$115&$U116,GTYF!$C:$AQ,37,FALSE) -> 0 | AM116: =VLOOKUP(AM$115&$U116,GTYF!$C:$AQ,37,FALSE) -> 0 | AN116: =VLOOKUP(AN$115&$U116,GTYF!$C:$AQ,37,FALSE) -> 0 | AO116: =VLOOKUP(AO$115&$U116,GTYF!$C:$AQ,37,FALSE) -> 0 | AP116: =VLOOKUP(AP$115&$U116,GTYF!$C:$AQ,37,FALSE) -> 0 | AQ116: =VLOOKUP(AQ$115&$U116,GTYF!$C:$AQ,37,FALSE) -> 0 | AR116: =VLOOKUP(AR$115&$U116,GTYF!$C:$AQ,37,FALSE) -> 0 | AS116: =VLOOKUP(AS$115&$U116,GTYF!$C:$AQ,37,FALSE) -> 0 | AT116: =VLOOKUP(AT$115&$U116,GTYF!$C:$AQ,37,FALSE) -> 0 | AU116: =VLOOKUP(AU$115&$U116,GTYF!$C:$AQ,37,FALSE) -> 0 | AV116: =VLOOKUP(AV$115&$U116,GTYF!$C:$AQ,37,FALSE) -> 0 | AW116: =VLOOKUP(AW$115&$U116,GTYF!$C:$AQ,37,FALSE) -> 0 | AX116: =VLOOKUP(AX$115&$U116,GTYF!$C:$AQ,37,FALSE) -> 0 | AY116: =VLOOKUP(AY$115&$U116,GTYF!$C:$AQ,37,FALSE) -> 0 | AZ116: =SUM(AM116:AY116) -> 0 | BA116: =VLOOKUP(BA$115&$U116,GTYF!$C:$AQ,37,FALSE) -> 0
B117: Bétulaies blanches à résineux | E117: - | F117: - | G117: - | H117: =IFERROR(($AF117+$AG117+$AH117+$AI117+$AK117)/$AJ117*5,"-") -> 94.25225893 | I117: =IFERROR(($Z117+$AA117+$AB117+$AC117+$AE117)/$AD117,"-") -> 148.0874246 | J117: =(IFERROR(X117/Y117*1000,"-")) -> 140.1744801 | M117: =IFERROR(($AF117+$AG117+$AH117+$AI117)/$AJ117*5,"-") -> 94.25225893 | N117: =IFERROR(($Z117+$AA117+$AB117+$AC117)/$AD117,"-") -> 148.0874246 | S117: Tableau 9. | T117: Bétulaies blanches à résineux | U117: (FCTYF_BOPR) | V117: =VLOOKUP(V$115&$U117,GTYF!$C:$AQ,37,FALSE) -> 1115.132 | W117: =VLOOKUP(W$115&$U117,GTYF!$C:$AQ,6,FALSE) -> 17535.6 | X117: =VLOOKUP(X$115&$U117,GTYF!$C:$AQ,37,FALSE) -> 57919.47 | Y117: =VLOOKUP(Y$115&$U117,GTYF!$C:$AQ,37,FALSE) -> 413195.54 | Z117: =VLOOKUP(Z$115&$U117,GTYF!$C:$AQ,37,FALSE) -> 165137.026 | AA117: =VLOOKUP(AA$115&$U117,GTYF!$C:$AQ,37,FALSE) -> 0 | AB117: =VLOOKUP(AB$115&$U117,GTYF!$C:$AQ,37,FALSE) -> 0 | AC117: =VLOOKUP(AC$115&$U117,GTYF!$C:$AQ,37,FALSE) -> 0 | AD117: =VLOOKUP(AD$115&$U117,GTYF!$C:$AQ,37,FALSE) -> 1115.132 | AE117: =VLOOKUP(AE$115&$U117,GTYF!$C:$AQ,37,FALSE) -> 0 | AF117: =VLOOKUP(AF$115&$U117,GTYF!$C:$AQ,37,FALSE) -> 21020.742 | AG117: =VLOOKUP(AG$115&$U117,GTYF!$C:$AQ,37,FALSE) -> 0 | AH117: =VLOOKUP(AH$115&$U117,GTYF!$C:$AQ,37,FALSE) -> 0 | AI117: =VLOOKUP(AI$115&$U117,GTYF!$C:$AQ,37,FALSE) -> 0 | AJ117: =VLOOKUP(AJ$115&$U117,GTYF!$C:$AQ,37,FALSE) -> 1115.132 | AK117: =VLOOKUP(AK$115&$U117,GTYF!$C:$AQ,37,FALSE) -> 0 | AM117: =VLOOKUP(AM$115&$U117,GTYF!$C:$AQ,37,FALSE) -> 0 | AN117: =VLOOKUP(AN$115&$U117,GTYF!$C:$AQ,37,FALSE) -> 0 | AO117: =VLOOKUP(AO$115&$U117,GTYF!$C:$AQ,37,FALSE) -> 0 | AP117: =VLOOKUP(AP$115&$U117,GTYF!$C:$AQ,37,FALSE) -> 0 | AQ117: =VLOOKUP(AQ$115&$U117,GTYF!$C:$AQ,37,FALSE) -> 0 | AR117: =VLOOKUP(AR$115&$U117,GTYF!$C:$AQ,37,FALSE) -> 0 | AS117: =VLOOKUP(AS$115&$U117,GTYF!$C:$AQ,37,FALSE) -> 0 | AT117: =VLOOKUP(AT$115&$U117,GTYF!$C:$AQ,37,FALSE) -> 0 | AU117: =VLOOKUP(AU$115&$U117,GTYF!$C:$AQ,37,FALSE) -> 0 | AV117: =VLOOKUP(AV$115&$U117,GTYF!$C:$AQ,37,FALSE) -> 0 | AW117: =VLOOKUP(AW$115&$U117,GTYF!$C:$AQ,37,FALSE) -> 0 | AX117: =VLOOKUP(AX$115&$U117,GTYF!$C:$AQ,37,FALSE) -> 0 | AY117: =VLOOKUP(AY$115&$U117,GTYF!$C:$AQ,37,FALSE) -> 0 | AZ117: =SUM(AM117:AY117) -> 0 | BA117: =VLOOKUP(BA$115&$U117,GTYF!$C:$AQ,37,FALSE) -> 0
B118: Cédrières | F118: - | H118: =IFERROR(($AF118+$AG118+$AH118+$AI118+$AK118)/$AJ118*5,"-") -> - | I118: - | J118: =(IFERROR(X118/Y118*1000,"-")) -> - | M118: - | N118: - | S118: Tableau 9. | T118: Cédrières | U118: (FCTYF_THO) | V118: =VLOOKUP(V$115&$U118,GTYF!$C:$AQ,37,FALSE) -> 0 | W118: =VLOOKUP(W$115&$U118,GTYF!$C:$AQ,6,FALSE) -> 0 | X118: =VLOOKUP(X$115&$U118,GTYF!$C:$AQ,37,FALSE) -> 0 | Y118: =VLOOKUP(Y$115&$U118,GTYF!$C:$AQ,37,FALSE) -> 0 | Z118: =VLOOKUP(Z$115&$U118,GTYF!$C:$AQ,37,FALSE) -> 0 | AA118: =VLOOKUP(AA$115&$U118,GTYF!$C:$AQ,37,FALSE) -> 0 | AB118: =VLOOKUP(AB$115&$U118,GTYF!$C:$AQ,37,FALSE) -> 0 | AC118: =VLOOKUP(AC$115&$U118,GTYF!$C:$AQ,37,FALSE) -> 0 | AD118: =VLOOKUP(AD$115&$U118,GTYF!$C:$AQ,37,FALSE) -> 0 | AE118: =VLOOKUP(AE$115&$U118,GTYF!$C:$AQ,37,FALSE) -> 0 | AF118: =VLOOKUP(AF$115&$U118,GTYF!$C:$AQ,37,FALSE) -> 0 | AG118: =VLOOKUP(AG$115&$U118,GTYF!$C:$AQ,37,FALSE) -> 0 | AH118: =VLOOKUP(AH$115&$U118,GTYF!$C:$AQ,37,FALSE) -> 0 | AI118: =VLOOKUP(AI$115&$U118,GTYF!$C:$AQ,37,FALSE) -> 0 | AJ118: =VLOOKUP(AJ$115&$U118,GTYF!$C:$AQ,37,FALSE) -> 0 | AK118: =VLOOKUP(AK$115&$U118,GTYF!$C:$AQ,37,FALSE) -> 0 | AM118: =VLOOKUP(AM$115&$U118,GTYF!$C:$AQ,37,FALSE) -> 0 | AN118: =VLOOKUP(AN$115&$U118,GTYF!$C:$AQ,37,FALSE) -> 0 | AO118: =VLOOKUP(AO$115&$U118,GTYF!$C:$AQ,37,FALSE) -> 0 | AP118: =VLOOKUP(AP$115&$U118,GTYF!$C:$AQ,37,FALSE) -> 0 | AQ118: =VLOOKUP(AQ$115&$U118,GTYF!$C:$AQ,37,FALSE) -> 0 | AR118: =VLOOKUP(AR$115&$U118,GTYF!$C:$AQ,37,FALSE) -> 0 | AS118: =VLOOKUP(AS$115&$U118,GTYF!$C:$AQ,37,FALSE) -> 0 | AT118: =VLOOKUP(AT$115&$U118,GTYF!$C:$AQ,37,FALSE) -> 0 | AU118: =VLOOKUP(AU$115&$U118,GTYF!$C:$AQ,37,FALSE) -> 0 | AV118: =VLOOKUP(AV$115&$U118,GTYF!$C:$AQ,37,FALSE) -> 0 | AW118: =VLOOKUP(AW$115&$U118,GTYF!$C:$AQ,37,FALSE) -> 0 | AX118: =VLOOKUP(AX$115&$U118,GTYF!$C:$AQ,37,FALSE) -> 0 | AY118: =VLOOKUP(AY$115&$U118,GTYF!$C:$AQ,37,FALSE) -> 0 | AZ118: 0 | BA118: =VLOOKUP(BA$115&$U118,GTYF!$C:$AQ,37,FALSE) -> 0
B119: Érablières rouges | F119: - | H119: - | I119: - | J119: - | M119: - | N119: - | S119: Tableau 9. | T119: Érablières rouges | U119: (FCTYF_ERO) | V119: =VLOOKUP(V$115&$U119,GTYF!$C:$AQ,37,FALSE) -> 0 | W119: =VLOOKUP(W$115&$U119,GTYF!$C:$AQ,6,FALSE) -> 0 | X119: =VLOOKUP(X$115&$U119,GTYF!$C:$AQ,37,FALSE) -> 0 | Y119: =VLOOKUP(Y$115&$U119,GTYF!$C:$AQ,37,FALSE) -> 0 | Z119: =VLOOKUP(Z$115&$U119,GTYF!$C:$AQ,37,FALSE) -> 0 | AA119: =VLOOKUP(AA$115&$U119,GTYF!$C:$AQ,37,FALSE) -> 0 | AB119: =VLOOKUP(AB$115&$U119,GTYF!$C:$AQ,37,FALSE) -> 0 | AC119: =VLOOKUP(AC$115&$U119,GTYF!$C:$AQ,37,FALSE) -> 0 | AD119: =VLOOKUP(AD$115&$U119,GTYF!$C:$AQ,37,FALSE) -> 0 | AE119: =VLOOKUP(AE$115&$U119,GTYF!$C:$AQ,37,FALSE) -> 0 | AF119: =VLOOKUP(AF$115&$U119,GTYF!$C:$AQ,37,FALSE) -> 0 | AG119: =VLOOKUP(AG$115&$U119,GTYF!$C:$AQ,37,FALSE) -> 0 | AH119: =VLOOKUP(AH$115&$U119,GTYF!$C:$AQ,37,FALSE) -> 0 | AI119: =VLOOKUP(AI$115&$U119,GTYF!$C:$AQ,37,FALSE) -> 0 | AJ119: =VLOOKUP(AJ$115&$U119,GTYF!$C:$AQ,37,FALSE) -> 0 | AK119: =VLOOKUP(AK$115&$U119,GTYF!$C:$AQ,37,FALSE) -> 0 | AM119: =VLOOKUP(AM$115&$U119,GTYF!$C:$AQ,37,FALSE) -> 0 | AN119: =VLOOKUP(AN$115&$U119,GTYF!$C:$AQ,37,FALSE) -> 0 | AO119: =VLOOKUP(AO$115&$U119,GTYF!$C:$AQ,37,FALSE) -> 0 | AP119: =VLOOKUP(AP$115&$U119,GTYF!$C:$AQ,37,FALSE) -> 0 | AQ119: =VLOOKUP(AQ$115&$U119,GTYF!$C:$AQ,37,FALSE) -> 0 | AR119: =VLOOKUP(AR$115&$U119,GTYF!$C:$AQ,37,FALSE) -> 0 | AS119: =VLOOKUP(AS$115&$U119,GTYF!$C:$AQ,37,FALSE) -> 0 | AT119: =VLOOKUP(AT$115&$U119,GTYF!$C:$AQ,37,FALSE) -> 0 | AU119: =VLOOKUP(AU$115&$U119,GTYF!$C:$AQ,37,FALSE) -> 0 | AV119: =VLOOKUP(AV$115&$U119,GTYF!$C:$AQ,37,FALSE) -> 0 | AW119: =VLOOKUP(AW$115&$U119,GTYF!$C:$AQ,37,FALSE) -> 0 | AX119: =VLOOKUP(AX$115&$U119,GTYF!$C:$AQ,37,FALSE) -> 0 | AY119: =VLOOKUP(AY$115&$U119,GTYF!$C:$AQ,37,FALSE) -> 0 | AZ119: 0 | BA119: =VLOOKUP(BA$115&$U119,GTYF!$C:$AQ,37,FALSE) -> 0
B120: Feuillus tolérants | F120: - | H120: - | I120: - | J120: - | M120: - | N120: - | S120: Tableau 9. | T120: Feuillus tolérants | U120: (FCTYF_FT) | V120: =VLOOKUP(V$115&$U120,GTYF!$C:$AQ,37,FALSE) -> 0 | W120: =VLOOKUP(W$115&$U120,GTYF!$C:$AQ,6,FALSE) -> 0 | X120: =VLOOKUP(X$115&$U120,GTYF!$C:$AQ,37,FALSE) -> 0 | Y120: =VLOOKUP(Y$115&$U120,GTYF!$C:$AQ,37,FALSE) -> 0 | Z120: =VLOOKUP(Z$115&$U120,GTYF!$C:$AQ,37,FALSE) -> 0 | AA120: =VLOOKUP(AA$115&$U120,GTYF!$C:$AQ,37,FALSE) -> 0 | AB120: =VLOOKUP(AB$115&$U120,GTYF!$C:$AQ,37,FALSE) -> 0 | AC120: =VLOOKUP(AC$115&$U120,GTYF!$C:$AQ,37,FALSE) -> 0 | AD120: =VLOOKUP(AD$115&$U120,GTYF!$C:$AQ,37,FALSE) -> 0 | AE120: =VLOOKUP(AE$115&$U120,GTYF!$C:$AQ,37,FALSE) -> 0 | AF120: =VLOOKUP(AF$115&$U120,GTYF!$C:$AQ,37,FALSE) -> 0 | AG120: =VLOOKUP(AG$115&$U120,GTYF!$C:$AQ,37,FALSE) -> 0 | AH120: =VLOOKUP(AH$115&$U120,GTYF!$C:$AQ,37,FALSE) -> 0 | AI120: =VLOOKUP(AI$115&$U120,GTYF!$C:$AQ,37,FALSE) -> 0 | AJ120: =VLOOKUP(AJ$115&$U120,GTYF!$C:$AQ,37,FALSE) -> 0 | AK120: =VLOOKUP(AK$115&$U120,GTYF!$C:$AQ,37,FALSE) -> 0 | AM120: =VLOOKUP(AM$115&$U120,GTYF!$C:$AQ,37,FALSE) -> 0 | AN120: =VLOOKUP(AN$115&$U120,GTYF!$C:$AQ,37,FALSE) -> 0 | AO120: =VLOOKUP(AO$115&$U120,GTYF!$C:$AQ,37,FALSE) -> 0 | AP120: =VLOOKUP(AP$115&$U120,GTYF!$C:$AQ,37,FALSE) -> 0 | AQ120: =VLOOKUP(AQ$115&$U120,GTYF!$C:$AQ,37,FALSE) -> 0 | AR120: =VLOOKUP(AR$115&$U120,GTYF!$C:$AQ,37,FALSE) -> 0 | AS120: =VLOOKUP(AS$115&$U120,GTYF!$C:$AQ,37,FALSE) -> 0 | AT120: =VLOOKUP(AT$115&$U120,GTYF!$C:$AQ,37,FALSE) -> 0 | AU120: =VLOOKUP(AU$115&$U120,GTYF!$C:$AQ,37,FALSE) -> 0 | AV120: =VLOOKUP(AV$115&$U120,GTYF!$C:$AQ,37,FALSE) -> 0 | AW120: =VLOOKUP(AW$115&$U120,GTYF!$C:$AQ,37,FALSE) -> 0 | AX120: =VLOOKUP(AX$115&$U120,GTYF!$C:$AQ,37,FALSE) -> 0 | AY120: =VLOOKUP(AY$115&$U120,GTYF!$C:$AQ,37,FALSE) -> 0 | AZ120: 0 | BA120: =VLOOKUP(BA$115&$U120,GTYF!$C:$AQ,37,FALSE) -> 0
B121: Feuillus tolérants à résineux | F121: =IFERROR($AZ121/$BA121,"-") -> - | H121: - | I121: - | J121: - | M121: - | N121: - | S121: Tableau 9. | T121: Feuillus tolérants à résineux | U121: (FCTYF_FTR) | V121: =VLOOKUP(V$115&$U121,GTYF!$C:$AQ,37,FALSE) -> 0 | W121: =VLOOKUP(W$115&$U121,GTYF!$C:$AQ,6,FALSE) -> 0 | X121: =VLOOKUP(X$115&$U121,GTYF!$C:$AQ,37,FALSE) -> 0 | Y121: =VLOOKUP(Y$115&$U121,GTYF!$C:$AQ,37,FALSE) -> 0 | Z121: =VLOOKUP(Z$115&$U121,GTYF!$C:$AQ,37,FALSE) -> 0 | AA121: =VLOOKUP(AA$115&$U121,GTYF!$C:$AQ,37,FALSE) -> 0 | AB121: =VLOOKUP(AB$115&$U121,GTYF!$C:$AQ,37,FALSE) -> 0 | AC121: =VLOOKUP(AC$115&$U121,GTYF!$C:$AQ,37,FALSE) -> 0 | AD121: =VLOOKUP(AD$115&$U121,GTYF!$C:$AQ,37,FALSE) -> 0 | AE121: =VLOOKUP(AE$115&$U121,GTYF!$C:$AQ,37,FALSE) -> 0 | AF121: =VLOOKUP(AF$115&$U121,GTYF!$C:$AQ,37,FALSE) -> 0 | AG121: =VLOOKUP(AG$115&$U121,GTYF!$C:$AQ,37,FALSE) -> 0 | AH121: =VLOOKUP(AH$115&$U121,GTYF!$C:$AQ,37,FALSE) -> 0 | AI121: =VLOOKUP(AI$115&$U121,GTYF!$C:$AQ,37,FALSE) -> 0 | AJ121: =VLOOKUP(AJ$115&$U121,GTYF!$C:$AQ,37,FALSE) -> 0 | AK121: =VLOOKUP(AK$115&$U121,GTYF!$C:$AQ,37,FALSE) -> 0 | AM121: =VLOOKUP(AM$115&$U121,GTYF!$C:$AQ,37,FALSE) -> 0 | AN121: =VLOOKUP(AN$115&$U121,GTYF!$C:$AQ,37,FALSE) -> 0 | AO121: =VLOOKUP(AO$115&$U121,GTYF!$C:$AQ,37,FALSE) -> 0 | AP121: =VLOOKUP(AP$115&$U121,GTYF!$C:$AQ,37,FALSE) -> 0 | AQ121: =VLOOKUP(AQ$115&$U121,GTYF!$C:$AQ,37,FALSE) -> 0 | AR121: =VLOOKUP(AR$115&$U121,GTYF!$C:$AQ,37,FALSE) -> 0 | AS121: =VLOOKUP(AS$115&$U121,GTYF!$C:$AQ,37,FALSE) -> 0 | AT121: =VLOOKUP(AT$115&$U121,GTYF!$C:$AQ,37,FALSE) -> 0 | AU121: =VLOOKUP(AU$115&$U121,GTYF!$C:$AQ,37,FALSE) -> 0 | AV121: =VLOOKUP(AV$115&$U121,GTYF!$C:$AQ,37,FALSE) -> 0 | AW121: =VLOOKUP(AW$115&$U121,GTYF!$C:$AQ,37,FALSE) -> 0 | AX121: =VLOOKUP(AX$115&$U121,GTYF!$C:$AQ,37,FALSE) -> 0 | AY121: =VLOOKUP(AY$115&$U121,GTYF!$C:$AQ,37,FALSE) -> 0 | AZ121: =SUM(AM121:AY121) -> 0 | BA121: =VLOOKUP(BA$115&$U121,GTYF!$C:$AQ,37,FALSE) -> 0
B122: Pessières | E122: 38 | F122: 71.92907021 | G122: 25.9 | H122: >120 | I122: 104.8580506 | J122: 109.3145528 | K122: modifié pour >120 | M122: 144.2005402 | N122: 104.8580506 | S122: Tableau 9. | T122: Pessières | U122: (FCTYF_EPX) | V122: =VLOOKUP(V$115&$U122,GTYF!$C:$AQ,37,FALSE) -> 33557.748 | W122: =VLOOKUP(W$115&$U122,GTYF!$C:$AQ,6,FALSE) -> 466837.5 | X122: =VLOOKUP(X$115&$U122,GTYF!$C:$AQ,37,FALSE) -> 2975641.63 | Y122: =VLOOKUP(Y$115&$U122,GTYF!$C:$AQ,37,FALSE) -> 27220910.25 | Z122: =VLOOKUP(Z$115&$U122,GTYF!$C:$AQ,37,FALSE) -> 2576336.178 | AA122: =VLOOKUP(AA$115&$U122,GTYF!$C:$AQ,37,FALSE) -> 527471.348 | AB122: =VLOOKUP(AB$115&$U122,GTYF!$C:$AQ,37,FALSE) -> 0 | AC122: =VLOOKUP(AC$115&$U122,GTYF!$C:$AQ,37,FALSE) -> 0 | AD122: =VLOOKUP(AD$115&$U122,GTYF!$C:$AQ,37,FALSE) -> 29600.088 | AE122: =VLOOKUP(AE$115&$U122,GTYF!$C:$AQ,37,FALSE) -> 0 | AF122: =VLOOKUP(AF$115&$U122,GTYF!$C:$AQ,37,FALSE) -> 788883.866 | AG122: =VLOOKUP(AG$115&$U122,GTYF!$C:$AQ,37,FALSE) -> 64785.87 | AH122: =VLOOKUP(AH$115&$U122,GTYF!$C:$AQ,37,FALSE) -> 0 | AI122: =VLOOKUP(AI$115&$U122,GTYF!$C:$AQ,37,FALSE) -> 0 | AJ122: =VLOOKUP(AJ$115&$U122,GTYF!$C:$AQ,37,FALSE) -> 29600.088 | AK122: =VLOOKUP(AK$115&$U122,GTYF!$C:$AQ,37,FALSE) -> 0 | AM122: =VLOOKUP(AM$115&$U122,GTYF!$C:$AQ,37,FALSE) -> 1255.148 | AN122: =VLOOKUP(AN$115&$U122,GTYF!$C:$AQ,37,FALSE) -> 0 | AO122: =VLOOKUP(AO$115&$U122,GTYF!$C:$AQ,37,FALSE) -> 0 | AP122: =VLOOKUP(AP$115&$U122,GTYF!$C:$AQ,37,FALSE) -> 0 | AQ122: =VLOOKUP(AQ$115&$U122,GTYF!$C:$AQ,37,FALSE) -> 0 | AR122: =VLOOKUP(AR$115&$U122,GTYF!$C:$AQ,37,FALSE) -> 0 | AS122: =VLOOKUP(AS$115&$U122,GTYF!$C:$AQ,37,FALSE) -> 283415.656 | AT122: =VLOOKUP(AT$115&$U122,GTYF!$C:$AQ,37,FALSE) -> 0 | AU122: =VLOOKUP(AU$115&$U122,GTYF!$C:$AQ,37,FALSE) -> 0 | AV122: =VLOOKUP(AV$115&$U122,GTYF!$C:$AQ,37,FALSE) -> 0 | AW122: =VLOOKUP(AW$115&$U122,GTYF!$C:$AQ,37,FALSE) -> 0 | AX122: =VLOOKUP(AX$115&$U122,GTYF!$C:$AQ,37,FALSE) -> 0 | AY122: =VLOOKUP(AY$115&$U122,GTYF!$C:$AQ,37,FALSE) -> 0 | AZ122: 284670.804 | BA122: =VLOOKUP(BA$115&$U122,GTYF!$C:$AQ,37,FALSE) -> 3957.66
B123: Peupleraies | E123: - | F123: - | G123: - | H123: 72.12339628 | I123: 179.7342098 | J123: 107.0767444 | M123: 72.12339628 | N123: 179.7342098 | S123: Tableau 9. | T123: Peupleraies | U123: (FCTYF_PEU) | V123: =VLOOKUP(V$115&$U123,GTYF!$C:$AQ,37,FALSE) -> 1509.77 | W123: =VLOOKUP(W$115&$U123,GTYF!$C:$AQ,6,FALSE) -> 13769.8 | X123: =VLOOKUP(X$115&$U123,GTYF!$C:$AQ,37,FALSE) -> 19836.138 | Y123: =VLOOKUP(Y$115&$U123,GTYF!$C:$AQ,37,FALSE) -> 185251.598 | Z123: =VLOOKUP(Z$115&$U123,GTYF!$C:$AQ,37,FALSE) -> 271357.318 | AA123: =VLOOKUP(AA$115&$U123,GTYF!$C:$AQ,37,FALSE) -> 0 | AB123: =VLOOKUP(AB$115&$U123,GTYF!$C:$AQ,37,FALSE) -> 0 | AC123: =VLOOKUP(AC$115&$U123,GTYF!$C:$AQ,37,FALSE) -> 0 | AD123: =VLOOKUP(AD$115&$U123,GTYF!$C:$AQ,37,FALSE) -> 1509.77 | AE123: =VLOOKUP(AE$115&$U123,GTYF!$C:$AQ,37,FALSE) -> 0 | AF123: =VLOOKUP(AF$115&$U123,GTYF!$C:$AQ,37,FALSE) -> 21777.948 | AG123: =VLOOKUP(AG$115&$U123,GTYF!$C:$AQ,37,FALSE) -> 0 | AH123: =VLOOKUP(AH$115&$U123,GTYF!$C:$AQ,37,FALSE) -> 0 | AI123: =VLOOKUP(AI$115&$U123,GTYF!$C:$AQ,37,FALSE) -> 0 | AJ123: =VLOOKUP(AJ$115&$U123,GTYF!$C:$AQ,37,FALSE) -> 1509.77 | AK123: =VLOOKUP(AK$115&$U123,GTYF!$C:$AQ,37,FALSE) -> 0 | AM123: =VLOOKUP(AM$115&$U123,GTYF!$C:$AQ,37,FALSE) -> 0 | AN123: =VLOOKUP(AN$115&$U123,GTYF!$C:$AQ,37,FALSE) -> 0 | AO123: =VLOOKUP(AO$115&$U123,GTYF!$C:$AQ,37,FALSE) -> 0 | AP123: =VLOOKUP(AP$115&$U123,GTYF!$C:$AQ,37,FALSE) -> 0 | AQ123: =VLOOKUP(AQ$115&$U123,GTYF!$C:$AQ,37,FALSE) -> 0 | AR123: =VLOOKUP(AR$115&$U123,GTYF!$C:$AQ,37,FALSE) -> 0 | AS123: =VLOOKUP(AS$115&$U123,GTYF!$C:$AQ,37,FALSE) -> 0 | AT123: =VLOOKUP(AT$115&$U123,GTYF!$C:$AQ,37,FALSE) -> 0 | AU123: =VLOOKUP(AU$115&$U123,GTYF!$C:$AQ,37,FALSE) -> 0 | AV123: =VLOOKUP(AV$115&$U123,GTYF!$C:$AQ,37,FALSE) -> 0 | AW123: =VLOOKUP(AW$115&$U123,GTYF!$C:$AQ,37,FALSE) -> 0 | AX123: =VLOOKUP(AX$115&$U123,GTYF!$C:$AQ,37,FALSE) -> 0 | AY123: =VLOOKUP(AY$115&$U123,GTYF!$C:$AQ,37,FALSE) -> 0 | AZ123: 0 | BA123: =VLOOKUP(BA$115&$U123,GTYF!$C:$AQ,37,FALSE) -> 0
B124: Peupleraies à résineux | E124: - | F124: - | G124: - | H124: 75.01846472 | I124: 150.4203568 | J124: 138.040163 | M124: 75.01846472 | N124: 150.4203568 | S124: Tableau 9. | T124: Peupleraies à résineux | U124: (FCTYF_PEUR) | V124: =VLOOKUP(V$115&$U124,GTYF!$C:$AQ,37,FALSE) -> 416.47 | W124: =VLOOKUP(W$115&$U124,GTYF!$C:$AQ,6,FALSE) -> 7069.7 | X124: =VLOOKUP(X$115&$U124,GTYF!$C:$AQ,37,FALSE) -> 21742.7 | Y124: =VLOOKUP(Y$115&$U124,GTYF!$C:$AQ,37,FALSE) -> 157509.956 | Z124: =VLOOKUP(Z$115&$U124,GTYF!$C:$AQ,37,FALSE) -> 23396.516 | AA124: =VLOOKUP(AA$115&$U124,GTYF!$C:$AQ,37,FALSE) -> 39249.05 | AB124: =VLOOKUP(AB$115&$U124,GTYF!$C:$AQ,37,FALSE) -> 0 | AC124: =VLOOKUP(AC$115&$U124,GTYF!$C:$AQ,37,FALSE) -> 0 | AD124: =VLOOKUP(AD$115&$U124,GTYF!$C:$AQ,37,FALSE) -> 416.47 | AE124: =VLOOKUP(AE$115&$U124,GTYF!$C:$AQ,37,FALSE) -> 0 | AF124: =VLOOKUP(AF$115&$U124,GTYF!$C:$AQ,37,FALSE) -> 2826.654 | AG124: =VLOOKUP(AG$115&$U124,GTYF!$C:$AQ,37,FALSE) -> 3421.934 | AH124: =VLOOKUP(AH$115&$U124,GTYF!$C:$AQ,37,FALSE) -> 0 | AI124: =VLOOKUP(AI$115&$U124,GTYF!$C:$AQ,37,FALSE) -> 0 | AJ124: =VLOOKUP(AJ$115&$U124,GTYF!$C:$AQ,37,FALSE) -> 416.47 | AK124: =VLOOKUP(AK$115&$U124,GTYF!$C:$AQ,37,FALSE) -> 0 | AM124: =VLOOKUP(AM$115&$U124,GTYF!$C:$AQ,37,FALSE) -> 0 | AN124: =VLOOKUP(AN$115&$U124,GTYF!$C:$AQ,37,FALSE) -> 0 | AO124: =VLOOKUP(AO$115&$U124,GTYF!$C:$AQ,37,FALSE) -> 0 | AP124: =VLOOKUP(AP$115&$U124,GTYF!$C:$AQ,37,FALSE) -> 0 | AQ124: =VLOOKUP(AQ$115&$U124,GTYF!$C:$AQ,37,FALSE) -> 0 | AR124: =VLOOKUP(AR$115&$U124,GTYF!$C:$AQ,37,FALSE) -> 0 | AS124: =VLOOKUP(AS$115&$U124,GTYF!$C:$AQ,37,FALSE) -> 0 | AT124: =VLOOKUP(AT$115&$U124,GTYF!$C:$AQ,37,FALSE) -> 0 | AU124: =VLOOKUP(AU$115&$U124,GTYF!$C:$AQ,37,FALSE) -> 0 | AV124: =VLOOKUP(AV$115&$U124,GTYF!$C:$AQ,37,FALSE) -> 0 | AW124: =VLOOKUP(AW$115&$U124,GTYF!$C:$AQ,37,FALSE) -> 0 | AX124: =VLOOKUP(AX$115&$U124,GTYF!$C:$AQ,37,FALSE) -> 0 | AY124: =VLOOKUP(AY$115&$U124,GTYF!$C:$AQ,37,FALSE) -> 0 | AZ124: 0 | BA124: =VLOOKUP(BA$115&$U124,GTYF!$C:$AQ,37,FALSE) -> 0
B125: Pinèdes blanches | F125: - | H125: - | I125: - | J125: - | M125: - | N125: - | S125: Tableau 9. | T125: Pinèdes blanches | U125: (FCTYF_PIN) | V125: =VLOOKUP(V$115&$U125,GTYF!$C:$AQ,37,FALSE) -> 0 | W125: =VLOOKUP(W$115&$U125,GTYF!$C:$AQ,6,FALSE) -> 0 | X125: =VLOOKUP(X$115&$U125,GTYF!$C:$AQ,37,FALSE) -> 0 | Y125: =VLOOKUP(Y$115&$U125,GTYF!$C:$AQ,37,FALSE) -> 0 | Z125: =VLOOKUP(Z$115&$U125,GTYF!$C:$AQ,37,FALSE) -> 0 | AA125: =VLOOKUP(AA$115&$U125,GTYF!$C:$AQ,37,FALSE) -> 0 | AB125: =VLOOKUP(AB$115&$U125,GTYF!$C:$AQ,37,FALSE) -> 0 | AC125: =VLOOKUP(AC$115&$U125,GTYF!$C:$AQ,37,FALSE) -> 0 | AD125: =VLOOKUP(AD$115&$U125,GTYF!$C:$AQ,37,FALSE) -> 0 | AE125: =VLOOKUP(AE$115&$U125,GTYF!$C:$AQ,37,FALSE) -> 0 | AF125: =VLOOKUP(AF$115&$U125,GTYF!$C:$AQ,37,FALSE) -> 0 | AG125: =VLOOKUP(AG$115&$U125,GTYF!$C:$AQ,37,FALSE) -> 0 | AH125: =VLOOKUP(AH$115&$U125,GTYF!$C:$AQ,37,FALSE) -> 0 | AI125: =VLOOKUP(AI$115&$U125,GTYF!$C:$AQ,37,FALSE) -> 0 | AJ125: =VLOOKUP(AJ$115&$U125,GTYF!$C:$AQ,37,FALSE) -> 0 | AK125: =VLOOKUP(AK$115&$U125,GTYF!$C:$AQ,37,FALSE) -> 0 | AM125: =VLOOKUP(AM$115&$U125,GTYF!$C:$AQ,37,FALSE) -> 0 | AN125: =VLOOKUP(AN$115&$U125,GTYF!$C:$AQ,37,FALSE) -> 0 | AO125: =VLOOKUP(AO$115&$U125,GTYF!$C:$AQ,37,FALSE) -> 0 | AP125: =VLOOKUP(AP$115&$U125,GTYF!$C:$AQ,37,FALSE) -> 0 | AQ125: =VLOOKUP(AQ$115&$U125,GTYF!$C:$AQ,37,FALSE) -> 0 | AR125: =VLOOKUP(AR$115&$U125,GTYF!$C:$AQ,37,FALSE) -> 0 | AS125: =VLOOKUP(AS$115&$U125,GTYF!$C:$AQ,37,FALSE) -> 0 | AT125: =VLOOKUP(AT$115&$U125,GTYF!$C:$AQ,37,FALSE) -> 0 | AU125: =VLOOKUP(AU$115&$U125,GTYF!$C:$AQ,37,FALSE) -> 0 | AV125: =VLOOKUP(AV$115&$U125,GTYF!$C:$AQ,37,FALSE) -> 0 | AW125: =VLOOKUP(AW$115&$U125,GTYF!$C:$AQ,37,FALSE) -> 0 | AX125: =VLOOKUP(AX$115&$U125,GTYF!$C:$AQ,37,FALSE) -> 0 | AY125: =VLOOKUP(AY$115&$U125,GTYF!$C:$AQ,37,FALSE) -> 0 | AZ125: 0 | BA125: =VLOOKUP(BA$115&$U125,GTYF!$C:$AQ,37,FALSE) -> 0
B126: Pinèdes grises | E126: 25 | F126: 37.7263606 | G126: 29 | H126: 80.65116999 | I126: 140.1915394 | J126: 129.4424389 | M126: 80.65116999 | N126: 140.1915394 | S126: Tableau 9. | T126: Pinèdes grises | U126: (FCTYF_PIG) | V126: =VLOOKUP(V$115&$U126,GTYF!$C:$AQ,37,FALSE) -> 2812.39 | W126: =VLOOKUP(W$115&$U126,GTYF!$C:$AQ,6,FALSE) -> 62505.7 | X126: =VLOOKUP(X$115&$U126,GTYF!$C:$AQ,37,FALSE) -> 360382.05 | Y126: =VLOOKUP(Y$115&$U126,GTYF!$C:$AQ,37,FALSE) -> 2784110.474 | Z126: =VLOOKUP(Z$115&$U126,GTYF!$C:$AQ,37,FALSE) -> 256037.5 | AA126: =VLOOKUP(AA$115&$U126,GTYF!$C:$AQ,37,FALSE) -> 129013.984 | AB126: =VLOOKUP(AB$115&$U126,GTYF!$C:$AQ,37,FALSE) -> 0 | AC126: =VLOOKUP(AC$115&$U126,GTYF!$C:$AQ,37,FALSE) -> 0 | AD126: =VLOOKUP(AD$115&$U126,GTYF!$C:$AQ,37,FALSE) -> 2746.61 | AE126: =VLOOKUP(AE$115&$U126,GTYF!$C:$AQ,37,FALSE) -> 0 | AF126: =VLOOKUP(AF$115&$U126,GTYF!$C:$AQ,37,FALSE) -> 33950.54 | AG126: =VLOOKUP(AG$115&$U126,GTYF!$C:$AQ,37,FALSE) -> 10352.922 | AH126: =VLOOKUP(AH$115&$U126,GTYF!$C:$AQ,37,FALSE) -> 0 | AI126: =VLOOKUP(AI$115&$U126,GTYF!$C:$AQ,37,FALSE) -> 0 | AJ126: =VLOOKUP(AJ$115&$U126,GTYF!$C:$AQ,37,FALSE) -> 2746.61 | AK126: =VLOOKUP(AK$115&$U126,GTYF!$C:$AQ,37,FALSE) -> 0 | AM126: =VLOOKUP(AM$115&$U126,GTYF!$C:$AQ,37,FALSE) -> 2481.64 | AN126: =VLOOKUP(AN$115&$U126,GTYF!$C:$AQ,37,FALSE) -> 0 | AO126: =VLOOKUP(AO$115&$U126,GTYF!$C:$AQ,37,FALSE) -> 0 | AP126: =VLOOKUP(AP$115&$U126,GTYF!$C:$AQ,37,FALSE) -> 0 | AQ126: =VLOOKUP(AQ$115&$U126,GTYF!$C:$AQ,37,FALSE) -> 0 | AR126: =VLOOKUP(AR$115&$U126,GTYF!$C:$AQ,37,FALSE) -> 0 | AS126: =VLOOKUP(AS$115&$U126,GTYF!$C:$AQ,37,FALSE) -> 0 | AT126: =VLOOKUP(AT$115&$U126,GTYF!$C:$AQ,37,FALSE) -> 0 | AU126: =VLOOKUP(AU$115&$U126,GTYF!$C:$AQ,37,FALSE) -> 0 | AV126: =VLOOKUP(AV$115&$U126,GTYF!$C:$AQ,37,FALSE) -> 0 | AW126: =VLOOKUP(AW$115&$U126,GTYF!$C:$AQ,37,FALSE) -> 0 | AX126: =VLOOKUP(AX$115&$U126,GTYF!$C:$AQ,37,FALSE) -> 0 | AY126: =VLOOKUP(AY$115&$U126,GTYF!$C:$AQ,37,FALSE) -> 0 | AZ126: 2481.64 | BA126: =VLOOKUP(BA$115&$U126,GTYF!$C:$AQ,37,FALSE) -> 65.78
B127: Prucheraies | F127: - | H127: - | I127: - | J127: - | M127: - | N127: - | S127: Tableau 9. | T127: Prucheraies | U127: (FCTYF_PRU) | V127: =VLOOKUP(V$115&$U127,GTYF!$C:$AQ,37,FALSE) -> 0 | W127: =VLOOKUP(W$115&$U127,GTYF!$C:$AQ,6,FALSE) -> 0 | X127: =VLOOKUP(X$115&$U127,GTYF!$C:$AQ,37,FALSE) -> 0 | Y127: =VLOOKUP(Y$115&$U127,GTYF!$C:$AQ,37,FALSE) -> 0 | Z127: =VLOOKUP(Z$115&$U127,GTYF!$C:$AQ,37,FALSE) -> 0 | AA127: =VLOOKUP(AA$115&$U127,GTYF!$C:$AQ,37,FALSE) -> 0 | AB127: =VLOOKUP(AB$115&$U127,GTYF!$C:$AQ,37,FALSE) -> 0 | AC127: =VLOOKUP(AC$115&$U127,GTYF!$C:$AQ,37,FALSE) -> 0 | AD127: =VLOOKUP(AD$115&$U127,GTYF!$C:$AQ,37,FALSE) -> 0 | AE127: =VLOOKUP(AE$115&$U127,GTYF!$C:$AQ,37,FALSE) -> 0 | AF127: =VLOOKUP(AF$115&$U127,GTYF!$C:$AQ,37,FALSE) -> 0 | AG127: =VLOOKUP(AG$115&$U127,GTYF!$C:$AQ,37,FALSE) -> 0 | AH127: =VLOOKUP(AH$115&$U127,GTYF!$C:$AQ,37,FALSE) -> 0 | AI127: =VLOOKUP(AI$115&$U127,GTYF!$C:$AQ,37,FALSE) -> 0 | AJ127: =VLOOKUP(AJ$115&$U127,GTYF!$C:$AQ,37,FALSE) -> 0 | AK127: =VLOOKUP(AK$115&$U127,GTYF!$C:$AQ,37,FALSE) -> 0 | AM127: =VLOOKUP(AM$115&$U127,GTYF!$C:$AQ,37,FALSE) -> 0 | AN127: =VLOOKUP(AN$115&$U127,GTYF!$C:$AQ,37,FALSE) -> 0 | AO127: =VLOOKUP(AO$115&$U127,GTYF!$C:$AQ,37,FALSE) -> 0 | AP127: =VLOOKUP(AP$115&$U127,GTYF!$C:$AQ,37,FALSE) -> 0 | AQ127: =VLOOKUP(AQ$115&$U127,GTYF!$C:$AQ,37,FALSE) -> 0 | AR127: =VLOOKUP(AR$115&$U127,GTYF!$C:$AQ,37,FALSE) -> 0 | AS127: =VLOOKUP(AS$115&$U127,GTYF!$C:$AQ,37,FALSE) -> 0 | AT127: =VLOOKUP(AT$115&$U127,GTYF!$C:$AQ,37,FALSE) -> 0 | AU127: =VLOOKUP(AU$115&$U127,GTYF!$C:$AQ,37,FALSE) -> 0 | AV127: =VLOOKUP(AV$115&$U127,GTYF!$C:$AQ,37,FALSE) -> 0 | AW127: =VLOOKUP(AW$115&$U127,GTYF!$C:$AQ,37,FALSE) -> 0 | AX127: =VLOOKUP(AX$115&$U127,GTYF!$C:$AQ,37,FALSE) -> 0 | AY127: =VLOOKUP(AY$115&$U127,GTYF!$C:$AQ,37,FALSE) -> 0 | AZ127: 0 | BA127: =VLOOKUP(BA$115&$U127,GTYF!$C:$AQ,37,FALSE) -> 0
B128: Résineux à feuillus | E128: - | F128: - | G128: - | H128: 92.34247675 | I128: 122.4473638 | J128: 136.4514984 | M128: 92.34247675 | N128: 122.4473638 | S128: Tableau 9. | T128: Résineux à feuillus | U128: (FCTYF_RF) | V128: =VLOOKUP(V$115&$U128,GTYF!$C:$AQ,37,FALSE) -> 2651.672 | W128: =VLOOKUP(W$115&$U128,GTYF!$C:$AQ,6,FALSE) -> 95406 | X128: =VLOOKUP(X$115&$U128,GTYF!$C:$AQ,37,FALSE) -> 215979.97 | Y128: =VLOOKUP(Y$115&$U128,GTYF!$C:$AQ,37,FALSE) -> 1582833.26 | Z128: =VLOOKUP(Z$115&$U128,GTYF!$C:$AQ,37,FALSE) -> 223118.096 | AA128: =VLOOKUP(AA$115&$U128,GTYF!$C:$AQ,37,FALSE) -> 101572.15 | AB128: =VLOOKUP(AB$115&$U128,GTYF!$C:$AQ,37,FALSE) -> 0 | AC128: =VLOOKUP(AC$115&$U128,GTYF!$C:$AQ,37,FALSE) -> 0 | AD128: =VLOOKUP(AD$115&$U128,GTYF!$C:$AQ,37,FALSE) -> 2651.672 | AE128: =VLOOKUP(AE$115&$U128,GTYF!$C:$AQ,37,FALSE) -> 0 | AF128: =VLOOKUP(AF$115&$U128,GTYF!$C:$AQ,37,FALSE) -> 38006.512 | AG128: =VLOOKUP(AG$115&$U128,GTYF!$C:$AQ,37,FALSE) -> 10965.88 | AH128: =VLOOKUP(AH$115&$U128,GTYF!$C:$AQ,37,FALSE) -> 0 | AI128: =VLOOKUP(AI$115&$U128,GTYF!$C:$AQ,37,FALSE) -> 0 | AJ128: =VLOOKUP(AJ$115&$U128,GTYF!$C:$AQ,37,FALSE) -> 2651.672 | AK128: =VLOOKUP(AK$115&$U128,GTYF!$C:$AQ,37,FALSE) -> 0 | AM128: =VLOOKUP(AM$115&$U128,GTYF!$C:$AQ,37,FALSE) -> 0 | AN128: =VLOOKUP(AN$115&$U128,GTYF!$C:$AQ,37,FALSE) -> 0 | AO128: =VLOOKUP(AO$115&$U128,GTYF!$C:$AQ,37,FALSE) -> 0 | AP128: =VLOOKUP(AP$115&$U128,GTYF!$C:$AQ,37,FALSE) -> 0 | AQ128: =VLOOKUP(AQ$115&$U128,GTYF!$C:$AQ,37,FALSE) -> 0 | AR128: =VLOOKUP(AR$115&$U128,GTYF!$C:$AQ,37,FALSE) -> 0 | AS128: =VLOOKUP(AS$115&$U128,GTYF!$C:$AQ,37,FALSE) -> 0 | AT128: =VLOOKUP(AT$115&$U128,GTYF!$C:$AQ,37,FALSE) -> 0 | AU128: =VLOOKUP(AU$115&$U128,GTYF!$C:$AQ,37,FALSE) -> 0 | AV128: =VLOOKUP(AV$115&$U128,GTYF!$C:$AQ,37,FALSE) -> 0 | AW128: =VLOOKUP(AW$115&$U128,GTYF!$C:$AQ,37,FALSE) -> 0 | AX128: =VLOOKUP(AX$115&$U128,GTYF!$C:$AQ,37,FALSE) -> 0 | AY128: =VLOOKUP(AY$115&$U128,GTYF!$C:$AQ,37,FALSE) -> 0 | AZ128: 0 | BA128: =VLOOKUP(BA$115&$U128,GTYF!$C:$AQ,37,FALSE) -> 0
B129: Sapinières | E129: 15 | F129: 31.5 | G129: 25.8 | H129: 96.23726832 | I129: 130.8059983 | J129: 116.7224737 | M129: =IFERROR(($AF129+$AG129+$AH129+$AI129)/$AJ129*5,"-") -> 96.23726832 | N129: 130.8059983 | S129: Tableau 9. | T129: Sapinières | U129: (FCTYF_SAB) | V129: =VLOOKUP(V$115&$U129,GTYF!$C:$AQ,37,FALSE) -> 4132.38 | W129: =VLOOKUP(W$115&$U129,GTYF!$C:$AQ,6,FALSE) -> 122685.5 | X129: =VLOOKUP(X$115&$U129,GTYF!$C:$AQ,37,FALSE) -> 491857.356 | Y129: =VLOOKUP(Y$115&$U129,GTYF!$C:$AQ,37,FALSE) -> 4213904.49 | Z129: =VLOOKUP(Z$115&$U129,GTYF!$C:$AQ,37,FALSE) -> 540466.84 | AA129: =VLOOKUP(AA$115&$U129,GTYF!$C:$AQ,37,FALSE) -> 0 | AB129: =VLOOKUP(AB$115&$U129,GTYF!$C:$AQ,37,FALSE) -> 0 | AC129: =VLOOKUP(AC$115&$U129,GTYF!$C:$AQ,37,FALSE) -> 0 | AD129: =VLOOKUP(AD$115&$U129,GTYF!$C:$AQ,37,FALSE) -> 4131.82 | AE129: =VLOOKUP(AE$115&$U129,GTYF!$C:$AQ,37,FALSE) -> 0 | AF129: =VLOOKUP(AF$115&$U129,GTYF!$C:$AQ,37,FALSE) -> 79527.014 | AG129: =VLOOKUP(AG$115&$U129,GTYF!$C:$AQ,37,FALSE) -> 0 | AH129: =VLOOKUP(AH$115&$U129,GTYF!$C:$AQ,37,FALSE) -> 0 | AI129: =VLOOKUP(AI$115&$U129,GTYF!$C:$AQ,37,FALSE) -> 0 | AJ129: =VLOOKUP(AJ$115&$U129,GTYF!$C:$AQ,37,FALSE) -> 4131.82 | AK129: =VLOOKUP(AK$115&$U129,GTYF!$C:$AQ,37,FALSE) -> 0 | AM129: =VLOOKUP(AM$115&$U129,GTYF!$C:$AQ,37,FALSE) -> 17.64 | AN129: =VLOOKUP(AN$115&$U129,GTYF!$C:$AQ,37,FALSE) -> 0 | AO129: =VLOOKUP(AO$115&$U129,GTYF!$C:$AQ,37,FALSE) -> 0 | AP129: =VLOOKUP(AP$115&$U129,GTYF!$C:$AQ,37,FALSE) -> 0 | AQ129: =VLOOKUP(AQ$115&$U129,GTYF!$C:$AQ,37,FALSE) -> 0 | AR129: =VLOOKUP(AR$115&$U129,GTYF!$C:$AQ,37,FALSE) -> 0 | AS129: =VLOOKUP(AS$115&$U129,GTYF!$C:$AQ,37,FALSE) -> 0 | AT129: =VLOOKUP(AT$115&$U129,GTYF!$C:$AQ,37,FALSE) -> 0 | AU129: =VLOOKUP(AU$115&$U129,GTYF!$C:$AQ,37,FALSE) -> 0 | AV129: =VLOOKUP(AV$115&$U129,GTYF!$C:$AQ,37,FALSE) -> 0 | AW129: =VLOOKUP(AW$115&$U129,GTYF!$C:$AQ,37,FALSE) -> 0 | AX129: =VLOOKUP(AX$115&$U129,GTYF!$C:$AQ,37,FALSE) -> 0 | AY129: =VLOOKUP(AY$115&$U129,GTYF!$C:$AQ,37,FALSE) -> 0 | AZ129: 17.64 | BA129: =VLOOKUP(BA$115&$U129,GTYF!$C:$AQ,37,FALSE) -> 0.56
S130: Tableau 9. | T130: Tous les GTYF | V130: =SUM(V116:V129) -> 48373.55 | W130: =SUM(W116:W129) -> 819670.8 | X130: 4181367.148 | Y130: 36883512.87 | Z130: 4426323.376 | AA130: 797306.532 | AB130: 0 | AC130: 0 | AD130: 44349.55 | AE130: 0 | AF130: 1029174.242 | AG130: 89526.606 | AH130: 0 | AI130: 0 | AJ130: 44349.55 | AK130: 0
L131: Les statistiques portants sur les coupes partielles proviennent d'un Script R et sont disponibles ici:
L132: T:\Donnees\02_Courant\01_CPF\01_UA\0XXXX\70_Determination\72_Rapport\01_Cahier_DET\Tableau_9
B134: Tableau 10. Traitements non commerciaux supportant les possibilités forestières
B135: Traitements non commerciaux | F135: Superficie annuelle moyenne (ha/an) | G135: Superficie antérieure (ha/an) | H135: Écart (ha/an) | X135: Exemple U03772
K138: Le texte en rouge demande à l'analyste de valider la nature exacte du traitement et les superficies - variable selon la vague et l'UA - veuillez ensuite mettre en noir et supprimer la remarque si elle ne s'applique pas (si DEG_1 ne contient pas de regarni)
B139: Ligniculture (essences à croissance rapide) | F139: =ROUND(V139,-1) -> 0 | G139: =IFERROR(ROUND(VLOOKUP(O33,DataLocal!$A:$BH,47,FALSE),-1),0) -> 0 | H139: =F139-G139 -> 0 | S139: =LEFT(B$134,11) -> Tableau 10. | T139: Plantation ligniculture (pins, feuillus) | U139: OSUPPL_PPF | V139: =IFERROR(VLOOKUP(U139,Output!C:AQ,37,FALSE),0)/5 -> 0
B140: Plantation intensive (2 000 plants/ha) | F140: =ROUND(V140,-1) -> 50 | G140: =IFERROR(ROUND(VLOOKUP(O33,DataLocal!$A:$BH,48,FALSE),-1),0) -> 840 | H140: =F140-G140 -> -790 | S140: =LEFT(B$134,11) -> Tableau 10. | T140: Plantation intensive | U140: OSUPPL_SEPM_I | V140: =IFERROR(VLOOKUP(U140,Output!C:AQ,37,FALSE),0)/5 -> 45.1856
B141: Plantation de base (1 600 plants/ha)* | F141: =ROUND(V141,-1) -> 2570 | G141: =IFERROR(ROUND(VLOOKUP(O33,DataLocal!$A:$BH,49,FALSE),-1),0) -> 1790 | H141: 780 | S141: Tableau 10. | T141: Plantation de base | U141: OSUPPL_SEPM_E | V141: =IFERROR(VLOOKUP(U141,Output!C:AQ,37,FALSE),0)/5 -> 2566.8144
B142: Regarni | F142: =ROUND(V142,-1) -> 3200 | G142: =IFERROR(ROUND(VLOOKUP(O33,DataLocal!$A:$BH,50,FALSE),-1),0) -> 400 | H142: 2800 | I142: modifié pour REG fantôme | S142: Tableau 10. | T142: Regarni | U142: OSUPREG_2 | V142: =IFERROR(VLOOKUP(U142,Output!C:AQ,37,FALSE),0)/5 -> 3200
B143: % des plantations dans les coupes totales | F143: =IFERROR(SUM(F139:F141)/G92,0) -> 0.2953776776 | G143: =IFERROR(SUM(G139:G141)/H92,0) -> 0.298185941 | H143: -0.002808263478 | S143: Tableau 10.
B144: Total des travaux de reboisement | F144: =ROUND(SUM(F139:F142),-1) -> 5820 | G144: =ROUND(SUM(G139:G142),-1) -> 3030 | H144: 2790 | S144: Tableau 10.
B145: Nettoiement (régénération naturelle et plantation) | F145: =ROUND(V145,-1) -> 1140 | G145: =IFERROR(ROUND(VLOOKUP(O33,DataLocal!$A:$BH,51,FALSE),-1),0) -> 1700 | H145: -560 | I145: NET de PL et REG | S145: Tableau 10. | T145: Nettoiement | U145: OSUPREALNET | V145: =IFERROR(VLOOKUP(U145,Output!C:AQ,37,FALSE),0)/5 -> 1141.3012
B146: Éclaircie précommerciale | F146: =ROUND(V146,-1) -> 390 | G146: =IFERROR(ROUND(VLOOKUP(O33,DataLocal!$A:$BH,52,FALSE),-1),0) -> 0 | H146: 390 | S146: Tableau 10. | T146: Éclaircie précommerciale de la régénération naturelle | U146: OSUPREALEPC | V146: =IFERROR(VLOOKUP(U146,Output!C:AQ,37,FALSE),0)/5 -> 394.4 | X146: Exemple U09751
B147: Dégagement de la régénération naturelle (et regarni) | F147: =ROUND(V147,-1) -> 740 | G147: =IFERROR(ROUND(VLOOKUP(O33,DataLocal!$A:$BH,53,FALSE),-1),0) -> 0 | H147: 740 | I147: DEG de regarni uniquement | S147: Tableau 10. | T147: Dégagement de la régénération naturelle | U147: OSUPDEG_2 | V147: =IFERROR(VLOOKUP(U147,Output!C:AQ,37,FALSE),0)/5 -> 742
B148: Dégagement des plantations | F148: =ROUND(V148,-1) -> 1290 | G148: =IFERROR(ROUND(VLOOKUP(O33,DataLocal!$A:$BH,54,FALSE),-1),0) -> 840 | H148: 450 | I148: DEG PL | S148: Tableau 10. | T148: Dégagement de plantation | U148: OSUPDEG_1 | V148: =IFERROR(VLOOKUP(U148,Output!C:AQ,37,FALSE),0)/5 -> 1287.0972
B149: Élagage | F149: =ROUND(V149,-1) -> 0 | G149: =IFERROR(ROUND(VLOOKUP(O33,DataLocal!$A:$BN,66,FALSE),-1),0) -> 0 | H149: 0 | S149: Tableau 10. | T149: Élagage (plantation) | U149: OSUPELAG | V149: =IFERROR(VLOOKUP(U149,Output!C:AQ,37,FALSE),0)/5 -> 0
B150: Total des travaux d'éducation | F150: =SUM(F145:F149) -> 3560 | G150: =SUM(G145:G149) -> 2540 | H150: 1020 | S150: Tableau 10. | U150: OSUPSCA_LIGN | V150: =IFERROR(VLOOKUP(U150,Output!C:AQ,37,FALSE),0)/5 -> 0
B151: Scarifiage partiel | F151: =ROUND(V152,-1) -> 1520 | G151: =IFERROR(ROUND(VLOOKUP(O33,DataLocal!$A:$BH,58,FALSE),-1),0) -> 400 | H151: 1120 | S151: Tableau 10. | U151: OSUPSCA_LRD | V151: =IFERROR(VLOOKUP(U151,Output!C:AQ,37,FALSE),0)/5 -> 0
B152: Scarifiage en plein | F152: =ROUND(V153+V150+V151,-1) -> 2610 | G152: =IFERROR(ROUND(VLOOKUP(O33,DataLocal!$A:$BH,59,FALSE),-1),0) -> 2810 | H152: -200 | S152: Tableau 10. | U152: OSUPSCA_PART | V152: =IFERROR(VLOOKUP(U152,Output!C:AQ,37,FALSE),0)/5 -> 1524.8
B153: Total de la préparation de terrain | F153: =IFERROR(SUM(F151:F152),0) -> 4130 | G153: =IFERROR(SUM(G151:G152),0) -> 3210 | H153: 920 | S153: Tableau 10. | U153: OSUPSCA_REG | V153: =IFERROR(VLOOKUP(U153,Output!C:AQ,37,FALSE),0)/5 -> 2612
B154: Total des travaux sans récolte | F154: =F153+F150+F144 -> 13510 | G154: =G153+G150+G144 -> 8780 | H154: 4730
B155: * Comprend 1 100 ha/an de regarni avec rendement équivalent à une plantation de base
B160: Tableau 13 : Variation du volume sur pied à court, moyen et long terme | L160: % du volume total | U160: colonne | V160: 37 | W160: 38 | X160: 39 | Y160: 40 | AF160: 37 | AG160: 38 | AH160: 39 | AI160: 40
B161: Essences | C161: Volume moyen sur pied (m3) | G161: Volume moyen sur pied (%) | V161: Volume moyen sur pied (m3) | Z161: Volume moyen sur pied (%) | AF161: Volume dans courbe SNAT
C162: 2023 à 2048 | D162: 2048 à 2073 | E162: 2073 à 2118 | F162: 2118 à 2168 | G162: =C162 -> 2023 à 2048 | H162: =D162 -> 2048 à 2073 | I162: 2073 à 2118 | J162: 2118 à 2168 | L162: 2023 à 2048 | T162: Légende | U162: Name | V162: p 2 à 6 | W162: p 7 à 11 | X162: p 12 à 20 | Y162: p 21 à 30 | Z162: p 2 à 6 | AA162: p 7 à 11 | AB162: p 12 à 20 | AC162: p 21 à 30 | AE162: Name | AF162: p 2 à 6 | AG162: p 7 à 11 | AH162: p 12 à 20 | AI162: p 21 à 30
B163: =T163 -> Sapin baumier | C163: =ROUND(V163-AF163,-2) -> 6587700 | D163: =ROUND(W163-AG163,-2) -> 7016600 | E163: 7722700 | F163: 7026400 | G163: =C163/C$177 -> 0.1598417039 | H163: =D163/D$177 -> 0.1525609833 | I163: =E163/E$177 -> 0.1257136067 | J163: =F163/F$177 -> 0.1165512997 | L163: =C163/C$177 -> 0.1598417039 | S163: =LEFT(B$160,11) -> Tableau 13 | T163: Sapin baumier | U163: OVOLSABPIEDINC | V163: =VLOOKUP($U163,Output!$C:$AQ,V$160,FALSE) -> 6625343.294 | W163: =VLOOKUP($U163,Output!$C:$AQ,W$160,FALSE) -> 7058856.2 | X163: =VLOOKUP($U163,Output!$C:$AQ,X$160,FALSE) -> 7785598.451 | Y163: =VLOOKUP($U163,Output!$C:$AQ,Y$160,FALSE) -> 7089936.144 | Z163: =V163/V$178 -> 0.155962481 | AA163: =W163/W$178 -> 0.1488170418 | AB163: =X163/X$178 -> 0.1227227371 | AC163: =Y163/Y$178 -> 0.112975751 | AE163: OVOLSABPIEDSNAT | AF163: =VLOOKUP($AE163,Output!$C:$AQ,AF$160,FALSE) -> 37623.002 | AG163: =VLOOKUP($AE163,Output!$C:$AQ,AG$160,FALSE) -> 42207.65 | AH163: =VLOOKUP($AE163,Output!$C:$AQ,AH$160,FALSE) -> 62925.74333 | AI163: =VLOOKUP($AE163,Output!$C:$AQ,AI$160,FALSE) -> 63564.131
B164: =T164 -> Épinettes | C164: =ROUND(V164-AF164,-2) -> 21102500 | D164: 21404700 | E164: 30161200 | F164: 28529100 | G164: 0.512023856 | H164: 0.4653994925 | I164: 0.4909776676 | J164: 0.4732300588 | L164: 0.512023856 | S164: Tableau 13 | T164: Épinettes | U164: OVOLgEpxPIEDINC | V164: =VLOOKUP($U164,Output!$C:$AQ,V$160,FALSE) -> 22231983.81 | W164: =VLOOKUP($U164,Output!$C:$AQ,W$160,FALSE) -> 22684383.62 | X164: =VLOOKUP($U164,Output!$C:$AQ,X$160,FALSE) -> 31936612.28 | Y164: =VLOOKUP($U164,Output!$C:$AQ,Y$160,FALSE) -> 30697157.64 | Z164: 0.5233472739 | AA164: 0.478239359 | AB164: 0.5034100457 | AC164: 0.4891488958 | AE164: OVOLgEpxPIEDSNAT | AF164: =VLOOKUP($AE164,Output!$C:$AQ,AF$160,FALSE) -> 1129478.936 | AG164: =VLOOKUP($AE164,Output!$C:$AQ,AG$160,FALSE) -> 1279726.16 | AH164: =VLOOKUP($AE164,Output!$C:$AQ,AH$160,FALSE) -> 1775370.906 | AI164: =VLOOKUP($AE164,Output!$C:$AQ,AI$160,FALSE) -> 2168066.048
B165: =T165 -> Pin gris | C165: 4439100 | D165: 8361500 | E165: 11350500 | F165: 13383200 | G165: 0.107708807 | H165: 0.1818029618 | I165: 0.1847685774 | J165: 0.2219955247 | L165: 0.107708807 | S165: Tableau 13 | T165: Pin gris | U165: OVOLgPgPIEDINC | V165: =VLOOKUP($U165,Output!$C:$AQ,V$160,FALSE) -> 4511108.424 | W165: =VLOOKUP($U165,Output!$C:$AQ,W$160,FALSE) -> 8442049.192 | X165: =VLOOKUP($U165,Output!$C:$AQ,X$160,FALSE) -> 11464913.64 | Y165: =VLOOKUP($U165,Output!$C:$AQ,Y$160,FALSE) -> 13537652.53 | Z165: 0.1061927859 | AA165: 0.1779779544 | AB165: 0.1807190021 | AC165: 0.2157179458 | AE165: OVOLgPgPIEDSNAT | AF165: =VLOOKUP($AE165,Output!$C:$AQ,AF$160,FALSE) -> 71967.364 | AG165: =VLOOKUP($AE165,Output!$C:$AQ,AG$160,FALSE) -> 80564.162 | AH165: =VLOOKUP($AE165,Output!$C:$AQ,AH$160,FALSE) -> 114446.5478 | AI165: =VLOOKUP($AE165,Output!$C:$AQ,AI$160,FALSE) -> 154493.946
B166: =T166 -> Mélèzes | C166: 177400 | D166: 694100 | E166: 2388700 | F166: 2726000 | G166: 0.004304373039 | H166: 0.01509172227 | I166: 0.03888433997 | J166: 0.04521787018 | L166: 0.004304373039 | S166: Tableau 13 | T166: Mélèzes | U166: OVOLgMlPIEDINC | V166: =VLOOKUP($U166,Output!$C:$AQ,V$160,FALSE) -> 200545.896 | W166: =VLOOKUP($U166,Output!$C:$AQ,W$160,FALSE) -> 723342.504 | X166: =VLOOKUP($U166,Output!$C:$AQ,X$160,FALSE) -> 2434257.094 | Y166: =VLOOKUP($U166,Output!$C:$AQ,Y$160,FALSE) -> 2797420.755 | Z166: 0.004720907899 | AA166: 0.01524973573 | AB166: 0.03837067829 | AC166: 0.04457596008 | AE166: OVOLGMlPIEDSNAT | AF166: =VLOOKUP($AE166,Output!$C:$AQ,AF$160,FALSE) -> 23111.196 | AG166: =VLOOKUP($AE166,Output!$C:$AQ,AG$160,FALSE) -> 29260.348 | AH166: =VLOOKUP($AE166,Output!$C:$AQ,AH$160,FALSE) -> 45581.29667 | AI166: =VLOOKUP($AE166,Output!$C:$AQ,AI$160,FALSE) -> 71451.52
B167: Thuya | C167: =ROUND(V167-AF167,-2) -> 1900 | D167: 1300 | E167: 900 | F167: 900 | G167: 4.610095138e-05 | H167: 2.82657239e-05 | I167: 1.465060743e-05 | J167: 1.492886396e-05 | L167: 4.610095138e-05 | S167: Tableau 13 | T167: Thuya | U167: OVOLTHOPIEDINC | V167: =VLOOKUP($U167,Output!$C:$AQ,V$160,FALSE) -> 1884.562 | W167: =VLOOKUP($U167,Output!$C:$AQ,W$160,FALSE) -> 1330.454 | X167: =VLOOKUP($U167,Output!$C:$AQ,X$160,FALSE) -> 862.5566667 | Y167: =VLOOKUP($U167,Output!$C:$AQ,Y$160,FALSE) -> 874.837 | Z167: 4.436312988e-05 | AA167: 2.804905255e-05 | AB167: 1.359629779e-05 | AC167: 1.394023374e-05 | AE167: OVOLTHOPIEDSNAT | AF167: =VLOOKUP($AE167,Output!$C:$AQ,AF$160,FALSE) -> 0 | AG167: =VLOOKUP($AE167,Output!$C:$AQ,AG$160,FALSE) -> 0 | AH167: =VLOOKUP($AE167,Output!$C:$AQ,AH$160,FALSE) -> 0 | AI167: =VLOOKUP($AE167,Output!$C:$AQ,AI$160,FALSE) -> 0
B168: Pruche | C168: 0 | D168: 0 | E168: 0 | F168: 0 | G168: 0 | H168: 0 | I168: 0 | J168: 0 | L168: 0 | S168: Tableau 13 | T168: Pruche | U168: OVOLPRUPIEDINC | V168: =VLOOKUP($U168,Output!$C:$AQ,V$160,FALSE) -> 0 | W168: =VLOOKUP($U168,Output!$C:$AQ,W$160,FALSE) -> 0 | X168: =VLOOKUP($U168,Output!$C:$AQ,X$160,FALSE) -> 0 | Y168: =VLOOKUP($U168,Output!$C:$AQ,Y$160,FALSE) -> 0 | Z168: 0 | AA168: 0 | AB168: 0 | AC168: 0 | AE168: OVOLPRUPIEDSNAT | AF168: =VLOOKUP($AE168,Output!$C:$AQ,AF$160,FALSE) -> 0 | AG168: =VLOOKUP($AE168,Output!$C:$AQ,AG$160,FALSE) -> 0 | AH168: =VLOOKUP($AE168,Output!$C:$AQ,AH$160,FALSE) -> 0 | AI168: =VLOOKUP($AE168,Output!$C:$AQ,AI$160,FALSE) -> 0
B169: Pins blanc et rouge | C169: 16600 | D169: 12300 | E169: 8400 | F169: 6400 | G169: 0.0004027767331 | H169: 0.0002674372338 | I169: 0.0001367390027 | J169: 0.0001061608104 | L169: 0.0004027767331 | S169: Tableau 13 | T169: Pins blanc et rouge | U169: OVOLGPINSPIEDINC | V169: =VLOOKUP($U169,Output!$C:$AQ,V$160,FALSE) -> 16583.94 | W169: =VLOOKUP($U169,Output!$C:$AQ,W$160,FALSE) -> 12334.288 | X169: =VLOOKUP($U169,Output!$C:$AQ,X$160,FALSE) -> 8383.246667 | Y169: =VLOOKUP($U169,Output!$C:$AQ,Y$160,FALSE) -> 6445.438 | Z169: 0.0003903907031 | AA169: 0.0002600353656 | AB169: 0.0001321433392 | AC169: 0.0001027058895 | AE169: OVOLGPINSCPIEDSNAT | AF169: =VLOOKUP($AE169,Output!$C:$AQ,AF$160,FALSE) -> 0 | AG169: =VLOOKUP($AE169,Output!$C:$AQ,AG$160,FALSE) -> 0 | AH169: =VLOOKUP($AE169,Output!$C:$AQ,AH$160,FALSE) -> 0 | AI169: =VLOOKUP($AE169,Output!$C:$AQ,AI$160,FALSE) -> 0
B170: Peupliers | C170: 2944700 | D170: 2568400 | E170: 2980900 | F170: 2650300 | G170: 0.07144919554 | H170: 0.05584437327 | I170: 0.04852443965 | J170: 0.04396218685 | L170: 0.07144919554 | S170: Tableau 13 | T170: Peupliers | U170: OVOLGPEUPIEDINC | V170: =VLOOKUP($U170,Output!$C:$AQ,V$160,FALSE) -> 2945730.188 | W170: =VLOOKUP($U170,Output!$C:$AQ,W$160,FALSE) -> 2570189.32 | X170: =VLOOKUP($U170,Output!$C:$AQ,X$160,FALSE) -> 2983148.312 | Y170: =VLOOKUP($U170,Output!$C:$AQ,Y$160,FALSE) -> 2652540.747 | Z170: 0.06934333332 | AA170: 0.05418554515 | AB170: 0.04702273414 | AC170: 0.04226734582 | AE170: OVOLPEUPIEDSNAT | AF170: =VLOOKUP($AE170,Output!$C:$AQ,AF$160,FALSE) -> 1038.646 | AG170: =VLOOKUP($AE170,Output!$C:$AQ,AG$160,FALSE) -> 1803.678 | AH170: =VLOOKUP($AE170,Output!$C:$AQ,AH$160,FALSE) -> 2205.51 | AI170: =VLOOKUP($AE170,Output!$C:$AQ,AI$160,FALSE) -> 2263.395
B171: Bouleau à papier | C171: 5823900 | D171: 5831800 | E171: 6719500 | F171: 5885400 | G171: 0.1413091214 | H171: 0.1268000374 | I171: 0.1093830629 | J171: 0.09762481774 | L171: 0.1413091214 | S171: Tableau 13 | T171: Bouleau à papier | U171: OVOLgBpPIEDINC | V171: =VLOOKUP($U171,Output!$C:$AQ,V$160,FALSE) -> 5827183.112 | W171: =VLOOKUP($U171,Output!$C:$AQ,W$160,FALSE) -> 5839218.712 | X171: =VLOOKUP($U171,Output!$C:$AQ,X$160,FALSE) -> 6728505.636 | Y171: =VLOOKUP($U171,Output!$C:$AQ,Y$160,FALSE) -> 5895150.566 | Z171: 0.1371735614 | AA171: 0.123104258 | AB171: 0.1060600073 | AC171: 0.0939372441 | AE171: OVOLgBpPIEDSNAT | AF171: =VLOOKUP($AE171,Output!$C:$AQ,AF$160,FALSE) -> 3277.49 | AG171: =VLOOKUP($AE171,Output!$C:$AQ,AG$160,FALSE) -> 7443.366 | AH171: =VLOOKUP($AE171,Output!$C:$AQ,AH$160,FALSE) -> 8968.142222 | AI171: =VLOOKUP($AE171,Output!$C:$AQ,AI$160,FALSE) -> 9765.486
B172: Bouleau jaune | C172: 6800 | D172: 8000 | E172: 10000 | F172: 9600 | G172: 0.0001649928786 | H172: 0.0001739429163 | I172: 0.000162784527 | J172: 0.0001592412156 | L172: 0.0001649928786 | S172: Tableau 13 | T172: Bouleau jaune | U172: OVOLBOJPIEDINC | V172: =VLOOKUP($U172,Output!$C:$AQ,V$160,FALSE) -> 6769.262 | W172: =VLOOKUP($U172,Output!$C:$AQ,W$160,FALSE) -> 8044.84 | X172: =VLOOKUP($U172,Output!$C:$AQ,X$160,FALSE) -> 10104.86222 | Y172: =VLOOKUP($U172,Output!$C:$AQ,Y$160,FALSE) -> 10367.52 | Z172: 0.0001593503686 | AA172: 0.0001696038645 | AB172: 0.0001592808 | AC172: 0.0001652029488 | AE172: OVOLBOJPIEDSNAT | AF172: =VLOOKUP($AE172,Output!$C:$AQ,AF$160,FALSE) -> 0 | AG172: =VLOOKUP($AE172,Output!$C:$AQ,AG$160,FALSE) -> 0 | AH172: =VLOOKUP($AE172,Output!$C:$AQ,AH$160,FALSE) -> 106.4455556 | AI172: =VLOOKUP($AE172,Output!$C:$AQ,AI$160,FALSE) -> 749.351
B173: Érable rouge | C173: 103300 | D173: 85700 | E173: 80600 | F173: 63400 | G173: 0.002506435935 | H173: 0.001863363491 | I173: 0.001312043288 | J173: 0.001051655528 | L173: 0.002506435935 | S173: Tableau 13 | T173: Érable rouge | U173: OVOLgEroPIEDINC | V173: =VLOOKUP($U173,Output!$C:$AQ,V$160,FALSE) -> 103288.116 | W173: =VLOOKUP($U173,Output!$C:$AQ,W$160,FALSE) -> 85711.346 | X173: =VLOOKUP($U173,Output!$C:$AQ,X$160,FALSE) -> 80595.24889 | Y173: =VLOOKUP($U173,Output!$C:$AQ,Y$160,FALSE) -> 63404.469 | Z173: 0.002431431869 | AA173: 0.001806993739 | AB173: 0.001270405814 | AC173: 0.001010328916 | AE173: OVOLgEroPIEDSNAT | AF173: =VLOOKUP($AE173,Output!$C:$AQ,AF$160,FALSE) -> 0 | AG173: =VLOOKUP($AE173,Output!$C:$AQ,AG$160,FALSE) -> 0 | AH173: =VLOOKUP($AE173,Output!$C:$AQ,AH$160,FALSE) -> 0 | AI173: =VLOOKUP($AE173,Output!$C:$AQ,AI$160,FALSE) -> 0
B174: Érable à sucre | C174: 0 | D174: 0 | E174: 0 | F174: 0 | G174: 0 | H174: 0 | I174: 0 | J174: 0 | L174: 0 | S174: Tableau 13 | T174: Érable à sucre | U174: OVOLERSPIEDINC | V174: =VLOOKUP($U174,Output!$C:$AQ,V$160,FALSE) -> 0 | W174: =VLOOKUP($U174,Output!$C:$AQ,W$160,FALSE) -> 0 | X174: =VLOOKUP($U174,Output!$C:$AQ,X$160,FALSE) -> 0 | Y174: =VLOOKUP($U174,Output!$C:$AQ,Y$160,FALSE) -> 0 | Z174: 0 | AA174: 0 | AB174: 0 | AC174: 0 | AE174: OVOLERSPIEDSNAT | AF174: =VLOOKUP($AE174,Output!$C:$AQ,AF$160,FALSE) -> 0 | AG174: =VLOOKUP($AE174,Output!$C:$AQ,AG$160,FALSE) -> 0 | AH174: =VLOOKUP($AE174,Output!$C:$AQ,AH$160,FALSE) -> 0 | AI174: =VLOOKUP($AE174,Output!$C:$AQ,AI$160,FALSE) -> 0
B175: Autres feuillus durs | C175: =ROUND(V175-AF175,-2) -> 9900 | D175: 7700 | E175: 7600 | F175: 5300 | G175: 0.0002402102203 | H175: 0.0001674200569 | I175: 0.0001237162405 | J175: 8.791442112e-05 | L175: 0.0002402102203 | S175: Tableau 13 | T175: Autres feuillus durs | V175: =V178-V176-V174-V173-V172-V171-V170-V169-V168-V167 -> 9945.526 | W175: =W178-W176-W174-W173-W172-W171-W170-W169-W168-W167 -> 7656.84 | X175: =X178-X176-X174-X173-X172-X171-X170-X169-X168-X167 -> 7572.847778 | Y175: =Y178-Y176-Y174-Y173-Y172-Y171-Y170-Y169-Y168-Y167 -> 5314.169 | Z175: 0.000234120534 | AA175: 0.0001614239256 | AB175: 0.0001193691934 | AC175: 8.4679498e-05 | AE175: Autres feuillus durs | AF175: =AF178-AF176-AF174-AF173-AF172-AF171-AF170-AF169-AF168-AF167 -> 0.002000000035 | AG175: =AG178-AG176-AG174-AG173-AG172-AG171-AG170-AG169-AG168-AG167 -> -0.001999999868 | AH175: =AH178-AH176-AH174-AH173-AH172-AH171-AH170-AH169-AH168-AH167 -> 0.001111111644 | AI175: =AI178-AI176-AI174-AI173-AI172-AI171-AI170-AI169-AI168-AI167 -> 0.001999999707
B176: Autres essences | C176: =IF($L$163<0.0095,C163,0)+IF($L$164<0.0095,C164,0)+IF($L$165<0.0095,C165,0)+IF($L$166<0.0095,C166,0)+IF($L$167<0.0095,C167,0)+IF($L$168<0.0095,C168,0)+IF($L$169<0.0095,C169,0)+IF($L$170<0.0095,C170,0)+IF($L$171<0.0095,C171,0)+IF($L$172<0.0095,C172,0)+IF($L$173<0.0095,C173,0)+IF($L$174<0.0095,C174+0)+IF($L$175<0.0095,C175,0) -> 315900 | D176: =IF($L$163<0.0095,D163,0)+IF($L$164<0.0095,D164,0)+IF($L$165<0.0095,D165,0)+IF($L$166<0.0095,D166,0)+IF($L$167<0.0095,D167,0)+IF($L$168<0.0095,D168,0)+IF($L$169<0.0095,D169,0)+IF($L$170<0.0095,D170,0)+IF($L$171<0.0095,D171,0)+IF($L$172<0.0095,D172,0)+IF($L$173<0.0095,D173,0)+IF($L$174<0.0095,D174+0)+IF($L$175<0.0095,D175,0) -> 809100 | E176: =IF($L$163<0.0095,E163,0)+IF($L$164<0.0095,E164,0)+IF($L$165<0.0095,E165,0)+IF($L$166<0.0095,E166,0)+IF($L$167<0.0095,E167,0)+IF($L$168<0.0095,E168,0)+IF($L$169<0.0095,E169,0)+IF($L$170<0.0095,E170,0)+IF($L$171<0.0095,E171,0)+IF($L$172<0.0095,E172,0)+IF($L$173<0.0095,E173,0)+IF($L$174<0.0095,E174+0)+IF($L$175<0.0095,E175,0) -> 2496200 | F176: =IF($L$163<0.0095,F163,0)+IF($L$164<0.0095,F164,0)+IF($L$165<0.0095,F165,0)+IF($L$166<0.0095,F166,0)+IF($L$167<0.0095,F167,0)+IF($L$168<0.0095,F168,0)+IF($L$169<0.0095,F169,0)+IF($L$170<0.0095,F170,0)+IF($L$171<0.0095,F171,0)+IF($L$172<0.0095,F172,0)+IF($L$173<0.0095,F173,0)+IF($L$174<0.0095,F174+0)+IF($L$175<0.0095,F175,0) -> 2811600 | G176: 0.007664889758 | H176: 0.0175921517 | I176: 0.04063427363 | J176: 0.04663777102 | L176: 0.007664889758 | S176: Tableau 13 | T176: SEPM | U176: OVOLGSEPMPIEDINC | V176: =VLOOKUP($U176,Output!$C:$AQ,V$160,FALSE) -> 33568981.42 | W176: =VLOOKUP($U176,Output!$C:$AQ,W$160,FALSE) -> 38908631.51 | X176: =VLOOKUP($U176,Output!$C:$AQ,X$160,FALSE) -> 53621381.46 | Y176: =VLOOKUP($U176,Output!$C:$AQ,Y$160,FALSE) -> 54122167.06 | Z176: 0.7902234486 | AA176: 0.8202840909 | AB176: 0.8452224632 | AC176: 0.8624185526 | AE176: OVOLgSEPMPIEDSNAT | AF176: =VLOOKUP($AE176,Output!$C:$AQ,AF$160,FALSE) -> 1262180.502 | AG176: =VLOOKUP($AE176,Output!$C:$AQ,AG$160,FALSE) -> 1431758.318 | AH176: =VLOOKUP($AE176,Output!$C:$AQ,AH$160,FALSE) -> 1998324.494 | AI176: =VLOOKUP($AE176,Output!$C:$AQ,AI$160,FALSE) -> 2457575.643
B177: Total | C177: =ROUND(V178-AF178,-2) -> 41213900 | D177: =ROUND(W178-AG178,-2) -> 45992100 | E177: =ROUND(X178-AH178,-2) -> 61430900 | F177: =ROUND(Y178-AI178,-2) -> 60285900 | G177: 1 | H177: 1 | I177: 1 | J177: 1 | S177: Tableau 13 | T177: FN - ERS BOJ | U177: OVOLGFNPIEDINC | V177: =VLOOKUP($U177,Output!$C:$AQ,V$160,FALSE) -> 9945.526 | W177: =VLOOKUP($U177,Output!$C:$AQ,W$160,FALSE) -> 7656.84 | X177: =VLOOKUP($U177,Output!$C:$AQ,X$160,FALSE) -> 7572.852222 | Y177: =VLOOKUP($U177,Output!$C:$AQ,Y$160,FALSE) -> 5314.172 | Z177: 0.000234120534 | AA177: 0.0001614239256 | AB177: 0.0001193692634 | AC177: 8.46795458e-05 | AE177: OVOLgFnPIEDSNAT | AF177: =VLOOKUP($AE177,Output!$C:$AQ,AF$160,FALSE) -> 0 | AG177: =VLOOKUP($AE177,Output!$C:$AQ,AG$160,FALSE) -> 0 | AH177: =VLOOKUP($AE177,Output!$C:$AQ,AH$160,FALSE) -> 0 | AI177: =VLOOKUP($AE177,Output!$C:$AQ,AI$160,FALSE) -> 0
L178: Masquer les essences du tableau qui sont en surbrillance (< 1%) | S178: Tableau 13 | T178: TOT sur pied | U178: OVOLTOTPIEDINC | V178: =VLOOKUP($U178,Output!$C:$AQ,V$160,FALSE) -> 42480366.13 | W178: =VLOOKUP($U178,Output!$C:$AQ,W$160,FALSE) -> 47433117.31 | X178: =VLOOKUP($U178,Output!$C:$AQ,X$160,FALSE) -> 63440554.17 | Y178: =VLOOKUP($U178,Output!$C:$AQ,Y$160,FALSE) -> 62756264.81 | Z178: 1 | AA178: 1 | AB178: 1 | AC178: 1 | AE178: OVOLTOTPIEDSNAT | AF178: =VLOOKUP($AE178,Output!$C:$AQ,AF$160,FALSE) -> 1266496.64 | AG178: =VLOOKUP($AE178,Output!$C:$AQ,AG$160,FALSE) -> 1441005.36 | AH178: =VLOOKUP($AE178,Output!$C:$AQ,AH$160,FALSE) -> 2009604.593 | AI178: =VLOOKUP($AE178,Output!$C:$AQ,AI$160,FALSE) -> 2470353.877
L179: Ces volumes sont comptabilisés dans "Autres essences" | S179: Tableau 13 | T179: Érables à sucre et rouge
D182: P2 | E182: P3 | F182: P4 | G182: P5 | H182: P6
B183: Tableau 15 Statistiques sur les compartiments d’organisation spatiale admissibles à la récolte par période
B184: Compartiments d'organisation spatiale | D184: 2023-2028 | E184: 2028-2033 | F184: 2033-2038 | G184: 2038-2043 | H184: 2043-2048
B185: Nombre total | D185: =Cedule_COS!G6 -> 279
B186: En pessière | D186: =COUNTIF(Cedule_COS!$A$10:$A$1009,"<S*") -> 88 | J186: Fait la sommation automatique des COS débutant par la lettre "P" ou par "C", valider et corriger si nécessaire
B187: En sapinière | D187: =COUNTIF(Cedule_COS!$A$10:$A$1009,"S*") -> 191 | J187: Fait la sommation automatique des COS débutant par la lettre "S", valider et corriger si nécessaire
B188: Admissibles à la récolte | D188: =Cedule_COS!C7 -> 63 | E188: =Cedule_COS!D7 -> 70 | F188: =Cedule_COS!E7 -> 65 | G188: =Cedule_COS!F7 -> 53 | H188: =Cedule_COS!G7 -> 36
B189: % de compartiments admissibles | D189: =Cedule_COS!C8 -> 0.2258064516 | E189: =Cedule_COS!D8 -> 0.2508960573 | F189: =Cedule_COS!E8 -> 0.2329749104 | G189: =Cedule_COS!F8 -> 0.1899641577 | H189: =Cedule_COS!G8 -> 0.1290322581
B193: Tableau 17 Superficies considérées pour l'analyse de la mortalité d'ici la période 2023-2028 | S193: =LEFT(B$193,11) -> Tableau 17 | T193: Légende | V193: Output | W193: Valeur | X193: Période | Y193: Année
F194: ha | G194: % | S194: =LEFT(B$193,11) -> Tableau 17 | T194: Incluses aux activités de récolte | V194: OSUPINC | W194: =VLOOKUP($V194,Output!$C:$AQ,6,FALSE) -> 892689.2 | X194: P0 | Y194: 2018
B195: Épidémie sévère confirmée à la photo-interprétation | G195: =F195/W$194 -> 0 | J195: Faire une sélection sur le thème 8 = "INC" et seulement les années correspondant à l'épidémie actuelle | S195: =LEFT(B$193,11) -> Tableau 17 | T195: Épidémie sévère confirmée à la photo-interprétation | V195: Requete dans la table d'attribut
B196: Défoliation cumulative (cote ≥ 15) | F196: 174904 | G196: =F196/W$194 -> 0.1959293335 | H196: saisie manuelle | J196: Des champs avaient été ajoutés par l'analyste à la fin de table d'attribut de la carte woodstock | S196: =LEFT(B$193,11) -> Tableau 17 | T196: Défoliation cumulative projetée 2023 ≥ 15 | V196: OSUPINC15+ | W196: =VLOOKUP($V196,Output!$C:$AQ,7,FALSE) ->  | X196: P1 | Y196: 2023
B197: Mortalité projetée | F197: =ROUND(SUM(W197:W198),-1) -> 68770 | G197: =F197/W$194 -> 0.07703689033 | J197: et c'est sur ces derniers que doivent se réaliser les requêtes | S197: =LEFT(B$193,11) -> Tableau 17 | T197: Mortalité projetée (sommation des 2 actions) | V197: osupaTBEmort | W197: =VLOOKUP($V197,Output!$C:$AQ,8,FALSE) -> 41540 | X197: P2 | Y197: 2028
B198: Récupération prévue 2018-2023 | F198: =-ROUND(W199,-1) -> -15630 | G198: =F198/W$194 -> -0.01750889335 | V198: Osupactiontberetard | W198: =VLOOKUP($V198,Output!$C:$AQ,8,FALSE) -> 27225 | X198: P2 | Y198: 2028
S199: =LEFT(B$193,11) -> Tableau 17 | T199: Récolte prévue à court terme (récupération) | V199: osuprealregapre_15+ | W199: =VLOOKUP($V199,Output!$C:$AQ,7,FALSE) -> 15630 | X199: P1 | Y199: 2023

Sheet Figures
B2: Figure 2. Répartition du volume de bois marchand sur pied en début de calcul (m3). | N2: Volume sur pied en P0 | S2: Source: CahierDetermination_2018-2023 | V2: Volume sur pied en P0 - volume en SNAT | Z2: Volume dans courbe SNAT
L3: Conserver les GTYF même s'ils sont absents de l'UA | S3: Intrants | T3: Légende | U3: Name | V3: PERIOD0 | W3: % | X3: PERIOD0 | Z3: Name | AB3: PERIOD0
N4: Total | O4: =V19 -> 50258500 | S4: =LEFT(B$2,10) -> Figure 2. | T4: Autres feuillus durs | V4: =ROUND(V19-V17-V11-V12-V10-V8-V9-V6-V5-V7,-2) -> 10500 | W4: =IFERROR(V4/$V$19,0) -> 0.0002089198842 | X4: =X19-X17-X11-X12-X10-X8-X9-X6-X5-X7 -> 10529.66 | Z4: Autres feuillus durs | AB4: =ROUND(AB19-AB17-AB11-AB12-AB10-AB8-AB9-AB6-AB5-AB7,-2) -> 0
N5: % R | O5: =(V17+V12+V11+V10)/V19 -> 0.8140513545 | S5: Figure 2. | T5: Érable à sucre | U5: OVOLERSPIEDINC | V5: =ROUND(X5-AB5,-2) -> 0 | W5: 0 | X5: =VLOOKUP(U5,Output!$C:$AQ,6,FALSE) -> 0 | Z5: OVOLERSPIEDSNAT | AB5: =VLOOKUP(Z5,Output!$C:$AQ,6,FALSE) -> 0
N6: %SEPM | O6: =V17/V19 -> 0.8135957102 | S6: Figure 2. | T6: Érable rouge | U6: OVOLgEroPIEDINC | V6: 114500 | W6: 0.002278221594 | X6: =VLOOKUP(U6,Output!$C:$AQ,6,FALSE) -> 114462.81 | Z6: OVOLgEroPIEDSNAT | AB6: =VLOOKUP(Z6,Output!$C:$AQ,6,FALSE) -> 0
N7: % Fi | O7: =W21 -> 0.18564024 | P7: =O7*O4 -> 9330000 | S7: Figure 2. | T7: Bouleau jaune | U7: OVOLBOJPIEDINC | V7: 5000 | W7: 9.948565914e-05 | X7: =VLOOKUP(U7,Output!$C:$AQ,6,FALSE) -> 5035.06 | Z7: OVOLBOJPIEDSNAT | AB7: =VLOOKUP(Z7,Output!$C:$AQ,6,FALSE) -> 0
N8: % FT | O8: =W22 -> 0.0003103952565 | S8: Figure 2. | T8: Bouleau à papier | U8: OVOLgBpPIEDINC | V8: 6151600 | W8: 0.1223991962 | X8: =VLOOKUP(U8,Output!$C:$AQ,6,FALSE) -> 6152920.8 | Z8: OVOLgBpPIEDSNAT | AB8: =VLOOKUP(Z8,Output!$C:$AQ,6,FALSE) -> 1285.62
N9: %Sapin | O9: =V16/V17 -> 0.2250177916 | S9: Figure 2. | T9: Peupliers | U9: OVOLGPEUPIEDINC | V9: 3063900 | W9: 0.06096282221 | X9: =VLOOKUP(U9,Output!$C:$AQ,6,FALSE) -> 3064509.77 | Z9: OVOLPEUPIEDSNAT | AB9: =VLOOKUP(Z9,Output!$C:$AQ,6,FALSE) -> 642.81
N10: %ERR | O10: =IFERROR(V6/(V5+V6),0) -> 1 | S10: Figure 2. | T10: Pins blanc et rouge | U10: OVOLGPINSPIEDINC | V10: 20500 | W10: 0.0004078912025 | X10: =VLOOKUP(U10,Output!$C:$AQ,6,FALSE) -> 20493.83 | Z10: OVOLGPINSCPIEDSNAT | AB10: =VLOOKUP(Z10,Output!$C:$AQ,6,FALSE) -> 0
S11: Figure 2. | T11: Pruche | U11: OVOLPRUPIEDINC | V11: 0 | W11: 0 | X11: =VLOOKUP(U11,Output!$C:$AQ,6,FALSE) -> 0 | Z11: OVOLPRUPIEDSNAT | AB11: =VLOOKUP(Z11,Output!$C:$AQ,6,FALSE) -> 0
N12: Volume sur pied au calcul 2015-2018 | P12: UA | S12: Figure 2. | T12: Thuya | U12: OVOLTHOPIEDINC | V12: 2400 | W12: 4.775311639e-05 | X12: =VLOOKUP(U12,Output!$C:$AQ,6,FALSE) -> 2386.31 | Z12: OVOLTHOPIEDSNAT | AB12: =VLOOKUP(Z12,Output!$C:$AQ,6,FALSE) -> 0
P13: =Tableaux!O33 -> 02751 | S13: Figure 2. | T13: Mélèzes | U13: OVOLgMlPIEDINC | V13: 164600 | W13: 0.003275067899 | X13: =VLOOKUP(U13,Output!$C:$AQ,6,FALSE) -> 182258.06 | Z13: OVOLGMlPIEDSNAT | AB13: =VLOOKUP(Z13,Output!$C:$AQ,6,FALSE) -> 17677.33
N14: Total | O14: =VLOOKUP(P13,DataLocal!$A:$BM,61,FALSE) -> 55670410 | S14: Figure 2. | T14: Pin gris | U14: OVOLgPgPIEDINC | V14: 4086800 | W14: 0.08131559836 | X14: =VLOOKUP(U14,Output!$C:$AQ,6,FALSE) -> 4151721.94 | Z14: OVOLgPgPIEDSNAT | AB14: =VLOOKUP(Z14,Output!$C:$AQ,6,FALSE) -> 64924.01
N15: % R | O15: =VLOOKUP(P13,DataLocal!$A:$BM,62,FALSE) -> 0.84 | S15: Figure 2. | T15: Épinettes | U15: OVOLgEpxPIEDINC | V15: 27437700 | W15: 0.545931534 | X15: =VLOOKUP(U15,Output!$C:$AQ,6,FALSE) -> 28489632.87 | Z15: OVOLgEpxPIEDSNAT | AB15: =VLOOKUP(Z15,Output!$C:$AQ,6,FALSE) -> 1051887.73
N16: % SEPM | O16: =VLOOKUP(P13,DataLocal!$A:$BM,63,FALSE) -> 0.84 | S16: Figure 2. | T16: Sapin baumier | U16: OVOLSABPIEDINC | V16: =ROUND(X16-AB16,-2) -> 9201000 | W16: 0.18307351 | X16: =VLOOKUP(U16,Output!$C:$AQ,6,FALSE) -> 9232548.87 | Z16: OVOLSABPIEDSNAT | AB16: =VLOOKUP(Z16,Output!$C:$AQ,6,FALSE) -> 31572.56
N17: % Fi | O17: =VLOOKUP(P13,DataLocal!$A:$BM,64,FALSE) -> 0.16 | S17: Figure 2. | T17: SEPM | U17: OVOLGSEPMPIEDINC | V17: =ROUND(X17-AB17,-2) -> 40890100 | W17: =IFERROR(V17/$V$19,0) -> 0.8135957102 | X17: =VLOOKUP(U17,Output!$C:$AQ,6,FALSE) -> 42056161.74 | Z17: OVOLgSEPMPIEDSNAT | AB17: =VLOOKUP(Z17,Output!$C:$AQ,6,FALSE) -> 1166061.63
N18: % Ft | O18: =VLOOKUP(P13,DataLocal!$A:$BM,65,FALSE) -> 0 | S18: Figure 2. | T18: FN - ERS BOJ | U18: OVOLGFNPIEDINC | V18: 10500 | W18: 0.0002089198842 | X18: =VLOOKUP(U18,Output!$C:$AQ,6,FALSE) -> 10529.66 | Z18: OVOLgFnPIEDSNAT | AB18: =VLOOKUP(Z18,Output!$C:$AQ,6,FALSE) -> 0
S19: Figure 2. | T19: TOT sur pied | U19: OVOLTOTPIEDINC | V19: =ROUND(X19-AB19,-2) -> 50258500 | W19: 1 | X19: =VLOOKUP(U19,Output!$C:$AQ,6,FALSE) -> 51426499.98 | Z19: OVOLTOTPIEDSNAT | AB19: =VLOOKUP(Z19,Output!$C:$AQ,6,FALSE) -> 1167990.06
N20: Vol R | O20: =ROUND(O15*$O$14,-2) -> 46763100 | T20: Érables à sucre et rouge | U20: Érables à sucre et rouge | V20: =V5+V6 -> 114500 | W20: 0.002278221594 | X20: =X5+X6 -> 114462.81 | Z20: Érables à sucre et rouge | AB20: =AB5+AB6 -> 0
N21: Vol SEPM | O21: =ROUND(O16*$O$14,-2) -> 46763100 | P21: Traduits en m3 | T21: gFi | U21: OVOLgFiPIEDINC | V21: =ROUND(X21-AB21,-2) -> 9330000 | W21: 0.18564024 | X21: =VLOOKUP(U21,Output!$C:$AQ,6,FALSE) -> 9331893.39 | Z21: OVOLgFiPIEDSNAT | AB21: =VLOOKUP(Z21,Output!$C:$AQ,6,FALSE) -> 1928.44
N22: Vol Fi | O22: =ROUND(O17*$O$14,-2) -> 8907300 | P22: approximativement | T22: gFt | U22: OVOLgFtPIEDINC | V22: 15600 | W22: 0.0003103952565 | X22: =VLOOKUP(U22,Output!$C:$AQ,6,FALSE) -> 15564.71 | Z22: OVOLgFtPIEDSNAT | AB22: =VLOOKUP(Z22,Output!$C:$AQ,6,FALSE) -> 0
N23: Vol Ft | O23: =ROUND(O18*$O$14,-2) -> 0
B27: Type de couvert : | C27: =#REF! -> 
B28: Figure 3. Répartition de la superficie par grand type de forêt en début de calcul (ha). | S28: Intrants | T28: Légende | V28: PERIOD0 | W28: % | X28: PERIOD0
S29: =LEFT(B$28,10) -> Figure 3. | T29: Sapinières | U29: (FCTYF_SAB) | V29: =ROUND(X29,-1) -> 122690 | W29: =V29/V$44 -> 0.1378210708 | X29: =VLOOKUP("OSUPINC"&$U29,GTYF!$C:$AP,6,FALSE) -> 122685.5
S30: Figure 3. | T30: Résineux à feuillus | U30: (FCTYF_RF) | V30: =ROUND(X30,-1) -> 95410 | W30: 0.1071766922 | X30: =VLOOKUP("OSUPINC"&$U30,GTYF!$C:$AP,6,FALSE) -> 95406
S31: Figure 3. | T31: Prucheraies | U31: (FCTYF_PRU) | V31: 0 | W31: 0 | X31: =VLOOKUP("OSUPINC"&$U31,GTYF!$C:$AP,6,FALSE) -> 0
S32: Figure 3. | T32: Pinèdes grises | U32: (FCTYF_PIG) | V32: 62510 | W32: 0.07021921211 | X32: =VLOOKUP("OSUPINC"&$U32,GTYF!$C:$AP,6,FALSE) -> 62505.7
L33: Conserver les GTYF même s'ils sont absents de l'UA | S33: Figure 3. | T33: Pinèdes blanches | U33: (FCTYF_PIN) | V33: 0 | W33: 0 | X33: =VLOOKUP("OSUPINC"&$U33,GTYF!$C:$AP,6,FALSE) -> 0
S34: Figure 3. | T34: Peupleraies à résineux | U34: (FCTYF_PEUR) | V34: 7070 | W34: 0.007941926566 | X34: =VLOOKUP("OSUPINC"&$U34,GTYF!$C:$AP,6,FALSE) -> 7069.7
S35: Figure 3. | T35: Peupleraies | U35: (FCTYF_PEU) | V35: 13770 | W35: 0.0154682219 | X35: =VLOOKUP("OSUPINC"&$U35,GTYF!$C:$AP,6,FALSE) -> 13769.8
S36: Figure 3. | T36: Pessières | U36: (FCTYF_EPX) | V36: 466840 | W36: 0.5244142854 | X36: =VLOOKUP("OSUPINC"&$U36,GTYF!$C:$AP,6,FALSE) -> 466837.5
S37: Figure 3. | T37: Feuillus tolérants à résineux | U37: (FCTYF_FTR) | V37: 0 | W37: 0 | X37: =VLOOKUP("OSUPINC"&$U37,GTYF!$C:$AP,6,FALSE) -> 0
S38: Figure 3. | T38: Feuillus tolérants | U38: (FCTYF_FT) | V38: 0 | W38: 0 | X38: =VLOOKUP("OSUPINC"&$U38,GTYF!$C:$AP,6,FALSE) -> 0
S39: Figure 3. | T39: Érablières rouges | U39: (FCTYF_ERO) | V39: 0 | W39: 0 | X39: =VLOOKUP("OSUPINC"&$U39,GTYF!$C:$AP,6,FALSE) -> 0
S40: Figure 3. | T40: Cédrières | U40: (FCTYF_THO) | V40: 0 | W40: 0 | X40: =VLOOKUP("OSUPINC"&$U40,GTYF!$C:$AP,6,FALSE) -> 0
S41: Figure 3. | T41: Bétulaies blanches à résineux | U41: (FCTYF_BOPR) | V41: 17540 | W41: 0.01970316718 | X41: =VLOOKUP("OSUPINC"&$U41,GTYF!$C:$AP,6,FALSE) -> 17535.6
S42: Figure 3. | T42: Bétulaies blanches | U42: (FCTYF_BOP) | V42: 33860 | W42: 0.03803587461 | X42: =VLOOKUP("OSUPINC"&$U42,GTYF!$C:$AP,6,FALSE) -> 33861
U43: Somme: | V43: =SUM(V29:V42) -> 819690 | X43: =SUM(X29:X42) -> 819670.8
T44: OSUPINC | U44: Tous | V44: =VLOOKUP("OSUPINC",Output!$C:$AP,7,FALSE) -> 890212.21
V45: =V43-V44 -> -70522.21 | W45: Écart
V49: 2018
B50: Figure 4. Superficie destinée à l'aménagement forestier par classe d'âge en début de calcul (ha). | S50: Intrants | U50: Name | V50: PERIOD0 | X50: Classe d'âge | Y50: OUTPUT | Z50: Superficie (ha) | AA50: Pourcentage (%)
S51: =LEFT(B$50,10) -> Figure 4. | T51: 10 ans | U51: OSUP_INC_CLASSEAGEFCAGEAGE1 | V51: =VLOOKUP(U51,Output!$C:$AQ,6,FALSE) -> 68840.1 | X51: 10 | Z51: =ROUND(SUM(V51:V54),-1) -> 271130 | AA51: =IFERROR(Z51/$V$89,0) -> 0.303722729
S52: Figure 4. | T52: 10 ans | U52: OSUP_INC_CLASSEAGEFCAGEAGE2 | V52: =VLOOKUP(U52,Output!$C:$AQ,6,FALSE) -> 70797.7 | X52: 30 | Z52: =ROUND(SUM(V55:V58),-1) -> 172050 | AA52: 0.1927322522
S53: Figure 4. | T53: 10 ans | U53: OSUP_INC_CLASSEAGEFCAGEAGE3 | V53: =VLOOKUP(U53,Output!$C:$AQ,6,FALSE) -> 85880.3 | X53: 50 | Z53: =ROUND(SUM(V59:V62),-1) -> 108130 | AA53: 0.1211283838
S54: Figure 4. | T54: 10 ans | U54: OSUP_INC_CLASSEAGEFCAGEAGE4 | V54: =VLOOKUP(U54,Output!$C:$AQ,6,FALSE) -> 45608.1 | X54: 70 | Z54: =ROUND(SUM(V63:V66),-1) -> 77890 | AA54: 0.08725321198
S55: Figure 4. | T55: 30 ans | U55: OSUP_INC_CLASSEAGEFCAGEAGE5 | V55: =VLOOKUP(U55,Output!$C:$AQ,6,FALSE) -> 61589.4 | X55: 90 | Z55: =ROUND(SUM(V67:V70),-1) -> 52590 | AA55: 0.05891188109
S56: Figure 4. | T56: 30 ans | U56: OSUP_INC_CLASSEAGEFCAGEAGE6 | V56: =VLOOKUP(U56,Output!$C:$AQ,6,FALSE) -> 33527.6 | X56: 120 et plus | Z56: =ROUND(SUM(V71:V80),-1) -> 210900 | AA56: 0.2362524381
S57: Figure 4. | T57: 30 ans | U57: OSUP_INC_CLASSEAGEFCAGEAGE7 | V57: =VLOOKUP(U57,Output!$C:$AQ,6,FALSE) -> 58644.3
S58: Figure 4. | T58: 30 ans | U58: OSUP_INC_CLASSEAGEFCAGEAGE8 | V58: =VLOOKUP(U58,Output!$C:$AQ,6,FALSE) -> 18285.9
S59: Figure 4. | T59: 50 ans | U59: OSUP_INC_CLASSEAGEFCAGEAGE9 | V59: =VLOOKUP(U59,Output!$C:$AQ,6,FALSE) -> 20759.2
S60: Figure 4. | T60: 50 ans | U60: OSUP_INC_CLASSEAGEFCAGEAGE10 | V60: =VLOOKUP(U60,Output!$C:$AQ,6,FALSE) -> 38440.9
S61: Figure 4. | T61: 50 ans | U61: OSUP_INC_CLASSEAGEFCAGEAGE11 | V61: =VLOOKUP(U61,Output!$C:$AQ,6,FALSE) -> 18865.1
N62: Proportion de la superficie dont l'évolution est suivi en âge: | S62: Figure 4. | T62: 50 ans | U62: OSUP_INC_CLASSEAGEFCAGEAGE12 | V62: =VLOOKUP(U62,Output!$C:$AQ,6,FALSE) -> 30068.2
N63: =IF(AND($W$81>=99.5%,$W$81<100%),"> 99%",IF(AND($W$81>=0.1%,$W$81<0.5%),"< 1%",$W$81)) -> 1 | S63: Figure 4. | T63: 70 ans | U63: OSUP_INC_CLASSEAGEFCAGEAGE13 | V63: =VLOOKUP(U63,Output!$C:$AQ,6,FALSE) -> 17561.2
S64: Figure 4. | T64: 70 ans | U64: OSUP_INC_CLASSEAGEFCAGEAGE14 | V64: =VLOOKUP(U64,Output!$C:$AQ,6,FALSE) -> 13834.2
S65: Figure 4. | T65: 70 ans | U65: OSUP_INC_CLASSEAGEFCAGEAGE15 | V65: =VLOOKUP(U65,Output!$C:$AQ,6,FALSE) -> 30907.5
S66: Figure 4. | T66: 70 ans | U66: OSUP_INC_CLASSEAGEFCAGEAGE16 | V66: =VLOOKUP(U66,Output!$C:$AQ,6,FALSE) -> 15588.6
S67: Figure 4. | T67: 90 ans | U67: OSUP_INC_CLASSEAGEFCAGEAGE17 | V67: =VLOOKUP(U67,Output!$C:$AQ,6,FALSE) -> 15067
S68: Figure 4. | T68: 90 ans | U68: OSUP_INC_CLASSEAGEFCAGEAGE18 | V68: =VLOOKUP(U68,Output!$C:$AQ,6,FALSE) -> 16577.5
B69: Figure 5. Superficie destinée à l'aménagement forestier par classe de surface terrière en début de calcul (ha) | S69: Figure 4. | T69: 90 ans | U69: OSUP_INC_CLASSEAGEFCAGEAGE19 | V69: =VLOOKUP(U69,Output!$C:$AQ,6,FALSE) -> 7031.3
S70: Figure 4. | T70: 90 ans | U70: OSUP_INC_CLASSEAGEFCAGEAGE20 | V70: =VLOOKUP(U70,Output!$C:$AQ,6,FALSE) -> 13917.1
S71: Figure 4. | T71: 120 et plus | U71: OSUP_INC_CLASSEAGEFCAGEAGE21 | V71: =VLOOKUP(U71,Output!$C:$AQ,6,FALSE) -> 9585
S72: Figure 4. | T72: 120 et plus | U72: OSUP_INC_CLASSEAGEFCAGEAGE22 | V72: =VLOOKUP(U72,Output!$C:$AQ,6,FALSE) -> 10466.2
S73: Figure 4. | T73: 120 et plus | U73: OSUP_INC_CLASSEAGEFCAGEAGE23 | V73: =VLOOKUP(U73,Output!$C:$AQ,6,FALSE) -> 14989.7
S74: Figure 4. | T74: 120 et plus | U74: OSUP_INC_CLASSEAGEFCAGEAGE24 | V74: =VLOOKUP(U74,Output!$C:$AQ,6,FALSE) -> 9197.2
S75: Figure 4. | T75: 120 et plus | U75: OSUP_INC_CLASSEAGEFCAGEAGE25 | V75: =VLOOKUP(U75,Output!$C:$AQ,6,FALSE) -> 16103.1
N76: Proportion de la superficie dont l'évolution est suivi en surface terrière: | S76: Figure 4. | T76: 120 et plus | U76: OSUP_INC_CLASSEAGEFCAGEAGE26 | V76: =VLOOKUP(U76,Output!$C:$AQ,6,FALSE) -> 0
N77: =IF(AND($W$88>=99.5%,$W$88<100%),"> 99%",IF(AND($W$88>=0.1%,$W$88<0.5%),"< 1%",$W$88)) -> 0 | S77: Figure 4. | T77: 120 et plus | U77: OSUP_INC_CLASSEAGEFCAGEAGE27 | V77: =VLOOKUP(U77,Output!$C:$AQ,6,FALSE) -> 5066.1
S78: Figure 4. | T78: 120 et plus | U78: OSUP_INC_CLASSEAGEFCAGEAGE28 | V78: =VLOOKUP(U78,Output!$C:$AQ,6,FALSE) -> 5210.9
S79: Figure 4. | T79: 120 et plus | U79: OSUP_INC_CLASSEAGEFCAGEAGE29 | V79: =VLOOKUP(U79,Output!$C:$AQ,6,FALSE) -> 6389.6
S80: Figure 4. | T80: 120 et plus | U80: OSUP_INC_CLASSEAGEFCAGEAGE30+ | V80: =VLOOKUP(U80,Output!$C:$AQ,6,FALSE) -> 133890.2
U81: Sous-total | V81: =SUM(V51:V80) -> 892689.2 | W81: =V81/V89 -> 1
S82: =LEFT(B$69,10) -> Figure 5. | T82: <16 | U82: OSUPINC_ST016(FCST) | V82: =VLOOKUP(U82,GTYF!$C:$AQ,6,FALSE) -> 0 | W82: =IFERROR(V82/$V$88,0) -> 0
S83: Figure 5. | T83: 16 à 18 | U83: OSUPINC_ST1619(FCST) | V83: =VLOOKUP(U83,GTYF!$C:$AQ,6,FALSE) -> 0 | W83: 0
S84: Figure 5. | T84: 19 à 21 | U84: OSUPINC_ST1922(FCST) | V84: =VLOOKUP(U84,GTYF!$C:$AQ,6,FALSE) -> 0 | W84: 0
S85: Figure 5. | T85: 22 à 24 | U85: OSUPINC_ST2225(FCST) | V85: =VLOOKUP(U85,GTYF!$C:$AQ,6,FALSE) -> 0 | W85: 0
S86: Figure 5. | T86: 25 à 28 | U86: OSUPINC_ST2528(FCST) | V86: =VLOOKUP(U86,GTYF!$C:$AQ,6,FALSE) -> 0 | W86: 0
S87: Figure 5. | T87: 29+ | U87: OSUPINC_ST29+(FCST) | V87: =VLOOKUP(U87,GTYF!$C:$AQ,6,FALSE) -> 0 | W87: 0
S88: Figure 5. | T88: Total 0-29+ | U88: Sous-total | V88: =SUM(V82:V87) -> 0 | W88: =V88/V89 -> 0
U89: OSUPINC | V89: =VLOOKUP(U89,Output!$C:$AQ,6,FALSE) -> 892689.2
A91: 80 | B91: Figure 6. Évolution des volumes et des possibilités forestières à rendement non-décroissant
U93: Période | V93: P0 | W93: P1 | X93: P2 | Y93: P3 | Z93: P4 | AA93: P5 | AB93: P6 | AC93: P7 | AD93: P8 | AE93: P9 | AF93: P10 | AG93: P11 | AH93: P12 | AI93: P13 | AJ93: P14 | AK93: P15 | AL93: P16 | AM93: P17 | AN93: P18 | AO93: P19 | AP93: P20 | AQ93: P21 | AR93: P22 | AS93: P23 | AT93: P24 | AU93: P25 | AV93: P26 | AW93: P27 | AX93: P28 | AY93: P29 | AZ93: P30
U94: Colonne | V94: 6 | W94: 7 | X94: 8 | Y94: 9 | Z94: 10 | AA94: 11 | AB94: 12 | AC94: 13 | AD94: 14 | AE94: 15 | AF94: 16 | AG94: 17 | AH94: 18 | AI94: 19 | AJ94: 20 | AK94: 21 | AL94: 22 | AM94: 23 | AN94: 24 | AO94: 25 | AP94: 26 | AQ94: 27 | AR94: 28 | AS94: 29 | AT94: 30 | AU94: 31 | AV94: 32 | AW94: 33 | AX94: 34 | AY94: 35 | AZ94: 36
S95: =LEFT(B$91,10) -> Figure 6. | T95: Légende | U95: Axe des "X" Début de période | W95: 2018 | X95: 2023 | Y95: 2028 | Z95: 2033 | AA95: 2038 | AB95: 2043 | AC95: 2048 | AD95: 2053 | AE95: 2058 | AF95: 2063 | AG95: 2068 | AH95: 2073 | AI95: 2078 | AJ95: 2083 | AK95: 2088 | AL95: 2093 | AM95: 2098 | AN95: 2103 | AO95: 2108 | AP95: 2113 | AQ95: 2118 | AR95: 2123 | AS95: 2128 | AT95: 2133 | AU95: 2138 | AV95: 2143 | AW95: 2148 | AX95: 2153 | AY95: 2158 | AZ95: 2163
S96: =LEFT(B$91,10) -> Figure 6. | T96: Possibilités forestières quinquennales | U96: OVOLTOTREC | V96: =VLOOKUP($U96,Output!$C:$AM,V$94,FALSE) -> 0 | W96: =VLOOKUP($U96,Output!$C:$AM,W$94,FALSE) -> 6267885 | X96: =VLOOKUP($U96,Output!$C:$AM,X$94,FALSE) -> 5510800 | Y96: =VLOOKUP($U96,Output!$C:$AM,Y$94,FALSE) -> 5510800 | Z96: =VLOOKUP($U96,Output!$C:$AM,Z$94,FALSE) -> 5510800 | AA96: =VLOOKUP($U96,Output!$C:$AM,AA$94,FALSE) -> 5510800 | AB96: =VLOOKUP($U96,Output!$C:$AM,AB$94,FALSE) -> 5510800 | AC96: =VLOOKUP($U96,Output!$C:$AM,AC$94,FALSE) -> 5511578.51 | AD96: =VLOOKUP($U96,Output!$C:$AM,AD$94,FALSE) -> 5511578.51 | AE96: =VLOOKUP($U96,Output!$C:$AM,AE$94,FALSE) -> 5511578.51 | AF96: =VLOOKUP($U96,Output!$C:$AM,AF$94,FALSE) -> 5511578.51 | AG96: =VLOOKUP($U96,Output!$C:$AM,AG$94,FALSE) -> 5511772.35 | AH96: =VLOOKUP($U96,Output!$C:$AM,AH$94,FALSE) -> 5553165.69 | AI96: =VLOOKUP($U96,Output!$C:$AM,AI$94,FALSE) -> 5939077.64 | AJ96: =VLOOKUP($U96,Output!$C:$AM,AJ$94,FALSE) -> 5939832.93 | AK96: =VLOOKUP($U96,Output!$C:$AM,AK$94,FALSE) -> 5939874.9 | AL96: =VLOOKUP($U96,Output!$C:$AM,AL$94,FALSE) -> 5939874.9 | AM96: =VLOOKUP($U96,Output!$C:$AM,AM$94,FALSE) -> 5939874.9 | AN96: =VLOOKUP($U96,Output!$C:$AM,AN$94,FALSE) -> 9134659.8 | AO96: =VLOOKUP($U96,Output!$C:$AM,AO$94,FALSE) -> 9136046.96 | AP96: =VLOOKUP($U96,Output!$C:$AM,AP$94,FALSE) -> 9136046.96 | AQ96: =VLOOKUP($U96,Output!$C:$AM,AQ$94,FALSE) -> 9136046.96 | AR96: =VLOOKUP($U96,Output!$C:$AM,AR$94,FALSE) -> 9136472.52 | AS96: =VLOOKUP($U96,Output!$C:$AM,AS$94,FALSE) -> 9224691.18 | AT96: =VLOOKUP($U96,Output!$C:$AM,AT$94,FALSE) -> 9224691.18 | AU96: =VLOOKUP($U96,Output!$C:$AM,AU$94,FALSE) -> 9224691.18 | AV96: =VLOOKUP($U96,Output!$C:$AM,AV$94,FALSE) -> 9224761.15 | AW96: =VLOOKUP($U96,Output!$C:$AM,AW$94,FALSE) -> 9225251.36 | AX96: =VLOOKUP($U96,Output!$C:$AM,AX$94,FALSE) -> 9225880.39 | AY96: =VLOOKUP($U96,Output!$C:$AM,AY$94,FALSE) -> 9363920.5 | AZ96: =VLOOKUP($U96,Output!$C:$AM,AZ$94,FALSE) -> 9668481.79
S97: =LEFT(B$91,10) -> Figure 6. | T97: Volume à maturité | U97: OVOLMATUREADM | V97: =VLOOKUP($U97,Output!$C:$AM,V$94,FALSE) -> 35768164.46 | W97: =VLOOKUP($U97,Output!$C:$AM,W$94,FALSE) -> 34268104.6 | X97: =VLOOKUP($U97,Output!$C:$AM,X$94,FALSE) -> 31331852.89 | Y97: =VLOOKUP($U97,Output!$C:$AM,Y$94,FALSE) -> 29372828.82 | Z97: =VLOOKUP($U97,Output!$C:$AM,Z$94,FALSE) -> 27275089.98 | AA97: =VLOOKUP($U97,Output!$C:$AM,AA$94,FALSE) -> 24761677.98 | AB97: =VLOOKUP($U97,Output!$C:$AM,AB$94,FALSE) -> 21008287.68 | AC97: =VLOOKUP($U97,Output!$C:$AM,AC$94,FALSE) -> 19805785.19 | AD97: =VLOOKUP($U97,Output!$C:$AM,AD$94,FALSE) -> 18296764.2 | AE97: =VLOOKUP($U97,Output!$C:$AM,AE$94,FALSE) -> 18223787.42 | AF97: =VLOOKUP($U97,Output!$C:$AM,AF$94,FALSE) -> 19015203.85 | AG97: =VLOOKUP($U97,Output!$C:$AM,AG$94,FALSE) -> 21748467.75 | AH97: =VLOOKUP($U97,Output!$C:$AM,AH$94,FALSE) -> 25671889.73 | AI97: =VLOOKUP($U97,Output!$C:$AM,AI$94,FALSE) -> 28134143.39 | AJ97: =VLOOKUP($U97,Output!$C:$AM,AJ$94,FALSE) -> 30185855.01 | AK97: =VLOOKUP($U97,Output!$C:$AM,AK$94,FALSE) -> 31864467.25 | AL97: =VLOOKUP($U97,Output!$C:$AM,AL$94,FALSE) -> 34878603.72 | AM97: =VLOOKUP($U97,Output!$C:$AM,AM$94,FALSE) -> 37616863.86 | AN97: =VLOOKUP($U97,Output!$C:$AM,AN$94,FALSE) -> 37532910.81 | AO97: =VLOOKUP($U97,Output!$C:$AM,AO$94,FALSE) -> 35713736.56 | AP97: =VLOOKUP($U97,Output!$C:$AM,AP$94,FALSE) -> 35745975.89 | AQ97: =VLOOKUP($U97,Output!$C:$AM,AQ$94,FALSE) -> 37423940.94 | AR97: =VLOOKUP($U97,Output!$C:$AM,AR$94,FALSE) -> 38009165.93 | AS97: =VLOOKUP($U97,Output!$C:$AM,AS$94,FALSE) -> 38759041 | AT97: =VLOOKUP($U97,Output!$C:$AM,AT$94,FALSE) -> 37493524.51 | AU97: =VLOOKUP($U97,Output!$C:$AM,AU$94,FALSE) -> 36152687.96 | AV97: =VLOOKUP($U97,Output!$C:$AM,AV$94,FALSE) -> 32130139.45 | AW97: =VLOOKUP($U97,Output!$C:$AM,AW$94,FALSE) -> 32156611.06 | AX97: =VLOOKUP($U97,Output!$C:$AM,AX$94,FALSE) -> 31491833.77 | AY97: =VLOOKUP($U97,Output!$C:$AM,AY$94,FALSE) -> 30643865.61 | AZ97: =VLOOKUP($U97,Output!$C:$AM,AZ$94,FALSE) -> 29357399.37
S98: =LEFT(B$91,10) -> Figure 6. | T98: Volume sur pied | U98: OVOLTOTPIEDINC | V98: =VLOOKUP($U98,Output!$C:$AM,V$94,FALSE) -> 51426499.98 | W98: =VLOOKUP($U98,Output!$C:$AM,W$94,FALSE) -> 48840907.41 | X98: =VLOOKUP($U98,Output!$C:$AM,X$94,FALSE) -> 44232459.96 | Y98: =VLOOKUP($U98,Output!$C:$AM,Y$94,FALSE) -> 42704989.37 | Z98: =VLOOKUP($U98,Output!$C:$AM,Z$94,FALSE) -> 41788568.07 | AA98: =VLOOKUP($U98,Output!$C:$AM,AA$94,FALSE) -> 41613018.6 | AB98: =VLOOKUP($U98,Output!$C:$AM,AB$94,FALSE) -> 42062794.63 | AC98: =VLOOKUP($U98,Output!$C:$AM,AC$94,FALSE) -> 43410979.54 | AD98: =VLOOKUP($U98,Output!$C:$AM,AD$94,FALSE) -> 45178581.15 | AE98: =VLOOKUP($U98,Output!$C:$AM,AE$94,FALSE) -> 47183607.53 | AF98: =VLOOKUP($U98,Output!$C:$AM,AF$94,FALSE) -> 49409188.82 | AG98: =VLOOKUP($U98,Output!$C:$AM,AG$94,FALSE) -> 51983229.53 | AH98: =VLOOKUP($U98,Output!$C:$AM,AH$94,FALSE) -> 54754857.15 | AI98: =VLOOKUP($U98,Output!$C:$AM,AI$94,FALSE) -> 57184290.47 | AJ98: =VLOOKUP($U98,Output!$C:$AM,AJ$94,FALSE) -> 59969589.29 | AK98: =VLOOKUP($U98,Output!$C:$AM,AK$94,FALSE) -> 62836382.89 | AL98: =VLOOKUP($U98,Output!$C:$AM,AL$94,FALSE) -> 65670465.54 | AM98: =VLOOKUP($U98,Output!$C:$AM,AM$94,FALSE) -> 68461374.2 | AN98: =VLOOKUP($U98,Output!$C:$AM,AN$94,FALSE) -> 67916531.99 | AO98: =VLOOKUP($U98,Output!$C:$AM,AO$94,FALSE) -> 67387751.14 | AP98: =VLOOKUP($U98,Output!$C:$AM,AP$94,FALSE) -> 66783744.88 | AQ98: =VLOOKUP($U98,Output!$C:$AM,AQ$94,FALSE) -> 66170737.86 | AR98: =VLOOKUP($U98,Output!$C:$AM,AR$94,FALSE) -> 65195323.38 | AS98: =VLOOKUP($U98,Output!$C:$AM,AS$94,FALSE) -> 64094092.02 | AT98: =VLOOKUP($U98,Output!$C:$AM,AT$94,FALSE) -> 63072564.58 | AU98: =VLOOKUP($U98,Output!$C:$AM,AU$94,FALSE) -> 62077001.88 | AV98: =VLOOKUP($U98,Output!$C:$AM,AV$94,FALSE) -> 61267002.54 | AW98: =VLOOKUP($U98,Output!$C:$AM,AW$94,FALSE) -> 61267002.54 | AX98: =VLOOKUP($U98,Output!$C:$AM,AX$94,FALSE) -> 61532047.91 | AY98: =VLOOKUP($U98,Output!$C:$AM,AY$94,FALSE) -> 61619872.82 | AZ98: =VLOOKUP($U98,Output!$C:$AM,AZ$94,FALSE) -> 61267002.54
S99: =LEFT(B$91,10) -> Figure 6. | T99: Volume récoltable | U99: OVOLTOTADMREGAPRE | V99: =VLOOKUP($U99,Output!$C:$AM,V$94,FALSE) -> 0 | W99: =VLOOKUP($U99,Output!$C:$AM,W$94,FALSE) -> 15535969.3 | X99: =VLOOKUP($U99,Output!$C:$AM,X$94,FALSE) -> 14031592.13 | Y99: =VLOOKUP($U99,Output!$C:$AM,Y$94,FALSE) -> 10657926.52 | Z99: =VLOOKUP($U99,Output!$C:$AM,Z$94,FALSE) -> 11331279.46 | AA99: =VLOOKUP($U99,Output!$C:$AM,AA$94,FALSE) -> 10557962.17 | AB99: =VLOOKUP($U99,Output!$C:$AM,AB$94,FALSE) -> 8371646.91 | AC99: =VLOOKUP($U99,Output!$C:$AM,AC$94,FALSE) -> 8211376.72 | AD99: =VLOOKUP($U99,Output!$C:$AM,AD$94,FALSE) -> 9092752.1 | AE99: =VLOOKUP($U99,Output!$C:$AM,AE$94,FALSE) -> 8442265.73 | AF99: =VLOOKUP($U99,Output!$C:$AM,AF$94,FALSE) -> 9574660.37 | AG99: =VLOOKUP($U99,Output!$C:$AM,AG$94,FALSE) -> 7838049.91 | AH99: =VLOOKUP($U99,Output!$C:$AM,AH$94,FALSE) -> 8494299.03 | AI99: =VLOOKUP($U99,Output!$C:$AM,AI$94,FALSE) -> 10120190.92 | AJ99: =VLOOKUP($U99,Output!$C:$AM,AJ$94,FALSE) -> 10187506.88 | AK99: =VLOOKUP($U99,Output!$C:$AM,AK$94,FALSE) -> 9347369.3 | AL99: =VLOOKUP($U99,Output!$C:$AM,AL$94,FALSE) -> 7379222.74 | AM99: =VLOOKUP($U99,Output!$C:$AM,AM$94,FALSE) -> 9029272.81 | AN99: =VLOOKUP($U99,Output!$C:$AM,AN$94,FALSE) -> 16840646.71 | AO99: =VLOOKUP($U99,Output!$C:$AM,AO$94,FALSE) -> 13731630.65 | AP99: =VLOOKUP($U99,Output!$C:$AM,AP$94,FALSE) -> 14649386.06 | AQ99: =VLOOKUP($U99,Output!$C:$AM,AQ$94,FALSE) -> 12694954.17 | AR99: =VLOOKUP($U99,Output!$C:$AM,AR$94,FALSE) -> 11717108.96 | AS99: =VLOOKUP($U99,Output!$C:$AM,AS$94,FALSE) -> 12301337.48 | AT99: =VLOOKUP($U99,Output!$C:$AM,AT$94,FALSE) -> 13145601.13 | AU99: =VLOOKUP($U99,Output!$C:$AM,AU$94,FALSE) -> 12254515.8 | AV99: =VLOOKUP($U99,Output!$C:$AM,AV$94,FALSE) -> 15544280.14 | AW99: =VLOOKUP($U99,Output!$C:$AM,AW$94,FALSE) -> 11769735.68 | AX99: =VLOOKUP($U99,Output!$C:$AM,AX$94,FALSE) -> 12087955.84 | AY99: =VLOOKUP($U99,Output!$C:$AM,AY$94,FALSE) -> 11747339.44 | AZ99: =VLOOKUP($U99,Output!$C:$AM,AZ$94,FALSE) -> 10497820.53
T116: * Source: Cahier_analyse, Tableau 13, onglet Budget | X116: Moyenne P2 à P6
B117: Figure 7. Répartition du budget annuel par familles de traitements prévus à la stratégie d’aménagement et coût moyen à l’hectare par famille de traitements
L118: Corrigé regarni fantome | S118: =LEFT(B$117,10) -> Figure 7. | T118: Légende | U118: Output taux | V118: Output superficie | W118: $/ha | X118: ha | Y118: $
S119: =LEFT(B$117,10) -> Figure 7. | T119: Coupes avec protection de la régénération et des sols (CPRS) | U119: OTAUXCT_100 | V119: OSUPCT | W119: =IFERROR(VLOOKUP(U119,Output!$C:$AQ,37,FALSE),0) -> 0 | X119: =IFERROR(VLOOKUP(V119,Output!$C:$AQ,37,FALSE),"0000")/5 -> 8869.9092 | Y119: =W119*X119 -> 0
S120: =LEFT(B$117,10) -> Figure 7. | T120: Coupe avec protection des petites tiges marchandes (CPPTM) | V120: OSUPREALaCPPTM | W120: =IFERROR(VLOOKUP(U120,Output!$C:$AQ,8,FALSE),0) -> 0 | X120: =IFERROR(VLOOKUP(V120,Output!$C:$AQ,37,FALSE),"0000")/5 -> 0 | Y120: =W120*X120 -> 0
S121: =LEFT(B$117,10) -> Figure 7. | T121: Coupe avec réserve de semenciers (CRS) | V121: OSUPREALaCRS | W121: =IFERROR(VLOOKUP(U121,Output!$C:$AQ,8,FALSE),0) -> 0 | X121: =IFERROR(VLOOKUP(V121,Output!$C:$AQ,37,FALSE),"0000")/5 -> 0 | Y121: 0
T122: Coupe à rétention variable (CRV, CPPTM, CPPTM, CPHR, CDL)
S123: =LEFT(B$117,10) -> Figure 7. | T123: Coupes finales | W123: =(ROUND(Y123/X123,0))&"$/ha" -> 0$/ha | X123: =SUM(X119:X121) -> 8869.9092 | Y123: =SUM(Y119:Y121) -> 0
S124: Figure 7. | T124: Éclaircie commerciale (EC) | U124: OTAUXEC_SEPM_100 | V124: OSUPEC_SEPM | W124: =IFERROR(VLOOKUP(U124,Output!$C:$AQ,37,FALSE),0) -> 1370 | X124: =IFERROR(VLOOKUP(V124,Output!$C:$AQ,37,FALSE),"0000")/5 -> 22 | Y124: 30140
S125: Figure 7. | T125: Coupe progressive régulière initiale (CPROG) | U125: OTAUXCPROG_INI_100 | V125: OSUPCPROG_INI | W125: =IFERROR(VLOOKUP(U125,Output!$C:$AQ,37,FALSE),0) -> 400 | X125: =IFERROR(VLOOKUP(V125,Output!$C:$AQ,37,FALSE),"0000")/5 -> 0 | Y125: 0
S126: Figure 7. | T126: Coupe progressive régulière finale (CPROG) | U126: OTAUXCPROG_FIN_100 | V126: OSUPCPROG_FIN | W126: =IFERROR(VLOOKUP(U126,Output!$C:$AQ,37,FALSE),0) -> 0 | X126: =IFERROR(VLOOKUP(V126,Output!$C:$AQ,37,FALSE),"0000")/5 -> 0 | Y126: 0
S127: Figure 7. | T127: Coupe progessive irrégulière initiale (CPIRL) | U127: OTAUXCPIRL_INI_100 | V127: OSUPCPIRL_INI | W127: =IFERROR(VLOOKUP(U127,Output!$C:$AQ,37,FALSE),0) -> 530 | X127: =IFERROR(VLOOKUP(V127,Output!$C:$AQ,37,FALSE),"0000")/5 -> 782.8 | Y127: 414884
S128: Figure 7. | T128: Coupe progessive irrégulière finale (CPIRL) | U128: OTAUXCPIRL_FIN_100 | V128: OSUPCPIRL_FIN | W128: =IFERROR(VLOOKUP(U128,Output!$C:$AQ,37,FALSE),0) -> 0 | X128: =IFERROR(VLOOKUP(V128,Output!$C:$AQ,37,FALSE),"0000")/5 -> 0 | Y128: 0
S129: Figure 7. | T129: Coupe à couvert permanent (CPICP) | U129: OTAUXCPICP_100 | V129: OSUPCPICP | W129: =IFERROR(VLOOKUP(U129,Output!$C:$AQ,37,FALSE),0) -> 210 | X129: =IFERROR(VLOOKUP(V129,Output!$C:$AQ,37,FALSE),"0000")/5 -> 0 | Y129: 0
S130: Figure 7. | T130: Coupe de jardinage (CJ) | U130: OTAUXCJ_100 | V130: OSUPCJ | W130: =IFERROR(VLOOKUP(U130,Output!$C:$AQ,37,FALSE),0) -> 673.69 | X130: =IFERROR(VLOOKUP(V130,Output!$C:$AQ,37,FALSE),"0000")/5 -> 0 | Y130: 0
S131: Figure 7. | T131: Coupes partielles | W131: =(ROUND(Y131/X131,0))&"$/ha" -> 553$/ha | X131: =SUM(X124:X130) -> 804.8 | Y131: =SUM(Y124:Y130) -> 445024
S132: Figure 7. | T132: Plantation ligniculture (pins, feuillus) | U132: OTAUXPL_PPF_100 | V132: OSUPPL_PPF | W132: =IFERROR(VLOOKUP(U132,Output!$C:$AQ,37,FALSE),0) -> 1640 | X132: =IFERROR(VLOOKUP(V132,Output!$C:$AQ,37,FALSE),"0000")/5 -> 0 | Y132: 0
S133: Figure 7. | T133: Plantation intensive | U133: OTAUXPL_SEPM_I_100 | V133: OSUPPL_SEPM_I | W133: =IFERROR(VLOOKUP(U133,Output!$C:$AQ,37,FALSE),0) -> 1300 | X133: =IFERROR(VLOOKUP(V133,Output!$C:$AQ,37,FALSE),"0000")/5 -> 45.1856 | Y133: 58741.28
S134: Figure 7. | T134: Plantation de base | U134: OTAUXPL_SEPM_E_100 | V134: OSUPPL_SEPM_E | W134: =IFERROR(VLOOKUP(U134,Output!$C:$AQ,37,FALSE),0) -> 1040 | X134: =IFERROR(VLOOKUP(V134,Output!$C:$AQ,37,FALSE),"0000")/5 -> 2566.8144 | Y134: 2669486.976
S135: Figure 7. | T135: Regarni | U135: OTAUXREG_100 | V135: OSUPREG_2 | W135: =IFERROR(VLOOKUP(U135,Output!$C:$AQ,37,FALSE),0) -> 470 | X135: =IFERROR(VLOOKUP(V135,Output!$C:$AQ,37,FALSE),"0000")/5 -> 3200 | Y135: 1504000
S136: Figure 7. | T136: Ensemencement (ENS) | U136: OTAUXENS_100 | V136: OSUPENS | W136: =IFERROR(VLOOKUP(U136,Output!$C:$AQ,37,FALSE),0) -> 130 | X136: =IFERROR(VLOOKUP(V136,Output!$C:$AQ,37,FALSE),"0000")/5 -> 0 | Y136: =W136*X136 -> 0
S137: Figure 7. | T137: Reboisement | W137: =(ROUND(Y137/X137,0))&"$/ha" -> 728$/ha | X137: =SUM(X132:X136) -> 5812 | Y137: =SUM(Y132:Y136) -> 4232228.256
S138: Figure 7. | T138: Dégagement de la régénération naturelle | U138: OTAUXDEG_2_100 | V138: OSUPDEG_2 | W138: =IFERROR(VLOOKUP(U138,Output!$C:$AQ,37,FALSE),0) -> 1290 | X138: =IFERROR(VLOOKUP(V138,Output!$C:$AQ,37,FALSE),"0000")/5 -> 742 | Y138: 957180
S139: Figure 7. | T139: Dégagement de plantation | U139: OTAUXDEG_1_100 | V139: OSUPDEG_1 | W139: =IFERROR(VLOOKUP(U139,Output!$C:$AQ,37,FALSE),0) -> 1290 | X139: =IFERROR(VLOOKUP(V139,Output!$C:$AQ,37,FALSE),"0000")/5 -> 1287.0972 | Y139: 1660355.388
S140: Figure 7. | T140: Nettoiement de la régénération naturelle | U140: OTAUXNETT_100 | V140: OSUPREALNET | W140: =IFERROR(VLOOKUP(U140,Output!$C:$AQ,37,FALSE),0) -> 1140 | X140: =IFERROR(VLOOKUP(V140,Output!$C:$AQ,37,FALSE),"0000")/5-X141 -> 154.8 | Y140: 176472
C141: $ /m3 | E141: $ /ha | G141: Corrigé regarni fantome | S141: Figure 7. | T141: Nettoiement de plantation | U141: OTAUXNETT_100 | V141: OSUPTCADNETT_T100% | W141: =IFERROR(VLOOKUP(U141,Output!$C:$AQ,37,FALSE),0) -> 1140 | X141: =IFERROR(VLOOKUP(V141,Output!$C:$AQ,37,FALSE),"0000")/5 -> 986.5012 | Y141: 1124611.368
C142: =Y151/(Instructions!I5/5) -> 10.01166339 | E142: =Y151/Tableaux!F33 -> 13.46207 | G142: Corrigé O$investisTS_2 | S142: Figure 7. | T142: Éclaircie précommerciale (EPC_1) | U142: OTAUXEPC_1_100 | V142: OSUPEPC_1 | W142: =IFERROR(VLOOKUP(U142,Output!$C:$AQ,37,FALSE),0) -> 1380 | X142: =IFERROR(VLOOKUP(V142,Output!$C:$AQ,37,FALSE),"0000")/5 -> 360.8 | Y142: 497904
S143: Figure 7. | T143: Éclaircie précommerciale (EPC_2) | U143: OTAUXEPC_2_100 | V143: OSUPEPC_2 | W143: =IFERROR(VLOOKUP(U143,Output!$C:$AQ,37,FALSE),0) -> 1380 | X143: =IFERROR(VLOOKUP(V143,Output!$C:$AQ,37,FALSE),"0000")/5 -> 33.6 | Y143: 46368
S144: Figure 7. | T144: Éclaircie précommerciale de la régénération naturelle | V144: OSUPREALEPC | W144: =IFERROR(VLOOKUP(U144,Output!$C:$AQ,37,FALSE),0) -> 0 | X144: =IFERROR(VLOOKUP(V144,Output!$C:$AQ,37,FALSE),"0000")/5 -> 394.4 | Y144: 0
S145: Figure 7. | T145: Élagage (plantation) | U145: OTAUXELAG_100 | V145: OSUPELAG | W145: =IFERROR(VLOOKUP(U145,Output!$C:$AQ,37,FALSE),0) -> 1630 | X145: =IFERROR(VLOOKUP(V145,Output!$C:$AQ,37,FALSE),"0000")/5 -> 0 | Y145: 0
S146: Figure 7. | T146: Travaux d'éducation | W146: =(ROUND(Y146/X146,0))&"$/ha" -> 1252$/ha | X146: =SUM(X138:X143)+X145 -> 3564.7984 | Y146: =SUM(Y138:Y143)+Y145 -> 4462890.756
S147: Figure 7. | T147: Préparation terrain lignicult. + ferti + élagage (SCA_LIGN) | U147: OTAUXSCA_LIGN_100 | V147: OSUPSCA_LIGN | W147: =IFERROR(VLOOKUP(U147,Output!$C:$AQ,37,FALSE),0) -> 1510 | X147: =IFERROR(VLOOKUP(V147,Output!$C:$AQ,37,FALSE),"0000")/5 -> 0 | Y147: 0
S148: Figure 7. | T148: Préparation de terrain partielle (SCA_PART) | U148: OTAUXSCA_PART_100 | V148: OSUPSCA_PART | W148: =IFERROR(VLOOKUP(U148,Output!$C:$AQ,37,FALSE),0) -> 540 | X148: =IFERROR(VLOOKUP(V148,Output!$C:$AQ,37,FALSE),"0000")/5 -> 1524.8 | Y148: 823392
S149: Figure 7. | T149: Préparation de terrain régulière, 1 passage (SCA_REG) | U149: OTAUXSCA_REG_100 | V149: OSUPSCA_REG | W149: =IFERROR(VLOOKUP(U149,Output!$C:$AQ,37,FALSE),0) -> 410 | X149: =IFERROR(VLOOKUP(V149,Output!$C:$AQ,37,FALSE),"0000")/5 -> 2612 | Y149: 1070920 | AA149: Valideur
B150: Figure 9b Évolution de la superficie des vieilles forêts selon leur degré d'altération | S150: Figure 7. | T150: Préparation de terrain | W150: =(ROUND(Y150/X150,0))&"$/ha" -> 458$/ha | X150: =SUM(X147:X149) -> 4136.8 | Y150: =SUM(Y147:Y149) -> 1894312 | Z150: =Y123+Y131+Y137+Y146+Y150 -> 11034455.01 | AA150: =Y151-Z150 -> -0.09199999832
S151: Figure 7. | T151: Investissement sylvicole annuel (O$INVESTISTS)* | V151: O$INVESTISTS_2 | Y151: =IFERROR(VLOOKUP(V151,Output!$C:$AQ,37,FALSE),"0000")/5 -> 11034454.92
S155: =LEFT(B$117,10) -> Figure 7. | T155: =T123 -> Coupes finales | U155: =Y123 -> 0 | V155: =W123 -> 0$/ha
S156: =LEFT(B$117,10) -> Figure 7. | T156: =T131 -> Coupes partielles | U156: =Y131 -> 445024 | V156: =W131 -> 553$/ha
S157: =LEFT(B$117,10) -> Figure 7. | T157: =T137 -> Reboisement | U157: =Y137 -> 4232228.256 | V157: =W137 -> 728$/ha
S158: =LEFT(B$117,10) -> Figure 7. | T158: =T146 -> Travaux d'éducation | U158: =Y146 -> 4462890.756 | V158: =W146 -> 1252$/ha
S159: =LEFT(B$117,10) -> Figure 7. | T159: =T150 -> Préparation de terrain | U159: =Y150 -> 1894312 | V159: =W150 -> 458$/ha
U161: Période | V161: P0 | W161: P1 | X161: P2 | Y161: P3 | Z161: P4 | AA161: P5 | AB161: P6 | AC161: P7 | AD161: P8 | AE161: P9 | AF161: P10 | AG161: P11 | AH161: P12 | AI161: P13 | AJ161: P14 | AK161: P15 | AL161: P16 | AM161: P17 | AN161: P18 | AO161: P19 | AP161: P20 | AQ161: P21 | AR161: P22 | AS161: P23 | AT161: P24 | AU161: P25 | AV161: P26 | AW161: P27 | AX161: P28 | AY161: P29 | AZ161: P30
S162: =LEFT(B$150,10) -> Figure 9b | U162: Axe des "X" Fin de période | V162: 2018 | W162: 2023 | X162: 2028 | Y162: 2033 | Z162: 2038 | AA162: 2043 | AB162: 2048 | AC162: 2053 | AD162: 2058 | AE162: 2063 | AF162: 2068 | AG162: 2073 | AH162: 2078 | AI162: 2083 | AJ162: 2088 | AK162: 2093 | AL162: 2098 | AM162: 2103 | AN162: 2108 | AO162: 2113 | AP162: 2118 | AQ162: 2123 | AR162: 2128 | AS162: 2133 | AT162: 2138 | AU162: 2143 | AV162: 2148 | AW162: 2153 | AX162: 2158 | AY162: 2163 | AZ162: 2168
S163: Figure 9b | U163: Colonne | V163: 6 | W163: 7 | X163: 8 | Y163: 9 | Z163: 10 | AA163: 11 | AB163: 12 | AC163: 13 | AD163: 14 | AE163: 15 | AF163: 16 | AG163: 17 | AH163: 18 | AI163: 19 | AJ163: 20 | AK163: 21 | AL163: 22 | AM163: 23 | AN163: 24 | AO163: 25 | AP163: 26 | AQ163: 27 | AR163: 28 | AS163: 29 | AT163: 30 | AU163: 31 | AV163: 32 | AW163: 33 | AX163: 34 | AY163: 35 | AZ163: 36
S164: Figure 9b | U164: OSUPREGECO | V164: =VLOOKUP($U164,Output!$C:$AL,V$163,FALSE) -> 1065229 | W164: =VLOOKUP($U164,Output!$C:$AL,W$163,FALSE) -> 1062752.01 | X164: =VLOOKUP($U164,Output!$C:$AL,X$163,FALSE) -> 1061039.55 | Y164: =VLOOKUP($U164,Output!$C:$AL,Y$163,FALSE) -> 1059407.4 | Z164: =VLOOKUP($U164,Output!$C:$AL,Z$163,FALSE) -> 1057774.73 | AA164: =VLOOKUP($U164,Output!$C:$AL,AA$163,FALSE) -> 1056183.29 | AB164: =VLOOKUP($U164,Output!$C:$AL,AB$163,FALSE) -> 1054801.68 | AC164: =VLOOKUP($U164,Output!$C:$AL,AC$163,FALSE) -> 1053288.42 | AD164: =VLOOKUP($U164,Output!$C:$AL,AD$163,FALSE) -> 1052260.21 | AE164: =VLOOKUP($U164,Output!$C:$AL,AE$163,FALSE) -> 1051420.7 | AF164: =VLOOKUP($U164,Output!$C:$AL,AF$163,FALSE) -> 1050559.26 | AG164: =VLOOKUP($U164,Output!$C:$AL,AG$163,FALSE) -> 1049862.75 | AH164: =VLOOKUP($U164,Output!$C:$AL,AH$163,FALSE) -> 1049352.51 | AI164: =VLOOKUP($U164,Output!$C:$AL,AI$163,FALSE) -> 1049074.86 | AJ164: =VLOOKUP($U164,Output!$C:$AL,AJ$163,FALSE) -> 1048695.24 | AK164: =VLOOKUP($U164,Output!$C:$AL,AK$163,FALSE) -> 1048502.33 | AL164: =VLOOKUP($U164,Output!$C:$AL,AL$163,FALSE) -> 1047742.3 | AM164: =VLOOKUP($U164,Output!$C:$AL,AM$163,FALSE) -> 1046795.94 | AN164: =VLOOKUP($U164,Output!$C:$AL,AN$163,FALSE) -> 1045998.41 | AO164: =VLOOKUP($U164,Output!$C:$AL,AO$163,FALSE) -> 1045814.64 | AP164: =VLOOKUP($U164,Output!$C:$AL,AP$163,FALSE) -> 1045736.24 | AQ164: =VLOOKUP($U164,Output!$C:$AL,AQ$163,FALSE) -> 1045461.06 | AR164: =VLOOKUP($U164,Output!$C:$AL,AR$163,FALSE) -> 1045154.41 | AS164: =VLOOKUP($U164,Output!$C:$AL,AS$163,FALSE) -> 1045054.85 | AT164: =VLOOKUP($U164,Output!$C:$AL,AT$163,FALSE) -> 1044988.16 | AU164: =VLOOKUP($U164,Output!$C:$AL,AU$163,FALSE) -> 1044785.12 | AV164: =VLOOKUP($U164,Output!$C:$AL,AV$163,FALSE) -> 1044534.01 | AW164: =VLOOKUP($U164,Output!$C:$AL,AW$163,FALSE) -> 1044498.32 | AX164: =VLOOKUP($U164,Output!$C:$AL,AX$163,FALSE) -> 1044368.92 | AY164: =VLOOKUP($U164,Output!$C:$AL,AY$163,FALSE) -> 1044347.37 | AZ164: =VLOOKUP($U164,Output!$C:$AL,AZ$163,FALSE) -> 1044347.37
S165: Figure 9b | T165: Élevé | U165: OSUPVIEUXALERTEREGECO | V165: =VLOOKUP($U165,Output!$C:$AL,V$163,FALSE) -> 187184.43 | W165: =VLOOKUP($U165,Output!$C:$AL,W$163,FALSE) -> 186765.87 | X165: =VLOOKUP($U165,Output!$C:$AL,X$163,FALSE) -> 186467.43 | Y165: =VLOOKUP($U165,Output!$C:$AL,Y$163,FALSE) -> 186195.87 | Z165: =VLOOKUP($U165,Output!$C:$AL,Z$163,FALSE) -> 185933.09 | AA165: =VLOOKUP($U165,Output!$C:$AL,AA$163,FALSE) -> 185666.97 | AB165: =VLOOKUP($U165,Output!$C:$AL,AB$163,FALSE) -> 185433.25 | AC165: =VLOOKUP($U165,Output!$C:$AL,AC$163,FALSE) -> 185192.91 | AD165: =VLOOKUP($U165,Output!$C:$AL,AD$163,FALSE) -> 185029.76 | AE165: =VLOOKUP($U165,Output!$C:$AL,AE$163,FALSE) -> 184883.57 | AF165: =VLOOKUP($U165,Output!$C:$AL,AF$163,FALSE) -> 184729.39 | AG165: =VLOOKUP($U165,Output!$C:$AL,AG$163,FALSE) -> 184607.42 | AH165: =VLOOKUP($U165,Output!$C:$AL,AH$163,FALSE) -> 184522.89 | AI165: =VLOOKUP($U165,Output!$C:$AL,AI$163,FALSE) -> 184474.58 | AJ165: =VLOOKUP($U165,Output!$C:$AL,AJ$163,FALSE) -> 184407.67 | AK165: =VLOOKUP($U165,Output!$C:$AL,AK$163,FALSE) -> 184373.63 | AL165: =VLOOKUP($U165,Output!$C:$AL,AL$163,FALSE) -> 184228.19 | AM165: =VLOOKUP($U165,Output!$C:$AL,AM$163,FALSE) -> 184043.99 | AN165: =VLOOKUP($U165,Output!$C:$AL,AN$163,FALSE) -> 183898.85 | AO165: =VLOOKUP($U165,Output!$C:$AL,AO$163,FALSE) -> 183863.07 | AP165: =VLOOKUP($U165,Output!$C:$AL,AP$163,FALSE) -> 183848.41 | AQ165: =VLOOKUP($U165,Output!$C:$AL,AQ$163,FALSE) -> 183795.06 | AR165: =VLOOKUP($U165,Output!$C:$AL,AR$163,FALSE) -> 183736.55 | AS165: =VLOOKUP($U165,Output!$C:$AL,AS$163,FALSE) -> 183718.13 | AT165: =VLOOKUP($U165,Output!$C:$AL,AT$163,FALSE) -> 183705.77 | AU165: =VLOOKUP($U165,Output!$C:$AL,AU$163,FALSE) -> 183666.38 | AV165: =VLOOKUP($U165,Output!$C:$AL,AV$163,FALSE) -> 183618.95 | AW165: =VLOOKUP($U165,Output!$C:$AL,AW$163,FALSE) -> 183612.13 | AX165: =VLOOKUP($U165,Output!$C:$AL,AX$163,FALSE) -> 183587.39 | AY165: =VLOOKUP($U165,Output!$C:$AL,AY$163,FALSE) -> 183583.18 | AZ165: =VLOOKUP($U165,Output!$C:$AL,AZ$163,FALSE) -> 183583.18
S166: Figure 9b | U166: OSUPVIEUXACCEPTREGECO | V166: =VLOOKUP($U166,Output!$C:$AL,V$163,FALSE) -> 311974.05 | W166: =VLOOKUP($U166,Output!$C:$AL,W$163,FALSE) -> 311276.45 | X166: =VLOOKUP($U166,Output!$C:$AL,X$163,FALSE) -> 310779.04 | Y166: =VLOOKUP($U166,Output!$C:$AL,Y$163,FALSE) -> 310326.45 | Z166: =VLOOKUP($U166,Output!$C:$AL,Z$163,FALSE) -> 309888.48 | AA166: =VLOOKUP($U166,Output!$C:$AL,AA$163,FALSE) -> 309444.94 | AB166: =VLOOKUP($U166,Output!$C:$AL,AB$163,FALSE) -> 309055.42 | AC166: =VLOOKUP($U166,Output!$C:$AL,AC$163,FALSE) -> 308654.85 | AD166: =VLOOKUP($U166,Output!$C:$AL,AD$163,FALSE) -> 308382.93 | AE166: =VLOOKUP($U166,Output!$C:$AL,AE$163,FALSE) -> 308139.28 | AF166: =VLOOKUP($U166,Output!$C:$AL,AF$163,FALSE) -> 307882.31 | AG166: =VLOOKUP($U166,Output!$C:$AL,AG$163,FALSE) -> 307679.03 | AH166: =VLOOKUP($U166,Output!$C:$AL,AH$163,FALSE) -> 307538.15 | AI166: =VLOOKUP($U166,Output!$C:$AL,AI$163,FALSE) -> 307457.64 | AJ166: =VLOOKUP($U166,Output!$C:$AL,AJ$163,FALSE) -> 307346.12 | AK166: =VLOOKUP($U166,Output!$C:$AL,AK$163,FALSE) -> 307289.39 | AL166: =VLOOKUP($U166,Output!$C:$AL,AL$163,FALSE) -> 307046.98 | AM166: =VLOOKUP($U166,Output!$C:$AL,AM$163,FALSE) -> 306739.99 | AN166: =VLOOKUP($U166,Output!$C:$AL,AN$163,FALSE) -> 306498.08 | AO166: =VLOOKUP($U166,Output!$C:$AL,AO$163,FALSE) -> 306438.45 | AP166: =VLOOKUP($U166,Output!$C:$AL,AP$163,FALSE) -> 306414.02 | AQ166: =VLOOKUP($U166,Output!$C:$AL,AQ$163,FALSE) -> 306325.1 | AR166: =VLOOKUP($U166,Output!$C:$AL,AR$163,FALSE) -> 306227.59 | AS166: =VLOOKUP($U166,Output!$C:$AL,AS$163,FALSE) -> 306196.89 | AT166: =VLOOKUP($U166,Output!$C:$AL,AT$163,FALSE) -> 306176.29 | AU166: =VLOOKUP($U166,Output!$C:$AL,AU$163,FALSE) -> 306110.63 | AV166: =VLOOKUP($U166,Output!$C:$AL,AV$163,FALSE) -> 306031.58 | AW166: =VLOOKUP($U166,Output!$C:$AL,AW$163,FALSE) -> 306020.22 | AX166: =VLOOKUP($U166,Output!$C:$AL,AX$163,FALSE) -> 305978.98 | AY166: =VLOOKUP($U166,Output!$C:$AL,AY$163,FALSE) -> 305971.97 | AZ166: =VLOOKUP($U166,Output!$C:$AL,AZ$163,FALSE) -> 305971.97
S167: Figure 9b | T167: Moyen | V167: =V166-V165 -> 124789.62 | W167: =W166-W165 -> 124510.58 | X167: 124311.61 | Y167: 124130.58 | Z167: 123955.39 | AA167: 123777.97 | AB167: 123622.17 | AC167: 123461.94 | AD167: 123353.17 | AE167: 123255.71 | AF167: 123152.92 | AG167: 123071.61 | AH167: 123015.26 | AI167: 122983.06 | AJ167: 122938.45 | AK167: 122915.76 | AL167: 122818.79 | AM167: 122696 | AN167: 122599.23 | AO167: 122575.38 | AP167: 122565.61 | AQ167: 122530.04 | AR167: 122491.04 | AS167: 122478.76 | AT167: 122470.52 | AU167: 122444.25 | AV167: 122412.63 | AW167: 122408.09 | AX167: 122391.59 | AY167: 122388.79 | AZ167: 122388.79
S168: Figure 9b | T168: Faible | V168: =$V$164-V165-V167 -> 753254.95 | W168: 753952.55 | X168: 754449.96 | Y168: 754902.55 | Z168: 755340.52 | AA168: 755784.06 | AB168: 756173.58 | AC168: 756574.15 | AD168: 756846.07 | AE168: 757089.72 | AF168: 757346.69 | AG168: 757549.97 | AH168: 757690.85 | AI168: 757771.36 | AJ168: 757882.88 | AK168: 757939.61 | AL168: 758182.02 | AM168: 758489.01 | AN168: 758730.92 | AO168: 758790.55 | AP168: 758814.98 | AQ168: 758903.9 | AR168: 759001.41 | AS168: 759032.11 | AT168: 759052.71 | AU168: 759118.37 | AV168: 759197.42 | AW168: 759208.78 | AX168: 759250.02 | AY168: 759257.03 | AZ168: 759257.03
S169: Figure 9b | T169: Niveau prédit | U169: OSUPVIEUXTOTREGECO | V169: =VLOOKUP($U169,Output!$C:$AL,V$163,FALSE) -> 359989.3 | W169: =VLOOKUP($U169,Output!$C:$AL,W$163,FALSE) -> 348646.98 | X169: =VLOOKUP($U169,Output!$C:$AL,X$163,FALSE) -> 324446.78 | Y169: =VLOOKUP($U169,Output!$C:$AL,Y$163,FALSE) -> 310818.15 | Z169: =VLOOKUP($U169,Output!$C:$AL,Z$163,FALSE) -> 299807.9 | AA169: =VLOOKUP($U169,Output!$C:$AL,AA$163,FALSE) -> 285017.43 | AB169: =VLOOKUP($U169,Output!$C:$AL,AB$163,FALSE) -> 278621.34 | AC169: =VLOOKUP($U169,Output!$C:$AL,AC$163,FALSE) -> 270333.68 | AD169: =VLOOKUP($U169,Output!$C:$AL,AD$163,FALSE) -> 259855.59 | AE169: =VLOOKUP($U169,Output!$C:$AL,AE$163,FALSE) -> 258565.77 | AF169: =VLOOKUP($U169,Output!$C:$AL,AF$163,FALSE) -> 252009.64 | AG169: =VLOOKUP($U169,Output!$C:$AL,AG$163,FALSE) -> 252541.77 | AH169: =VLOOKUP($U169,Output!$C:$AL,AH$163,FALSE) -> 246172.99 | AI169: =VLOOKUP($U169,Output!$C:$AL,AI$163,FALSE) -> 290356.14 | AJ169: =VLOOKUP($U169,Output!$C:$AL,AJ$163,FALSE) -> 295626.88 | AK169: =VLOOKUP($U169,Output!$C:$AL,AK$163,FALSE) -> 316235.36 | AL169: =VLOOKUP($U169,Output!$C:$AL,AL$163,FALSE) -> 316597.82 | AM169: =VLOOKUP($U169,Output!$C:$AL,AM$163,FALSE) -> 353825.77 | AN169: =VLOOKUP($U169,Output!$C:$AL,AN$163,FALSE) -> 375312.27 | AO169: =VLOOKUP($U169,Output!$C:$AL,AO$163,FALSE) -> 398268.77 | AP169: =VLOOKUP($U169,Output!$C:$AL,AP$163,FALSE) -> 398698.69 | AQ169: =VLOOKUP($U169,Output!$C:$AL,AQ$163,FALSE) -> 390395.21 | AR169: =VLOOKUP($U169,Output!$C:$AL,AR$163,FALSE) -> 385706.82 | AS169: =VLOOKUP($U169,Output!$C:$AL,AS$163,FALSE) -> 371269.04 | AT169: =VLOOKUP($U169,Output!$C:$AL,AT$163,FALSE) -> 359031.41 | AU169: =VLOOKUP($U169,Output!$C:$AL,AU$163,FALSE) -> 352093.92 | AV169: =VLOOKUP($U169,Output!$C:$AL,AV$163,FALSE) -> 322831.35 | AW169: =VLOOKUP($U169,Output!$C:$AL,AW$163,FALSE) -> 303405.35 | AX169: =VLOOKUP($U169,Output!$C:$AL,AX$163,FALSE) -> 287516.8 | AY169: =VLOOKUP($U169,Output!$C:$AL,AY$163,FALSE) -> 277427.51 | AZ169: =VLOOKUP($U169,Output!$C:$AL,AZ$163,FALSE) -> 273487.81
S170: Figure 9b | T170: Portrait préindustriel
B176: Figure 9c Évolution de la superficie des peuplements en régénération selon leur degré d'altération
U177: Période | V177: P0 | W177: P1 | X177: P2 | Y177: P3 | Z177: P4 | AA177: P5 | AB177: P6 | AC177: P7 | AD177: P8 | AE177: P9 | AF177: P10 | AG177: P11 | AH177: P12 | AI177: P13 | AJ177: P14 | AK177: P15 | AL177: P16 | AM177: P17 | AN177: P18 | AO177: P19 | AP177: P20 | AQ177: P21 | AR177: P22 | AS177: P23 | AT177: P24 | AU177: P25 | AV177: P26 | AW177: P27 | AX177: P28 | AY177: P29 | AZ177: P30
U178: Axe des "X" Fin de période | V178: 2018 | W178: 2023 | X178: 2028 | Y178: 2033 | Z178: 2038 | AA178: 2043 | AB178: 2048 | AC178: 2053 | AD178: 2058 | AE178: 2063 | AF178: 2068 | AG178: 2073 | AH178: 2078 | AI178: 2083 | AJ178: 2088 | AK178: 2093 | AL178: 2098 | AM178: 2103 | AN178: 2108 | AO178: 2113 | AP178: 2118 | AQ178: 2123 | AR178: 2128 | AS178: 2133 | AT178: 2138 | AU178: 2143 | AV178: 2148 | AW178: 2153 | AX178: 2158 | AY178: 2163 | AZ178: 2168
S179: =LEFT(B$176,10) -> Figure 9c | U179: Colonne | V179: 6 | W179: 7 | X179: 8 | Y179: 9 | Z179: 10 | AA179: 11 | AB179: 12 | AC179: 13 | AD179: 14 | AE179: 15 | AF179: 16 | AG179: 17 | AH179: 18 | AI179: 19 | AJ179: 20 | AK179: 21 | AL179: 22 | AM179: 23 | AN179: 24 | AO179: 25 | AP179: 26 | AQ179: 27 | AR179: 28 | AS179: 29 | AT179: 30 | AU179: 31 | AV179: 32 | AW179: 33 | AX179: 34 | AY179: 35 | AZ179: 36
S180: Figure 9c | T180: Niveau prédit | U180: OSUPJEUNEREGECO | V180: =VLOOKUP($U180,Output!$C:$AL,V$179,FALSE) -> 273177.1 | W180: =VLOOKUP($U180,Output!$C:$AL,W$179,FALSE) -> 268718.59 | X180: =VLOOKUP($U180,Output!$C:$AL,X$179,FALSE) -> 238001.51 | Y180: =VLOOKUP($U180,Output!$C:$AL,Y$179,FALSE) -> 196170.54 | Z180: =VLOOKUP($U180,Output!$C:$AL,Z$179,FALSE) -> 147917.09 | AA180: =VLOOKUP($U180,Output!$C:$AL,AA$179,FALSE) -> 148442.98 | AB180: =VLOOKUP($U180,Output!$C:$AL,AB$179,FALSE) -> 140823.39 | AC180: =VLOOKUP($U180,Output!$C:$AL,AC$179,FALSE) -> 134661.86 | AD180: =VLOOKUP($U180,Output!$C:$AL,AD$179,FALSE) -> 131434.51 | AE180: =VLOOKUP($U180,Output!$C:$AL,AE$179,FALSE) -> 131215.48 | AF180: =VLOOKUP($U180,Output!$C:$AL,AF$179,FALSE) -> 128147.83 | AG180: =VLOOKUP($U180,Output!$C:$AL,AG$179,FALSE) -> 124618.76 | AH180: =VLOOKUP($U180,Output!$C:$AL,AH$179,FALSE) -> 125549.73 | AI180: =VLOOKUP($U180,Output!$C:$AL,AI$179,FALSE) -> 127769.42 | AJ180: =VLOOKUP($U180,Output!$C:$AL,AJ$179,FALSE) -> 133616.08 | AK180: =VLOOKUP($U180,Output!$C:$AL,AK$179,FALSE) -> 123855.77 | AL180: =VLOOKUP($U180,Output!$C:$AL,AL$179,FALSE) -> 139669.62 | AM180: =VLOOKUP($U180,Output!$C:$AL,AM$179,FALSE) -> 135510.24 | AN180: =VLOOKUP($U180,Output!$C:$AL,AN$179,FALSE) -> 163824.86 | AO180: =VLOOKUP($U180,Output!$C:$AL,AO$179,FALSE) -> 179161.01 | AP180: =VLOOKUP($U180,Output!$C:$AL,AP$179,FALSE) -> 185256.5 | AQ180: =VLOOKUP($U180,Output!$C:$AL,AQ$179,FALSE) -> 178896.19 | AR180: =VLOOKUP($U180,Output!$C:$AL,AR$179,FALSE) -> 163986.97 | AS180: =VLOOKUP($U180,Output!$C:$AL,AS$179,FALSE) -> 169074.44 | AT180: =VLOOKUP($U180,Output!$C:$AL,AT$179,FALSE) -> 169041.37 | AU180: =VLOOKUP($U180,Output!$C:$AL,AU$179,FALSE) -> 168553.27 | AV180: =VLOOKUP($U180,Output!$C:$AL,AV$179,FALSE) -> 178603.22 | AW180: =VLOOKUP($U180,Output!$C:$AL,AW$179,FALSE) -> 177685.42 | AX180: =VLOOKUP($U180,Output!$C:$AL,AX$179,FALSE) -> 192258.93 | AY180: =VLOOKUP($U180,Output!$C:$AL,AY$179,FALSE) -> 186593.25 | AZ180: =VLOOKUP($U180,Output!$C:$AL,AZ$179,FALSE) -> 171548.94
S181: Figure 9c | U181: OSUPREGECO | V181: =VLOOKUP($U181,Output!$C:$AL,V$179,FALSE) -> 1065229 | W181: =VLOOKUP($U181,Output!$C:$AL,W$179,FALSE) -> 1062752.01 | X181: =VLOOKUP($U181,Output!$C:$AL,X$179,FALSE) -> 1061039.55 | Y181: =VLOOKUP($U181,Output!$C:$AL,Y$179,FALSE) -> 1059407.4 | Z181: =VLOOKUP($U181,Output!$C:$AL,Z$179,FALSE) -> 1057774.73 | AA181: =VLOOKUP($U181,Output!$C:$AL,AA$179,FALSE) -> 1056183.29 | AB181: =VLOOKUP($U181,Output!$C:$AL,AB$179,FALSE) -> 1054801.68 | AC181: =VLOOKUP($U181,Output!$C:$AL,AC$179,FALSE) -> 1053288.42 | AD181: =VLOOKUP($U181,Output!$C:$AL,AD$179,FALSE) -> 1052260.21 | AE181: =VLOOKUP($U181,Output!$C:$AL,AE$179,FALSE) -> 1051420.7 | AF181: =VLOOKUP($U181,Output!$C:$AL,AF$179,FALSE) -> 1050559.26 | AG181: =VLOOKUP($U181,Output!$C:$AL,AG$179,FALSE) -> 1049862.75 | AH181: =VLOOKUP($U181,Output!$C:$AL,AH$179,FALSE) -> 1049352.51 | AI181: =VLOOKUP($U181,Output!$C:$AL,AI$179,FALSE) -> 1049074.86 | AJ181: =VLOOKUP($U181,Output!$C:$AL,AJ$179,FALSE) -> 1048695.24 | AK181: =VLOOKUP($U181,Output!$C:$AL,AK$179,FALSE) -> 1048502.33 | AL181: =VLOOKUP($U181,Output!$C:$AL,AL$179,FALSE) -> 1047742.3 | AM181: =VLOOKUP($U181,Output!$C:$AL,AM$179,FALSE) -> 1046795.94 | AN181: =VLOOKUP($U181,Output!$C:$AL,AN$179,FALSE) -> 1045998.41 | AO181: =VLOOKUP($U181,Output!$C:$AL,AO$179,FALSE) -> 1045814.64 | AP181: =VLOOKUP($U181,Output!$C:$AL,AP$179,FALSE) -> 1045736.24 | AQ181: =VLOOKUP($U181,Output!$C:$AL,AQ$179,FALSE) -> 1045461.06 | AR181: =VLOOKUP($U181,Output!$C:$AL,AR$179,FALSE) -> 1045154.41 | AS181: =VLOOKUP($U181,Output!$C:$AL,AS$179,FALSE) -> 1045054.85 | AT181: =VLOOKUP($U181,Output!$C:$AL,AT$179,FALSE) -> 1044988.16 | AU181: =VLOOKUP($U181,Output!$C:$AL,AU$179,FALSE) -> 1044785.12 | AV181: =VLOOKUP($U181,Output!$C:$AL,AV$179,FALSE) -> 1044534.01 | AW181: =VLOOKUP($U181,Output!$C:$AL,AW$179,FALSE) -> 1044498.32 | AX181: =VLOOKUP($U181,Output!$C:$AL,AX$179,FALSE) -> 1044368.92 | AY181: =VLOOKUP($U181,Output!$C:$AL,AY$179,FALSE) -> 1044347.37 | AZ181: =VLOOKUP($U181,Output!$C:$AL,AZ$179,FALSE) -> 1044347.37
S182: Figure 9c | V182: =IFERROR(V180/V181,"0000") -> 0.2564491767 | W182: 0.2528516413 | X182: 0.2243097442 | Y182: 0.1851700677 | Z182: 0.139837988 | AA182: 0.1405466091 | AB182: 0.133506983 | AC182: 0.1278489894 | AD182: 0.1249068517 | AE182: 0.1247982658 | AF182: 0.121980582 | AG182: 0.1187000491 | AH182: 0.1196449513 | AI182: 0.1217924715 | AJ182: 0.127411735 | AK182: 0.118126366 | AL182: 0.1333053175 | AM182: 0.1294523936 | AN182: 0.1566205631 | AO182: 0.1713123943 | AP182: 0.1771541359 | AQ182: 0.1711170285 | AR182: 0.1569021462 | AS182: 0.1617852307 | AT182: 0.1617639094 | AU182: 0.1613281686 | AV182: 0.17098842 | AW182: 0.1701155632 | AX182: 0.1840910107 | AY182: 0.1786697179 | AZ182: 0.1642642524
S183: Figure 9c
S184: Figure 9c | U184: OSUPJEUNEALERTEREGECO | V184: =VLOOKUP($U184,Output!$C:$AL,V$179,FALSE) -> 346161.39 | W184: =VLOOKUP($U184,Output!$C:$AL,W$179,FALSE) -> 345387.12 | X184: =VLOOKUP($U184,Output!$C:$AL,X$179,FALSE) -> 344832.68 | Y184: =VLOOKUP($U184,Output!$C:$AL,Y$179,FALSE) -> 344314.2 | Z184: =VLOOKUP($U184,Output!$C:$AL,Z$179,FALSE) -> 343811.26 | AA184: =VLOOKUP($U184,Output!$C:$AL,AA$179,FALSE) -> 343312.25 | AB184: =VLOOKUP($U184,Output!$C:$AL,AB$179,FALSE) -> 342875.67 | AC184: =VLOOKUP($U184,Output!$C:$AL,AC$179,FALSE) -> 342407.65 | AD184: =VLOOKUP($U184,Output!$C:$AL,AD$179,FALSE) -> 342093.31 | AE184: =VLOOKUP($U184,Output!$C:$AL,AE$179,FALSE) -> 341825.04 | AF184: =VLOOKUP($U184,Output!$C:$AL,AF$179,FALSE) -> 341542.13 | AG184: =VLOOKUP($U184,Output!$C:$AL,AG$179,FALSE) -> 341315.06 | AH184: =VLOOKUP($U184,Output!$C:$AL,AH$179,FALSE) -> 341156.04 | AI184: =VLOOKUP($U184,Output!$C:$AL,AI$179,FALSE) -> 341066.64 | AJ184: =VLOOKUP($U184,Output!$C:$AL,AJ$179,FALSE) -> 340944.1 | AK184: =VLOOKUP($U184,Output!$C:$AL,AK$179,FALSE) -> 340882.5 | AL184: =VLOOKUP($U184,Output!$C:$AL,AL$179,FALSE) -> 340619.68 | AM184: =VLOOKUP($U184,Output!$C:$AL,AM$179,FALSE) -> 340288.86 | AN184: =VLOOKUP($U184,Output!$C:$AL,AN$179,FALSE) -> 340020.58 | AO184: =VLOOKUP($U184,Output!$C:$AL,AO$179,FALSE) -> 339956.32 | AP184: =VLOOKUP($U184,Output!$C:$AL,AP$179,FALSE) -> 339929.56 | AQ184: =VLOOKUP($U184,Output!$C:$AL,AQ$179,FALSE) -> 339833.57 | AR184: =VLOOKUP($U184,Output!$C:$AL,AR$179,FALSE) -> 339727.66 | AS184: =VLOOKUP($U184,Output!$C:$AL,AS$179,FALSE) -> 339694.09 | AT184: =VLOOKUP($U184,Output!$C:$AL,AT$179,FALSE) -> 339671.56 | AU184: =VLOOKUP($U184,Output!$C:$AL,AU$179,FALSE) -> 339600.75 | AV184: =VLOOKUP($U184,Output!$C:$AL,AV$179,FALSE) -> 339514.47 | AW184: =VLOOKUP($U184,Output!$C:$AL,AW$179,FALSE) -> 339502.13 | AX184: =VLOOKUP($U184,Output!$C:$AL,AX$179,FALSE) -> 339457.34 | AY184: =VLOOKUP($U184,Output!$C:$AL,AY$179,FALSE) -> 339449.8 | AZ184: =VLOOKUP($U184,Output!$C:$AL,AZ$179,FALSE) -> 339449.8
S185: Figure 9c | T185: Faible | U185: OSUPJEUNEACCEPTREGECO | V185: =VLOOKUP($U185,Output!$C:$AL,V$179,FALSE) -> 239638.49 | W185: =VLOOKUP($U185,Output!$C:$AL,W$179,FALSE) -> 239111.92 | X185: =VLOOKUP($U185,Output!$C:$AL,X$179,FALSE) -> 238728.73 | Y185: =VLOOKUP($U185,Output!$C:$AL,Y$179,FALSE) -> 238373.46 | Z185: =VLOOKUP($U185,Output!$C:$AL,Z$179,FALSE) -> 238033.79 | AA185: =VLOOKUP($U185,Output!$C:$AL,AA$179,FALSE) -> 237693.92 | AB185: =VLOOKUP($U185,Output!$C:$AL,AB$179,FALSE) -> 237395.5 | AC185: =VLOOKUP($U185,Output!$C:$AL,AC$179,FALSE) -> 237078.81 | AD185: =VLOOKUP($U185,Output!$C:$AL,AD$179,FALSE) -> 236867.29 | AE185: =VLOOKUP($U185,Output!$C:$AL,AE$179,FALSE) -> 236682.97 | AF185: =VLOOKUP($U185,Output!$C:$AL,AF$179,FALSE) -> 236486.2 | AG185: =VLOOKUP($U185,Output!$C:$AL,AG$179,FALSE) -> 236328.79 | AH185: =VLOOKUP($U185,Output!$C:$AL,AH$179,FALSE) -> 236220.79 | AI185: =VLOOKUP($U185,Output!$C:$AL,AI$179,FALSE) -> 236159.15 | AJ185: =VLOOKUP($U185,Output!$C:$AL,AJ$179,FALSE) -> 236074.57 | AK185: =VLOOKUP($U185,Output!$C:$AL,AK$179,FALSE) -> 236032.27 | AL185: =VLOOKUP($U185,Output!$C:$AL,AL$179,FALSE) -> 235845.45 | AM185: =VLOOKUP($U185,Output!$C:$AL,AM$179,FALSE) -> 235609.26 | AN185: =VLOOKUP($U185,Output!$C:$AL,AN$179,FALSE) -> 235420.73 | AO185: =VLOOKUP($U185,Output!$C:$AL,AO$179,FALSE) -> 235374.85 | AP185: =VLOOKUP($U185,Output!$C:$AL,AP$179,FALSE) -> 235355.94 | AQ185: =VLOOKUP($U185,Output!$C:$AL,AQ$179,FALSE) -> 235287.46 | AR185: =VLOOKUP($U185,Output!$C:$AL,AR$179,FALSE) -> 235212.22 | AS185: =VLOOKUP($U185,Output!$C:$AL,AS$179,FALSE) -> 235188.61 | AT185: =VLOOKUP($U185,Output!$C:$AL,AT$179,FALSE) -> 235172.75 | AU185: =VLOOKUP($U185,Output!$C:$AL,AU$179,FALSE) -> 235122.24 | AV185: =VLOOKUP($U185,Output!$C:$AL,AV$179,FALSE) -> 235061.07 | AW185: =VLOOKUP($U185,Output!$C:$AL,AW$179,FALSE) -> 235052.3 | AX185: =VLOOKUP($U185,Output!$C:$AL,AX$179,FALSE) -> 235020.45 | AY185: =VLOOKUP($U185,Output!$C:$AL,AY$179,FALSE) -> 235015.06 | AZ185: =VLOOKUP($U185,Output!$C:$AL,AZ$179,FALSE) -> 235015.06
S186: Figure 9c | T186: Moyen | V186: =V184-V185 -> 106522.9 | W186: 106275.2 | X186: 106103.95 | Y186: 105940.74 | Z186: 105777.47 | AA186: 105618.33 | AB186: 105480.17 | AC186: 105328.84 | AD186: 105226.02 | AE186: 105142.07 | AF186: 105055.93 | AG186: 104986.27 | AH186: 104935.25 | AI186: 104907.49 | AJ186: 104869.53 | AK186: 104850.23 | AL186: 104774.23 | AM186: 104679.6 | AN186: 104599.85 | AO186: 104581.47 | AP186: 104573.62 | AQ186: 104546.11 | AR186: 104515.44 | AS186: 104505.48 | AT186: 104498.81 | AU186: 104478.51 | AV186: 104453.4 | AW186: 104449.83 | AX186: 104436.89 | AY186: 104434.74 | AZ186: 104434.74
S187: Figure 9c | T187: Élevé | V187: =$V$181-V184 -> 719067.61 | W187: 719841.88 | X187: 720396.32 | Y187: 720914.8 | Z187: 721417.74 | AA187: 721916.75 | AB187: 722353.33 | AC187: 722821.35 | AD187: 723135.69 | AE187: 723403.96 | AF187: 723686.87 | AG187: 723913.94 | AH187: 724072.96 | AI187: 724162.36 | AJ187: 724284.9 | AK187: 724346.5 | AL187: 724609.32 | AM187: 724940.14 | AN187: 725208.42 | AO187: 725272.68 | AP187: 725299.44 | AQ187: 725395.43 | AR187: 725501.34 | AS187: 725534.91 | AT187: 725557.44 | AU187: 725628.25 | AV187: 725714.53 | AW187: 725726.87 | AX187: 725771.66 | AY187: 725779.2 | AZ187: 725779.2
U199: Période | V199: P0 | W199: P1 | X199: P2 | Y199: P3 | Z199: P4 | AA199: P5 | AB199: P6 | AC199: P7 | AD199: P8 | AE199: P9 | AF199: P10 | AG199: P11 | AH199: P12 | AI199: P13 | AJ199: P14 | AK199: P15 | AL199: P16 | AM199: P17 | AN199: P18 | AO199: P19 | AP199: P20 | AQ199: P21 | AR199: P22 | AS199: P23 | AT199: P24 | AU199: P25 | AV199: P26 | AW199: P27 | AX199: P28 | AY199: P29 | AZ199: P30
U200: Axe des "X" Fin de période | V200: 2018 | W200: 2023 | X200: 2028 | Y200: 2033 | Z200: 2038 | AA200: 2043 | AB200: 2048 | AC200: 2053 | AD200: 2058 | AE200: 2063 | AF200: 2068 | AG200: 2073 | AH200: 2078 | AI200: 2083 | AJ200: 2088 | AK200: 2093 | AL200: 2098 | AM200: 2103 | AN200: 2108 | AO200: 2113 | AP200: 2118 | AQ200: 2123 | AR200: 2128 | AS200: 2133 | AT200: 2138 | AU200: 2143 | AV200: 2148 | AW200: 2153 | AX200: 2158 | AY200: 2163 | AZ200: 2168
U201: Colonne | V201: 6 | W201: 7 | X201: 8 | Y201: 9 | Z201: 10 | AA201: 11 | AB201: 12 | AC201: 13 | AD201: 14 | AE201: 15 | AF201: 16 | AG201: 17 | AH201: 18 | AI201: 19 | AJ201: 20 | AK201: 21 | AL201: 22 | AM201: 23 | AN201: 24 | AO201: 25 | AP201: 26 | AQ201: 27 | AR201: 28 | AS201: 29 | AT201: 30 | AU201: 31 | AV201: 32 | AW201: 33 | AX201: 34 | AY201: 35 | AZ201: 36
B202: Figure 10a Évolution de la superficie selon le type de couvert | S202: =LEFT(B$202,10) -> Figure 10a | U202: OSUPINC
S203: Figure 10a | U203: Résineux | V203: =SUM(V214,V220,V221,V222,V224,V225) -> 652028.7 | W203: =SUM(W214,W220,W221,W222,W224,W225) -> 640203.31 | X203: 641116.93 | Y203: 637538.12 | Z203: 632300.4 | AA203: 629326.05 | AB203: 625235.95 | AC203: 620585.11 | AD203: 614354.8 | AE203: 607422.78 | AF203: 606522.89 | AG203: 602818.54 | AH203: 601347.55 | AI203: 603269.9 | AJ203: 602701.86 | AK203: 604222.68 | AL203: 607199.27 | AM203: 605870.59 | AN203: 602510.13 | AO203: 597623.53 | AP203: 591171.06 | AQ203: 585188.23 | AR203: 581331.09 | AS203: 578563.53 | AT203: 576338.46 | AU203: 572962.73 | AV203: 578789.2 | AW203: 581376.37 | AX203: 580001.68 | AY203: 575908.3 | AZ203: 570288.25
S204: Figure 10a | U204: Mixtes résineux | V204: =V223 -> 95406 | W204: =W223 -> 101748.84 | X204: 98886.41 | Y204: 100427.13 | Z204: 103910.55 | AA204: 104408.09 | AB204: 105910.81 | AC204: 107133.23 | AD204: 108992.37 | AE204: 107814.13 | AF204: 104165.3 | AG204: 106073.01 | AH204: 104754.34 | AI204: 102645.33 | AJ204: 100535.29 | AK204: 97962.87 | AL204: 94757.15 | AM204: 96540.77 | AN204: 100112.97 | AO204: 102157.25 | AP204: 107217.55 | AQ204: 114570.44 | AR204: 120851.72 | AS204: 126864.56 | AT204: 132544.19 | AU204: 139942.89 | AV204: 137785.29 | AW204: 137995.33 | AX204: 140305.06 | AY204: 142608.42 | AZ204: 147328.32
S205: Figure 10a | U205: Mixtes feuillus intolérants | V205: =V213+V219 -> 24605.3 | W205: =W213+W219 -> 24861.94 | X205: =X213+X219 -> 24751.84 | Y205: =Y213+Y219 -> 23984.73 | Z205: 22529.97 | AA205: 22053.01 | AB205: 22392.42 | AC205: 22753.92 | AD205: 24236 | AE205: 30524.19 | AF205: 33266.21 | AG205: 34119.09 | AH205: 34969 | AI205: 34817.1 | AJ205: 36980.35 | AK205: 37859.47 | AL205: 39468.41 | AM205: 37987.26 | AN205: 36652.86 | AO205: 39760.5 | AP205: 41097.75 | AQ205: 40163.61 | AR205: 39634.35 | AS205: 37689.62 | AT205: 35700.84 | AU205: 33190.34 | AV205: 30329.99 | AW205: 29576.03 | AX205: 29674.01 | AY205: 30463.58 | AZ205: 30592.81
S206: Figure 10a | U206: Mixtes feuillus tolérants | V206: =V217 -> 0 | W206: =W217 -> 0 | X206: 0 | Y206: 0 | Z206: 0 | AA206: 0 | AB206: 0 | AC206: 0 | AD206: 0 | AE206: 0 | AF206: 0 | AG206: 0 | AH206: 0 | AI206: 0 | AJ206: 0 | AK206: 0 | AL206: 0 | AM206: 0 | AN206: 0 | AO206: 0 | AP206: 0 | AQ206: 0 | AR206: 0 | AS206: 0 | AT206: 0 | AU206: 0 | AV206: 0 | AW206: 0 | AX206: 0 | AY206: 0 | AZ206: 0
S207: Figure 10a | U207: Feuillus intolérants | V207: =V212+V215+V218 -> 47630.8 | W207: =W212+W215+W218 -> 50379.71 | X207: =X212+X215+X218 -> 50726.17 | Y207: 51899.23 | Z207: 53475.63 | AA207: 54837.94 | AB207: 55704.29 | AC207: 57257.97 | AD207: 59118.83 | AE207: 60101.4 | AF207: 61046.66 | AG207: 61293.89 | AH207: 62723.41 | AI207: 62784.32 | AJ207: 62919.54 | AK207: 62899.12 | AL207: 60759.27 | AM207: 60839.11 | AN207: 61164.25 | AO207: 60715.16 | AP207: 60691.69 | AQ207: 59980.58 | AR207: 57779.06 | AS207: 56378.93 | AT207: 54846.47 | AU207: 53130.96 | AV207: 52071.34 | AW207: 49992.39 | AX207: 48829.97 | AY207: 49808.86 | AZ207: 50579.78
S208: Figure 10a | U208: Feuillus tolérants | V208: =V216 -> 0 | W208: =W216 -> 0 | X208: 0 | Y208: 0 | Z208: 0 | AA208: 0 | AB208: 0 | AC208: 0 | AD208: 0 | AE208: 0 | AF208: 0 | AG208: 0 | AH208: 0 | AI208: 0 | AJ208: 0 | AK208: 0 | AL208: 0 | AM208: 0 | AN208: 0 | AO208: 0 | AP208: 0 | AQ208: 0 | AR208: 0 | AS208: 0 | AT208: 0 | AU208: 0 | AV208: 0 | AW208: 0 | AX208: 0 | AY208: 0 | AZ208: 0
S209: Figure 10a | U209: Total | V209: =SUM(V203:V208) -> 819670.8 | W209: =SUM(W203:W208) -> 817193.8 | X209: =SUM(X203:X208) -> 815481.35 | Y209: 813849.21 | Z209: 812216.55 | AA209: 810625.09 | AB209: 809243.47 | AC209: 807730.23 | AD209: 806702 | AE209: 805862.5 | AF209: 805001.06 | AG209: 804304.53 | AH209: 803794.3 | AI209: 803516.65 | AJ209: 803137.04 | AK209: 802944.14 | AL209: 802184.1 | AM209: 801237.73 | AN209: 800440.21 | AO209: 800256.44 | AP209: 800178.05 | AQ209: 799902.86 | AR209: 799596.22 | AS209: 799496.64 | AT209: 799429.96 | AU209: 799226.92 | AV209: 798975.82 | AW209: 798940.12 | AX209: 798810.72 | AY209: 798789.16 | AZ209: 798789.16
S210: Figure 10a
S211: Figure 10a
S212: Figure 10a | T212: Bétulaies blanches | U212: (FCTYF_BOP) | V212: =VLOOKUP($U$202&$U212,GTYF!$C:$AP,V$201,FALSE) -> 33861 | W212: =VLOOKUP($U$202&$U212,GTYF!$C:$AP,W$201,FALSE) -> 35549.83 | X212: =VLOOKUP($U$202&$U212,GTYF!$C:$AP,X$201,FALSE) -> 35538.37 | Y212: =VLOOKUP($U$202&$U212,GTYF!$C:$AP,Y$201,FALSE) -> 36788.73 | Z212: =VLOOKUP($U$202&$U212,GTYF!$C:$AP,Z$201,FALSE) -> 38371.01 | AA212: =VLOOKUP($U$202&$U212,GTYF!$C:$AP,AA$201,FALSE) -> 39283.07 | AB212: =VLOOKUP($U$202&$U212,GTYF!$C:$AP,AB$201,FALSE) -> 39897.28 | AC212: =VLOOKUP($U$202&$U212,GTYF!$C:$AP,AC$201,FALSE) -> 41199.62 | AD212: =VLOOKUP($U$202&$U212,GTYF!$C:$AP,AD$201,FALSE) -> 43078.09 | AE212: =VLOOKUP($U$202&$U212,GTYF!$C:$AP,AE$201,FALSE) -> 44103.78 | AF212: =VLOOKUP($U$202&$U212,GTYF!$C:$AP,AF$201,FALSE) -> 45100.59 | AG212: =VLOOKUP($U$202&$U212,GTYF!$C:$AP,AG$201,FALSE) -> 45355.51 | AH212: =VLOOKUP($U$202&$U212,GTYF!$C:$AP,AH$201,FALSE) -> 46608.12 | AI212: =VLOOKUP($U$202&$U212,GTYF!$C:$AP,AI$201,FALSE) -> 46669.03 | AJ212: =VLOOKUP($U$202&$U212,GTYF!$C:$AP,AJ$201,FALSE) -> 46804.25 | AK212: =VLOOKUP($U$202&$U212,GTYF!$C:$AP,AK$201,FALSE) -> 46783.83 | AL212: =VLOOKUP($U$202&$U212,GTYF!$C:$AP,AL$201,FALSE) -> 44644.13 | AM212: =VLOOKUP($U$202&$U212,GTYF!$C:$AP,AM$201,FALSE) -> 44459.62 | AN212: =VLOOKUP($U$202&$U212,GTYF!$C:$AP,AN$201,FALSE) -> 44436.47 | AO212: =VLOOKUP($U$202&$U212,GTYF!$C:$AP,AO$201,FALSE) -> 43987.38 | AP212: =VLOOKUP($U$202&$U212,GTYF!$C:$AP,AP$201,FALSE) -> 43957.04 | AQ212: =VLOOKUP($U$202&$U212,GTYF!$C:$AP,AQ$201,FALSE) -> 43174.17 | AR212: =VLOOKUP($U$202&$U212,GTYF!$C:$AP,AR$201,FALSE) -> 40972.65 | AS212: =VLOOKUP($U$202&$U212,GTYF!$C:$AP,AS$201,FALSE) -> 39572.52 | AT212: =VLOOKUP($U$202&$U212,GTYF!$C:$AP,AT$201,FALSE) -> 38022.1 | AU212: =VLOOKUP($U$202&$U212,GTYF!$C:$AP,AU$201,FALSE) -> 36299.05 | AV212: =VLOOKUP($U$202&$U212,GTYF!$C:$AP,AV$201,FALSE) -> 34899.39 | AW212: =VLOOKUP($U$202&$U212,GTYF!$C:$AP,AW$201,FALSE) -> 32550.54 | AX212: =VLOOKUP($U$202&$U212,GTYF!$C:$AP,AX$201,FALSE) -> 30240.52 | AY212: =VLOOKUP($U$202&$U212,GTYF!$C:$AP,AY$201,FALSE) -> 30168.59 | AZ212: =VLOOKUP($U$202&$U212,GTYF!$C:$AP,AZ$201,FALSE) -> 30622.13
S213: Figure 10a | T213: Bétulaies blanches à résineux | U213: (FCTYF_BOPR) | V213: =VLOOKUP($U$202&$U213,GTYF!$C:$AP,V$201,FALSE) -> 17535.6 | W213: =VLOOKUP($U$202&$U213,GTYF!$C:$AP,W$201,FALSE) -> 18902.28 | X213: =VLOOKUP($U$202&$U213,GTYF!$C:$AP,X$201,FALSE) -> 19249.03 | Y213: =VLOOKUP($U$202&$U213,GTYF!$C:$AP,Y$201,FALSE) -> 18487.43 | Z213: =VLOOKUP($U$202&$U213,GTYF!$C:$AP,Z$201,FALSE) -> 17106.58 | AA213: =VLOOKUP($U$202&$U213,GTYF!$C:$AP,AA$201,FALSE) -> 17157.44 | AB213: =VLOOKUP($U$202&$U213,GTYF!$C:$AP,AB$201,FALSE) -> 17823.83 | AC213: =VLOOKUP($U$202&$U213,GTYF!$C:$AP,AC$201,FALSE) -> 18497.43 | AD213: =VLOOKUP($U$202&$U213,GTYF!$C:$AP,AD$201,FALSE) -> 20013.91 | AE213: =VLOOKUP($U$202&$U213,GTYF!$C:$AP,AE$201,FALSE) -> 26302.95 | AF213: =VLOOKUP($U$202&$U213,GTYF!$C:$AP,AF$201,FALSE) -> 29045.32 | AG213: =VLOOKUP($U$202&$U213,GTYF!$C:$AP,AG$201,FALSE) -> 29935.23 | AH213: =VLOOKUP($U$202&$U213,GTYF!$C:$AP,AH$201,FALSE) -> 31017.4 | AI213: =VLOOKUP($U$202&$U213,GTYF!$C:$AP,AI$201,FALSE) -> 30908.8 | AJ213: =VLOOKUP($U$202&$U213,GTYF!$C:$AP,AJ$201,FALSE) -> 33105.52 | AK213: =VLOOKUP($U$202&$U213,GTYF!$C:$AP,AK$201,FALSE) -> 33988.26 | AL213: =VLOOKUP($U$202&$U213,GTYF!$C:$AP,AL$201,FALSE) -> 35598.49 | AM213: =VLOOKUP($U$202&$U213,GTYF!$C:$AP,AM$201,FALSE) -> 34381.69 | AN213: =VLOOKUP($U$202&$U213,GTYF!$C:$AP,AN$201,FALSE) -> 33395.58 | AO213: =VLOOKUP($U$202&$U213,GTYF!$C:$AP,AO$201,FALSE) -> 36503.22 | AP213: =VLOOKUP($U$202&$U213,GTYF!$C:$AP,AP$201,FALSE) -> 37847.34 | AQ213: =VLOOKUP($U$202&$U213,GTYF!$C:$AP,AQ$201,FALSE) -> 36984.96 | AR213: =VLOOKUP($U$202&$U213,GTYF!$C:$AP,AR$201,FALSE) -> 36455.7 | AS213: =VLOOKUP($U$202&$U213,GTYF!$C:$AP,AS$201,FALSE) -> 34510.97 | AT213: =VLOOKUP($U$202&$U213,GTYF!$C:$AP,AT$201,FALSE) -> 32540.15 | AU213: =VLOOKUP($U$202&$U213,GTYF!$C:$AP,AU$201,FALSE) -> 30037.19 | AV213: =VLOOKUP($U$202&$U213,GTYF!$C:$AP,AV$201,FALSE) -> 27516.88 | AW213: =VLOOKUP($U$202&$U213,GTYF!$C:$AP,AW$201,FALSE) -> 27032.82 | AX213: =VLOOKUP($U$202&$U213,GTYF!$C:$AP,AX$201,FALSE) -> 28278.4 | AY213: =VLOOKUP($U$202&$U213,GTYF!$C:$AP,AY$201,FALSE) -> 30118.79 | AZ213: =VLOOKUP($U$202&$U213,GTYF!$C:$AP,AZ$201,FALSE) -> 30565.4
S214: Figure 10a | T214: Pessières | U214: (FCTYF_EPX) | V214: =VLOOKUP($U$202&$U214,GTYF!$C:$AP,V$201,FALSE) -> 466837.5 | W214: =VLOOKUP($U$202&$U214,GTYF!$C:$AP,W$201,FALSE) -> 460412.36 | X214: =VLOOKUP($U$202&$U214,GTYF!$C:$AP,X$201,FALSE) -> 457811.38 | Y214: =VLOOKUP($U$202&$U214,GTYF!$C:$AP,Y$201,FALSE) -> 453306.74 | Z214: =VLOOKUP($U$202&$U214,GTYF!$C:$AP,Z$201,FALSE) -> 445453.16 | AA214: =VLOOKUP($U$202&$U214,GTYF!$C:$AP,AA$201,FALSE) -> 440155.05 | AB214: =VLOOKUP($U$202&$U214,GTYF!$C:$AP,AB$201,FALSE) -> 432074.5 | AC214: =VLOOKUP($U$202&$U214,GTYF!$C:$AP,AC$201,FALSE) -> 430141.07 | AD214: =VLOOKUP($U$202&$U214,GTYF!$C:$AP,AD$201,FALSE) -> 430887.26 | AE214: =VLOOKUP($U$202&$U214,GTYF!$C:$AP,AE$201,FALSE) -> 434857.41 | AF214: =VLOOKUP($U$202&$U214,GTYF!$C:$AP,AF$201,FALSE) -> 435006.79 | AG214: =VLOOKUP($U$202&$U214,GTYF!$C:$AP,AG$201,FALSE) -> 434718.36 | AH214: =VLOOKUP($U$202&$U214,GTYF!$C:$AP,AH$201,FALSE) -> 435004.03 | AI214: =VLOOKUP($U$202&$U214,GTYF!$C:$AP,AI$201,FALSE) -> 433526.25 | AJ214: =VLOOKUP($U$202&$U214,GTYF!$C:$AP,AJ$201,FALSE) -> 430312.5 | AK214: =VLOOKUP($U$202&$U214,GTYF!$C:$AP,AK$201,FALSE) -> 430220.44 | AL214: =VLOOKUP($U$202&$U214,GTYF!$C:$AP,AL$201,FALSE) -> 432673.17 | AM214: =VLOOKUP($U$202&$U214,GTYF!$C:$AP,AM$201,FALSE) -> 429533.26 | AN214: =VLOOKUP($U$202&$U214,GTYF!$C:$AP,AN$201,FALSE) -> 426393.92 | AO214: =VLOOKUP($U$202&$U214,GTYF!$C:$AP,AO$201,FALSE) -> 427256.6 | AP214: =VLOOKUP($U$202&$U214,GTYF!$C:$AP,AP$201,FALSE) -> 423635.95 | AQ214: =VLOOKUP($U$202&$U214,GTYF!$C:$AP,AQ$201,FALSE) -> 419930.45 | AR214: =VLOOKUP($U$202&$U214,GTYF!$C:$AP,AR$201,FALSE) -> 416328.61 | AS214: =VLOOKUP($U$202&$U214,GTYF!$C:$AP,AS$201,FALSE) -> 414022.86 | AT214: =VLOOKUP($U$202&$U214,GTYF!$C:$AP,AT$201,FALSE) -> 412621 | AU214: =VLOOKUP($U$202&$U214,GTYF!$C:$AP,AU$201,FALSE) -> 408454.92 | AV214: =VLOOKUP($U$202&$U214,GTYF!$C:$AP,AV$201,FALSE) -> 413298.74 | AW214: =VLOOKUP($U$202&$U214,GTYF!$C:$AP,AW$201,FALSE) -> 412296.1 | AX214: =VLOOKUP($U$202&$U214,GTYF!$C:$AP,AX$201,FALSE) -> 412412.53 | AY214: =VLOOKUP($U$202&$U214,GTYF!$C:$AP,AY$201,FALSE) -> 412630.28 | AZ214: =VLOOKUP($U$202&$U214,GTYF!$C:$AP,AZ$201,FALSE) -> 410159.66
S215: Figure 10a | T215: Érablières rouges | U215: (FCTYF_ERO) | V215: =VLOOKUP($U$202&$U215,GTYF!$C:$AP,V$201,FALSE) -> 0 | W215: =VLOOKUP($U$202&$U215,GTYF!$C:$AP,W$201,FALSE) -> 0 | X215: =VLOOKUP($U$202&$U215,GTYF!$C:$AP,X$201,FALSE) -> 0 | Y215: =VLOOKUP($U$202&$U215,GTYF!$C:$AP,Y$201,FALSE) -> 0 | Z215: =VLOOKUP($U$202&$U215,GTYF!$C:$AP,Z$201,FALSE) -> 0 | AA215: =VLOOKUP($U$202&$U215,GTYF!$C:$AP,AA$201,FALSE) -> 0 | AB215: =VLOOKUP($U$202&$U215,GTYF!$C:$AP,AB$201,FALSE) -> 0 | AC215: =VLOOKUP($U$202&$U215,GTYF!$C:$AP,AC$201,FALSE) -> 0 | AD215: =VLOOKUP($U$202&$U215,GTYF!$C:$AP,AD$201,FALSE) -> 0 | AE215: =VLOOKUP($U$202&$U215,GTYF!$C:$AP,AE$201,FALSE) -> 0 | AF215: =VLOOKUP($U$202&$U215,GTYF!$C:$AP,AF$201,FALSE) -> 0 | AG215: =VLOOKUP($U$202&$U215,GTYF!$C:$AP,AG$201,FALSE) -> 0 | AH215: =VLOOKUP($U$202&$U215,GTYF!$C:$AP,AH$201,FALSE) -> 0 | AI215: =VLOOKUP($U$202&$U215,GTYF!$C:$AP,AI$201,FALSE) -> 0 | AJ215: =VLOOKUP($U$202&$U215,GTYF!$C:$AP,AJ$201,FALSE) -> 0 | AK215: =VLOOKUP($U$202&$U215,GTYF!$C:$AP,AK$201,FALSE) -> 0 | AL215: =VLOOKUP($U$202&$U215,GTYF!$C:$AP,AL$201,FALSE) -> 0 | AM215: =VLOOKUP($U$202&$U215,GTYF!$C:$AP,AM$201,FALSE) -> 0 | AN215: =VLOOKUP($U$202&$U215,GTYF!$C:$AP,AN$201,FALSE) -> 0 | AO215: =VLOOKUP($U$202&$U215,GTYF!$C:$AP,AO$201,FALSE) -> 0 | AP215: =VLOOKUP($U$202&$U215,GTYF!$C:$AP,AP$201,FALSE) -> 0 | AQ215: =VLOOKUP($U$202&$U215,GTYF!$C:$AP,AQ$201,FALSE) -> 0 | AR215: =VLOOKUP($U$202&$U215,GTYF!$C:$AP,AR$201,FALSE) -> 0 | AS215: =VLOOKUP($U$202&$U215,GTYF!$C:$AP,AS$201,FALSE) -> 0 | AT215: =VLOOKUP($U$202&$U215,GTYF!$C:$AP,AT$201,FALSE) -> 0 | AU215: =VLOOKUP($U$202&$U215,GTYF!$C:$AP,AU$201,FALSE) -> 0 | AV215: =VLOOKUP($U$202&$U215,GTYF!$C:$AP,AV$201,FALSE) -> 0 | AW215: =VLOOKUP($U$202&$U215,GTYF!$C:$AP,AW$201,FALSE) -> 0 | AX215: =VLOOKUP($U$202&$U215,GTYF!$C:$AP,AX$201,FALSE) -> 0 | AY215: =VLOOKUP($U$202&$U215,GTYF!$C:$AP,AY$201,FALSE) -> 0 | AZ215: =VLOOKUP($U$202&$U215,GTYF!$C:$AP,AZ$201,FALSE) -> 0
S216: Figure 10a | T216: Feuillus tolérants | U216: (FCTYF_FT) | V216: =VLOOKUP($U$202&$U216,GTYF!$C:$AP,V$201,FALSE) -> 0 | W216: =VLOOKUP($U$202&$U216,GTYF!$C:$AP,W$201,FALSE) -> 0 | X216: =VLOOKUP($U$202&$U216,GTYF!$C:$AP,X$201,FALSE) -> 0 | Y216: =VLOOKUP($U$202&$U216,GTYF!$C:$AP,Y$201,FALSE) -> 0 | Z216: =VLOOKUP($U$202&$U216,GTYF!$C:$AP,Z$201,FALSE) -> 0 | AA216: =VLOOKUP($U$202&$U216,GTYF!$C:$AP,AA$201,FALSE) -> 0 | AB216: =VLOOKUP($U$202&$U216,GTYF!$C:$AP,AB$201,FALSE) -> 0 | AC216: =VLOOKUP($U$202&$U216,GTYF!$C:$AP,AC$201,FALSE) -> 0 | AD216: =VLOOKUP($U$202&$U216,GTYF!$C:$AP,AD$201,FALSE) -> 0 | AE216: =VLOOKUP($U$202&$U216,GTYF!$C:$AP,AE$201,FALSE) -> 0 | AF216: =VLOOKUP($U$202&$U216,GTYF!$C:$AP,AF$201,FALSE) -> 0 | AG216: =VLOOKUP($U$202&$U216,GTYF!$C:$AP,AG$201,FALSE) -> 0 | AH216: =VLOOKUP($U$202&$U216,GTYF!$C:$AP,AH$201,FALSE) -> 0 | AI216: =VLOOKUP($U$202&$U216,GTYF!$C:$AP,AI$201,FALSE) -> 0 | AJ216: =VLOOKUP($U$202&$U216,GTYF!$C:$AP,AJ$201,FALSE) -> 0 | AK216: =VLOOKUP($U$202&$U216,GTYF!$C:$AP,AK$201,FALSE) -> 0 | AL216: =VLOOKUP($U$202&$U216,GTYF!$C:$AP,AL$201,FALSE) -> 0 | AM216: =VLOOKUP($U$202&$U216,GTYF!$C:$AP,AM$201,FALSE) -> 0 | AN216: =VLOOKUP($U$202&$U216,GTYF!$C:$AP,AN$201,FALSE) -> 0 | AO216: =VLOOKUP($U$202&$U216,GTYF!$C:$AP,AO$201,FALSE) -> 0 | AP216: =VLOOKUP($U$202&$U216,GTYF!$C:$AP,AP$201,FALSE) -> 0 | AQ216: =VLOOKUP($U$202&$U216,GTYF!$C:$AP,AQ$201,FALSE) -> 0 | AR216: =VLOOKUP($U$202&$U216,GTYF!$C:$AP,AR$201,FALSE) -> 0 | AS216: =VLOOKUP($U$202&$U216,GTYF!$C:$AP,AS$201,FALSE) -> 0 | AT216: =VLOOKUP($U$202&$U216,GTYF!$C:$AP,AT$201,FALSE) -> 0 | AU216: =VLOOKUP($U$202&$U216,GTYF!$C:$AP,AU$201,FALSE) -> 0 | AV216: =VLOOKUP($U$202&$U216,GTYF!$C:$AP,AV$201,FALSE) -> 0 | AW216: =VLOOKUP($U$202&$U216,GTYF!$C:$AP,AW$201,FALSE) -> 0 | AX216: =VLOOKUP($U$202&$U216,GTYF!$C:$AP,AX$201,FALSE) -> 0 | AY216: =VLOOKUP($U$202&$U216,GTYF!$C:$AP,AY$201,FALSE) -> 0 | AZ216: =VLOOKUP($U$202&$U216,GTYF!$C:$AP,AZ$201,FALSE) -> 0
S217: Figure 10a | T217: Feuillus tolérants à résineux | U217: (FCTYF_FTR) | V217: =VLOOKUP($U$202&$U217,GTYF!$C:$AP,V$201,FALSE) -> 0 | W217: =VLOOKUP($U$202&$U217,GTYF!$C:$AP,W$201,FALSE) -> 0 | X217: =VLOOKUP($U$202&$U217,GTYF!$C:$AP,X$201,FALSE) -> 0 | Y217: =VLOOKUP($U$202&$U217,GTYF!$C:$AP,Y$201,FALSE) -> 0 | Z217: =VLOOKUP($U$202&$U217,GTYF!$C:$AP,Z$201,FALSE) -> 0 | AA217: =VLOOKUP($U$202&$U217,GTYF!$C:$AP,AA$201,FALSE) -> 0 | AB217: =VLOOKUP($U$202&$U217,GTYF!$C:$AP,AB$201,FALSE) -> 0 | AC217: =VLOOKUP($U$202&$U217,GTYF!$C:$AP,AC$201,FALSE) -> 0 | AD217: =VLOOKUP($U$202&$U217,GTYF!$C:$AP,AD$201,FALSE) -> 0 | AE217: =VLOOKUP($U$202&$U217,GTYF!$C:$AP,AE$201,FALSE) -> 0 | AF217: =VLOOKUP($U$202&$U217,GTYF!$C:$AP,AF$201,FALSE) -> 0 | AG217: =VLOOKUP($U$202&$U217,GTYF!$C:$AP,AG$201,FALSE) -> 0 | AH217: =VLOOKUP($U$202&$U217,GTYF!$C:$AP,AH$201,FALSE) -> 0 | AI217: =VLOOKUP($U$202&$U217,GTYF!$C:$AP,AI$201,FALSE) -> 0 | AJ217: =VLOOKUP($U$202&$U217,GTYF!$C:$AP,AJ$201,FALSE) -> 0 | AK217: =VLOOKUP($U$202&$U217,GTYF!$C:$AP,AK$201,FALSE) -> 0 | AL217: =VLOOKUP($U$202&$U217,GTYF!$C:$AP,AL$201,FALSE) -> 0 | AM217: =VLOOKUP($U$202&$U217,GTYF!$C:$AP,AM$201,FALSE) -> 0 | AN217: =VLOOKUP($U$202&$U217,GTYF!$C:$AP,AN$201,FALSE) -> 0 | AO217: =VLOOKUP($U$202&$U217,GTYF!$C:$AP,AO$201,FALSE) -> 0 | AP217: =VLOOKUP($U$202&$U217,GTYF!$C:$AP,AP$201,FALSE) -> 0 | AQ217: =VLOOKUP($U$202&$U217,GTYF!$C:$AP,AQ$201,FALSE) -> 0 | AR217: =VLOOKUP($U$202&$U217,GTYF!$C:$AP,AR$201,FALSE) -> 0 | AS217: =VLOOKUP($U$202&$U217,GTYF!$C:$AP,AS$201,FALSE) -> 0 | AT217: =VLOOKUP($U$202&$U217,GTYF!$C:$AP,AT$201,FALSE) -> 0 | AU217: =VLOOKUP($U$202&$U217,GTYF!$C:$AP,AU$201,FALSE) -> 0 | AV217: =VLOOKUP($U$202&$U217,GTYF!$C:$AP,AV$201,FALSE) -> 0 | AW217: =VLOOKUP($U$202&$U217,GTYF!$C:$AP,AW$201,FALSE) -> 0 | AX217: =VLOOKUP($U$202&$U217,GTYF!$C:$AP,AX$201,FALSE) -> 0 | AY217: =VLOOKUP($U$202&$U217,GTYF!$C:$AP,AY$201,FALSE) -> 0 | AZ217: =VLOOKUP($U$202&$U217,GTYF!$C:$AP,AZ$201,FALSE) -> 0
S218: Figure 10a | T218: Peupleraies | U218: (FCTYF_PEU) | V218: =VLOOKUP($U$202&$U218,GTYF!$C:$AP,V$201,FALSE) -> 13769.8 | W218: =VLOOKUP($U$202&$U218,GTYF!$C:$AP,W$201,FALSE) -> 14829.88 | X218: =VLOOKUP($U$202&$U218,GTYF!$C:$AP,X$201,FALSE) -> 15187.8 | Y218: =VLOOKUP($U$202&$U218,GTYF!$C:$AP,Y$201,FALSE) -> 15110.5 | Z218: =VLOOKUP($U$202&$U218,GTYF!$C:$AP,Z$201,FALSE) -> 15104.62 | AA218: =VLOOKUP($U$202&$U218,GTYF!$C:$AP,AA$201,FALSE) -> 15554.87 | AB218: =VLOOKUP($U$202&$U218,GTYF!$C:$AP,AB$201,FALSE) -> 15807.01 | AC218: =VLOOKUP($U$202&$U218,GTYF!$C:$AP,AC$201,FALSE) -> 16058.35 | AD218: =VLOOKUP($U$202&$U218,GTYF!$C:$AP,AD$201,FALSE) -> 16040.74 | AE218: =VLOOKUP($U$202&$U218,GTYF!$C:$AP,AE$201,FALSE) -> 15997.62 | AF218: =VLOOKUP($U$202&$U218,GTYF!$C:$AP,AF$201,FALSE) -> 15946.07 | AG218: =VLOOKUP($U$202&$U218,GTYF!$C:$AP,AG$201,FALSE) -> 15938.38 | AH218: =VLOOKUP($U$202&$U218,GTYF!$C:$AP,AH$201,FALSE) -> 16115.29 | AI218: =VLOOKUP($U$202&$U218,GTYF!$C:$AP,AI$201,FALSE) -> 16115.29 | AJ218: =VLOOKUP($U$202&$U218,GTYF!$C:$AP,AJ$201,FALSE) -> 16115.29 | AK218: =VLOOKUP($U$202&$U218,GTYF!$C:$AP,AK$201,FALSE) -> 16115.29 | AL218: =VLOOKUP($U$202&$U218,GTYF!$C:$AP,AL$201,FALSE) -> 16115.14 | AM218: =VLOOKUP($U$202&$U218,GTYF!$C:$AP,AM$201,FALSE) -> 16379.49 | AN218: =VLOOKUP($U$202&$U218,GTYF!$C:$AP,AN$201,FALSE) -> 16727.78 | AO218: =VLOOKUP($U$202&$U218,GTYF!$C:$AP,AO$201,FALSE) -> 16727.78 | AP218: =VLOOKUP($U$202&$U218,GTYF!$C:$AP,AP$201,FALSE) -> 16734.65 | AQ218: =VLOOKUP($U$202&$U218,GTYF!$C:$AP,AQ$201,FALSE) -> 16806.41 | AR218: =VLOOKUP($U$202&$U218,GTYF!$C:$AP,AR$201,FALSE) -> 16806.41 | AS218: =VLOOKUP($U$202&$U218,GTYF!$C:$AP,AS$201,FALSE) -> 16806.41 | AT218: =VLOOKUP($U$202&$U218,GTYF!$C:$AP,AT$201,FALSE) -> 16824.37 | AU218: =VLOOKUP($U$202&$U218,GTYF!$C:$AP,AU$201,FALSE) -> 16831.91 | AV218: =VLOOKUP($U$202&$U218,GTYF!$C:$AP,AV$201,FALSE) -> 17171.95 | AW218: =VLOOKUP($U$202&$U218,GTYF!$C:$AP,AW$201,FALSE) -> 17441.85 | AX218: =VLOOKUP($U$202&$U218,GTYF!$C:$AP,AX$201,FALSE) -> 18589.45 | AY218: =VLOOKUP($U$202&$U218,GTYF!$C:$AP,AY$201,FALSE) -> 19640.27 | AZ218: =VLOOKUP($U$202&$U218,GTYF!$C:$AP,AZ$201,FALSE) -> 19957.65
S219: Figure 10a | T219: Peupleraies à résineux | U219: (FCTYF_PEUR) | V219: =VLOOKUP($U$202&$U219,GTYF!$C:$AP,V$201,FALSE) -> 7069.7 | W219: =VLOOKUP($U$202&$U219,GTYF!$C:$AP,W$201,FALSE) -> 5959.66 | X219: =VLOOKUP($U$202&$U219,GTYF!$C:$AP,X$201,FALSE) -> 5502.81 | Y219: =VLOOKUP($U$202&$U219,GTYF!$C:$AP,Y$201,FALSE) -> 5497.3 | Z219: =VLOOKUP($U$202&$U219,GTYF!$C:$AP,Z$201,FALSE) -> 5423.39 | AA219: =VLOOKUP($U$202&$U219,GTYF!$C:$AP,AA$201,FALSE) -> 4895.57 | AB219: =VLOOKUP($U$202&$U219,GTYF!$C:$AP,AB$201,FALSE) -> 4568.59 | AC219: =VLOOKUP($U$202&$U219,GTYF!$C:$AP,AC$201,FALSE) -> 4256.49 | AD219: =VLOOKUP($U$202&$U219,GTYF!$C:$AP,AD$201,FALSE) -> 4222.09 | AE219: =VLOOKUP($U$202&$U219,GTYF!$C:$AP,AE$201,FALSE) -> 4221.24 | AF219: =VLOOKUP($U$202&$U219,GTYF!$C:$AP,AF$201,FALSE) -> 4220.89 | AG219: =VLOOKUP($U$202&$U219,GTYF!$C:$AP,AG$201,FALSE) -> 4183.86 | AH219: =VLOOKUP($U$202&$U219,GTYF!$C:$AP,AH$201,FALSE) -> 3951.6 | AI219: =VLOOKUP($U$202&$U219,GTYF!$C:$AP,AI$201,FALSE) -> 3908.3 | AJ219: =VLOOKUP($U$202&$U219,GTYF!$C:$AP,AJ$201,FALSE) -> 3874.83 | AK219: =VLOOKUP($U$202&$U219,GTYF!$C:$AP,AK$201,FALSE) -> 3871.21 | AL219: =VLOOKUP($U$202&$U219,GTYF!$C:$AP,AL$201,FALSE) -> 3869.92 | AM219: =VLOOKUP($U$202&$U219,GTYF!$C:$AP,AM$201,FALSE) -> 3605.57 | AN219: =VLOOKUP($U$202&$U219,GTYF!$C:$AP,AN$201,FALSE) -> 3257.28 | AO219: =VLOOKUP($U$202&$U219,GTYF!$C:$AP,AO$201,FALSE) -> 3257.28 | AP219: =VLOOKUP($U$202&$U219,GTYF!$C:$AP,AP$201,FALSE) -> 3250.41 | AQ219: =VLOOKUP($U$202&$U219,GTYF!$C:$AP,AQ$201,FALSE) -> 3178.65 | AR219: =VLOOKUP($U$202&$U219,GTYF!$C:$AP,AR$201,FALSE) -> 3178.65 | AS219: =VLOOKUP($U$202&$U219,GTYF!$C:$AP,AS$201,FALSE) -> 3178.65 | AT219: =VLOOKUP($U$202&$U219,GTYF!$C:$AP,AT$201,FALSE) -> 3160.69 | AU219: =VLOOKUP($U$202&$U219,GTYF!$C:$AP,AU$201,FALSE) -> 3153.15 | AV219: =VLOOKUP($U$202&$U219,GTYF!$C:$AP,AV$201,FALSE) -> 2813.11 | AW219: =VLOOKUP($U$202&$U219,GTYF!$C:$AP,AW$201,FALSE) -> 2543.21 | AX219: =VLOOKUP($U$202&$U219,GTYF!$C:$AP,AX$201,FALSE) -> 1395.61 | AY219: =VLOOKUP($U$202&$U219,GTYF!$C:$AP,AY$201,FALSE) -> 344.79 | AZ219: =VLOOKUP($U$202&$U219,GTYF!$C:$AP,AZ$201,FALSE) -> 27.41
S220: Figure 10a | T220: Pinèdes grises | U220: (FCTYF_PIG) | V220: =VLOOKUP($U$202&$U220,GTYF!$C:$AP,V$201,FALSE) -> 62505.7 | W220: =VLOOKUP($U$202&$U220,GTYF!$C:$AP,W$201,FALSE) -> 62668.9 | X220: =VLOOKUP($U$202&$U220,GTYF!$C:$AP,X$201,FALSE) -> 64559.18 | Y220: =VLOOKUP($U$202&$U220,GTYF!$C:$AP,Y$201,FALSE) -> 66457.54 | Z220: =VLOOKUP($U$202&$U220,GTYF!$C:$AP,Z$201,FALSE) -> 68258.14 | AA220: =VLOOKUP($U$202&$U220,GTYF!$C:$AP,AA$201,FALSE) -> 69999.04 | AB220: =VLOOKUP($U$202&$U220,GTYF!$C:$AP,AB$201,FALSE) -> 71897.74 | AC220: =VLOOKUP($U$202&$U220,GTYF!$C:$AP,AC$201,FALSE) -> 73287.63 | AD220: =VLOOKUP($U$202&$U220,GTYF!$C:$AP,AD$201,FALSE) -> 74704.7 | AE220: =VLOOKUP($U$202&$U220,GTYF!$C:$AP,AE$201,FALSE) -> 75731.93 | AF220: =VLOOKUP($U$202&$U220,GTYF!$C:$AP,AF$201,FALSE) -> 76870.83 | AG220: =VLOOKUP($U$202&$U220,GTYF!$C:$AP,AG$201,FALSE) -> 78140.13 | AH220: =VLOOKUP($U$202&$U220,GTYF!$C:$AP,AH$201,FALSE) -> 78934.07 | AI220: =VLOOKUP($U$202&$U220,GTYF!$C:$AP,AI$201,FALSE) -> 80360.98 | AJ220: =VLOOKUP($U$202&$U220,GTYF!$C:$AP,AJ$201,FALSE) -> 81723.3 | AK220: =VLOOKUP($U$202&$U220,GTYF!$C:$AP,AK$201,FALSE) -> 82835.72 | AL220: =VLOOKUP($U$202&$U220,GTYF!$C:$AP,AL$201,FALSE) -> 84096.37 | AM220: =VLOOKUP($U$202&$U220,GTYF!$C:$AP,AM$201,FALSE) -> 83602.51 | AN220: =VLOOKUP($U$202&$U220,GTYF!$C:$AP,AN$201,FALSE) -> 82198.72 | AO220: =VLOOKUP($U$202&$U220,GTYF!$C:$AP,AO$201,FALSE) -> 81954.6 | AP220: =VLOOKUP($U$202&$U220,GTYF!$C:$AP,AP$201,FALSE) -> 81742.64 | AQ220: =VLOOKUP($U$202&$U220,GTYF!$C:$AP,AQ$201,FALSE) -> 81500.63 | AR220: =VLOOKUP($U$202&$U220,GTYF!$C:$AP,AR$201,FALSE) -> 80875.8 | AS220: =VLOOKUP($U$202&$U220,GTYF!$C:$AP,AS$201,FALSE) -> 81406.75 | AT220: =VLOOKUP($U$202&$U220,GTYF!$C:$AP,AT$201,FALSE) -> 80884.96 | AU220: =VLOOKUP($U$202&$U220,GTYF!$C:$AP,AU$201,FALSE) -> 80591.08 | AV220: =VLOOKUP($U$202&$U220,GTYF!$C:$AP,AV$201,FALSE) -> 81025.13 | AW220: =VLOOKUP($U$202&$U220,GTYF!$C:$AP,AW$201,FALSE) -> 80921.9 | AX220: =VLOOKUP($U$202&$U220,GTYF!$C:$AP,AX$201,FALSE) -> 80894.08 | AY220: =VLOOKUP($U$202&$U220,GTYF!$C:$AP,AY$201,FALSE) -> 78947.34 | AZ220: =VLOOKUP($U$202&$U220,GTYF!$C:$AP,AZ$201,FALSE) -> 76631.77
S221: Figure 10a | T221: Pinèdes blanches | U221: (FCTYF_PIN) | V221: =VLOOKUP($U$202&$U221,GTYF!$C:$AP,V$201,FALSE) -> 0 | W221: =VLOOKUP($U$202&$U221,GTYF!$C:$AP,W$201,FALSE) -> 0 | X221: =VLOOKUP($U$202&$U221,GTYF!$C:$AP,X$201,FALSE) -> 0 | Y221: =VLOOKUP($U$202&$U221,GTYF!$C:$AP,Y$201,FALSE) -> 0 | Z221: =VLOOKUP($U$202&$U221,GTYF!$C:$AP,Z$201,FALSE) -> 0 | AA221: =VLOOKUP($U$202&$U221,GTYF!$C:$AP,AA$201,FALSE) -> 0 | AB221: =VLOOKUP($U$202&$U221,GTYF!$C:$AP,AB$201,FALSE) -> 0 | AC221: =VLOOKUP($U$202&$U221,GTYF!$C:$AP,AC$201,FALSE) -> 0 | AD221: =VLOOKUP($U$202&$U221,GTYF!$C:$AP,AD$201,FALSE) -> 0 | AE221: =VLOOKUP($U$202&$U221,GTYF!$C:$AP,AE$201,FALSE) -> 0 | AF221: =VLOOKUP($U$202&$U221,GTYF!$C:$AP,AF$201,FALSE) -> 0 | AG221: =VLOOKUP($U$202&$U221,GTYF!$C:$AP,AG$201,FALSE) -> 0 | AH221: =VLOOKUP($U$202&$U221,GTYF!$C:$AP,AH$201,FALSE) -> 0 | AI221: =VLOOKUP($U$202&$U221,GTYF!$C:$AP,AI$201,FALSE) -> 0 | AJ221: =VLOOKUP($U$202&$U221,GTYF!$C:$AP,AJ$201,FALSE) -> 0 | AK221: =VLOOKUP($U$202&$U221,GTYF!$C:$AP,AK$201,FALSE) -> 0 | AL221: =VLOOKUP($U$202&$U221,GTYF!$C:$AP,AL$201,FALSE) -> 0 | AM221: =VLOOKUP($U$202&$U221,GTYF!$C:$AP,AM$201,FALSE) -> 0 | AN221: =VLOOKUP($U$202&$U221,GTYF!$C:$AP,AN$201,FALSE) -> 0 | AO221: =VLOOKUP($U$202&$U221,GTYF!$C:$AP,AO$201,FALSE) -> 0 | AP221: =VLOOKUP($U$202&$U221,GTYF!$C:$AP,AP$201,FALSE) -> 0 | AQ221: =VLOOKUP($U$202&$U221,GTYF!$C:$AP,AQ$201,FALSE) -> 0 | AR221: =VLOOKUP($U$202&$U221,GTYF!$C:$AP,AR$201,FALSE) -> 0 | AS221: =VLOOKUP($U$202&$U221,GTYF!$C:$AP,AS$201,FALSE) -> 0 | AT221: =VLOOKUP($U$202&$U221,GTYF!$C:$AP,AT$201,FALSE) -> 0 | AU221: =VLOOKUP($U$202&$U221,GTYF!$C:$AP,AU$201,FALSE) -> 0 | AV221: =VLOOKUP($U$202&$U221,GTYF!$C:$AP,AV$201,FALSE) -> 0 | AW221: =VLOOKUP($U$202&$U221,GTYF!$C:$AP,AW$201,FALSE) -> 0 | AX221: =VLOOKUP($U$202&$U221,GTYF!$C:$AP,AX$201,FALSE) -> 0 | AY221: =VLOOKUP($U$202&$U221,GTYF!$C:$AP,AY$201,FALSE) -> 0 | AZ221: =VLOOKUP($U$202&$U221,GTYF!$C:$AP,AZ$201,FALSE) -> 0
S222: Figure 10a | T222: Prucheraies | U222: (FCTYF_PRU) | V222: =VLOOKUP($U$202&$U222,GTYF!$C:$AP,V$201,FALSE) -> 0 | W222: =VLOOKUP($U$202&$U222,GTYF!$C:$AP,W$201,FALSE) -> 0 | X222: =VLOOKUP($U$202&$U222,GTYF!$C:$AP,X$201,FALSE) -> 0 | Y222: =VLOOKUP($U$202&$U222,GTYF!$C:$AP,Y$201,FALSE) -> 0 | Z222: =VLOOKUP($U$202&$U222,GTYF!$C:$AP,Z$201,FALSE) -> 0 | AA222: =VLOOKUP($U$202&$U222,GTYF!$C:$AP,AA$201,FALSE) -> 0 | AB222: =VLOOKUP($U$202&$U222,GTYF!$C:$AP,AB$201,FALSE) -> 0 | AC222: =VLOOKUP($U$202&$U222,GTYF!$C:$AP,AC$201,FALSE) -> 0 | AD222: =VLOOKUP($U$202&$U222,GTYF!$C:$AP,AD$201,FALSE) -> 0 | AE222: =VLOOKUP($U$202&$U222,GTYF!$C:$AP,AE$201,FALSE) -> 0 | AF222: =VLOOKUP($U$202&$U222,GTYF!$C:$AP,AF$201,FALSE) -> 0 | AG222: =VLOOKUP($U$202&$U222,GTYF!$C:$AP,AG$201,FALSE) -> 0 | AH222: =VLOOKUP($U$202&$U222,GTYF!$C:$AP,AH$201,FALSE) -> 0 | AI222: =VLOOKUP($U$202&$U222,GTYF!$C:$AP,AI$201,FALSE) -> 0 | AJ222: =VLOOKUP($U$202&$U222,GTYF!$C:$AP,AJ$201,FALSE) -> 0 | AK222: =VLOOKUP($U$202&$U222,GTYF!$C:$AP,AK$201,FALSE) -> 0 | AL222: =VLOOKUP($U$202&$U222,GTYF!$C:$AP,AL$201,FALSE) -> 0 | AM222: =VLOOKUP($U$202&$U222,GTYF!$C:$AP,AM$201,FALSE) -> 0 | AN222: =VLOOKUP($U$202&$U222,GTYF!$C:$AP,AN$201,FALSE) -> 0 | AO222: =VLOOKUP($U$202&$U222,GTYF!$C:$AP,AO$201,FALSE) -> 0 | AP222: =VLOOKUP($U$202&$U222,GTYF!$C:$AP,AP$201,FALSE) -> 0 | AQ222: =VLOOKUP($U$202&$U222,GTYF!$C:$AP,AQ$201,FALSE) -> 0 | AR222: =VLOOKUP($U$202&$U222,GTYF!$C:$AP,AR$201,FALSE) -> 0 | AS222: =VLOOKUP($U$202&$U222,GTYF!$C:$AP,AS$201,FALSE) -> 0 | AT222: =VLOOKUP($U$202&$U222,GTYF!$C:$AP,AT$201,FALSE) -> 0 | AU222: =VLOOKUP($U$202&$U222,GTYF!$C:$AP,AU$201,FALSE) -> 0 | AV222: =VLOOKUP($U$202&$U222,GTYF!$C:$AP,AV$201,FALSE) -> 0 | AW222: =VLOOKUP($U$202&$U222,GTYF!$C:$AP,AW$201,FALSE) -> 0 | AX222: =VLOOKUP($U$202&$U222,GTYF!$C:$AP,AX$201,FALSE) -> 0 | AY222: =VLOOKUP($U$202&$U222,GTYF!$C:$AP,AY$201,FALSE) -> 0 | AZ222: =VLOOKUP($U$202&$U222,GTYF!$C:$AP,AZ$201,FALSE) -> 0
S223: Figure 10a | T223: Résineux à feuillus | U223: (FCTYF_RF) | V223: =VLOOKUP($U$202&$U223,GTYF!$C:$AP,V$201,FALSE) -> 95406 | W223: =VLOOKUP($U$202&$U223,GTYF!$C:$AP,W$201,FALSE) -> 101748.84 | X223: =VLOOKUP($U$202&$U223,GTYF!$C:$AP,X$201,FALSE) -> 98886.41 | Y223: =VLOOKUP($U$202&$U223,GTYF!$C:$AP,Y$201,FALSE) -> 100427.13 | Z223: =VLOOKUP($U$202&$U223,GTYF!$C:$AP,Z$201,FALSE) -> 103910.55 | AA223: =VLOOKUP($U$202&$U223,GTYF!$C:$AP,AA$201,FALSE) -> 104408.09 | AB223: =VLOOKUP($U$202&$U223,GTYF!$C:$AP,AB$201,FALSE) -> 105910.81 | AC223: =VLOOKUP($U$202&$U223,GTYF!$C:$AP,AC$201,FALSE) -> 107133.23 | AD223: =VLOOKUP($U$202&$U223,GTYF!$C:$AP,AD$201,FALSE) -> 108992.37 | AE223: =VLOOKUP($U$202&$U223,GTYF!$C:$AP,AE$201,FALSE) -> 107814.13 | AF223: =VLOOKUP($U$202&$U223,GTYF!$C:$AP,AF$201,FALSE) -> 104165.3 | AG223: =VLOOKUP($U$202&$U223,GTYF!$C:$AP,AG$201,FALSE) -> 106073.01 | AH223: =VLOOKUP($U$202&$U223,GTYF!$C:$AP,AH$201,FALSE) -> 104754.34 | AI223: =VLOOKUP($U$202&$U223,GTYF!$C:$AP,AI$201,FALSE) -> 102645.33 | AJ223: =VLOOKUP($U$202&$U223,GTYF!$C:$AP,AJ$201,FALSE) -> 100535.29 | AK223: =VLOOKUP($U$202&$U223,GTYF!$C:$AP,AK$201,FALSE) -> 97962.87 | AL223: =VLOOKUP($U$202&$U223,GTYF!$C:$AP,AL$201,FALSE) -> 94757.15 | AM223: =VLOOKUP($U$202&$U223,GTYF!$C:$AP,AM$201,FALSE) -> 96540.77 | AN223: =VLOOKUP($U$202&$U223,GTYF!$C:$AP,AN$201,FALSE) -> 100112.97 | AO223: =VLOOKUP($U$202&$U223,GTYF!$C:$AP,AO$201,FALSE) -> 102157.25 | AP223: =VLOOKUP($U$202&$U223,GTYF!$C:$AP,AP$201,FALSE) -> 107217.55 | AQ223: =VLOOKUP($U$202&$U223,GTYF!$C:$AP,AQ$201,FALSE) -> 114570.44 | AR223: =VLOOKUP($U$202&$U223,GTYF!$C:$AP,AR$201,FALSE) -> 120851.72 | AS223: =VLOOKUP($U$202&$U223,GTYF!$C:$AP,AS$201,FALSE) -> 126864.56 | AT223: =VLOOKUP($U$202&$U223,GTYF!$C:$AP,AT$201,FALSE) -> 132544.19 | AU223: =VLOOKUP($U$202&$U223,GTYF!$C:$AP,AU$201,FALSE) -> 139942.89 | AV223: =VLOOKUP($U$202&$U223,GTYF!$C:$AP,AV$201,FALSE) -> 137785.29 | AW223: =VLOOKUP($U$202&$U223,GTYF!$C:$AP,AW$201,FALSE) -> 137995.33 | AX223: =VLOOKUP($U$202&$U223,GTYF!$C:$AP,AX$201,FALSE) -> 140305.06 | AY223: =VLOOKUP($U$202&$U223,GTYF!$C:$AP,AY$201,FALSE) -> 142608.42 | AZ223: =VLOOKUP($U$202&$U223,GTYF!$C:$AP,AZ$201,FALSE) -> 147328.32
S224: Figure 10a | T224: Sapinières | U224: (FCTYF_SAB) | V224: =VLOOKUP($U$202&$U224,GTYF!$C:$AP,V$201,FALSE) -> 122685.5 | W224: =VLOOKUP($U$202&$U224,GTYF!$C:$AP,W$201,FALSE) -> 117122.05 | X224: =VLOOKUP($U$202&$U224,GTYF!$C:$AP,X$201,FALSE) -> 118746.37 | Y224: =VLOOKUP($U$202&$U224,GTYF!$C:$AP,Y$201,FALSE) -> 117773.84 | Z224: =VLOOKUP($U$202&$U224,GTYF!$C:$AP,Z$201,FALSE) -> 118589.1 | AA224: =VLOOKUP($U$202&$U224,GTYF!$C:$AP,AA$201,FALSE) -> 119171.96 | AB224: =VLOOKUP($U$202&$U224,GTYF!$C:$AP,AB$201,FALSE) -> 121263.71 | AC224: =VLOOKUP($U$202&$U224,GTYF!$C:$AP,AC$201,FALSE) -> 117156.41 | AD224: =VLOOKUP($U$202&$U224,GTYF!$C:$AP,AD$201,FALSE) -> 108762.84 | AE224: =VLOOKUP($U$202&$U224,GTYF!$C:$AP,AE$201,FALSE) -> 96833.44 | AF224: =VLOOKUP($U$202&$U224,GTYF!$C:$AP,AF$201,FALSE) -> 94645.27 | AG224: =VLOOKUP($U$202&$U224,GTYF!$C:$AP,AG$201,FALSE) -> 89960.05 | AH224: =VLOOKUP($U$202&$U224,GTYF!$C:$AP,AH$201,FALSE) -> 87409.45 | AI224: =VLOOKUP($U$202&$U224,GTYF!$C:$AP,AI$201,FALSE) -> 89382.67 | AJ224: =VLOOKUP($U$202&$U224,GTYF!$C:$AP,AJ$201,FALSE) -> 90666.06 | AK224: =VLOOKUP($U$202&$U224,GTYF!$C:$AP,AK$201,FALSE) -> 91166.52 | AL224: =VLOOKUP($U$202&$U224,GTYF!$C:$AP,AL$201,FALSE) -> 90429.73 | AM224: =VLOOKUP($U$202&$U224,GTYF!$C:$AP,AM$201,FALSE) -> 92734.82 | AN224: =VLOOKUP($U$202&$U224,GTYF!$C:$AP,AN$201,FALSE) -> 93917.49 | AO224: =VLOOKUP($U$202&$U224,GTYF!$C:$AP,AO$201,FALSE) -> 88412.33 | AP224: =VLOOKUP($U$202&$U224,GTYF!$C:$AP,AP$201,FALSE) -> 85792.47 | AQ224: =VLOOKUP($U$202&$U224,GTYF!$C:$AP,AQ$201,FALSE) -> 83757.15 | AR224: =VLOOKUP($U$202&$U224,GTYF!$C:$AP,AR$201,FALSE) -> 84126.68 | AS224: =VLOOKUP($U$202&$U224,GTYF!$C:$AP,AS$201,FALSE) -> 83133.92 | AT224: =VLOOKUP($U$202&$U224,GTYF!$C:$AP,AT$201,FALSE) -> 82832.5 | AU224: =VLOOKUP($U$202&$U224,GTYF!$C:$AP,AU$201,FALSE) -> 83916.73 | AV224: =VLOOKUP($U$202&$U224,GTYF!$C:$AP,AV$201,FALSE) -> 84465.33 | AW224: =VLOOKUP($U$202&$U224,GTYF!$C:$AP,AW$201,FALSE) -> 88158.37 | AX224: =VLOOKUP($U$202&$U224,GTYF!$C:$AP,AX$201,FALSE) -> 86695.07 | AY224: =VLOOKUP($U$202&$U224,GTYF!$C:$AP,AY$201,FALSE) -> 84330.68 | AZ224: =VLOOKUP($U$202&$U224,GTYF!$C:$AP,AZ$201,FALSE) -> 83496.82
B225: * Attention, étant donné que le graphique fait appel aux GTYF, certains TYF ne paraissent pas dans les bons types de couvert (ex: EoRx, PbFx, PuFx, ToFx) | S225: Figure 10a | T225: Cédrières | U225: (FCTYF_THO) | V225: =VLOOKUP($U$202&$U225,GTYF!$C:$AP,V$201,FALSE) -> 0 | W225: =VLOOKUP($U$202&$U225,GTYF!$C:$AP,W$201,FALSE) -> 0 | X225: =VLOOKUP($U$202&$U225,GTYF!$C:$AP,X$201,FALSE) -> 0 | Y225: =VLOOKUP($U$202&$U225,GTYF!$C:$AP,Y$201,FALSE) -> 0 | Z225: =VLOOKUP($U$202&$U225,GTYF!$C:$AP,Z$201,FALSE) -> 0 | AA225: =VLOOKUP($U$202&$U225,GTYF!$C:$AP,AA$201,FALSE) -> 0 | AB225: =VLOOKUP($U$202&$U225,GTYF!$C:$AP,AB$201,FALSE) -> 0 | AC225: =VLOOKUP($U$202&$U225,GTYF!$C:$AP,AC$201,FALSE) -> 0 | AD225: =VLOOKUP($U$202&$U225,GTYF!$C:$AP,AD$201,FALSE) -> 0 | AE225: =VLOOKUP($U$202&$U225,GTYF!$C:$AP,AE$201,FALSE) -> 0 | AF225: =VLOOKUP($U$202&$U225,GTYF!$C:$AP,AF$201,FALSE) -> 0 | AG225: =VLOOKUP($U$202&$U225,GTYF!$C:$AP,AG$201,FALSE) -> 0 | AH225: =VLOOKUP($U$202&$U225,GTYF!$C:$AP,AH$201,FALSE) -> 0 | AI225: =VLOOKUP($U$202&$U225,GTYF!$C:$AP,AI$201,FALSE) -> 0 | AJ225: =VLOOKUP($U$202&$U225,GTYF!$C:$AP,AJ$201,FALSE) -> 0 | AK225: =VLOOKUP($U$202&$U225,GTYF!$C:$AP,AK$201,FALSE) -> 0 | AL225: =VLOOKUP($U$202&$U225,GTYF!$C:$AP,AL$201,FALSE) -> 0 | AM225: =VLOOKUP($U$202&$U225,GTYF!$C:$AP,AM$201,FALSE) -> 0 | AN225: =VLOOKUP($U$202&$U225,GTYF!$C:$AP,AN$201,FALSE) -> 0 | AO225: =VLOOKUP($U$202&$U225,GTYF!$C:$AP,AO$201,FALSE) -> 0 | AP225: =VLOOKUP($U$202&$U225,GTYF!$C:$AP,AP$201,FALSE) -> 0 | AQ225: =VLOOKUP($U$202&$U225,GTYF!$C:$AP,AQ$201,FALSE) -> 0 | AR225: =VLOOKUP($U$202&$U225,GTYF!$C:$AP,AR$201,FALSE) -> 0 | AS225: =VLOOKUP($U$202&$U225,GTYF!$C:$AP,AS$201,FALSE) -> 0 | AT225: =VLOOKUP($U$202&$U225,GTYF!$C:$AP,AT$201,FALSE) -> 0 | AU225: =VLOOKUP($U$202&$U225,GTYF!$C:$AP,AU$201,FALSE) -> 0 | AV225: =VLOOKUP($U$202&$U225,GTYF!$C:$AP,AV$201,FALSE) -> 0 | AW225: =VLOOKUP($U$202&$U225,GTYF!$C:$AP,AW$201,FALSE) -> 0 | AX225: =VLOOKUP($U$202&$U225,GTYF!$C:$AP,AX$201,FALSE) -> 0 | AY225: =VLOOKUP($U$202&$U225,GTYF!$C:$AP,AY$201,FALSE) -> 0 | AZ225: =VLOOKUP($U$202&$U225,GTYF!$C:$AP,AZ$201,FALSE) -> 0
U228: Colonne | V228: 6 | W228: 7 | X228: 8 | Y228: 9 | Z228: 10 | AA228: 11 | AB228: 12 | AC228: 13 | AD228: 14 | AE228: 15 | AF228: 16 | AG228: 17 | AH228: 18 | AI228: 19 | AJ228: 20 | AK228: 21 | AL228: 22 | AM228: 23 | AN228: 24 | AO228: 25 | AP228: 26 | AQ228: 27 | AR228: 28 | AS228: 29 | AT228: 30 | AU228: 31 | AV228: 32 | AW228: 33 | AX228: 34 | AY228: 35 | AZ228: 36
B229: Figure 10c Évolution des superficies de hêtraie et d'érablière à hêtre | U229: Période | V229: P0 | W229: P1 | X229: P2 | Y229: P3 | Z229: P4 | AA229: P5 | AB229: P6 | AC229: P7 | AD229: P8 | AE229: P9 | AF229: P10 | AG229: P11 | AH229: P12 | AI229: P13 | AJ229: P14 | AK229: P15 | AL229: P16 | AM229: P17 | AN229: P18 | AO229: P19 | AP229: P20 | AQ229: P21 | AR229: P22 | AS229: P23 | AT229: P24 | AU229: P25 | AV229: P26 | AW229: P27 | AX229: P28 | AY229: P29 | AZ229: P30
U230: Axe des "X" Fin de période | V230: 2018 | W230: 2023 | X230: 2028 | Y230: 2033 | Z230: 2038 | AA230: 2043 | AB230: 2048 | AC230: 2053 | AD230: 2058 | AE230: 2063 | AF230: 2068 | AG230: 2073 | AH230: 2078 | AI230: 2083 | AJ230: 2088 | AK230: 2093 | AL230: 2098 | AM230: 2103 | AN230: 2108 | AO230: 2113 | AP230: 2118 | AQ230: 2123 | AR230: 2128 | AS230: 2133 | AT230: 2138 | AU230: 2143 | AV230: 2148 | AW230: 2153 | AX230: 2158 | AY230: 2163 | AZ230: 2168
S231: =LEFT(B$229,10) -> Figure 10c | T231: Hêtraie | U231: OSUPESHG_FX | V231: =VLOOKUP($U231,Output!$C:$AQ,V$228,FALSE) ->  | W231: =VLOOKUP($U231,Output!$C:$AQ,W$228,FALSE) ->  | X231: =VLOOKUP($U231,Output!$C:$AQ,X$228,FALSE) ->  | Y231: =VLOOKUP($U231,Output!$C:$AQ,Y$228,FALSE) ->  | Z231: =VLOOKUP($U231,Output!$C:$AQ,Z$228,FALSE) ->  | AA231: =VLOOKUP($U231,Output!$C:$AQ,AA$228,FALSE) ->  | AB231: =VLOOKUP($U231,Output!$C:$AQ,AB$228,FALSE) ->  | AC231: =VLOOKUP($U231,Output!$C:$AQ,AC$228,FALSE) ->  | AD231: =VLOOKUP($U231,Output!$C:$AQ,AD$228,FALSE) ->  | AE231: =VLOOKUP($U231,Output!$C:$AQ,AE$228,FALSE) ->  | AF231: =VLOOKUP($U231,Output!$C:$AQ,AF$228,FALSE) ->  | AG231: =VLOOKUP($U231,Output!$C:$AQ,AG$228,FALSE) ->  | AH231: =VLOOKUP($U231,Output!$C:$AQ,AH$228,FALSE) ->  | AI231: =VLOOKUP($U231,Output!$C:$AQ,AI$228,FALSE) ->  | AJ231: =VLOOKUP($U231,Output!$C:$AQ,AJ$228,FALSE) ->  | AK231: =VLOOKUP($U231,Output!$C:$AQ,AK$228,FALSE) ->  | AL231: =VLOOKUP($U231,Output!$C:$AQ,AL$228,FALSE) ->  | AM231: =VLOOKUP($U231,Output!$C:$AQ,AM$228,FALSE) ->  | AN231: =VLOOKUP($U231,Output!$C:$AQ,AN$228,FALSE) ->  | AO231: =VLOOKUP($U231,Output!$C:$AQ,AO$228,FALSE) ->  | AP231: =VLOOKUP($U231,Output!$C:$AQ,AP$228,FALSE) ->  | AQ231: =VLOOKUP($U231,Output!$C:$AQ,AQ$228,FALSE) ->  | AR231: =VLOOKUP($U231,Output!$C:$AQ,AR$228,FALSE) ->  | AS231: =VLOOKUP($U231,Output!$C:$AQ,AS$228,FALSE) ->  | AT231: =VLOOKUP($U231,Output!$C:$AQ,AT$228,FALSE) ->  | AU231: =VLOOKUP($U231,Output!$C:$AQ,AU$228,FALSE) ->  | AV231: =VLOOKUP($U231,Output!$C:$AQ,AV$228,FALSE) ->  | AW231: =VLOOKUP($U231,Output!$C:$AQ,AW$228,FALSE) ->  | AX231: =VLOOKUP($U231,Output!$C:$AQ,AX$228,FALSE) ->  | AY231: =VLOOKUP($U231,Output!$C:$AQ,AY$228,FALSE) ->  | AZ231: =VLOOKUP($U231,Output!$C:$AQ,AZ$228,FALSE) -> 
S232: =LEFT(B$229,10) -> Figure 10c | T232: Érablière à hêtre | U232: OSUPESHG | V232: =VLOOKUP($U232,Output!$C:$AQ,V$228,FALSE) ->  | W232: =VLOOKUP($U232,Output!$C:$AQ,W$228,FALSE) ->  | X232: =VLOOKUP($U232,Output!$C:$AQ,X$228,FALSE) ->  | Y232: =VLOOKUP($U232,Output!$C:$AQ,Y$228,FALSE) ->  | Z232: =VLOOKUP($U232,Output!$C:$AQ,Z$228,FALSE) ->  | AA232: =VLOOKUP($U232,Output!$C:$AQ,AA$228,FALSE) ->  | AB232: =VLOOKUP($U232,Output!$C:$AQ,AB$228,FALSE) ->  | AC232: =VLOOKUP($U232,Output!$C:$AQ,AC$228,FALSE) ->  | AD232: =VLOOKUP($U232,Output!$C:$AQ,AD$228,FALSE) ->  | AE232: =VLOOKUP($U232,Output!$C:$AQ,AE$228,FALSE) ->  | AF232: =VLOOKUP($U232,Output!$C:$AQ,AF$228,FALSE) ->  | AG232: =VLOOKUP($U232,Output!$C:$AQ,AG$228,FALSE) ->  | AH232: =VLOOKUP($U232,Output!$C:$AQ,AH$228,FALSE) ->  | AI232: =VLOOKUP($U232,Output!$C:$AQ,AI$228,FALSE) ->  | AJ232: =VLOOKUP($U232,Output!$C:$AQ,AJ$228,FALSE) ->  | AK232: =VLOOKUP($U232,Output!$C:$AQ,AK$228,FALSE) ->  | AL232: =VLOOKUP($U232,Output!$C:$AQ,AL$228,FALSE) ->  | AM232: =VLOOKUP($U232,Output!$C:$AQ,AM$228,FALSE) ->  | AN232: =VLOOKUP($U232,Output!$C:$AQ,AN$228,FALSE) ->  | AO232: =VLOOKUP($U232,Output!$C:$AQ,AO$228,FALSE) ->  | AP232: =VLOOKUP($U232,Output!$C:$AQ,AP$228,FALSE) ->  | AQ232: =VLOOKUP($U232,Output!$C:$AQ,AQ$228,FALSE) ->  | AR232: =VLOOKUP($U232,Output!$C:$AQ,AR$228,FALSE) ->  | AS232: =VLOOKUP($U232,Output!$C:$AQ,AS$228,FALSE) ->  | AT232: =VLOOKUP($U232,Output!$C:$AQ,AT$228,FALSE) ->  | AU232: =VLOOKUP($U232,Output!$C:$AQ,AU$228,FALSE) ->  | AV232: =VLOOKUP($U232,Output!$C:$AQ,AV$228,FALSE) ->  | AW232: =VLOOKUP($U232,Output!$C:$AQ,AW$228,FALSE) ->  | AX232: =VLOOKUP($U232,Output!$C:$AQ,AX$228,FALSE) ->  | AY232: =VLOOKUP($U232,Output!$C:$AQ,AY$228,FALSE) ->  | AZ232: =VLOOKUP($U232,Output!$C:$AQ,AZ$228,FALSE) -> 
S233: =LEFT(B$229,10) -> Figure 10c | T233: Total | U233: Total | V233: =SUM(V231:V232) ->  | W233: =SUM(W231:W232) -> 
B255: Figure 11b Évolution du volume de sapin et d'épinettes sur pied dans la composante SEPM
U262: Colonne | V262: 6 | W262: 7 | X262: 8 | Y262: 9 | Z262: 10 | AA262: 11 | AB262: 12 | AC262: 13 | AD262: 14 | AE262: 15 | AF262: 16 | AG262: 17 | AH262: 18 | AI262: 19 | AJ262: 20 | AK262: 21 | AL262: 22 | AM262: 23 | AN262: 24 | AO262: 25 | AP262: 26 | AQ262: 27 | AR262: 28 | AS262: 29 | AT262: 30 | AU262: 31 | AV262: 32 | AW262: 33 | AX262: 34 | AY262: 35 | AZ262: 36
U263: Axe des "X" Fin de période | V263: 2018 | W263: 2023 | X263: 2028 | Y263: 2033 | Z263: 2038 | AA263: 2043 | AB263: 2048 | AC263: 2053 | AD263: 2058 | AE263: 2063 | AF263: 2068 | AG263: 2073 | AH263: 2078 | AI263: 2083 | AJ263: 2088 | AK263: 2093 | AL263: 2098 | AM263: 2103 | AN263: 2108 | AO263: 2113 | AP263: 2118 | AQ263: 2123 | AR263: 2128 | AS263: 2133 | AT263: 2138 | AU263: 2143 | AV263: 2148 | AW263: 2153 | AX263: 2158 | AY263: 2163 | AZ263: 2168
S264: =LEFT(B$255,10) -> Figure 11b | U264: Période | V264: P0 | W264: P1 | X264: P2 | Y264: P3 | Z264: P4 | AA264: P5 | AB264: P6 | AC264: P7 | AD264: P8 | AE264: P9 | AF264: P10 | AG264: P11 | AH264: P12 | AI264: P13 | AJ264: P14 | AK264: P15 | AL264: P16 | AM264: P17 | AN264: P18 | AO264: P19 | AP264: P20 | AQ264: P21 | AR264: P22 | AS264: P23 | AT264: P24 | AU264: P25 | AV264: P26 | AW264: P27 | AX264: P28 | AY264: P29 | AZ264: P30
S265: Figure 11b | T265: Légende | Y265: PERIOD3 | Z265: PERIOD4 | AA265: PERIOD5 | AB265: PERIOD6 | AC265: PERIOD7 | AD265: PERIOD8 | AE265: PERIOD9 | AF265: PERIOD10 | AG265: PERIOD11 | AH265: PERIOD12 | AI265: PERIOD13 | AJ265: PERIOD14 | AK265: PERIOD15 | AL265: PERIOD16 | AM265: PERIOD17 | AN265: PERIOD18 | AO265: PERIOD19 | AP265: PERIOD20 | AQ265: PERIOD21 | AR265: PERIOD22 | AS265: PERIOD23 | AT265: PERIOD24 | AU265: PERIOD25 | AV265: PERIOD26 | AW265: PERIOD27 | AX265: PERIOD28 | AY265: PERIOD29 | AZ265: PERIOD30
S266: Figure 11b | T266: Volume Sapin | U266: OVOLSABPIEDINC(FCTYF_SEPM) | V266: =VLOOKUP($U266,GTYF!$C:$AL,Figures!V$262,FALSE) -> 7237083.43 | W266: =VLOOKUP($U266,GTYF!$C:$AL,Figures!W$262,FALSE) -> 6762674.7 | X266: =VLOOKUP($U266,GTYF!$C:$AL,Figures!X$262,FALSE) -> 5112589.46 | Y266: =VLOOKUP($U266,GTYF!$C:$AL,Figures!Y$262,FALSE) -> 5071960.59 | Z266: =VLOOKUP($U266,GTYF!$C:$AL,Figures!Z$262,FALSE) -> 5160512.01 | AA266: =VLOOKUP($U266,GTYF!$C:$AL,Figures!AA$262,FALSE) -> 5002866.18 | AB266: =VLOOKUP($U266,GTYF!$C:$AL,Figures!AB$262,FALSE) -> 5047183.95 | AC266: =VLOOKUP($U266,GTYF!$C:$AL,Figures!AC$262,FALSE) -> 4869660.04 | AD266: =VLOOKUP($U266,GTYF!$C:$AL,Figures!AD$262,FALSE) -> 4826082.46 | AE266: =VLOOKUP($U266,GTYF!$C:$AL,Figures!AE$262,FALSE) -> 4533991.18 | AF266: =VLOOKUP($U266,GTYF!$C:$AL,Figures!AF$262,FALSE) -> 4709636.73 | AG266: =VLOOKUP($U266,GTYF!$C:$AL,Figures!AG$262,FALSE) -> 4714080.62 | AH266: =VLOOKUP($U266,GTYF!$C:$AL,Figures!AH$262,FALSE) -> 4896878.15 | AI266: =VLOOKUP($U266,GTYF!$C:$AL,Figures!AI$262,FALSE) -> 5252837.37 | AJ266: =VLOOKUP($U266,GTYF!$C:$AL,Figures!AJ$262,FALSE) -> 5622211.91 | AK266: =VLOOKUP($U266,GTYF!$C:$AL,Figures!AK$262,FALSE) -> 5981866.2 | AL266: =VLOOKUP($U266,GTYF!$C:$AL,Figures!AL$262,FALSE) -> 5663247.6 | AM266: =VLOOKUP($U266,GTYF!$C:$AL,Figures!AM$262,FALSE) -> 5973288.03 | AN266: =VLOOKUP($U266,GTYF!$C:$AL,Figures!AN$262,FALSE) -> 5648882.16 | AO266: =VLOOKUP($U266,GTYF!$C:$AL,Figures!AO$262,FALSE) -> 4971340.18 | AP266: =VLOOKUP($U266,GTYF!$C:$AL,Figures!AP$262,FALSE) -> 4731164.06 | AQ266: =VLOOKUP($U266,GTYF!$C:$AL,Figures!AQ$262,FALSE) -> 4543873.63 | AR266: =VLOOKUP($U266,GTYF!$C:$AL,Figures!AR$262,FALSE) -> 4565703.78 | AS266: =VLOOKUP($U266,GTYF!$C:$AL,Figures!AS$262,FALSE) -> 4351487.84 | AT266: =VLOOKUP($U266,GTYF!$C:$AL,Figures!AT$262,FALSE) -> 4469405.97 | AU266: =VLOOKUP($U266,GTYF!$C:$AL,Figures!AU$262,FALSE) -> 4940783.04 | AV266: =VLOOKUP($U266,GTYF!$C:$AL,Figures!AV$262,FALSE) -> 5044728.74 | AW266: =VLOOKUP($U266,GTYF!$C:$AL,Figures!AW$262,FALSE) -> 5584364.41 | AX266: =VLOOKUP($U266,GTYF!$C:$AL,Figures!AX$262,FALSE) -> 5832341.83 | AY266: =VLOOKUP($U266,GTYF!$C:$AL,Figures!AY$262,FALSE) -> 5917073.48 | AZ266: =VLOOKUP($U266,GTYF!$C:$AL,Figures!AZ$262,FALSE) -> 5935927.29
S267: Figure 11b | T267: Volume Épinettes | U267: OVOLGEPXPIEDINC(FCTYF_SEPM) | V267: =VLOOKUP($U267,GTYF!$C:$AL,Figures!V$262,FALSE) -> 25566377.83 | W267: =VLOOKUP($U267,GTYF!$C:$AL,Figures!W$262,FALSE) -> 23504952.84 | X267: =VLOOKUP($U267,GTYF!$C:$AL,Figures!X$262,FALSE) -> 21515407.29 | Y267: =VLOOKUP($U267,GTYF!$C:$AL,Figures!Y$262,FALSE) -> 19960341.88 | Z267: =VLOOKUP($U267,GTYF!$C:$AL,Figures!Z$262,FALSE) -> 18569314.14 | AA267: =VLOOKUP($U267,GTYF!$C:$AL,Figures!AA$262,FALSE) -> 17967785.37 | AB267: =VLOOKUP($U267,GTYF!$C:$AL,Figures!AB$262,FALSE) -> 17588101.54 | AC267: =VLOOKUP($U267,GTYF!$C:$AL,Figures!AC$262,FALSE) -> 17831787.21 | AD267: =VLOOKUP($U267,GTYF!$C:$AL,Figures!AD$262,FALSE) -> 18360418.99 | AE267: =VLOOKUP($U267,GTYF!$C:$AL,Figures!AE$262,FALSE) -> 19146918.7 | AF267: =VLOOKUP($U267,GTYF!$C:$AL,Figures!AF$262,FALSE) -> 19923390.96 | AG267: =VLOOKUP($U267,GTYF!$C:$AL,Figures!AG$262,FALSE) -> 21359579.6 | AH267: =VLOOKUP($U267,GTYF!$C:$AL,Figures!AH$262,FALSE) -> 22806974.5 | AI267: =VLOOKUP($U267,GTYF!$C:$AL,Figures!AI$262,FALSE) -> 24361119.06 | AJ267: =VLOOKUP($U267,GTYF!$C:$AL,Figures!AJ$262,FALSE) -> 25916382.21 | AK267: =VLOOKUP($U267,GTYF!$C:$AL,Figures!AK$262,FALSE) -> 27663725.52 | AL267: =VLOOKUP($U267,GTYF!$C:$AL,Figures!AL$262,FALSE) -> 29159830.81 | AM267: =VLOOKUP($U267,GTYF!$C:$AL,Figures!AM$262,FALSE) -> 31060824.23 | AN267: =VLOOKUP($U267,GTYF!$C:$AL,Figures!AN$262,FALSE) -> 31140332.31 | AO267: =VLOOKUP($U267,GTYF!$C:$AL,Figures!AO$262,FALSE) -> 31440678.21 | AP267: =VLOOKUP($U267,GTYF!$C:$AL,Figures!AP$262,FALSE) -> 31254882.21 | AQ267: =VLOOKUP($U267,GTYF!$C:$AL,Figures!AQ$262,FALSE) -> 30611056.97 | AR267: =VLOOKUP($U267,GTYF!$C:$AL,Figures!AR$262,FALSE) -> 29571958.89 | AS267: =VLOOKUP($U267,GTYF!$C:$AL,Figures!AS$262,FALSE) -> 28434909.72 | AT267: =VLOOKUP($U267,GTYF!$C:$AL,Figures!AT$262,FALSE) -> 27122604.8 | AU267: =VLOOKUP($U267,GTYF!$C:$AL,Figures!AU$262,FALSE) -> 25766386.72 | AV267: =VLOOKUP($U267,GTYF!$C:$AL,Figures!AV$262,FALSE) -> 25433226.1 | AW267: =VLOOKUP($U267,GTYF!$C:$AL,Figures!AW$262,FALSE) -> 24435118.8 | AX267: =VLOOKUP($U267,GTYF!$C:$AL,Figures!AX$262,FALSE) -> 24406789.83 | AY267: =VLOOKUP($U267,GTYF!$C:$AL,Figures!AY$262,FALSE) -> 24340229.38 | AZ267: =VLOOKUP($U267,GTYF!$C:$AL,Figures!AZ$262,FALSE) -> 24143814.09
S268: Figure 11b
S269: Figure 11b | T269: SEPM sur pied | U269: OVOLGSEPMPIEDINC(FCTYF_SEPM) | V269: =VLOOKUP($U269,GTYF!$C:$AL,Figures!V$262,FALSE) -> 36850318.39 | W269: =VLOOKUP($U269,GTYF!$C:$AL,Figures!W$262,FALSE) -> 33960374.14 | X269: =VLOOKUP($U269,GTYF!$C:$AL,Figures!X$262,FALSE) -> 30345406.66 | Y269: =VLOOKUP($U269,GTYF!$C:$AL,Figures!Y$262,FALSE) -> 28902406.48 | Z269: =VLOOKUP($U269,GTYF!$C:$AL,Figures!Z$262,FALSE) -> 27948830.6 | AA269: =VLOOKUP($U269,GTYF!$C:$AL,Figures!AA$262,FALSE) -> 27752313.77 | AB269: =VLOOKUP($U269,GTYF!$C:$AL,Figures!AB$262,FALSE) -> 28163820.6 | AC269: =VLOOKUP($U269,GTYF!$C:$AL,Figures!AC$262,FALSE) -> 29243291.03 | AD269: =VLOOKUP($U269,GTYF!$C:$AL,Figures!AD$262,FALSE) -> 30656989.69 | AE269: =VLOOKUP($U269,GTYF!$C:$AL,Figures!AE$262,FALSE) -> 32528075.51 | AF269: =VLOOKUP($U269,GTYF!$C:$AL,Figures!AF$262,FALSE) -> 34842338.29 | AG269: =VLOOKUP($U269,GTYF!$C:$AL,Figures!AG$262,FALSE) -> 37336954.24 | AH269: =VLOOKUP($U269,GTYF!$C:$AL,Figures!AH$262,FALSE) -> 39859702.56 | AI269: =VLOOKUP($U269,GTYF!$C:$AL,Figures!AI$262,FALSE) -> 42095186.38 | AJ269: =VLOOKUP($U269,GTYF!$C:$AL,Figures!AJ$262,FALSE) -> 44747879.45 | AK269: =VLOOKUP($U269,GTYF!$C:$AL,Figures!AK$262,FALSE) -> 47103023.38 | AL269: =VLOOKUP($U269,GTYF!$C:$AL,Figures!AL$262,FALSE) -> 49625093.05 | AM269: =VLOOKUP($U269,GTYF!$C:$AL,Figures!AM$262,FALSE) -> 51573551.43 | AN269: =VLOOKUP($U269,GTYF!$C:$AL,Figures!AN$262,FALSE) -> 50780122.3 | AO269: =VLOOKUP($U269,GTYF!$C:$AL,Figures!AO$262,FALSE) -> 50020301.75 | AP269: =VLOOKUP($U269,GTYF!$C:$AL,Figures!AP$262,FALSE) -> 49081371.11 | AQ269: =VLOOKUP($U269,GTYF!$C:$AL,Figures!AQ$262,FALSE) -> 48335743.21 | AR269: =VLOOKUP($U269,GTYF!$C:$AL,Figures!AR$262,FALSE) -> 47569165.65 | AS269: =VLOOKUP($U269,GTYF!$C:$AL,Figures!AS$262,FALSE) -> 46964052.95 | AT269: =VLOOKUP($U269,GTYF!$C:$AL,Figures!AT$262,FALSE) -> 46645311.3 | AU269: =VLOOKUP($U269,GTYF!$C:$AL,Figures!AU$262,FALSE) -> 46470093.98 | AV269: =VLOOKUP($U269,GTYF!$C:$AL,Figures!AV$262,FALSE) -> 47118900.37 | AW269: =VLOOKUP($U269,GTYF!$C:$AL,Figures!AW$262,FALSE) -> 47289292.74 | AX269: =VLOOKUP($U269,GTYF!$C:$AL,Figures!AX$262,FALSE) -> 47540681.36 | AY269: =VLOOKUP($U269,GTYF!$C:$AL,Figures!AY$262,FALSE) -> 48040048.27 | AZ269: =VLOOKUP($U269,GTYF!$C:$AL,Figures!AZ$262,FALSE) -> 47966769.38
S270: Figure 11b
S271: Figure 11b | T271: % Sapin | V271: =IF(ISERROR(V266),0,V266/V269) -> 0.1963913406 | W271: 0.1991342814 | X271: 0.1684798466 | Y271: 0.1754857539 | Z271: 0.1846414286 | AA271: 0.1802684353 | AB271: 0.1792080706 | AC271: 0.1665222986 | AD271: 0.1574219292 | AE271: 0.1393870098 | AF271: 0.1351699387 | AG271: 0.126257771 | AH271: 0.1228528523 | AI271: 0.1247847515 | AJ271: 0.1256419741 | AK271: 0.1269953767 | AL271: 0.1141206445 | AM271: 0.1158207621 | AN271: 0.111241996 | AO271: 0.09938644922 | AP271: 0.09639429284 | AQ271: 0.09400649143 | AR271: 0.09598032082 | AS271: 0.09265571361 | AT271: 0.09581683229 | AU271: 0.1063217785 | AV271: 0.1070638046 | AW271: 0.1180894043 | AX271: 0.1226810736 | AY271: 0.123169599 | AZ271: 0.1237508251
S272: Figure 11b | T272: % Épinettes | V272: =IF(ISERROR(V267),0,V267/V269) -> 0.6937898761 | W272: =IF(ISERROR(W267),0,W267/W269) -> 0.6921287953 | X272: 0.7090169373 | Y272: 0.6906117625 | Z272: 0.6644039747 | AA272: 0.6474337786 | AB272: 0.6244927416 | AC272: 0.6097736124 | AD272: 0.5988982994 | AE272: 0.5886274672 | AF272: 0.5718155537 | AG272: 0.5720761116 | AH272: 0.5721812516 | AI272: 0.5787150778 | AJ272: 0.5791644773 | AK272: 0.5873025452 | AL272: 0.5876025417 | AM272: 0.6022626592 | AN272: 0.6132386237 | AO272: 0.6285583475 | AP272: 0.6367972512 | AQ272: 0.6333006371 | AR272: 0.6216623413 | AS272: 0.6054611545 | AT272: 0.5814647613 | AU272: 0.554472447 | AV272: 0.5397669704 | AW272: 0.5167156746 | AX272: 0.5133874638 | AY272: 0.5066653814 | AZ272: 0.5033445946
S273: Figure 11b | T273: % Volume autre | V273: =1-(V272+V271) -> 0.1098187833 | W273: 0.1087369234 | X273: 0.1225032161 | Y273: 0.1339024836 | Z273: 0.1509545966 | AA273: 0.172297786 | AB273: 0.1962991878 | AC273: 0.223704089 | AD273: 0.2436797714 | AE273: 0.271985523 | AF273: 0.2930145077 | AG273: 0.3016661174 | AH273: 0.3049658961 | AI273: 0.2965001708 | AJ273: 0.2951935487 | AK273: 0.285702078 | AL273: 0.2982768138 | AM273: 0.2819165787 | AN273: 0.2755193803 | AO273: 0.2720552033 | AP273: 0.2668084559 | AQ273: 0.2726928715 | AR273: 0.2823573379 | AS273: 0.3018831319 | AT273: 0.3227184064 | AU273: 0.3392057745 | AV273: 0.3531692251 | AW273: 0.3651949211 | AX273: 0.3639314626 | AY273: 0.3701650196 | AZ273: 0.3729045802
B278: Figure 14 Indicateur de productivité
... 317 more rows

Sheet UTA
M1: Jeune forêt | R1: Niveau d'altération des vieilles forêts | W1: Niveau d'altération combiné | AA1: Info à récupérer par le SSP Niveau d'altération des vieilles forêts
A2: Inscrire la liste des numéros d'UTA de l'UA: | B2: VieuxAlerte (%) | C2: VieuxAccept (%) | D2: RegeAlerte (%) | E2: RegeAccept (%) | G2: VieuxAlerte (ha) | H2: VieuxAccept (ha) | I2: RegeAlerte (ha) | J2: RegeAccept (ha) | K2: SupUTA | M2: OSUPJEUNEREGECO PERIOD1 (%) | N2: État Jeune 2023 | O2: OSUPJEUNEREGECO PERIOD6 (%) | P2: État Jeune 2048 | R2: OSUPVIEUXTOTREGECO PERIOD1 (%) | S2: État Vielle 2023 | T2: OSUPVIEUXTOTREGECO PERIOD6 (%) | U2: État Vielle 2048 | W2: UTA | X2: 2023 | Y2: 2048 | AA2: UA | AB2: UTA | AC2: 2023 | AD2: 2048 | AE2: Mode de répartition spatiale | AP2: Mode de répartition spatiale
A3: UTA001 | B3: =ROUND(G3/$K3,3) -> 0.195 | C3: =ROUND(H3/$K3,3) -> 0.325 | D3: =ROUND(I3/$K3,3) -> 0.35 | E3: =ROUND(J3/$K3,3) -> 0.25 | G3: =VLOOKUP(CONCATENATE("OSUPVIEUXALERTEREGECO_"&A3),Output!$C:$AQ,6,FALSE) -> 30785.68 | H3: =VLOOKUP(CONCATENATE("OSUPVIEUXACCEPTREGECO_"&A3),Output!$C:$AQ,6,FALSE) -> 51309.47 | I3: =VLOOKUP(CONCATENATE("OSUPJEUNEALERTEREGECO_"&A3),Output!$C:$AQ,6,FALSE) -> 55256.36 | J3: =VLOOKUP(CONCATENATE("OSUPJEUNEACCEPTREGECO_"&A3),Output!$C:$AQ,6,FALSE) -> 39468.83 | K3: =VLOOKUP(CONCATENATE("OSUPREGECO_"&A3),Output!$C:$AQ,6,FALSE) -> 157875.3 | M3: =ROUND(VLOOKUP("OSUPJEUNEREGECO_"&A3,Output!$C:$AQ,7,FALSE)/VLOOKUP("OSUPREGECO_"&A3,Output!$C:$AQ,6,FALSE),3) -> 0.39 | N3: =IF(M3<=$E3,"Faible",IF(M3<$D3,"Modéré","Supérieur")) -> Supérieur | O3: =ROUND(VLOOKUP("OSUPJEUNEREGECO_"&$A3,Output!$C:$AQ,12,FALSE)/VLOOKUP("OSUPREGECO_"&A3,Output!$C:$AQ,6,FALSE),3) -> 0.087 | P3: =IF(O3<=$E3,"Faible",IF(O3<$D3,"Modéré","Supérieur")) -> Faible | R3: =ROUND(VLOOKUP("OSUPVIEUXTOTREGECO_"&$A3,Output!$C:$AQ,7,FALSE)/VLOOKUP("OSUPREGECO_"&A3,Output!$C:$AQ,6,FALSE),3) -> 0.392 | S3: =IF(R3<$B3,"Supérieur",IF(R3<$C3,"Modéré","Faible")) -> Faible | T3: =ROUND(VLOOKUP("OSUPVIEUXTOTREGECO_"&$A3,Output!$C:$AQ,12,FALSE)/VLOOKUP("OSUPREGECO_"&A3,Output!$C:$AQ,6,FALSE),3) -> 0.307 | U3: =IF(T3<$B3,"Supérieur",IF(T3<$C3,"Modéré","Faible")) -> Modéré | W3: =A3 -> UTA001 | X3: =IF(S3>N3,S3,N3) -> Supérieur | Y3: =IF(U3>P3,U3,P3) -> Modéré | AA3: =Tableaux!$O$33 -> 02751 | AB3: =W3 -> UTA001 | AC3: =S3 -> Faible | AD3: =U3 -> Modéré | AG3: Note: "Élevé" a été renommé "Supérieur" pour le bon fonctionnement des formules. | AP3: COS sapinière
A4: UTA002 | B4: =ROUND(G4/$K4,3) -> 0.195 | C4: 0.325 | D4: 0.35 | E4: 0.25 | G4: =VLOOKUP(CONCATENATE("OSUPVIEUXALERTEREGECO_"&A4),Output!$C:$AQ,6,FALSE) -> 35421.13 | H4: =VLOOKUP(CONCATENATE("OSUPVIEUXACCEPTREGECO_"&A4),Output!$C:$AQ,6,FALSE) -> 59035.21 | I4: =VLOOKUP(CONCATENATE("OSUPJEUNEALERTEREGECO_"&A4),Output!$C:$AQ,6,FALSE) -> 63576.38 | J4: =VLOOKUP(CONCATENATE("OSUPJEUNEACCEPTREGECO_"&A4),Output!$C:$AQ,6,FALSE) -> 45411.7 | K4: =VLOOKUP(CONCATENATE("OSUPREGECO_"&A4),Output!$C:$AQ,6,FALSE) -> 181646.8 | M4: =ROUND(VLOOKUP("OSUPJEUNEREGECO_"&A4,Output!$C:$AQ,7,FALSE)/VLOOKUP("OSUPREGECO_"&A4,Output!$C:$AQ,6,FALSE),3) -> 0.346 | N4: =IF(M4<=$E4,"Faible",IF(M4<$D4,"Modéré","Supérieur")) -> Modéré | O4: =ROUND(VLOOKUP("OSUPJEUNEREGECO_"&$A4,Output!$C:$AQ,12,FALSE)/VLOOKUP("OSUPREGECO_"&A4,Output!$C:$AQ,6,FALSE),3) -> 0.136 | P4: =IF(O4<=$E4,"Faible",IF(O4<$D4,"Modéré","Supérieur")) -> Faible | R4: =ROUND(VLOOKUP("OSUPVIEUXTOTREGECO_"&$A4,Output!$C:$AQ,7,FALSE)/VLOOKUP("OSUPREGECO_"&A4,Output!$C:$AQ,6,FALSE),3) -> 0.441 | S4: =IF(R4<$B4,"Supérieur",IF(R4<$C4,"Modéré","Faible")) -> Faible | T4: =ROUND(VLOOKUP("OSUPVIEUXTOTREGECO_"&$A4,Output!$C:$AQ,12,FALSE)/VLOOKUP("OSUPREGECO_"&A4,Output!$C:$AQ,6,FALSE),3) -> 0.319 | U4: =IF(T4<$B4,"Supérieur",IF(T4<$C4,"Modéré","Faible")) -> Modéré | W4: =A4 -> UTA002 | X4: =IF(S4>N4,S4,N4) -> Modéré | Y4: =IF(U4>P4,U4,P4) -> Modéré | AA4: =Tableaux!$O$33 -> 02751 | AB4: =W4 -> UTA002 | AC4: =S4 -> Faible | AD4: =U4 -> Modéré | AP4: COS pessière
A5: UTA003 | B5: 0.195 | C5: 0.325 | D5: 0.35 | E5: 0.25 | G5: =VLOOKUP(CONCATENATE("OSUPVIEUXALERTEREGECO_"&A5),Output!$C:$AQ,6,FALSE) -> 37501.07 | H5: =VLOOKUP(CONCATENATE("OSUPVIEUXACCEPTREGECO_"&A5),Output!$C:$AQ,6,FALSE) -> 62501.79 | I5: =VLOOKUP(CONCATENATE("OSUPJEUNEALERTEREGECO_"&A5),Output!$C:$AQ,6,FALSE) -> 67309.62 | J5: =VLOOKUP(CONCATENATE("OSUPJEUNEACCEPTREGECO_"&A5),Output!$C:$AQ,6,FALSE) -> 48078.3 | K5: =VLOOKUP(CONCATENATE("OSUPREGECO_"&A5),Output!$C:$AQ,6,FALSE) -> 192313.2 | M5: =ROUND(VLOOKUP("OSUPJEUNEREGECO_"&A5,Output!$C:$AQ,7,FALSE)/VLOOKUP("OSUPREGECO_"&A5,Output!$C:$AQ,6,FALSE),3) -> 0.377 | N5: Supérieur | O5: =ROUND(VLOOKUP("OSUPJEUNEREGECO_"&$A5,Output!$C:$AQ,12,FALSE)/VLOOKUP("OSUPREGECO_"&A5,Output!$C:$AQ,6,FALSE),3) -> 0.064 | P5: Faible | R5: =ROUND(VLOOKUP("OSUPVIEUXTOTREGECO_"&$A5,Output!$C:$AQ,7,FALSE)/VLOOKUP("OSUPREGECO_"&A5,Output!$C:$AQ,6,FALSE),3) -> 0.245 | S5: Modéré | T5: =ROUND(VLOOKUP("OSUPVIEUXTOTREGECO_"&$A5,Output!$C:$AQ,12,FALSE)/VLOOKUP("OSUPREGECO_"&A5,Output!$C:$AQ,6,FALSE),3) -> 0.195 | U5: Modéré | W5: UTA003 | X5: Supérieur | Y5: Modéré | AA5: =Tableaux!$O$33 -> 02751 | AB5: =W5 -> UTA003 | AC5: =S5 -> Modéré | AD5: =U5 -> Modéré | AP5: CMO
A6: UTA004 | B6: 0.147 | C6: 0.245 | D6: 0.3 | E6: 0.2 | G6: =VLOOKUP(CONCATENATE("OSUPVIEUXALERTEREGECO_"&A6),Output!$C:$AQ,6,FALSE) -> 22551.18 | H6: =VLOOKUP(CONCATENATE("OSUPVIEUXACCEPTREGECO_"&A6),Output!$C:$AQ,6,FALSE) -> 37585.3 | I6: =VLOOKUP(CONCATENATE("OSUPJEUNEALERTEREGECO_"&A6),Output!$C:$AQ,6,FALSE) -> 46022.82 | J6: =VLOOKUP(CONCATENATE("OSUPJEUNEACCEPTREGECO_"&A6),Output!$C:$AQ,6,FALSE) -> 30681.88 | K6: =VLOOKUP(CONCATENATE("OSUPREGECO_"&A6),Output!$C:$AQ,6,FALSE) -> 153409.4 | M6: =ROUND(VLOOKUP("OSUPJEUNEREGECO_"&A6,Output!$C:$AQ,7,FALSE)/VLOOKUP("OSUPREGECO_"&A6,Output!$C:$AQ,6,FALSE),3) -> 0.114 | N6: Faible | O6: =ROUND(VLOOKUP("OSUPJEUNEREGECO_"&$A6,Output!$C:$AQ,12,FALSE)/VLOOKUP("OSUPREGECO_"&A6,Output!$C:$AQ,6,FALSE),3) -> 0.198 | P6: Faible | R6: =ROUND(VLOOKUP("OSUPVIEUXTOTREGECO_"&$A6,Output!$C:$AQ,7,FALSE)/VLOOKUP("OSUPREGECO_"&A6,Output!$C:$AQ,6,FALSE),3) -> 0.443 | S6: Faible | T6: =ROUND(VLOOKUP("OSUPVIEUXTOTREGECO_"&$A6,Output!$C:$AQ,12,FALSE)/VLOOKUP("OSUPREGECO_"&A6,Output!$C:$AQ,6,FALSE),3) -> 0.275 | U6: Faible | W6: UTA004 | X6: Faible | Y6: Faible | AA6: =Tableaux!$O$33 -> 02751 | AB6: UTA004 | AC6: Faible | AD6: =U6 -> Faible | AP6: CMO entente Cris
A7: UTA105 | B7: 0.189 | C7: 0.315 | D7: 0.3 | E7: 0.2 | G7: =VLOOKUP(CONCATENATE("OSUPVIEUXALERTEREGECO_"&A7),Output!$C:$AQ,6,FALSE) -> 5107.84 | H7: =VLOOKUP(CONCATENATE("OSUPVIEUXACCEPTREGECO_"&A7),Output!$C:$AQ,6,FALSE) -> 8513.06 | I7: =VLOOKUP(CONCATENATE("OSUPJEUNEALERTEREGECO_"&A7),Output!$C:$AQ,6,FALSE) -> 8107.68 | J7: =VLOOKUP(CONCATENATE("OSUPJEUNEACCEPTREGECO_"&A7),Output!$C:$AQ,6,FALSE) -> 5405.12 | K7: =VLOOKUP(CONCATENATE("OSUPREGECO_"&A7),Output!$C:$AQ,6,FALSE) -> 27025.6 | M7: =ROUND(VLOOKUP("OSUPJEUNEREGECO_"&A7,Output!$C:$AQ,7,FALSE)/VLOOKUP("OSUPREGECO_"&A7,Output!$C:$AQ,6,FALSE),3) -> 0.148 | N7: Faible | O7: =ROUND(VLOOKUP("OSUPJEUNEREGECO_"&$A7,Output!$C:$AQ,12,FALSE)/VLOOKUP("OSUPREGECO_"&A7,Output!$C:$AQ,6,FALSE),3) -> 0.257 | P7: Modéré | R7: =ROUND(VLOOKUP("OSUPVIEUXTOTREGECO_"&$A7,Output!$C:$AQ,7,FALSE)/VLOOKUP("OSUPREGECO_"&A7,Output!$C:$AQ,6,FALSE),3) -> 0.242 | S7: Modéré | T7: =ROUND(VLOOKUP("OSUPVIEUXTOTREGECO_"&$A7,Output!$C:$AQ,12,FALSE)/VLOOKUP("OSUPREGECO_"&A7,Output!$C:$AQ,6,FALSE),3) -> 0.199 | U7: Modéré | W7: UTA105 | X7: Modéré | Y7: Modéré | AA7: =Tableaux!$O$33 -> 02751 | AB7: UTA105 | AC7: =S7 -> Modéré | AD7: =U7 -> Modéré | AG7: Voir à renommer "Élevé" dans la légende des figures | AP7: CMO entente BM
A8: UTA106 | B8: 0.147 | C8: 0.245 | D8: 0.3 | E8: 0.2 | G8: =VLOOKUP(CONCATENATE("OSUPVIEUXALERTEREGECO_"&A8),Output!$C:$AQ,6,FALSE) -> 3593.62 | H8: =VLOOKUP(CONCATENATE("OSUPVIEUXACCEPTREGECO_"&A8),Output!$C:$AQ,6,FALSE) -> 5989.37 | I8: =VLOOKUP(CONCATENATE("OSUPJEUNEALERTEREGECO_"&A8),Output!$C:$AQ,6,FALSE) -> 7333.92 | J8: =VLOOKUP(CONCATENATE("OSUPJEUNEACCEPTREGECO_"&A8),Output!$C:$AQ,6,FALSE) -> 4889.28 | K8: =VLOOKUP(CONCATENATE("OSUPREGECO_"&A8),Output!$C:$AQ,6,FALSE) -> 24446.4 | M8: =ROUND(VLOOKUP("OSUPJEUNEREGECO_"&A8,Output!$C:$AQ,7,FALSE)/VLOOKUP("OSUPREGECO_"&A8,Output!$C:$AQ,6,FALSE),3) -> 0.115 | N8: Faible | O8: =ROUND(VLOOKUP("OSUPJEUNEREGECO_"&$A8,Output!$C:$AQ,12,FALSE)/VLOOKUP("OSUPREGECO_"&A8,Output!$C:$AQ,6,FALSE),3) -> 0.179 | P8: Faible | R8: =ROUND(VLOOKUP("OSUPVIEUXTOTREGECO_"&$A8,Output!$C:$AQ,7,FALSE)/VLOOKUP("OSUPREGECO_"&A8,Output!$C:$AQ,6,FALSE),3) -> 0.354 | S8: Faible | T8: =ROUND(VLOOKUP("OSUPVIEUXTOTREGECO_"&$A8,Output!$C:$AQ,12,FALSE)/VLOOKUP("OSUPREGECO_"&A8,Output!$C:$AQ,6,FALSE),3) -> 0.347 | U8: Faible | W8: UTA106 | X8: Faible | Y8: Faible | AA8: =Tableaux!$O$33 -> 02751 | AB8: UTA106 | AC8: Faible | AD8: Faible
A9: UTA107 | B9: 0.189 | C9: 0.315 | D9: 0.3 | E9: 0.2 | G9: =VLOOKUP(CONCATENATE("OSUPVIEUXALERTEREGECO_"&A9),Output!$C:$AQ,6,FALSE) -> 5648.11 | H9: =VLOOKUP(CONCATENATE("OSUPVIEUXACCEPTREGECO_"&A9),Output!$C:$AQ,6,FALSE) -> 9413.52 | I9: =VLOOKUP(CONCATENATE("OSUPJEUNEALERTEREGECO_"&A9),Output!$C:$AQ,6,FALSE) -> 8965.26 | J9: =VLOOKUP(CONCATENATE("OSUPJEUNEACCEPTREGECO_"&A9),Output!$C:$AQ,6,FALSE) -> 5976.84 | K9: =VLOOKUP(CONCATENATE("OSUPREGECO_"&A9),Output!$C:$AQ,6,FALSE) -> 29884.2 | M9: =ROUND(VLOOKUP("OSUPJEUNEREGECO_"&A9,Output!$C:$AQ,7,FALSE)/VLOOKUP("OSUPREGECO_"&A9,Output!$C:$AQ,6,FALSE),3) -> 0.246 | N9: Modéré | O9: =ROUND(VLOOKUP("OSUPJEUNEREGECO_"&$A9,Output!$C:$AQ,12,FALSE)/VLOOKUP("OSUPREGECO_"&A9,Output!$C:$AQ,6,FALSE),3) -> 0.239 | P9: Modéré | R9: =ROUND(VLOOKUP("OSUPVIEUXTOTREGECO_"&$A9,Output!$C:$AQ,7,FALSE)/VLOOKUP("OSUPREGECO_"&A9,Output!$C:$AQ,6,FALSE),3) -> 0.285 | S9: Modéré | T9: =ROUND(VLOOKUP("OSUPVIEUXTOTREGECO_"&$A9,Output!$C:$AQ,12,FALSE)/VLOOKUP("OSUPREGECO_"&A9,Output!$C:$AQ,6,FALSE),3) -> 0.171 | U9: Supérieur | W9: UTA107 | X9: Modéré | Y9: Supérieur | AA9: =Tableaux!$O$33 -> 02751 | AB9: UTA107 | AC9: Modéré | AD9: Supérieur
A10: UTA108 | B10: 0.168 | C10: 0.28 | D10: 0.3 | E10: 0.2 | G10: =VLOOKUP(CONCATENATE("OSUPVIEUXALERTEREGECO_"&A10),Output!$C:$AQ,6,FALSE) -> 4779.36 | H10: =VLOOKUP(CONCATENATE("OSUPVIEUXACCEPTREGECO_"&A10),Output!$C:$AQ,6,FALSE) -> 7965.61 | I10: =VLOOKUP(CONCATENATE("OSUPJEUNEALERTEREGECO_"&A10),Output!$C:$AQ,6,FALSE) -> 8534.58 | J10: =VLOOKUP(CONCATENATE("OSUPJEUNEACCEPTREGECO_"&A10),Output!$C:$AQ,6,FALSE) -> 5689.72 | K10: =VLOOKUP(CONCATENATE("OSUPREGECO_"&A10),Output!$C:$AQ,6,FALSE) -> 28448.6 | M10: =ROUND(VLOOKUP("OSUPJEUNEREGECO_"&A10,Output!$C:$AQ,7,FALSE)/VLOOKUP("OSUPREGECO_"&A10,Output!$C:$AQ,6,FALSE),3) -> 0.019 | N10: Faible | O10: =ROUND(VLOOKUP("OSUPJEUNEREGECO_"&$A10,Output!$C:$AQ,12,FALSE)/VLOOKUP("OSUPREGECO_"&A10,Output!$C:$AQ,6,FALSE),3) -> 0.086 | P10: Faible | R10: =ROUND(VLOOKUP("OSUPVIEUXTOTREGECO_"&$A10,Output!$C:$AQ,7,FALSE)/VLOOKUP("OSUPREGECO_"&A10,Output!$C:$AQ,6,FALSE),3) -> 0.204 | S10: Modéré | T10: =ROUND(VLOOKUP("OSUPVIEUXTOTREGECO_"&$A10,Output!$C:$AQ,12,FALSE)/VLOOKUP("OSUPREGECO_"&A10,Output!$C:$AQ,6,FALSE),3) -> 0.194 | U10: Modéré | W10: UTA108 | X10: Modéré | Y10: Modéré | AA10: =Tableaux!$O$33 -> 02751 | AB10: UTA108 | AC10: Modéré | AD10: Modéré
A11: UTA109 | B11: 0.147 | C11: 0.245 | D11: 0.3 | E11: =ROUND(J11/$K11,3) -> 0.2 | G11: =VLOOKUP(CONCATENATE("OSUPVIEUXALERTEREGECO_"&A11),Output!$C:$AQ,6,FALSE) -> 5663.15 | H11: =VLOOKUP(CONCATENATE("OSUPVIEUXACCEPTREGECO_"&A11),Output!$C:$AQ,6,FALSE) -> 9438.58 | I11: =VLOOKUP(CONCATENATE("OSUPJEUNEALERTEREGECO_"&A11),Output!$C:$AQ,6,FALSE) -> 11557.44 | J11: =VLOOKUP(CONCATENATE("OSUPJEUNEACCEPTREGECO_"&A11),Output!$C:$AQ,6,FALSE) -> 7704.96 | K11: =VLOOKUP(CONCATENATE("OSUPREGECO_"&A11),Output!$C:$AQ,6,FALSE) -> 38524.8 | M11: =ROUND(VLOOKUP("OSUPJEUNEREGECO_"&A11,Output!$C:$AQ,7,FALSE)/VLOOKUP("OSUPREGECO_"&A11,Output!$C:$AQ,6,FALSE),3) -> 0.197 | N11: Faible | O11: =ROUND(VLOOKUP("OSUPJEUNEREGECO_"&$A11,Output!$C:$AQ,12,FALSE)/VLOOKUP("OSUPREGECO_"&A11,Output!$C:$AQ,6,FALSE),3) -> 0.289 | P11: Modéré | R11: =ROUND(VLOOKUP("OSUPVIEUXTOTREGECO_"&$A11,Output!$C:$AQ,7,FALSE)/VLOOKUP("OSUPREGECO_"&A11,Output!$C:$AQ,6,FALSE),3) -> 0.355 | S11: Faible | T11: =ROUND(VLOOKUP("OSUPVIEUXTOTREGECO_"&$A11,Output!$C:$AQ,12,FALSE)/VLOOKUP("OSUPREGECO_"&A11,Output!$C:$AQ,6,FALSE),3) -> 0.278 | U11: Faible | W11: UTA109 | X11: Faible | Y11: Modéré | AA11: =Tableaux!$O$33 -> 02751 | AB11: UTA109 | AC11: Faible | AD11: Faible
A12: UTA110 | B12: 0.168 | C12: 0.28 | D12: 0.3 | E12: 0.2 | G12: =VLOOKUP(CONCATENATE("OSUPVIEUXALERTEREGECO_"&A12),Output!$C:$AQ,6,FALSE) -> 5041.6 | H12: =VLOOKUP(CONCATENATE("OSUPVIEUXACCEPTREGECO_"&A12),Output!$C:$AQ,6,FALSE) -> 8402.66 | I12: =VLOOKUP(CONCATENATE("OSUPJEUNEALERTEREGECO_"&A12),Output!$C:$AQ,6,FALSE) -> 9002.85 | J12: =VLOOKUP(CONCATENATE("OSUPJEUNEACCEPTREGECO_"&A12),Output!$C:$AQ,6,FALSE) -> 6001.9 | K12: =VLOOKUP(CONCATENATE("OSUPREGECO_"&A12),Output!$C:$AQ,6,FALSE) -> 30009.5 | M12: =ROUND(VLOOKUP("OSUPJEUNEREGECO_"&A12,Output!$C:$AQ,7,FALSE)/VLOOKUP("OSUPREGECO_"&A12,Output!$C:$AQ,6,FALSE),3) -> 0.103 | N12: Faible | O12: =ROUND(VLOOKUP("OSUPJEUNEREGECO_"&$A12,Output!$C:$AQ,12,FALSE)/VLOOKUP("OSUPREGECO_"&A12,Output!$C:$AQ,6,FALSE),3) -> 0.048 | P12: Faible | R12: =ROUND(VLOOKUP("OSUPVIEUXTOTREGECO_"&$A12,Output!$C:$AQ,7,FALSE)/VLOOKUP("OSUPREGECO_"&A12,Output!$C:$AQ,6,FALSE),3) -> 0.115 | S12: Supérieur | T12: =ROUND(VLOOKUP("OSUPVIEUXTOTREGECO_"&$A12,Output!$C:$AQ,12,FALSE)/VLOOKUP("OSUPREGECO_"&A12,Output!$C:$AQ,6,FALSE),3) -> 0.168 | U12: Modéré | W12: UTA110 | X12: Supérieur | Y12: Modéré | AA12: =Tableaux!$O$33 -> 02751 | AB12: UTA110 | AC12: Supérieur | AD12: Modéré | AG12: Compléter cellules en jaune
A13: UTA111 | B13: 0.147 | C13: 0.245 | D13: 0.3 | E13: 0.2 | G13: =VLOOKUP(CONCATENATE("OSUPVIEUXALERTEREGECO_"&A13),Output!$C:$AQ,6,FALSE) -> 4815.84 | H13: =VLOOKUP(CONCATENATE("OSUPVIEUXACCEPTREGECO_"&A13),Output!$C:$AQ,6,FALSE) -> 8026.4 | I13: =VLOOKUP(CONCATENATE("OSUPJEUNEALERTEREGECO_"&A13),Output!$C:$AQ,6,FALSE) -> 9828.24 | J13: =VLOOKUP(CONCATENATE("OSUPJEUNEACCEPTREGECO_"&A13),Output!$C:$AQ,6,FALSE) -> 6552.16 | K13: =VLOOKUP(CONCATENATE("OSUPREGECO_"&A13),Output!$C:$AQ,6,FALSE) -> 32760.8 | M13: =ROUND(VLOOKUP("OSUPJEUNEREGECO_"&A13,Output!$C:$AQ,7,FALSE)/VLOOKUP("OSUPREGECO_"&A13,Output!$C:$AQ,6,FALSE),3) -> 0.214 | N13: Modéré | O13: =ROUND(VLOOKUP("OSUPJEUNEREGECO_"&$A13,Output!$C:$AQ,12,FALSE)/VLOOKUP("OSUPREGECO_"&A13,Output!$C:$AQ,6,FALSE),3) -> 0.118 | P13: Faible | R13: =ROUND(VLOOKUP("OSUPVIEUXTOTREGECO_"&$A13,Output!$C:$AQ,7,FALSE)/VLOOKUP("OSUPREGECO_"&A13,Output!$C:$AQ,6,FALSE),3) -> 0.146 | S13: Supérieur | T13: =ROUND(VLOOKUP("OSUPVIEUXTOTREGECO_"&$A13,Output!$C:$AQ,12,FALSE)/VLOOKUP("OSUPREGECO_"&A13,Output!$C:$AQ,6,FALSE),3) -> 0.198 | U13: Modéré | W13: UTA111 | X13: Supérieur | Y13: Modéré | AA13: =Tableaux!$O$33 -> 02751 | AB13: UTA111 | AC13: Supérieur | AD13: Modéré
A14: UTA112 | B14: 0.147 | C14: 0.245 | D14: 0.3 | E14: 0.2 | G14: =VLOOKUP(CONCATENATE("OSUPVIEUXALERTEREGECO_"&A14),Output!$C:$AQ,6,FALSE) -> 3124.32 | H14: =VLOOKUP(CONCATENATE("OSUPVIEUXACCEPTREGECO_"&A14),Output!$C:$AQ,6,FALSE) -> 5207.21 | I14: =VLOOKUP(CONCATENATE("OSUPJEUNEALERTEREGECO_"&A14),Output!$C:$AQ,6,FALSE) -> 6376.17 | J14: =VLOOKUP(CONCATENATE("OSUPJEUNEACCEPTREGECO_"&A14),Output!$C:$AQ,6,FALSE) -> 4250.78 | K14: =VLOOKUP(CONCATENATE("OSUPREGECO_"&A14),Output!$C:$AQ,6,FALSE) -> 21253.9 | M14: =ROUND(VLOOKUP("OSUPJEUNEREGECO_"&A14,Output!$C:$AQ,7,FALSE)/VLOOKUP("OSUPREGECO_"&A14,Output!$C:$AQ,6,FALSE),3) -> 0.055 | N14: Faible | O14: =ROUND(VLOOKUP("OSUPJEUNEREGECO_"&$A14,Output!$C:$AQ,12,FALSE)/VLOOKUP("OSUPREGECO_"&A14,Output!$C:$AQ,6,FALSE),3) -> 0.036 | P14: Faible | R14: =ROUND(VLOOKUP("OSUPVIEUXTOTREGECO_"&$A14,Output!$C:$AQ,7,FALSE)/VLOOKUP("OSUPREGECO_"&A14,Output!$C:$AQ,6,FALSE),3) -> 0.289 | S14: Faible | T14: =ROUND(VLOOKUP("OSUPVIEUXTOTREGECO_"&$A14,Output!$C:$AQ,12,FALSE)/VLOOKUP("OSUPREGECO_"&A14,Output!$C:$AQ,6,FALSE),3) -> 0.371 | U14: Faible | W14: UTA112 | X14: Faible | Y14: Faible | AA14: =Tableaux!$O$33 -> 02751 | AB14: UTA112 | AC14: Faible | AD14: Faible
A15: UTA113 | B15: 0.147 | C15: 0.245 | D15: 0.3 | E15: 0.2 | G15: =VLOOKUP(CONCATENATE("OSUPVIEUXALERTEREGECO_"&A15),Output!$C:$AQ,6,FALSE) -> 3869.79 | H15: =VLOOKUP(CONCATENATE("OSUPVIEUXACCEPTREGECO_"&A15),Output!$C:$AQ,6,FALSE) -> 6449.65 | I15: =VLOOKUP(CONCATENATE("OSUPJEUNEALERTEREGECO_"&A15),Output!$C:$AQ,6,FALSE) -> 7897.53 | J15: =VLOOKUP(CONCATENATE("OSUPJEUNEACCEPTREGECO_"&A15),Output!$C:$AQ,6,FALSE) -> 5265.02 | K15: =VLOOKUP(CONCATENATE("OSUPREGECO_"&A15),Output!$C:$AQ,6,FALSE) -> 26325.1 | M15: =ROUND(VLOOKUP("OSUPJEUNEREGECO_"&A15,Output!$C:$AQ,7,FALSE)/VLOOKUP("OSUPREGECO_"&A15,Output!$C:$AQ,6,FALSE),3) -> 0.101 | N15: Faible | O15: =ROUND(VLOOKUP("OSUPJEUNEREGECO_"&$A15,Output!$C:$AQ,12,FALSE)/VLOOKUP("OSUPREGECO_"&A15,Output!$C:$AQ,6,FALSE),3) -> 0.184 | P15: Faible | R15: =ROUND(VLOOKUP("OSUPVIEUXTOTREGECO_"&$A15,Output!$C:$AQ,7,FALSE)/VLOOKUP("OSUPREGECO_"&A15,Output!$C:$AQ,6,FALSE),3) -> 0.235 | S15: Modéré | T15: =ROUND(VLOOKUP("OSUPVIEUXTOTREGECO_"&$A15,Output!$C:$AQ,12,FALSE)/VLOOKUP("OSUPREGECO_"&A15,Output!$C:$AQ,6,FALSE),3) -> 0.307 | U15: Faible | W15: UTA113 | X15: Modéré | Y15: Faible | AA15: =Tableaux!$O$33 -> 02751 | AB15: UTA113 | AC15: Modéré | AD15: Faible
A16: UTA114 | B16: 0.168 | C16: 0.28 | D16: 0.3 | E16: 0.2 | G16: =VLOOKUP(CONCATENATE("OSUPVIEUXALERTEREGECO_"&A16),Output!$C:$AQ,6,FALSE) -> 5797.85 | H16: =VLOOKUP(CONCATENATE("OSUPVIEUXACCEPTREGECO_"&A16),Output!$C:$AQ,6,FALSE) -> 9663.08 | I16: =VLOOKUP(CONCATENATE("OSUPJEUNEALERTEREGECO_"&A16),Output!$C:$AQ,6,FALSE) -> 10353.3 | J16: =VLOOKUP(CONCATENATE("OSUPJEUNEACCEPTREGECO_"&A16),Output!$C:$AQ,6,FALSE) -> 6902.2 | K16: =VLOOKUP(CONCATENATE("OSUPREGECO_"&A16),Output!$C:$AQ,6,FALSE) -> 34511 | M16: =ROUND(VLOOKUP("OSUPJEUNEREGECO_"&A16,Output!$C:$AQ,7,FALSE)/VLOOKUP("OSUPREGECO_"&A16,Output!$C:$AQ,6,FALSE),3) -> 0.105 | N16: Faible | O16: =ROUND(VLOOKUP("OSUPJEUNEREGECO_"&$A16,Output!$C:$AQ,12,FALSE)/VLOOKUP("OSUPREGECO_"&A16,Output!$C:$AQ,6,FALSE),3) -> 0.098 | P16: Faible | R16: =ROUND(VLOOKUP("OSUPVIEUXTOTREGECO_"&$A16,Output!$C:$AQ,7,FALSE)/VLOOKUP("OSUPREGECO_"&A16,Output!$C:$AQ,6,FALSE),3) -> 0.247 | S16: Modéré | T16: =ROUND(VLOOKUP("OSUPVIEUXTOTREGECO_"&$A16,Output!$C:$AQ,12,FALSE)/VLOOKUP("OSUPREGECO_"&A16,Output!$C:$AQ,6,FALSE),3) -> 0.305 | U16: Faible | W16: UTA114 | X16: Modéré | Y16: Faible | AA16: =Tableaux!$O$33 -> 02751 | AB16: UTA114 | AC16: Modéré | AD16: Faible
A17: UTA115 | B17: 0.147 | C17: 0.245 | D17: 0.3 | E17: 0.2 | G17: =VLOOKUP(CONCATENATE("OSUPVIEUXALERTEREGECO_"&A17),Output!$C:$AQ,6,FALSE) -> 3509.52 | H17: =VLOOKUP(CONCATENATE("OSUPVIEUXACCEPTREGECO_"&A17),Output!$C:$AQ,6,FALSE) -> 5849.2 | I17: =VLOOKUP(CONCATENATE("OSUPJEUNEALERTEREGECO_"&A17),Output!$C:$AQ,6,FALSE) -> 7162.29 | J17: =VLOOKUP(CONCATENATE("OSUPJEUNEACCEPTREGECO_"&A17),Output!$C:$AQ,6,FALSE) -> 4774.86 | K17: =VLOOKUP(CONCATENATE("OSUPREGECO_"&A17),Output!$C:$AQ,6,FALSE) -> 23874.3 | M17: =ROUND(VLOOKUP("OSUPJEUNEREGECO_"&A17,Output!$C:$AQ,7,FALSE)/VLOOKUP("OSUPREGECO_"&A17,Output!$C:$AQ,6,FALSE),3) -> 0.244 | N17: Modéré | O17: =ROUND(VLOOKUP("OSUPJEUNEREGECO_"&$A17,Output!$C:$AQ,12,FALSE)/VLOOKUP("OSUPREGECO_"&A17,Output!$C:$AQ,6,FALSE),3) -> 0.128 | P17: Faible | R17: =ROUND(VLOOKUP("OSUPVIEUXTOTREGECO_"&$A17,Output!$C:$AQ,7,FALSE)/VLOOKUP("OSUPREGECO_"&A17,Output!$C:$AQ,6,FALSE),3) -> 0.322 | S17: Faible | T17: =ROUND(VLOOKUP("OSUPVIEUXTOTREGECO_"&$A17,Output!$C:$AQ,12,FALSE)/VLOOKUP("OSUPREGECO_"&A17,Output!$C:$AQ,6,FALSE),3) -> 0.34 | U17: Faible | W17: UTA115 | X17: Modéré | Y17: Faible | AA17: =Tableaux!$O$33 -> 02751 | AB17: UTA115 | AC17: Faible | AD17: Faible
A18: UTA116 | B18: 0.147 | C18: 0.245 | D18: 0.3 | E18: 0.2 | G18: =VLOOKUP(CONCATENATE("OSUPVIEUXALERTEREGECO_"&A18),Output!$C:$AQ,6,FALSE) -> 4170.76 | H18: =VLOOKUP(CONCATENATE("OSUPVIEUXACCEPTREGECO_"&A18),Output!$C:$AQ,6,FALSE) -> 6951.26 | I18: =VLOOKUP(CONCATENATE("OSUPJEUNEALERTEREGECO_"&A18),Output!$C:$AQ,6,FALSE) -> 8511.75 | J18: =VLOOKUP(CONCATENATE("OSUPJEUNEACCEPTREGECO_"&A18),Output!$C:$AQ,6,FALSE) -> 5674.5 | K18: =VLOOKUP(CONCATENATE("OSUPREGECO_"&A18),Output!$C:$AQ,6,FALSE) -> 28372.5 | M18: =ROUND(VLOOKUP("OSUPJEUNEREGECO_"&A18,Output!$C:$AQ,7,FALSE)/VLOOKUP("OSUPREGECO_"&A18,Output!$C:$AQ,6,FALSE),3) -> 0.092 | N18: Faible | O18: =ROUND(VLOOKUP("OSUPJEUNEREGECO_"&$A18,Output!$C:$AQ,12,FALSE)/VLOOKUP("OSUPREGECO_"&A18,Output!$C:$AQ,6,FALSE),3) -> 0.3 | P18: Supérieur | R18: =ROUND(VLOOKUP("OSUPVIEUXTOTREGECO_"&$A18,Output!$C:$AQ,7,FALSE)/VLOOKUP("OSUPREGECO_"&A18,Output!$C:$AQ,6,FALSE),3) -> 0.157 | S18: Modéré | T18: =ROUND(VLOOKUP("OSUPVIEUXTOTREGECO_"&$A18,Output!$C:$AQ,12,FALSE)/VLOOKUP("OSUPREGECO_"&A18,Output!$C:$AQ,6,FALSE),3) -> 0.202 | U18: Modéré | W18: UTA116 | X18: Modéré | Y18: Supérieur | AA18: =Tableaux!$O$33 -> 02751 | AB18: UTA116 | AC18: Modéré | AD18: Modéré
A19: UTA117 | B19: 0.168 | C19: 0.28 | D19: 0.3 | E19: 0.2 | G19: =VLOOKUP(CONCATENATE("OSUPVIEUXALERTEREGECO_"&A19),Output!$C:$AQ,6,FALSE) -> 5800.89 | H19: =VLOOKUP(CONCATENATE("OSUPVIEUXACCEPTREGECO_"&A19),Output!$C:$AQ,6,FALSE) -> 9668.15 | I19: =VLOOKUP(CONCATENATE("OSUPJEUNEALERTEREGECO_"&A19),Output!$C:$AQ,6,FALSE) -> 10358.73 | J19: =VLOOKUP(CONCATENATE("OSUPJEUNEACCEPTREGECO_"&A19),Output!$C:$AQ,6,FALSE) -> 6905.82 | K19: =VLOOKUP(CONCATENATE("OSUPREGECO_"&A19),Output!$C:$AQ,6,FALSE) -> 34529.1 | M19: =ROUND(VLOOKUP("OSUPJEUNEREGECO_"&A19,Output!$C:$AQ,7,FALSE)/VLOOKUP("OSUPREGECO_"&A19,Output!$C:$AQ,6,FALSE),3) -> 0.175 | N19: Faible | O19: =ROUND(VLOOKUP("OSUPJEUNEREGECO_"&$A19,Output!$C:$AQ,12,FALSE)/VLOOKUP("OSUPREGECO_"&A19,Output!$C:$AQ,6,FALSE),3) -> 0.052 | P19: Faible | R19: =ROUND(VLOOKUP("OSUPVIEUXTOTREGECO_"&$A19,Output!$C:$AQ,7,FALSE)/VLOOKUP("OSUPREGECO_"&A19,Output!$C:$AQ,6,FALSE),3) -> 0.204 | S19: Modéré | T19: =ROUND(VLOOKUP("OSUPVIEUXTOTREGECO_"&$A19,Output!$C:$AQ,12,FALSE)/VLOOKUP("OSUPREGECO_"&A19,Output!$C:$AQ,6,FALSE),3) -> 0.154 | U19: Supérieur | W19: UTA117 | X19: Modéré | Y19: Supérieur | AA19: =Tableaux!$O$33 -> 02751 | AB19: UTA117 | AC19: Modéré | AD19: Supérieur
G20: =VLOOKUP(CONCATENATE("OSUPVIEUXALERTEREGECO_"&A20),Output!$C:$AQ,6,FALSE) ->  | H20: =VLOOKUP(CONCATENATE("OSUPVIEUXACCEPTREGECO_"&A20),Output!$C:$AQ,6,FALSE) ->  | I20: =VLOOKUP(CONCATENATE("OSUPJEUNEALERTEREGECO_"&A20),Output!$C:$AQ,6,FALSE) ->  | J20: =VLOOKUP(CONCATENATE("OSUPJEUNEACCEPTREGECO_"&A20),Output!$C:$AQ,6,FALSE) ->  | K20: =VLOOKUP(CONCATENATE("OSUPREGECO_"&A20),Output!$C:$AQ,6,FALSE) ->  | M20: =ROUND(VLOOKUP("OSUPJEUNEREGECO_"&A20,Output!$C:$AQ,7,FALSE)/VLOOKUP("OSUPREGECO_"&A20,Output!$C:$AQ,6,FALSE),3) ->  | O20: =ROUND(VLOOKUP("OSUPJEUNEREGECO_"&$A20,Output!$C:$AQ,12,FALSE)/VLOOKUP("OSUPREGECO_"&A20,Output!$C:$AQ,6,FALSE),3) ->  | R20: =ROUND(VLOOKUP("OSUPVIEUXTOTREGECO_"&$A20,Output!$C:$AQ,7,FALSE)/VLOOKUP("OSUPREGECO_"&A20,Output!$C:$AQ,6,FALSE),3) ->  | T20: =ROUND(VLOOKUP("OSUPVIEUXTOTREGECO_"&$A20,Output!$C:$AQ,12,FALSE)/VLOOKUP("OSUPREGECO_"&A20,Output!$C:$AQ,6,FALSE),3) ->  | W20: 0 | AA20: =Tableaux!$O$33 -> 02751 | AB20: 0
B21: =ROUND(G21/$K21,2) ->  | C21: =H21/$K21 ->  | D21: =ROUND(I21/$K21,3) ->  | G21: =VLOOKUP(CONCATENATE("OSUPVIEUXALERTEREGECO_"&A21),Output!$C:$AQ,6,FALSE) ->  | H21: =VLOOKUP(CONCATENATE("OSUPVIEUXACCEPTREGECO_"&A21),Output!$C:$AQ,6,FALSE) ->  | I21: =VLOOKUP(CONCATENATE("OSUPJEUNEALERTEREGECO_"&A21),Output!$C:$AQ,6,FALSE) ->  | J21: =VLOOKUP(CONCATENATE("OSUPJEUNEACCEPTREGECO_"&A21),Output!$C:$AQ,6,FALSE) ->  | K21: =VLOOKUP(CONCATENATE("OSUPREGECO_"&A21),Output!$C:$AQ,6,FALSE) ->  | M21: =ROUND(VLOOKUP("OSUPJEUNEREGECO_"&A21,Output!$C:$AQ,7,FALSE)/VLOOKUP("OSUPREGECO_"&A21,Output!$C:$AQ,6,FALSE),3) ->  | O21: =ROUND(VLOOKUP("OSUPJEUNEREGECO_"&$A21,Output!$C:$AQ,12,FALSE)/VLOOKUP("OSUPREGECO_"&A21,Output!$C:$AQ,6,FALSE),3) ->  | R21: =ROUND(VLOOKUP("OSUPVIEUXTOTREGECO_"&$A21,Output!$C:$AQ,7,FALSE)/VLOOKUP("OSUPREGECO_"&A21,Output!$C:$AQ,6,FALSE),3) ->  | T21: =ROUND(VLOOKUP("OSUPVIEUXTOTREGECO_"&$A21,Output!$C:$AQ,12,FALSE)/VLOOKUP("OSUPREGECO_"&A21,Output!$C:$AQ,6,FALSE),3) ->  | W21: 0 | AA21: =Tableaux!$O$33 -> 02751 | AB21: 0
G22: =VLOOKUP(CONCATENATE("OSUPVIEUXALERTEREGECO_"&A22),Output!$C:$AQ,6,FALSE) ->  | H22: =VLOOKUP(CONCATENATE("OSUPVIEUXACCEPTREGECO_"&A22),Output!$C:$AQ,6,FALSE) ->  | I22: =VLOOKUP(CONCATENATE("OSUPJEUNEALERTEREGECO_"&A22),Output!$C:$AQ,6,FALSE) ->  | J22: =VLOOKUP(CONCATENATE("OSUPJEUNEACCEPTREGECO_"&A22),Output!$C:$AQ,6,FALSE) ->  | K22: =VLOOKUP(CONCATENATE("OSUPREGECO_"&A22),Output!$C:$AQ,6,FALSE) ->  | M22: =ROUND(VLOOKUP("OSUPJEUNEREGECO_"&A22,Output!$C:$AQ,7,FALSE)/VLOOKUP("OSUPREGECO_"&A22,Output!$C:$AQ,6,FALSE),3) ->  | O22: =ROUND(VLOOKUP("OSUPJEUNEREGECO_"&$A22,Output!$C:$AQ,12,FALSE)/VLOOKUP("OSUPREGECO_"&A22,Output!$C:$AQ,6,FALSE),3) ->  | R22: =ROUND(VLOOKUP("OSUPVIEUXTOTREGECO_"&$A22,Output!$C:$AQ,7,FALSE)/VLOOKUP("OSUPREGECO_"&A22,Output!$C:$AQ,6,FALSE),3) ->  | T22: =ROUND(VLOOKUP("OSUPVIEUXTOTREGECO_"&$A22,Output!$C:$AQ,12,FALSE)/VLOOKUP("OSUPREGECO_"&A22,Output!$C:$AQ,6,FALSE),3) ->  | W22: 0 | AA22: =Tableaux!$O$33 -> 02751 | AB22: 0
G23: =VLOOKUP(CONCATENATE("OSUPVIEUXALERTEREGECO_"&A23),Output!$C:$AQ,6,FALSE) ->  | H23: =VLOOKUP(CONCATENATE("OSUPVIEUXACCEPTREGECO_"&A23),Output!$C:$AQ,6,FALSE) ->  | I23: =VLOOKUP(CONCATENATE("OSUPJEUNEALERTEREGECO_"&A23),Output!$C:$AQ,6,FALSE) ->  | J23: =VLOOKUP(CONCATENATE("OSUPJEUNEACCEPTREGECO_"&A23),Output!$C:$AQ,6,FALSE) ->  | K23: =VLOOKUP(CONCATENATE("OSUPREGECO_"&A23),Output!$C:$AQ,6,FALSE) ->  | M23: =ROUND(VLOOKUP("OSUPJEUNEREGECO_"&A23,Output!$C:$AQ,7,FALSE)/VLOOKUP("OSUPREGECO_"&A23,Output!$C:$AQ,6,FALSE),3) ->  | O23: =ROUND(VLOOKUP("OSUPJEUNEREGECO_"&$A23,Output!$C:$AQ,12,FALSE)/VLOOKUP("OSUPREGECO_"&A23,Output!$C:$AQ,6,FALSE),3) ->  | R23: =ROUND(VLOOKUP("OSUPVIEUXTOTREGECO_"&$A23,Output!$C:$AQ,7,FALSE)/VLOOKUP("OSUPREGECO_"&A23,Output!$C:$AQ,6,FALSE),3) ->  | T23: =ROUND(VLOOKUP("OSUPVIEUXTOTREGECO_"&$A23,Output!$C:$AQ,12,FALSE)/VLOOKUP("OSUPREGECO_"&A23,Output!$C:$AQ,6,FALSE),3) ->  | W23: 0 | AA23: =Tableaux!$O$33 -> 02751 | AB23: 0
G24: =VLOOKUP(CONCATENATE("OSUPVIEUXALERTEREGECO_"&A24),Output!$C:$AQ,6,FALSE) ->  | H24: =VLOOKUP(CONCATENATE("OSUPVIEUXACCEPTREGECO_"&A24),Output!$C:$AQ,6,FALSE) ->  | I24: =VLOOKUP(CONCATENATE("OSUPJEUNEALERTEREGECO_"&A24),Output!$C:$AQ,6,FALSE) ->  | J24: =VLOOKUP(CONCATENATE("OSUPJEUNEACCEPTREGECO_"&A24),Output!$C:$AQ,6,FALSE) ->  | K24: =VLOOKUP(CONCATENATE("OSUPREGECO_"&A24),Output!$C:$AQ,6,FALSE) ->  | M24: =ROUND(VLOOKUP("OSUPJEUNEREGECO_"&A24,Output!$C:$AQ,7,FALSE)/VLOOKUP("OSUPREGECO_"&A24,Output!$C:$AQ,6,FALSE),3) ->  | O24: =ROUND(VLOOKUP("OSUPJEUNEREGECO_"&$A24,Output!$C:$AQ,12,FALSE)/VLOOKUP("OSUPREGECO_"&A24,Output!$C:$AQ,6,FALSE),3) ->  | R24: =ROUND(VLOOKUP("OSUPVIEUXTOTREGECO_"&$A24,Output!$C:$AQ,7,FALSE)/VLOOKUP("OSUPREGECO_"&A24,Output!$C:$AQ,6,FALSE),3) ->  | T24: =ROUND(VLOOKUP("OSUPVIEUXTOTREGECO_"&$A24,Output!$C:$AQ,12,FALSE)/VLOOKUP("OSUPREGECO_"&A24,Output!$C:$AQ,6,FALSE),3) ->  | W24: 0 | AA24: =Tableaux!$O$33 -> 02751 | AB24: 0
G25: =VLOOKUP(CONCATENATE("OSUPVIEUXALERTEREGECO_"&A25),Output!$C:$AQ,6,FALSE) ->  | H25: =VLOOKUP(CONCATENATE("OSUPVIEUXACCEPTREGECO_"&A25),Output!$C:$AQ,6,FALSE) ->  | I25: =VLOOKUP(CONCATENATE("OSUPJEUNEALERTEREGECO_"&A25),Output!$C:$AQ,6,FALSE) ->  | J25: =VLOOKUP(CONCATENATE("OSUPJEUNEACCEPTREGECO_"&A25),Output!$C:$AQ,6,FALSE) ->  | K25: =VLOOKUP(CONCATENATE("OSUPREGECO_"&A25),Output!$C:$AQ,6,FALSE) ->  | M25: =ROUND(VLOOKUP("OSUPJEUNEREGECO_"&A25,Output!$C:$AQ,7,FALSE)/VLOOKUP("OSUPREGECO_"&A25,Output!$C:$AQ,6,FALSE),3) ->  | O25: =ROUND(VLOOKUP("OSUPJEUNEREGECO_"&$A25,Output!$C:$AQ,12,FALSE)/VLOOKUP("OSUPREGECO_"&A25,Output!$C:$AQ,6,FALSE),3) ->  | R25: =ROUND(VLOOKUP("OSUPVIEUXTOTREGECO_"&$A25,Output!$C:$AQ,7,FALSE)/VLOOKUP("OSUPREGECO_"&A25,Output!$C:$AQ,6,FALSE),3) ->  | T25: =ROUND(VLOOKUP("OSUPVIEUXTOTREGECO_"&$A25,Output!$C:$AQ,12,FALSE)/VLOOKUP("OSUPREGECO_"&A25,Output!$C:$AQ,6,FALSE),3) ->  | W25: 0 | AA25: =Tableaux!$O$33 -> 02751 | AB25: 0
G26: =VLOOKUP(CONCATENATE("OSUPVIEUXALERTEREGECO_"&A26),Output!$C:$AQ,6,FALSE) ->  | H26: =VLOOKUP(CONCATENATE("OSUPVIEUXACCEPTREGECO_"&A26),Output!$C:$AQ,6,FALSE) ->  | I26: =VLOOKUP(CONCATENATE("OSUPJEUNEALERTEREGECO_"&A26),Output!$C:$AQ,6,FALSE) ->  | J26: =VLOOKUP(CONCATENATE("OSUPJEUNEACCEPTREGECO_"&A26),Output!$C:$AQ,6,FALSE) ->  | K26: =VLOOKUP(CONCATENATE("OSUPREGECO_"&A26),Output!$C:$AQ,6,FALSE) ->  | M26: =ROUND(VLOOKUP("OSUPJEUNEREGECO_"&A26,Output!$C:$AQ,7,FALSE)/VLOOKUP("OSUPREGECO_"&A26,Output!$C:$AQ,6,FALSE),3) ->  | O26: =ROUND(VLOOKUP("OSUPJEUNEREGECO_"&$A26,Output!$C:$AQ,12,FALSE)/VLOOKUP("OSUPREGECO_"&A26,Output!$C:$AQ,6,FALSE),3) ->  | R26: =ROUND(VLOOKUP("OSUPVIEUXTOTREGECO_"&$A26,Output!$C:$AQ,7,FALSE)/VLOOKUP("OSUPREGECO_"&A26,Output!$C:$AQ,6,FALSE),3) ->  | T26: =ROUND(VLOOKUP("OSUPVIEUXTOTREGECO_"&$A26,Output!$C:$AQ,12,FALSE)/VLOOKUP("OSUPREGECO_"&A26,Output!$C:$AQ,6,FALSE),3) ->  | W26: 0 | AA26: =Tableaux!$O$33 -> 02751 | AB26: 0
C27: =ROUND(H27/$K27,3) ->  | G27: =VLOOKUP(CONCATENATE("OSUPVIEUXALERTEREGECO_"&A27),Output!$C:$AQ,6,FALSE) ->  | H27: =VLOOKUP(CONCATENATE("OSUPVIEUXACCEPTREGECO_"&A27),Output!$C:$AQ,6,FALSE) ->  | I27: =VLOOKUP(CONCATENATE("OSUPJEUNEALERTEREGECO_"&A27),Output!$C:$AQ,6,FALSE) ->  | J27: =VLOOKUP(CONCATENATE("OSUPJEUNEACCEPTREGECO_"&A27),Output!$C:$AQ,6,FALSE) ->  | K27: =VLOOKUP(CONCATENATE("OSUPREGECO_"&A27),Output!$C:$AQ,6,FALSE) ->  | M27: =ROUND(VLOOKUP("OSUPJEUNEREGECO_"&A27,Output!$C:$AQ,7,FALSE)/VLOOKUP("OSUPREGECO_"&A27,Output!$C:$AQ,6,FALSE),3) ->  | O27: =ROUND(VLOOKUP("OSUPJEUNEREGECO_"&$A27,Output!$C:$AQ,12,FALSE)/VLOOKUP("OSUPREGECO_"&A27,Output!$C:$AQ,6,FALSE),3) ->  | R27: =ROUND(VLOOKUP("OSUPVIEUXTOTREGECO_"&$A27,Output!$C:$AQ,7,FALSE)/VLOOKUP("OSUPREGECO_"&A27,Output!$C:$AQ,6,FALSE),3) ->  | T27: =ROUND(VLOOKUP("OSUPVIEUXTOTREGECO_"&$A27,Output!$C:$AQ,12,FALSE)/VLOOKUP("OSUPREGECO_"&A27,Output!$C:$AQ,6,FALSE),3) ->  | W27: 0 | AA27: =Tableaux!$O$33 -> 02751 | AB27: 0
G28: =VLOOKUP(CONCATENATE("OSUPVIEUXALERTEREGECO_"&A28),Output!$C:$AQ,6,FALSE) ->  | H28: =VLOOKUP(CONCATENATE("OSUPVIEUXACCEPTREGECO_"&A28),Output!$C:$AQ,6,FALSE) ->  | I28: =VLOOKUP(CONCATENATE("OSUPJEUNEALERTEREGECO_"&A28),Output!$C:$AQ,6,FALSE) ->  | J28: =VLOOKUP(CONCATENATE("OSUPJEUNEACCEPTREGECO_"&A28),Output!$C:$AQ,6,FALSE) ->  | K28: =VLOOKUP(CONCATENATE("OSUPREGECO_"&A28),Output!$C:$AQ,6,FALSE) ->  | M28: =ROUND(VLOOKUP("OSUPJEUNEREGECO_"&A28,Output!$C:$AQ,7,FALSE)/VLOOKUP("OSUPREGECO_"&A28,Output!$C:$AQ,6,FALSE),3) ->  | O28: =ROUND(VLOOKUP("OSUPJEUNEREGECO_"&$A28,Output!$C:$AQ,12,FALSE)/VLOOKUP("OSUPREGECO_"&A28,Output!$C:$AQ,6,FALSE),3) ->  | R28: =ROUND(VLOOKUP("OSUPVIEUXTOTREGECO_"&$A28,Output!$C:$AQ,7,FALSE)/VLOOKUP("OSUPREGECO_"&A28,Output!$C:$AQ,6,FALSE),3) ->  | T28: =ROUND(VLOOKUP("OSUPVIEUXTOTREGECO_"&$A28,Output!$C:$AQ,12,FALSE)/VLOOKUP("OSUPREGECO_"&A28,Output!$C:$AQ,6,FALSE),3) ->  | W28: 0 | AA28: =Tableaux!$O$33 -> 02751 | AB28: 0
G29: =VLOOKUP(CONCATENATE("OSUPVIEUXALERTEREGECO_"&A29),Output!$C:$AQ,6,FALSE) ->  | H29: =VLOOKUP(CONCATENATE("OSUPVIEUXACCEPTREGECO_"&A29),Output!$C:$AQ,6,FALSE) ->  | I29: =VLOOKUP(CONCATENATE("OSUPJEUNEALERTEREGECO_"&A29),Output!$C:$AQ,6,FALSE) ->  | J29: =VLOOKUP(CONCATENATE("OSUPJEUNEACCEPTREGECO_"&A29),Output!$C:$AQ,6,FALSE) ->  | K29: =VLOOKUP(CONCATENATE("OSUPREGECO_"&A29),Output!$C:$AQ,6,FALSE) ->  | M29: =ROUND(VLOOKUP("OSUPJEUNEREGECO_"&A29,Output!$C:$AQ,7,FALSE)/VLOOKUP("OSUPREGECO_"&A29,Output!$C:$AQ,6,FALSE),3) ->  | O29: =ROUND(VLOOKUP("OSUPJEUNEREGECO_"&$A29,Output!$C:$AQ,12,FALSE)/VLOOKUP("OSUPREGECO_"&A29,Output!$C:$AQ,6,FALSE),3) ->  | R29: =ROUND(VLOOKUP("OSUPVIEUXTOTREGECO_"&$A29,Output!$C:$AQ,7,FALSE)/VLOOKUP("OSUPREGECO_"&A29,Output!$C:$AQ,6,FALSE),3) ->  | T29: =ROUND(VLOOKUP("OSUPVIEUXTOTREGECO_"&$A29,Output!$C:$AQ,12,FALSE)/VLOOKUP("OSUPREGECO_"&A29,Output!$C:$AQ,6,FALSE),3) ->  | W29: 0 | AA29: =Tableaux!$O$33 -> 02751 | AB29: 0
G30: =VLOOKUP(CONCATENATE("OSUPVIEUXALERTEREGECO_"&A30),Output!$C:$AQ,6,FALSE) ->  | H30: =VLOOKUP(CONCATENATE("OSUPVIEUXACCEPTREGECO_"&A30),Output!$C:$AQ,6,FALSE) ->  | I30: =VLOOKUP(CONCATENATE("OSUPJEUNEALERTEREGECO_"&A30),Output!$C:$AQ,6,FALSE) ->  | J30: =VLOOKUP(CONCATENATE("OSUPJEUNEACCEPTREGECO_"&A30),Output!$C:$AQ,6,FALSE) ->  | K30: =VLOOKUP(CONCATENATE("OSUPREGECO_"&A30),Output!$C:$AQ,6,FALSE) ->  | M30: =ROUND(VLOOKUP("OSUPJEUNEREGECO_"&A30,Output!$C:$AQ,7,FALSE)/VLOOKUP("OSUPREGECO_"&A30,Output!$C:$AQ,6,FALSE),3) ->  | O30: =ROUND(VLOOKUP("OSUPJEUNEREGECO_"&$A30,Output!$C:$AQ,12,FALSE)/VLOOKUP("OSUPREGECO_"&A30,Output!$C:$AQ,6,FALSE),3) ->  | R30: =ROUND(VLOOKUP("OSUPVIEUXTOTREGECO_"&$A30,Output!$C:$AQ,7,FALSE)/VLOOKUP("OSUPREGECO_"&A30,Output!$C:$AQ,6,FALSE),3) ->  | T30: =ROUND(VLOOKUP("OSUPVIEUXTOTREGECO_"&$A30,Output!$C:$AQ,12,FALSE)/VLOOKUP("OSUPREGECO_"&A30,Output!$C:$AQ,6,FALSE),3) ->  | W30: 0 | AA30: =Tableaux!$O$33 -> 02751 | AB30: 0
G31: =VLOOKUP(CONCATENATE("OSUPVIEUXALERTEREGECO_"&A31),Output!$C:$AQ,6,FALSE) ->  | H31: =VLOOKUP(CONCATENATE("OSUPVIEUXACCEPTREGECO_"&A31),Output!$C:$AQ,6,FALSE) ->  | I31: =VLOOKUP(CONCATENATE("OSUPJEUNEALERTEREGECO_"&A31),Output!$C:$AQ,6,FALSE) ->  | J31: =VLOOKUP(CONCATENATE("OSUPJEUNEACCEPTREGECO_"&A31),Output!$C:$AQ,6,FALSE) ->  | K31: =VLOOKUP(CONCATENATE("OSUPREGECO_"&A31),Output!$C:$AQ,6,FALSE) ->  | M31: =ROUND(VLOOKUP("OSUPJEUNEREGECO_"&A31,Output!$C:$AQ,7,FALSE)/VLOOKUP("OSUPREGECO_"&A31,Output!$C:$AQ,6,FALSE),3) ->  | O31: =ROUND(VLOOKUP("OSUPJEUNEREGECO_"&$A31,Output!$C:$AQ,12,FALSE)/VLOOKUP("OSUPREGECO_"&A31,Output!$C:$AQ,6,FALSE),3) ->  | R31: =ROUND(VLOOKUP("OSUPVIEUXTOTREGECO_"&$A31,Output!$C:$AQ,7,FALSE)/VLOOKUP("OSUPREGECO_"&A31,Output!$C:$AQ,6,FALSE),3) ->  | T31: =ROUND(VLOOKUP("OSUPVIEUXTOTREGECO_"&$A31,Output!$C:$AQ,12,FALSE)/VLOOKUP("OSUPREGECO_"&A31,Output!$C:$AQ,6,FALSE),3) ->  | W31: 0 | AA31: =Tableaux!$O$33 -> 02751 | AB31: 0
G32: =VLOOKUP(CONCATENATE("OSUPVIEUXALERTEREGECO_"&A32),Output!$C:$AQ,6,FALSE) ->  | H32: =VLOOKUP(CONCATENATE("OSUPVIEUXACCEPTREGECO_"&A32),Output!$C:$AQ,6,FALSE) ->  | I32: =VLOOKUP(CONCATENATE("OSUPJEUNEALERTEREGECO_"&A32),Output!$C:$AQ,6,FALSE) ->  | J32: =VLOOKUP(CONCATENATE("OSUPJEUNEACCEPTREGECO_"&A32),Output!$C:$AQ,6,FALSE) ->  | K32: =VLOOKUP(CONCATENATE("OSUPREGECO_"&A32),Output!$C:$AQ,6,FALSE) ->  | M32: =ROUND(VLOOKUP("OSUPJEUNEREGECO_"&A32,Output!$C:$AQ,7,FALSE)/VLOOKUP("OSUPREGECO_"&A32,Output!$C:$AQ,6,FALSE),3) ->  | O32: =ROUND(VLOOKUP("OSUPJEUNEREGECO_"&$A32,Output!$C:$AQ,12,FALSE)/VLOOKUP("OSUPREGECO_"&A32,Output!$C:$AQ,6,FALSE),3) ->  | R32: =ROUND(VLOOKUP("OSUPVIEUXTOTREGECO_"&$A32,Output!$C:$AQ,7,FALSE)/VLOOKUP("OSUPREGECO_"&A32,Output!$C:$AQ,6,FALSE),3) ->  | T32: =ROUND(VLOOKUP("OSUPVIEUXTOTREGECO_"&$A32,Output!$C:$AQ,12,FALSE)/VLOOKUP("OSUPREGECO_"&A32,Output!$C:$AQ,6,FALSE),3) ->  | W32: 0 | AA32: =Tableaux!$O$33 -> 02751 | AB32: 0
G33: =VLOOKUP(CONCATENATE("OSUPVIEUXALERTEREGECO_"&A33),Output!$C:$AQ,6,FALSE) ->  | H33: =VLOOKUP(CONCATENATE("OSUPVIEUXACCEPTREGECO_"&A33),Output!$C:$AQ,6,FALSE) ->  | I33: =VLOOKUP(CONCATENATE("OSUPJEUNEALERTEREGECO_"&A33),Output!$C:$AQ,6,FALSE) ->  | J33: =VLOOKUP(CONCATENATE("OSUPJEUNEACCEPTREGECO_"&A33),Output!$C:$AQ,6,FALSE) ->  | K33: =VLOOKUP(CONCATENATE("OSUPREGECO_"&A33),Output!$C:$AQ,6,FALSE) ->  | M33: =ROUND(VLOOKUP("OSUPJEUNEREGECO_"&A33,Output!$C:$AQ,7,FALSE)/VLOOKUP("OSUPREGECO_"&A33,Output!$C:$AQ,6,FALSE),3) ->  | O33: =ROUND(VLOOKUP("OSUPJEUNEREGECO_"&$A33,Output!$C:$AQ,12,FALSE)/VLOOKUP("OSUPREGECO_"&A33,Output!$C:$AQ,6,FALSE),3) ->  | R33: =ROUND(VLOOKUP("OSUPVIEUXTOTREGECO_"&$A33,Output!$C:$AQ,7,FALSE)/VLOOKUP("OSUPREGECO_"&A33,Output!$C:$AQ,6,FALSE),3) ->  | T33: =ROUND(VLOOKUP("OSUPVIEUXTOTREGECO_"&$A33,Output!$C:$AQ,12,FALSE)/VLOOKUP("OSUPREGECO_"&A33,Output!$C:$AQ,6,FALSE),3) ->  | W33: 0 | AA33: =Tableaux!$O$33 -> 02751 | AB33: =W33 -> 0
G34: =VLOOKUP(CONCATENATE("OSUPVIEUXALERTEREGECO_"&A34),Output!$C:$AQ,6,FALSE) ->  | H34: =VLOOKUP(CONCATENATE("OSUPVIEUXACCEPTREGECO_"&A34),Output!$C:$AQ,6,FALSE) ->  | I34: =VLOOKUP(CONCATENATE("OSUPJEUNEALERTEREGECO_"&A34),Output!$C:$AQ,6,FALSE) ->  | J34: =VLOOKUP(CONCATENATE("OSUPJEUNEACCEPTREGECO_"&A34),Output!$C:$AQ,6,FALSE) ->  | K34: =VLOOKUP(CONCATENATE("OSUPREGECO_"&A34),Output!$C:$AQ,6,FALSE) ->  | M34: =ROUND(VLOOKUP("OSUPJEUNEREGECO_"&A34,Output!$C:$AQ,7,FALSE)/VLOOKUP("OSUPREGECO_"&A34,Output!$C:$AQ,6,FALSE),3) ->  | O34: =ROUND(VLOOKUP("OSUPJEUNEREGECO_"&$A34,Output!$C:$AQ,12,FALSE)/VLOOKUP("OSUPREGECO_"&A34,Output!$C:$AQ,6,FALSE),3) ->  | R34: =ROUND(VLOOKUP("OSUPVIEUXTOTREGECO_"&$A34,Output!$C:$AQ,7,FALSE)/VLOOKUP("OSUPREGECO_"&A34,Output!$C:$AQ,6,FALSE),3) ->  | T34: =ROUND(VLOOKUP("OSUPVIEUXTOTREGECO_"&$A34,Output!$C:$AQ,12,FALSE)/VLOOKUP("OSUPREGECO_"&A34,Output!$C:$AQ,6,FALSE),3) ->  | W34: 0 | AA34: =Tableaux!$O$33 -> 02751 | AB34: 0
G35: =VLOOKUP(CONCATENATE("OSUPVIEUXALERTEREGECO_"&A35),Output!$C:$AQ,6,FALSE) ->  | H35: =VLOOKUP(CONCATENATE("OSUPVIEUXACCEPTREGECO_"&A35),Output!$C:$AQ,6,FALSE) ->  | I35: =VLOOKUP(CONCATENATE("OSUPJEUNEALERTEREGECO_"&A35),Output!$C:$AQ,6,FALSE) ->  | J35: =VLOOKUP(CONCATENATE("OSUPJEUNEACCEPTREGECO_"&A35),Output!$C:$AQ,6,FALSE) ->  | K35: =VLOOKUP(CONCATENATE("OSUPREGECO_"&A35),Output!$C:$AQ,6,FALSE) ->  | M35: =ROUND(VLOOKUP("OSUPJEUNEREGECO_"&A35,Output!$C:$AQ,7,FALSE)/VLOOKUP("OSUPREGECO_"&A35,Output!$C:$AQ,6,FALSE),3) ->  | O35: =ROUND(VLOOKUP("OSUPJEUNEREGECO_"&$A35,Output!$C:$AQ,12,FALSE)/VLOOKUP("OSUPREGECO_"&A35,Output!$C:$AQ,6,FALSE),3) ->  | R35: =ROUND(VLOOKUP("OSUPVIEUXTOTREGECO_"&$A35,Output!$C:$AQ,7,FALSE)/VLOOKUP("OSUPREGECO_"&A35,Output!$C:$AQ,6,FALSE),3) ->  | T35: =ROUND(VLOOKUP("OSUPVIEUXTOTREGECO_"&$A35,Output!$C:$AQ,12,FALSE)/VLOOKUP("OSUPREGECO_"&A35,Output!$C:$AQ,6,FALSE),3) ->  | W35: 0 | AA35: =Tableaux!$O$33 -> 02751 | AB35: 0
G36: =VLOOKUP(CONCATENATE("OSUPVIEUXALERTEREGECO_"&A36),Output!$C:$AQ,6,FALSE) ->  | H36: =VLOOKUP(CONCATENATE("OSUPVIEUXACCEPTREGECO_"&A36),Output!$C:$AQ,6,FALSE) ->  | I36: =VLOOKUP(CONCATENATE("OSUPJEUNEALERTEREGECO_"&A36),Output!$C:$AQ,6,FALSE) ->  | J36: =VLOOKUP(CONCATENATE("OSUPJEUNEACCEPTREGECO_"&A36),Output!$C:$AQ,6,FALSE) ->  | K36: =VLOOKUP(CONCATENATE("OSUPREGECO_"&A36),Output!$C:$AQ,6,FALSE) ->  | M36: =ROUND(VLOOKUP("OSUPJEUNEREGECO_"&A36,Output!$C:$AQ,7,FALSE)/VLOOKUP("OSUPREGECO_"&A36,Output!$C:$AQ,6,FALSE),3) ->  | O36: =ROUND(VLOOKUP("OSUPJEUNEREGECO_"&$A36,Output!$C:$AQ,12,FALSE)/VLOOKUP("OSUPREGECO_"&A36,Output!$C:$AQ,6,FALSE),3) ->  | R36: =ROUND(VLOOKUP("OSUPVIEUXTOTREGECO_"&$A36,Output!$C:$AQ,7,FALSE)/VLOOKUP("OSUPREGECO_"&A36,Output!$C:$AQ,6,FALSE),3) ->  | T36: =ROUND(VLOOKUP("OSUPVIEUXTOTREGECO_"&$A36,Output!$C:$AQ,12,FALSE)/VLOOKUP("OSUPREGECO_"&A36,Output!$C:$AQ,6,FALSE),3) ->  | W36: 0 | AA36: =Tableaux!$O$33 -> 02751 | AB36: 0
G37: =VLOOKUP(CONCATENATE("OSUPVIEUXALERTEREGECO_"&A37),Output!$C:$AQ,6,FALSE) ->  | H37: =VLOOKUP(CONCATENATE("OSUPVIEUXACCEPTREGECO_"&A37),Output!$C:$AQ,6,FALSE) ->  | I37: =VLOOKUP(CONCATENATE("OSUPJEUNEALERTEREGECO_"&A37),Output!$C:$AQ,6,FALSE) ->  | J37: =VLOOKUP(CONCATENATE("OSUPJEUNEACCEPTREGECO_"&A37),Output!$C:$AQ,6,FALSE) ->  | K37: =VLOOKUP(CONCATENATE("OSUPREGECO_"&A37),Output!$C:$AQ,6,FALSE) ->  | M37: =ROUND(VLOOKUP("OSUPJEUNEREGECO_"&A37,Output!$C:$AQ,7,FALSE)/VLOOKUP("OSUPREGECO_"&A37,Output!$C:$AQ,6,FALSE),3) ->  | O37: =ROUND(VLOOKUP("OSUPJEUNEREGECO_"&$A37,Output!$C:$AQ,12,FALSE)/VLOOKUP("OSUPREGECO_"&A37,Output!$C:$AQ,6,FALSE),3) ->  | R37: =ROUND(VLOOKUP("OSUPVIEUXTOTREGECO_"&$A37,Output!$C:$AQ,7,FALSE)/VLOOKUP("OSUPREGECO_"&A37,Output!$C:$AQ,6,FALSE),3) ->  | T37: =ROUND(VLOOKUP("OSUPVIEUXTOTREGECO_"&$A37,Output!$C:$AQ,12,FALSE)/VLOOKUP("OSUPREGECO_"&A37,Output!$C:$AQ,6,FALSE),3) ->  | W37: 0 | AA37: =Tableaux!$O$33 -> 02751 | AB37: 0
G38: =VLOOKUP(CONCATENATE("OSUPVIEUXALERTEREGECO_"&A38),Output!$C:$AQ,6,FALSE) ->  | H38: =VLOOKUP(CONCATENATE("OSUPVIEUXACCEPTREGECO_"&A38),Output!$C:$AQ,6,FALSE) ->  | I38: =VLOOKUP(CONCATENATE("OSUPJEUNEALERTEREGECO_"&A38),Output!$C:$AQ,6,FALSE) ->  | J38: =VLOOKUP(CONCATENATE("OSUPJEUNEACCEPTREGECO_"&A38),Output!$C:$AQ,6,FALSE) ->  | K38: =VLOOKUP(CONCATENATE("OSUPREGECO_"&A38),Output!$C:$AQ,6,FALSE) ->  | M38: =ROUND(VLOOKUP("OSUPJEUNEREGECO_"&A38,Output!$C:$AQ,7,FALSE)/VLOOKUP("OSUPREGECO_"&A38,Output!$C:$AQ,6,FALSE),3) ->  | O38: =ROUND(VLOOKUP("OSUPJEUNEREGECO_"&$A38,Output!$C:$AQ,12,FALSE)/VLOOKUP("OSUPREGECO_"&A38,Output!$C:$AQ,6,FALSE),3) ->  | R38: =ROUND(VLOOKUP("OSUPVIEUXTOTREGECO_"&$A38,Output!$C:$AQ,7,FALSE)/VLOOKUP("OSUPREGECO_"&A38,Output!$C:$AQ,6,FALSE),3) ->  | T38: =ROUND(VLOOKUP("OSUPVIEUXTOTREGECO_"&$A38,Output!$C:$AQ,12,FALSE)/VLOOKUP("OSUPREGECO_"&A38,Output!$C:$AQ,6,FALSE),3) ->  | W38: 0 | AA38: =Tableaux!$O$33 -> 02751 | AB38: 0
G39: =VLOOKUP(CONCATENATE("OSUPVIEUXALERTEREGECO_"&A39),Output!$C:$AQ,6,FALSE) ->  | H39: =VLOOKUP(CONCATENATE("OSUPVIEUXACCEPTREGECO_"&A39),Output!$C:$AQ,6,FALSE) ->  | I39: =VLOOKUP(CONCATENATE("OSUPJEUNEALERTEREGECO_"&A39),Output!$C:$AQ,6,FALSE) ->  | J39: =VLOOKUP(CONCATENATE("OSUPJEUNEACCEPTREGECO_"&A39),Output!$C:$AQ,6,FALSE) ->  | K39: =VLOOKUP(CONCATENATE("OSUPREGECO_"&A39),Output!$C:$AQ,6,FALSE) ->  | M39: =ROUND(VLOOKUP("OSUPJEUNEREGECO_"&A39,Output!$C:$AQ,7,FALSE)/VLOOKUP("OSUPREGECO_"&A39,Output!$C:$AQ,6,FALSE),3) ->  | O39: =ROUND(VLOOKUP("OSUPJEUNEREGECO_"&$A39,Output!$C:$AQ,12,FALSE)/VLOOKUP("OSUPREGECO_"&A39,Output!$C:$AQ,6,FALSE),3) ->  | R39: =ROUND(VLOOKUP("OSUPVIEUXTOTREGECO_"&$A39,Output!$C:$AQ,7,FALSE)/VLOOKUP("OSUPREGECO_"&A39,Output!$C:$AQ,6,FALSE),3) ->  | T39: =ROUND(VLOOKUP("OSUPVIEUXTOTREGECO_"&$A39,Output!$C:$AQ,12,FALSE)/VLOOKUP("OSUPREGECO_"&A39,Output!$C:$AQ,6,FALSE),3) ->  | W39: 0 | AA39: =Tableaux!$O$33 -> 02751 | AB39: 0
G40: =VLOOKUP(CONCATENATE("OSUPVIEUXALERTEREGECO_"&A40),Output!$C:$AQ,6,FALSE) ->  | H40: =VLOOKUP(CONCATENATE("OSUPVIEUXACCEPTREGECO_"&A40),Output!$C:$AQ,6,FALSE) ->  | I40: =VLOOKUP(CONCATENATE("OSUPJEUNEALERTEREGECO_"&A40),Output!$C:$AQ,6,FALSE) ->  | J40: =VLOOKUP(CONCATENATE("OSUPJEUNEACCEPTREGECO_"&A40),Output!$C:$AQ,6,FALSE) ->  | K40: =VLOOKUP(CONCATENATE("OSUPREGECO_"&A40),Output!$C:$AQ,6,FALSE) ->  | M40: =ROUND(VLOOKUP("OSUPJEUNEREGECO_"&A40,Output!$C:$AQ,7,FALSE)/VLOOKUP("OSUPREGECO_"&A40,Output!$C:$AQ,6,FALSE),3) ->  | O40: =ROUND(VLOOKUP("OSUPJEUNEREGECO_"&$A40,Output!$C:$AQ,12,FALSE)/VLOOKUP("OSUPREGECO_"&A40,Output!$C:$AQ,6,FALSE),3) ->  | R40: =ROUND(VLOOKUP("OSUPVIEUXTOTREGECO_"&$A40,Output!$C:$AQ,7,FALSE)/VLOOKUP("OSUPREGECO_"&A40,Output!$C:$AQ,6,FALSE),3) ->  | T40: =ROUND(VLOOKUP("OSUPVIEUXTOTREGECO_"&$A40,Output!$C:$AQ,12,FALSE)/VLOOKUP("OSUPREGECO_"&A40,Output!$C:$AQ,6,FALSE),3) ->  | W40: 0 | AA40: =Tableaux!$O$33 -> 02751 | AB40: 0
G41: =VLOOKUP(CONCATENATE("OSUPVIEUXALERTEREGECO_"&A41),Output!$C:$AQ,6,FALSE) ->  | H41: =VLOOKUP(CONCATENATE("OSUPVIEUXACCEPTREGECO_"&A41),Output!$C:$AQ,6,FALSE) ->  | I41: =VLOOKUP(CONCATENATE("OSUPJEUNEALERTEREGECO_"&A41),Output!$C:$AQ,6,FALSE) ->  | J41: =VLOOKUP(CONCATENATE("OSUPJEUNEACCEPTREGECO_"&A41),Output!$C:$AQ,6,FALSE) ->  | K41: =VLOOKUP(CONCATENATE("OSUPREGECO_"&A41),Output!$C:$AQ,6,FALSE) ->  | M41: =ROUND(VLOOKUP("OSUPJEUNEREGECO_"&A41,Output!$C:$AQ,7,FALSE)/VLOOKUP("OSUPREGECO_"&A41,Output!$C:$AQ,6,FALSE),3) ->  | O41: =ROUND(VLOOKUP("OSUPJEUNEREGECO_"&$A41,Output!$C:$AQ,12,FALSE)/VLOOKUP("OSUPREGECO_"&A41,Output!$C:$AQ,6,FALSE),3) ->  | R41: =ROUND(VLOOKUP("OSUPVIEUXTOTREGECO_"&$A41,Output!$C:$AQ,7,FALSE)/VLOOKUP("OSUPREGECO_"&A41,Output!$C:$AQ,6,FALSE),3) ->  | T41: =ROUND(VLOOKUP("OSUPVIEUXTOTREGECO_"&$A41,Output!$C:$AQ,12,FALSE)/VLOOKUP("OSUPREGECO_"&A41,Output!$C:$AQ,6,FALSE),3) ->  | W41: 0 | AA41: =Tableaux!$O$33 -> 02751 | AB41: 0
G42: =VLOOKUP(CONCATENATE("OSUPVIEUXALERTEREGECO_"&A42),Output!$C:$AQ,6,FALSE) ->  | H42: =VLOOKUP(CONCATENATE("OSUPVIEUXACCEPTREGECO_"&A42),Output!$C:$AQ,6,FALSE) ->  | I42: =VLOOKUP(CONCATENATE("OSUPJEUNEALERTEREGECO_"&A42),Output!$C:$AQ,6,FALSE) ->  | J42: =VLOOKUP(CONCATENATE("OSUPJEUNEACCEPTREGECO_"&A42),Output!$C:$AQ,6,FALSE) ->  | K42: =VLOOKUP(CONCATENATE("OSUPREGECO_"&A42),Output!$C:$AQ,6,FALSE) ->  | M42: =ROUND(VLOOKUP("OSUPJEUNEREGECO_"&A42,Output!$C:$AQ,7,FALSE)/VLOOKUP("OSUPREGECO_"&A42,Output!$C:$AQ,6,FALSE),3) ->  | O42: =ROUND(VLOOKUP("OSUPJEUNEREGECO_"&$A42,Output!$C:$AQ,12,FALSE)/VLOOKUP("OSUPREGECO_"&A42,Output!$C:$AQ,6,FALSE),3) ->  | R42: =ROUND(VLOOKUP("OSUPVIEUXTOTREGECO_"&$A42,Output!$C:$AQ,7,FALSE)/VLOOKUP("OSUPREGECO_"&A42,Output!$C:$AQ,6,FALSE),3) ->  | T42: =ROUND(VLOOKUP("OSUPVIEUXTOTREGECO_"&$A42,Output!$C:$AQ,12,FALSE)/VLOOKUP("OSUPREGECO_"&A42,Output!$C:$AQ,6,FALSE),3) ->  | W42: 0 | AA42: =Tableaux!$O$33 -> 02751 | AB42: 0

Sheet Output
C1: 1 | D1: 2 | E1: 3 | F1: 4 | G1: 5 | H1: 6 | I1: 7 | J1: 8 | K1: 9 | L1: 10 | M1: 11 | N1: 12 | O1: 13 | P1: 14 | Q1: 15 | R1: 16 | S1: 17 | T1: 18 | U1: 19 | V1: 20 | W1: 21 | X1: 22 | Y1: 23 | Z1: 24 | AA1: 25 | AB1: 26 | AC1: 27 | AD1: 28 | AE1: 29 | AF1: 30 | AG1: 31 | AH1: 32 | AI1: 33 | AJ1: 34 | AK1: 35 | AL1: 36 | AM1: 37 | AN1: 38 | AO1: 39 | AP1: 40 | AQ1: 41
A2: Record | B2: Group | C2: Name | D2: Description | E2: Attribute | F2: Minimum | G2: Maximum | H2: Period0 | I2: Period1 | J2: Period2 | K2: Period3 | L2: Period4 | M2: Period5 | N2: Period6 | O2: Period7 | P2: Period8 | Q2: Period9 | R2: Period10 | S2: Period11 | T2: Period12 | U2: Period13 | V2: Period14 | W2: Period15 | X2: Period16 | Y2: Period17 | Z2: Period18 | AA2: Period19 | AB2: Period20 | AC2: Period21 | AD2: Period22 | AE2: Period23 | AF2: Period24 | AG2: Period25 | AH2: Period26 | AI2: Period27 | AJ2: Period28 | AK2: Period29 | AL2: Period30 | AM2: Moyemme P2 à P6 | AN2: Moyenne P7 à P11 | AO2: Moyenne P12 à P20 | AP2: Moyenne P21 à P30 | AQ2: Moyenne P2 à P30
B3: GROUP | C3: NAME | D3: DESCRIPTIO | E3: ATTRIBUTE | F3: MINIMUM | G3: MAXIMUM | H3: PERIOD0 | I3: PERIOD1 | J3: PERIOD2 | K3: PERIOD3 | L3: PERIOD4 | M3: PERIOD5 | N3: PERIOD6 | O3: PERIOD7 | P3: PERIOD8 | Q3: PERIOD9 | R3: PERIOD10 | S3: PERIOD11 | T3: PERIOD12 | U3: PERIOD13 | V3: PERIOD14 | W3: PERIOD15 | X3: PERIOD16 | Y3: PERIOD17 | Z3: PERIOD18 | AA3: PERIOD19 | AB3: PERIOD20 | AC3: PERIOD21 | AD3: PERIOD22 | AE3: PERIOD23 | AF3: PERIOD24 | AG3: PERIOD25 | AH3: PERIOD26 | AI3: PERIOD27 | AJ3: PERIOD28 | AK3: PERIOD29 | AL3: PERIOD30 | AM3: =AVERAGE(J3:N3) ->  | AN3: =AVERAGE(O3:S3) ->  | AO3: =AVERAGE(T3:AB3) ->  | AP3: =AVERAGE(AC3:AL3) ->  | AQ3: =AVERAGE(J3:AL3) -> 
B4: <Non regroupÚ(s)> | C4: OSUPTOT | D4: Superficie Totale | F4: 1247503.4 | G4: 1247503.4 | H4: 1247503.4 | I4: 1247503.4 | J4: 1247503.4 | K4: 1247503.4 | L4: 1247503.4 | M4: 1247503.4 | N4: 1247503.4 | O4: 1247503.4 | P4: 1247503.4 | Q4: 1247503.4 | R4: 1247503.4 | S4: 1247503.4 | T4: 1247503.4 | U4: 1247503.4 | V4: 1247503.4 | W4: 1247503.4 | X4: 1247503.4 | Y4: 1247503.4 | Z4: 1247503.4 | AA4: 1247503.4 | AB4: 1247503.4 | AC4: 1247503.4 | AD4: 1247503.4 | AE4: 1247503.4 | AF4: 1247503.4 | AG4: 1247503.4 | AH4: 1247503.4 | AI4: 1247503.4 | AJ4: 1247503.4 | AK4: 1247503.4 | AL4: 1247503.4 | AM4: =AVERAGE(J4:N4) -> 1247503.4 | AN4: =AVERAGE(O4:S4) -> 1247503.4 | AO4: =AVERAGE(T4:AB4) -> 1247503.4 | AP4: =AVERAGE(AC4:AL4) -> 1247503.4 | AQ4: =AVERAGE(J4:AL4) -> 1247503.4
B5: <Non regroupÚ(s)> | C5: OSUPINC | D5: Superficie InclusActions par courbe | F5: 871807.57 | G5: 892689.2 | H5: 892689.2 | I5: 890212.21 | J5: 888499.75 | K5: 886867.6 | L5: 885234.93 | M5: 883643.49 | N5: 882261.88 | O5: 880748.62 | P5: 879720.41 | Q5: 878880.9 | R5: 878019.46 | S5: 877322.95 | T5: 876812.71 | U5: 876535.06 | V5: 876155.44 | W5: 875962.53 | X5: 875202.5 | Y5: 874256.14 | Z5: 873458.61 | AA5: 873274.84 | AB5: 873196.44 | AC5: 872921.26 | AD5: 872614.61 | AE5: 872515.05 | AF5: 872448.36 | AG5: 872245.32 | AH5: 871994.21 | AI5: 871958.52 | AJ5: 871829.12 | AK5: 871807.57 | AL5: 871807.57 | AM5: 885301.53 | AN5: 878938.468 | AO5: 874983.8078 | AP5: 872214.159 | AQ5: 876489.5121
B6: <Non regroupÚ(s)> | C6: OSUPregECO | D6: Superficie Disponible aux RÚsultats ╔cologiques | F6: 1044347.37 | G6: 1065229 | H6: 1065229 | I6: 1062752.01 | J6: 1061039.55 | K6: 1059407.4 | L6: 1057774.73 | M6: 1056183.29 | N6: 1054801.68 | O6: 1053288.42 | P6: 1052260.21 | Q6: 1051420.7 | R6: 1050559.26 | S6: 1049862.75 | T6: 1049352.51 | U6: 1049074.86 | V6: 1048695.24 | W6: 1048502.33 | X6: 1047742.3 | Y6: 1046795.94 | Z6: 1045998.41 | AA6: 1045814.64 | AB6: 1045736.24 | AC6: 1045461.06 | AD6: 1045154.41 | AE6: 1045054.85 | AF6: 1044988.16 | AG6: 1044785.12 | AH6: 1044534.01 | AI6: 1044498.32 | AJ6: 1044368.92 | AK6: 1044347.37 | AL6: 1044347.37 | AM6: 1057841.33 | AN6: 1051478.268 | AO6: 1047523.608 | AP6: 1044753.959 | AQ6: 1049029.312
B7: <Non regroupÚ(s)> | C7: OSUPEXIN | D7: Superficie ExcluActionsInclus | F7: 172539.8 | G7: 172539.8 | H7: 172539.8 | I7: 172539.8 | J7: 172539.8 | K7: 172539.8 | L7: 172539.8 | M7: 172539.8 | N7: 172539.8 | O7: 172539.8 | P7: 172539.8 | Q7: 172539.8 | R7: 172539.8 | S7: 172539.8 | T7: 172539.8 | U7: 172539.8 | V7: 172539.8 | W7: 172539.8 | X7: 172539.8 | Y7: 172539.8 | Z7: 172539.8 | AA7: 172539.8 | AB7: 172539.8 | AC7: 172539.8 | AD7: 172539.8 | AE7: 172539.8 | AF7: 172539.8 | AG7: 172539.8 | AH7: 172539.8 | AI7: 172539.8 | AJ7: 172539.8 | AK7: 172539.8 | AL7: 172539.8 | AM7: 172539.8 | AN7: 172539.8 | AO7: 172539.8 | AP7: 172539.8 | AQ7: 172539.8
B8: <Non regroupÚ(s)> | C8: OSUPEXTI | D8: Superficie Improductive | F8: 84300.3 | G8: 86800.3 | H8: 86800.3 | I8: 86800.3 | J8: 86300.3 | K8: 85800.3 | L8: 85300.3 | M8: 84800.3 | N8: 84300.3 | O8: 84300.3 | P8: 84300.3 | Q8: 84300.3 | R8: 84300.3 | S8: 84300.3 | T8: 84300.3 | U8: 84300.3 | V8: 84300.3 | W8: 84300.3 | X8: 84300.3 | Y8: 84300.3 | Z8: 84300.3 | AA8: 84300.3 | AB8: 84300.3 | AC8: 84300.3 | AD8: 84300.3 | AE8: 84300.3 | AF8: 84300.3 | AG8: 84300.3 | AH8: 84300.3 | AI8: 84300.3 | AJ8: 84300.3 | AK8: 84300.3 | AL8: 84300.3 | AM8: 85300.3 | AN8: 84300.3 | AO8: 84300.3 | AP8: 84300.3 | AQ8: 84472.71379
B9: <Non regroupÚ(s)> | C9: OSUPLOCK | D9: Superficie Sous Verrous | F9: 8222.52 | G9: 152431.86 | H9: 148264.5 | I9: 151880.91 | J9: 148788.66 | K9: 151168.61 | L9: 152431.86 | M9: 120966.82 | N9: 123451.18 | O9: 126733.91 | P9: 81823.77 | Q9: 18531.98 | R9: 16505.18 | S9: 13413.17 | T9: 10572.46 | U9: 8222.52 | V9: 9250.76 | W9: 11680.47 | X9: 15574.93 | Y9: 20470.68 | Z9: 26438.98 | AA9: 31473.01 | AB9: 37470.64 | AC9: 36347.47 | AD9: 36613.23 | AE9: 35389.32 | AF9: 29451.28 | AG9: 24631.5 | AH9: 22463.57 | AI9: 16644.63 | AJ9: 15134.96 | AK9: 15108.84 | AL9: 16810.55 | AM9: 139361.426 | AN9: 51401.602 | AO9: 19017.16111 | AP9: 24859.535 | AQ9: 47364.30828
B10: Economique | C10: oSupTcsdDEG_1_T100% | D10: oSupTcsdDEG_1_T100% | F10: 0 | G10: 12279.1 | H10: 0 | I10: 7801.69 | J10: 10370.71 | K10: 4726.84 | L10: 5044.27 | M10: 6357.3 | N10: 5678.31 | O10: 9741.76 | P10: 9755.96 | Q10: 12279.1 | R10: 9723.32 | S10: 12239.37 | T10: 9746 | U10: 8798.97 | V10: 7358.32 | W10: 8953.91 | X10: 7137.13 | Y10: 4355.01 | Z10: 4263.47 | AA10: 5032.07 | AB10: 4016.78 | AC10: 4950.07 | AD10: 4545.05 | AE10: 8081.13 | AF10: 7722.37 | AG10: 5402.01 | AH10: 5426.04 | AI10: 7720.89 | AJ10: 10223.36 | AK10: 8345.08 | AL10: 6379.91 | AM10: 6435.486 | AN10: 10747.902 | AO10: 6629.073333 | AP10: 6879.591 | AQ10: 7392.224483
B11: Economique | C11: oSupTcsdDEG_2_T100% | D11: oSupTcsdDEG_2_T100% | F11: 0 | G11: 3850 | H11: 0 | I11: 2626.6 | J11: 3850 | K11: 3850 | L11: 3150 | M11: 3850 | N11: 3850 | O11: 564.5 | P11: 61.5 | Q11: 18.05 | R11: 208.29 | S11: 0 | T11: 0 | U11: 0 | V11: 86.62 | W11: 11.94 | X11: 2061.93 | Y11: 26.84 | Z11: 0 | AA11: 0 | AB11: 3133.1 | AC11: 0 | AD11: 0 | AE11: 0 | AF11: 0 | AG11: 0 | AH11: 9.84 | AI11: 3620.86 | AJ11: 0 | AK11: 1541.38 | AL11: 1692.26 | AM11: 3710 | AN11: 170.468 | AO11: 591.1588889 | AP11: 686.434 | AQ11: 1089.21069
B12: Economique | C12: oSupDEG_1_T100% | D12: oSupDEG_1_T100% | F12: 0 | G12: 12279.1 | H12: 0 | I12: 7801.69 | J12: 10370.71 | K12: 4726.84 | L12: 5044.27 | M12: 6357.3 | N12: 5678.31 | O12: 9741.76 | P12: 9755.96 | Q12: 12279.1 | R12: 9723.32 | S12: 12239.37 | T12: 9746 | U12: 8798.97 | V12: 7358.32 | W12: 8953.91 | X12: 7137.13 | Y12: 4355.01 | Z12: 4263.47 | AA12: 5032.07 | AB12: 4016.78 | AC12: 4950.07 | AD12: 4545.05 | AE12: 8081.13 | AF12: 7722.37 | AG12: 5402.01 | AH12: 5426.04 | AI12: 7720.89 | AJ12: 10223.36 | AK12: 8345.08 | AL12: 6379.91 | AM12: 6435.486 | AN12: 10747.902 | AO12: 6629.073333 | AP12: 6879.591 | AQ12: 7392.224483
B13: Economique | C13: oSupDEG_2_T100% | D13: oSupDEG_2_T100% | F13: 0 | G13: 3850 | H13: 0 | I13: 2626.6 | J13: 3850 | K13: 3850 | L13: 3150 | M13: 3850 | N13: 3850 | O13: 564.5 | P13: 61.5 | Q13: 18.05 | R13: 208.29 | S13: 0 | T13: 0 | U13: 0 | V13: 86.62 | W13: 11.94 | X13: 2061.93 | Y13: 26.84 | Z13: 0 | AA13: 0 | AB13: 3133.1 | AC13: 0 | AD13: 0 | AE13: 0 | AF13: 0 | AG13: 0 | AH13: 9.84 | AI13: 3620.86 | AJ13: 0 | AK13: 1541.38 | AL13: 1692.26 | AM13: 3710 | AN13: 170.468 | AO13: 591.1588889 | AP13: 686.434 | AQ13: 1089.21069
B14: Economique | C14: oSupDEG_1 | D14: oSupDEG_1 | F14: 0 | G14: 12279.1 | H14: 0 | I14: 7801.69 | J14: 10370.71 | K14: 4726.84 | L14: 5044.27 | M14: 6357.3 | N14: 5678.31 | O14: 9741.76 | P14: 9755.96 | Q14: 12279.1 | R14: 9723.32 | S14: 12239.37 | T14: 9746 | U14: 8798.97 | V14: 7358.32 | W14: 8953.91 | X14: 7137.13 | Y14: 4355.01 | Z14: 4263.47 | AA14: 5032.07 | AB14: 4016.78 | AC14: 4950.07 | AD14: 4545.05 | AE14: 8081.13 | AF14: 7722.37 | AG14: 5402.01 | AH14: 5426.04 | AI14: 7720.89 | AJ14: 10223.36 | AK14: 8345.08 | AL14: 6379.91 | AM14: 6435.486 | AN14: 10747.902 | AO14: 6629.073333 | AP14: 6879.591 | AQ14: 7392.224483
B15: Economique | C15: oSupDEG_2 | D15: oSupDEG_2 | F15: 0 | G15: 3850 | H15: 0 | I15: 2626.6 | J15: 3850 | K15: 3850 | L15: 3150 | M15: 3850 | N15: 3850 | O15: 564.5 | P15: 61.5 | Q15: 18.05 | R15: 208.29 | S15: 0 | T15: 0 | U15: 0 | V15: 86.62 | W15: 11.94 | X15: 2061.93 | Y15: 26.84 | Z15: 0 | AA15: 0 | AB15: 3133.1 | AC15: 0 | AD15: 0 | AE15: 0 | AF15: 0 | AG15: 0 | AH15: 9.84 | AI15: 3620.86 | AJ15: 0 | AK15: 1541.38 | AL15: 1692.26 | AM15: 3710 | AN15: 170.468 | AO15: 591.1588889 | AP15: 686.434 | AQ15: 1089.21069
B16: Economique | C16: oSupTcsdSCA_LIGN_T100% | D16: oSupTcsdSCA_LIGN_T100% | F16: 0 | G16: 0 | H16: 0 | I16: 0 | J16: 0 | K16: 0 | L16: 0 | M16: 0 | N16: 0 | O16: 0 | P16: 0 | Q16: 0 | R16: 0 | S16: 0 | T16: 0 | U16: 0 | V16: 0 | W16: 0 | X16: 0 | Y16: 0 | Z16: 0 | AA16: 0 | AB16: 0 | AC16: 0 | AD16: 0 | AE16: 0 | AF16: 0 | AG16: 0 | AH16: 0 | AI16: 0 | AJ16: 0 | AK16: 0 | AL16: 0 | AM16: 0 | AN16: 0 | AO16: 0 | AP16: 0 | AQ16: 0
B17: Economique | C17: oSupTcsdSCA_LRD_T100% | D17: oSupTcsdSCA_LRD_T100% | F17: 0 | G17: 0 | H17: 0 | I17: 0 | J17: 0 | K17: 0 | L17: 0 | M17: 0 | N17: 0 | O17: 0 | P17: 0 | Q17: 0 | R17: 0 | S17: 0 | T17: 0 | U17: 0 | V17: 0 | W17: 0 | X17: 0 | Y17: 0 | Z17: 0 | AA17: 0 | AB17: 0 | AC17: 0 | AD17: 0 | AE17: 0 | AF17: 0 | AG17: 0 | AH17: 0 | AI17: 0 | AJ17: 0 | AK17: 0 | AL17: 0 | AM17: 0 | AN17: 0 | AO17: 0 | AP17: 0 | AQ17: 0
B18: Economique | C18: oSupTcsdSCA_PART_T100% | D18: oSupTcsdSCA_PART_T100% | F18: 0 | G18: 10281.56 | H18: 0 | I18: 6413.41 | J18: 8100 | K18: 7680 | L18: 6980 | M18: 7680 | N18: 7680 | O18: 3989.5 | P18: 292.59 | Q18: 23.55 | R18: 1799.08 | S18: 533.44 | T18: 795.81 | U18: 1261.3 | V18: 4328.94 | W18: 2600.31 | X18: 5890.69 | Y18: 6435.34 | Z18: 6404.04 | AA18: 5709.21 | AB18: 10281.56 | AC18: 3003.89 | AD18: 2728.44 | AE18: 2466.59 | AF18: 318.36 | AG18: 1416.95 | AH18: 3366.37 | AI18: 4747.93 | AJ18: 1271.54 | AK18: 3998.76 | AL18: 5591.11 | AM18: 7624 | AN18: 1327.632 | AO18: 4856.355556 | AP18: 2890.994 | AQ18: 4047.424138
B19: Economique | C19: oSupTcsdSCA_REG_T100% | D19: oSupTcsdSCA_REG_T100% | F19: 0 | G19: 19602.7 | H19: 0 | I19: 18073.4 | J19: 13060 | K19: 13060 | L19: 13060 | M19: 13060 | N19: 13060 | O19: 16066.85 | P19: 17195.61 | Q19: 16870.69 | R19: 16452.56 | S19: 15539.09 | T19: 17401 | U19: 18313.13 | V19: 17279.27 | W19: 17509.13 | X19: 15156.18 | Y19: 14917.93 | Z19: 15915.25 | AA19: 17504.3 | AB19: 15423.42 | AC19: 19602.7 | AD19: 19496.27 | AE19: 17111.38 | AF19: 17656.37 | AG19: 16550.06 | AH19: 15287.88 | AI19: 12476.97 | AJ19: 14554.96 | AK19: 14624.2 | AL19: 13300.39 | AM19: 13060 | AN19: 16424.96 | AO19: 16602.17889 | AP19: 16066.118 | AQ19: 15776.05483
B20: Economique | C20: oSupSCA_LIGN_T100% | D20: oSupSCA_LIGN_T100% | F20: 0 | G20: 0 | H20: 0 | I20: 0 | J20: 0 | K20: 0 | L20: 0 | M20: 0 | N20: 0 | O20: 0 | P20: 0 | Q20: 0 | R20: 0 | S20: 0 | T20: 0 | U20: 0 | V20: 0 | W20: 0 | X20: 0 | Y20: 0 | Z20: 0 | AA20: 0 | AB20: 0 | AC20: 0 | AD20: 0 | AE20: 0 | AF20: 0 | AG20: 0 | AH20: 0 | AI20: 0 | AJ20: 0 | AK20: 0 | AL20: 0 | AM20: 0 | AN20: 0 | AO20: 0 | AP20: 0 | AQ20: 0
B21: Economique | C21: oSupSCA_LRD_T100% | D21: oSupSCA_LRD_T100% | F21: 0 | G21: 0 | H21: 0 | I21: 0 | J21: 0 | K21: 0 | L21: 0 | M21: 0 | N21: 0 | O21: 0 | P21: 0 | Q21: 0 | R21: 0 | S21: 0 | T21: 0 | U21: 0 | V21: 0 | W21: 0 | X21: 0 | Y21: 0 | Z21: 0 | AA21: 0 | AB21: 0 | AC21: 0 | AD21: 0 | AE21: 0 | AF21: 0 | AG21: 0 | AH21: 0 | AI21: 0 | AJ21: 0 | AK21: 0 | AL21: 0 | AM21: 0 | AN21: 0 | AO21: 0 | AP21: 0 | AQ21: 0
B22: Economique | C22: oSupSCA_PART_T100% | D22: oSupSCA_PART_T100% | F22: 0 | G22: 10281.56 | H22: 0 | I22: 6413.41 | J22: 8100 | K22: 7680 | L22: 6980 | M22: 7680 | N22: 7680 | O22: 3989.5 | P22: 292.59 | Q22: 23.55 | R22: 1799.08 | S22: 533.44 | T22: 795.81 | U22: 1261.3 | V22: 4328.94 | W22: 2600.31 | X22: 5890.69 | Y22: 6435.34 | Z22: 6404.04 | AA22: 5709.21 | AB22: 10281.56 | AC22: 3003.89 | AD22: 2728.44 | AE22: 2466.59 | AF22: 318.36 | AG22: 1416.95 | AH22: 3366.37 | AI22: 4747.93 | AJ22: 1271.54 | AK22: 3998.76 | AL22: 5591.11 | AM22: 7624 | AN22: 1327.632 | AO22: 4856.355556 | AP22: 2890.994 | AQ22: 4047.424138
B23: Economique | C23: oSupSCA_REG_T100% | D23: oSupSCA_REG_T100% | F23: 0 | G23: 19602.7 | H23: 0 | I23: 18073.4 | J23: 13060 | K23: 13060 | L23: 13060 | M23: 13060 | N23: 13060 | O23: 16066.85 | P23: 17195.61 | Q23: 16870.69 | R23: 16452.56 | S23: 15539.09 | T23: 17401 | U23: 18313.13 | V23: 17279.27 | W23: 17509.13 | X23: 15156.18 | Y23: 14917.93 | Z23: 15915.25 | AA23: 17504.3 | AB23: 15423.42 | AC23: 19602.7 | AD23: 19496.27 | AE23: 17111.38 | AF23: 17656.37 | AG23: 16550.06 | AH23: 15287.88 | AI23: 12476.97 | AJ23: 14554.96 | AK23: 14624.2 | AL23: 13300.39 | AM23: 13060 | AN23: 16424.96 | AO23: 16602.17889 | AP23: 16066.118 | AQ23: 15776.05483
B24: Economique | C24: oSupSCA_LIGN | D24: oSupSCA_LIGN | F24: 0 | G24: 0 | H24: 0 | I24: 0 | J24: 0 | K24: 0 | L24: 0 | M24: 0 | N24: 0 | O24: 0 | P24: 0 | Q24: 0 | R24: 0 | S24: 0 | T24: 0 | U24: 0 | V24: 0 | W24: 0 | X24: 0 | Y24: 0 | Z24: 0 | AA24: 0 | AB24: 0 | AC24: 0 | AD24: 0 | AE24: 0 | AF24: 0 | AG24: 0 | AH24: 0 | AI24: 0 | AJ24: 0 | AK24: 0 | AL24: 0 | AM24: 0 | AN24: 0 | AO24: 0 | AP24: 0 | AQ24: 0
B25: Economique | C25: oSupSCA_LRD | D25: oSupSCA_LRD | F25: 0 | G25: 0 | H25: 0 | I25: 0 | J25: 0 | K25: 0 | L25: 0 | M25: 0 | N25: 0 | O25: 0 | P25: 0 | Q25: 0 | R25: 0 | S25: 0 | T25: 0 | U25: 0 | V25: 0 | W25: 0 | X25: 0 | Y25: 0 | Z25: 0 | AA25: 0 | AB25: 0 | AC25: 0 | AD25: 0 | AE25: 0 | AF25: 0 | AG25: 0 | AH25: 0 | AI25: 0 | AJ25: 0 | AK25: 0 | AL25: 0 | AM25: 0 | AN25: 0 | AO25: 0 | AP25: 0 | AQ25: 0
B26: Economique | C26: oSupSCA_PART | D26: oSupSCA_PART | F26: 0 | G26: 10281.56 | H26: 0 | I26: 6413.41 | J26: 8100 | K26: 7680 | L26: 6980 | M26: 7680 | N26: 7680 | O26: 3989.5 | P26: 292.59 | Q26: 23.55 | R26: 1799.08 | S26: 533.44 | T26: 795.81 | U26: 1261.3 | V26: 4328.94 | W26: 2600.31 | X26: 5890.69 | Y26: 6435.34 | Z26: 6404.04 | AA26: 5709.21 | AB26: 10281.56 | AC26: 3003.89 | AD26: 2728.44 | AE26: 2466.59 | AF26: 318.36 | AG26: 1416.95 | AH26: 3366.37 | AI26: 4747.93 | AJ26: 1271.54 | AK26: 3998.76 | AL26: 5591.11 | AM26: 7624 | AN26: 1327.632 | AO26: 4856.355556 | AP26: 2890.994 | AQ26: 4047.424138
B27: Economique | C27: oSupSCA_REG | D27: oSupSCA_REG | F27: 0 | G27: 19602.7 | H27: 0 | I27: 18073.4 | J27: 13060 | K27: 13060 | L27: 13060 | M27: 13060 | N27: 13060 | O27: 16066.85 | P27: 17195.61 | Q27: 16870.69 | R27: 16452.56 | S27: 15539.09 | T27: 17401 | U27: 18313.13 | V27: 17279.27 | W27: 17509.13 | X27: 15156.18 | Y27: 14917.93 | Z27: 15915.25 | AA27: 17504.3 | AB27: 15423.42 | AC27: 19602.7 | AD27: 19496.27 | AE27: 17111.38 | AF27: 17656.37 | AG27: 16550.06 | AH27: 15287.88 | AI27: 12476.97 | AJ27: 14554.96 | AK27: 14624.2 | AL27: 13300.39 | AM27: 13060 | AN27: 16424.96 | AO27: 16602.17889 | AP27: 16066.118 | AQ27: 15776.05483
B28: Economique | C28: oSupActREG_T100% | D28: oSupActREG_T100% | F28: 0 | G28: 3850 | H28: 0 | I28: 2626.6 | J28: 3850 | K28: 3850 | L28: 3150 | M28: 3850 | N28: 3850 | O28: 564.5 | P28: 61.5 | Q28: 18.05 | R28: 208.29 | S28: 0 | T28: 0 | U28: 0 | V28: 86.62 | W28: 11.94 | X28: 2061.93 | Y28: 26.84 | Z28: 0 | AA28: 0 | AB28: 3133.1 | AC28: 0 | AD28: 0 | AE28: 0 | AF28: 0 | AG28: 0 | AH28: 9.84 | AI28: 3620.86 | AJ28: 0 | AK28: 1541.38 | AL28: 1692.26 | AM28: 3710 | AN28: 170.468 | AO28: 591.1588889 | AP28: 686.434 | AQ28: 1089.21069
B29: Economique | C29: oSupREG_T100% | D29: oSupREG_T100% | F29: 0 | G29: 3850 | H29: 0 | I29: 2626.6 | J29: 3850 | K29: 3850 | L29: 3150 | M29: 3850 | N29: 3850 | O29: 564.5 | P29: 61.5 | Q29: 18.05 | R29: 208.29 | S29: 0 | T29: 0 | U29: 0 | V29: 86.62 | W29: 11.94 | X29: 2061.93 | Y29: 26.84 | Z29: 0 | AA29: 0 | AB29: 3133.1 | AC29: 0 | AD29: 0 | AE29: 0 | AF29: 0 | AG29: 0 | AH29: 9.84 | AI29: 3620.86 | AJ29: 0 | AK29: 1541.38 | AL29: 1692.26 | AM29: 3710 | AN29: 170.468 | AO29: 591.1588889 | AP29: 686.434 | AQ29: 1089.21069
B30: Economique | C30: oSupREG | D30: oSupREG | F30: 0 | G30: 3850 | H30: 0 | I30: 2626.6 | J30: 3850 | K30: 3850 | L30: 3150 | M30: 3850 | N30: 3850 | O30: 564.5 | P30: 61.5 | Q30: 18.05 | R30: 208.29 | S30: 0 | T30: 0 | U30: 0 | V30: 86.62 | W30: 11.94 | X30: 2061.93 | Y30: 26.84 | Z30: 0 | AA30: 0 | AB30: 3133.1 | AC30: 0 | AD30: 0 | AE30: 0 | AF30: 0 | AG30: 0 | AH30: 9.84 | AI30: 3620.86 | AJ30: 0 | AK30: 1541.38 | AL30: 1692.26 | AM30: 3710 | AN30: 170.468 | AO30: 591.1588889 | AP30: 686.434 | AQ30: 1089.21069
B31: Economique | C31: oSupActCPIRL_FIN_T100% | D31: oSupActCPIRL_FIN_T100% | F31: 0 | G31: 6591.24 | H31: 0 | I31: 0 | J31: 0 | K31: 0 | L31: 0 | M31: 0 | N31: 0 | O31: 0 | P31: 3536.41 | Q31: 4138.75 | R31: 2109.75 | S31: 3217.39 | T31: 3330.1 | U31: 3277.21 | V31: 750.04 | W31: 2903.22 | X31: 2212 | Y31: 236.33 | Z31: 625.65 | AA31: 885.76 | AB31: 106.01 | AC31: 4976.03 | AD31: 4361.59 | AE31: 3813.35 | AF31: 6041.23 | AG31: 5578.6 | AH31: 3660.12 | AI31: 6591.24 | AJ31: 5512.14 | AK31: 3468.85 | AL31: 2378.48 | AM31: 0 | AN31: 2600.46 | AO31: 1591.813333 | AP31: 4638.163 | AQ31: 2541.732759
B32: Economique | C32: oSupActCPIRL_INI_T100% | D32: oSupActCPIRL_INI_T100% | F32: 0 | G32: 7148.46 | H32: 0 | I32: 3786.81 | J32: 4250 | K32: 3830 | L32: 3830 | M32: 3830 | N32: 3830 | O32: 3425 | P32: 231.09 | Q32: 5.5 | R32: 1590.79 | S32: 533.44 | T32: 795.81 | U32: 1261.3 | V32: 4242.32 | W32: 2588.38 | X32: 3828.75 | Y32: 6408.5 | Z32: 6404.04 | AA32: 5709.21 | AB32: 7148.46 | AC32: 3003.89 | AD32: 2728.44 | AE32: 2466.59 | AF32: 318.36 | AG32: 1416.95 | AH32: 3356.53 | AI32: 1127.07 | AJ32: 1271.54 | AK32: 2457.37 | AL32: 3898.84 | AM32: 3914 | AN32: 1157.164 | AO32: 4265.196667 | AP32: 2204.558 | AQ32: 2958.212759
B33: Economique | C33: oSupCPIRL_FIN_T100% | D33: oSupCPIRL_FIN_T100% | F33: 0 | G33: 6591.24 | H33: 0 | I33: 0 | J33: 0 | K33: 0 | L33: 0 | M33: 0 | N33: 0 | O33: 0 | P33: 3536.41 | Q33: 4138.75 | R33: 2109.75 | S33: 3217.39 | T33: 3330.1 | U33: 3277.21 | V33: 750.04 | W33: 2903.22 | X33: 2212 | Y33: 236.33 | Z33: 625.65 | AA33: 885.76 | AB33: 106.01 | AC33: 4976.03 | AD33: 4361.59 | AE33: 3813.35 | AF33: 6041.23 | AG33: 5578.6 | AH33: 3660.12 | AI33: 6591.24 | AJ33: 5512.14 | AK33: 3468.85 | AL33: 2378.48 | AM33: 0 | AN33: 2600.46 | AO33: 1591.813333 | AP33: 4638.163 | AQ33: 2541.732759
B34: Economique | C34: oSupCPIRL_INI_T100% | D34: oSupCPIRL_INI_T100% | F34: 0 | G34: 7148.46 | H34: 0 | I34: 3786.81 | J34: 4250 | K34: 3830 | L34: 3830 | M34: 3830 | N34: 3830 | O34: 3425 | P34: 231.09 | Q34: 5.5 | R34: 1590.79 | S34: 533.44 | T34: 795.81 | U34: 1261.3 | V34: 4242.32 | W34: 2588.38 | X34: 3828.75 | Y34: 6408.5 | Z34: 6404.04 | AA34: 5709.21 | AB34: 7148.46 | AC34: 3003.89 | AD34: 2728.44 | AE34: 2466.59 | AF34: 318.36 | AG34: 1416.95 | AH34: 3356.53 | AI34: 1127.07 | AJ34: 1271.54 | AK34: 2457.37 | AL34: 3898.84 | AM34: 3914 | AN34: 1157.164 | AO34: 4265.196667 | AP34: 2204.558 | AQ34: 2958.212759
B35: Economique | C35: oSupCPIRL_FIN | D35: oSupCPIRL_FIN | F35: 0 | G35: 6591.24 | H35: 0 | I35: 0 | J35: 0 | K35: 0 | L35: 0 | M35: 0 | N35: 0 | O35: 0 | P35: 3536.41 | Q35: 4138.75 | R35: 2109.75 | S35: 3217.39 | T35: 3330.1 | U35: 3277.21 | V35: 750.04 | W35: 2903.22 | X35: 2212 | Y35: 236.33 | Z35: 625.65 | AA35: 885.76 | AB35: 106.01 | AC35: 4976.03 | AD35: 4361.59 | AE35: 3813.35 | AF35: 6041.23 | AG35: 5578.6 | AH35: 3660.12 | AI35: 6591.24 | AJ35: 5512.14 | AK35: 3468.85 | AL35: 2378.48 | AM35: 0 | AN35: 2600.46 | AO35: 1591.813333 | AP35: 4638.163 | AQ35: 2541.732759
B36: Economique | C36: oSupCPIRL_INI | D36: oSupCPIRL_INI | F36: 0 | G36: 7148.46 | H36: 0 | I36: 3786.81 | J36: 4250 | K36: 3830 | L36: 3830 | M36: 3830 | N36: 3830 | O36: 3425 | P36: 231.09 | Q36: 5.5 | R36: 1590.79 | S36: 533.44 | T36: 795.81 | U36: 1261.3 | V36: 4242.32 | W36: 2588.38 | X36: 3828.75 | Y36: 6408.5 | Z36: 6404.04 | AA36: 5709.21 | AB36: 7148.46 | AC36: 3003.89 | AD36: 2728.44 | AE36: 2466.59 | AF36: 318.36 | AG36: 1416.95 | AH36: 3356.53 | AI36: 1127.07 | AJ36: 1271.54 | AK36: 2457.37 | AL36: 3898.84 | AM36: 3914 | AN36: 1157.164 | AO36: 4265.196667 | AP36: 2204.558 | AQ36: 2958.212759
B37: Economique | C37: oSupActCT_T100% | D37: oSupActCT_T100% | F37: 0 | G37: 66686.56 | H37: 0 | I37: 51266.27 | J37: 44915.62 | K37: 44674.24 | L37: 44457.83 | M37: 44680.47 | N37: 43019.57 | O37: 40390.28 | P37: 38620.49 | Q37: 40994.04 | R37: 43237.81 | S37: 38859.97 | T37: 36489.83 | U37: 36023.42 | V37: 40426.01 | W37: 35358.09 | X37: 48770.01 | Y37: 39462.15 | Z37: 62268.28 | AA37: 51016.2 | AB37: 49452.64 | AC37: 49056.58 | AD37: 51352.06 | AE37: 51894.27 | AF37: 47775.09 | AG37: 52121.04 | AH37: 66686.56 | AI37: 48274.13 | AJ37: 46091.64 | AK37: 53039.83 | AL37: 49564.68 | AM37: 44349.546 | AN37: 40420.518 | AO37: 44362.95889 | AP37: 51585.588 | AQ37: 46171.4769
B38: Economique | C38: oSupCT_T100% | D38: oSupCT_T100% | F38: 0 | G38: 66686.56 | H38: 0 | I38: 51266.27 | J38: 44915.62 | K38: 44674.24 | L38: 44457.83 | M38: 44680.47 | N38: 43019.57 | O38: 40390.28 | P38: 38620.49 | Q38: 40994.04 | R38: 43237.81 | S38: 38859.97 | T38: 36489.83 | U38: 36023.42 | V38: 40426.01 | W38: 35358.09 | X38: 48770.01 | Y38: 39462.15 | Z38: 62268.28 | AA38: 51016.2 | AB38: 49452.64 | AC38: 49056.58 | AD38: 51352.06 | AE38: 51894.27 | AF38: 47775.09 | AG38: 52121.04 | AH38: 66686.56 | AI38: 48274.13 | AJ38: 46091.64 | AK38: 53039.83 | AL38: 49564.68 | AM38: 44349.546 | AN38: 40420.518 | AO38: 44362.95889 | AP38: 51585.588 | AQ38: 46171.4769
B39: Economique | C39: oSupCT | D39: oSupCT | F39: 0 | G39: 66686.56 | H39: 0 | I39: 51266.27 | J39: 44915.62 | K39: 44674.24 | L39: 44457.83 | M39: 44680.47 | N39: 43019.57 | O39: 40390.28 | P39: 38620.49 | Q39: 40994.04 | R39: 43237.81 | S39: 38859.97 | T39: 36489.83 | U39: 36023.42 | V39: 40426.01 | W39: 35358.09 | X39: 48770.01 | Y39: 39462.15 | Z39: 62268.28 | AA39: 51016.2 | AB39: 49452.64 | AC39: 49056.58 | AD39: 51352.06 | AE39: 51894.27 | AF39: 47775.09 | AG39: 52121.04 | AH39: 66686.56 | AI39: 48274.13 | AJ39: 46091.64 | AK39: 53039.83 | AL39: 49564.68 | AM39: 44349.546 | AN39: 40420.518 | AO39: 44362.95889 | AP39: 51585.588 | AQ39: 46171.4769
B40: Economique | C40: oSupActPL_PPF_T100% | D40: oSupActPL_PPF_T100% | F40: 0 | G40: 0 | H40: 0 | I40: 0 | J40: 0 | K40: 0 | L40: 0 | M40: 0 | N40: 0 | O40: 0 | P40: 0 | Q40: 0 | R40: 0 | S40: 0 | T40: 0 | U40: 0 | V40: 0 | W40: 0 | X40: 0 | Y40: 0 | Z40: 0 | AA40: 0 | AB40: 0 | AC40: 0 | AD40: 0 | AE40: 0 | AF40: 0 | AG40: 0 | AH40: 0 | AI40: 0 | AJ40: 0 | AK40: 0 | AL40: 0 | AM40: 0 | AN40: 0 | AO40: 0 | AP40: 0 | AQ40: 0
B41: Economique | C41: oSupActPL_SEPM_E_T100% | D41: oSupActPL_SEPM_E_T100% | F41: 0 | G41: 18263 | H41: 0 | I41: 18073.4 | J41: 12575.38 | K41: 12865.13 | L41: 12845.64 | M41: 12922.43 | N41: 12961.78 | O41: 15807.47 | P41: 16596.46 | Q41: 16525.46 | R41: 16376.33 | S41: 14817.84 | T41: 16683.64 | U41: 18263 | V41: 16773.82 | W41: 16446.18 | X41: 11024.44 | Y41: 14690.44 | Z41: 14941.78 | AA41: 16774.9 | AB41: 14876.51 | AC41: 17720.85 | AD41: 17627.15 | AE41: 11511.34 | AF41: 11138.82 | AG41: 11124.83 | AH41: 10239.62 | AI41: 4890.86 | AJ41: 1944.17 | AK41: 4583.72 | AL41: 6456.06 | AM41: 12834.072 | AN41: 16024.712 | AO41: 15608.30111 | AP41: 9723.742 | AQ41: 13172.62241
B42: Economique | C42: oSupActPL_SEPM_I_T100% | D42: oSupActPL_SEPM_I_T100% | F42: 0 | G42: 11323.09 | H42: 0 | I42: 0 | J42: 484.62 | K42: 194.87 | L42: 214.36 | M42: 137.57 | N42: 98.22 | O42: 259.37 | P42: 599.15 | Q42: 345.23 | R42: 76.22 | S42: 721.25 | T42: 409.36 | U42: 50.14 | V42: 505.45 | W42: 555.99 | X42: 2226.32 | Y42: 217.08 | Z42: 964.02 | AA42: 721.48 | AB42: 546.91 | AC42: 984.97 | AD42: 1385.5 | AE42: 5600.04 | AF42: 6101.26 | AG42: 4391.23 | AH42: 3714.99 | AI42: 6229.69 | AJ42: 11323.09 | AK42: 6597.85 | AL42: 3302.34 | AM42: 225.928 | AN42: 400.244 | AO42: 688.5277778 | AP42: 4963.096 | AQ42: 2033.054138
B43: Economique | C43: oSupPL_PPF_T100% | D43: oSupPL_PPF_T100% | F43: 0 | G43: 0 | H43: 0 | I43: 0 | J43: 0 | K43: 0 | L43: 0 | M43: 0 | N43: 0 | O43: 0 | P43: 0 | Q43: 0 | R43: 0 | S43: 0 | T43: 0 | U43: 0 | V43: 0 | W43: 0 | X43: 0 | Y43: 0 | Z43: 0 | AA43: 0 | AB43: 0 | AC43: 0 | AD43: 0 | AE43: 0 | AF43: 0 | AG43: 0 | AH43: 0 | AI43: 0 | AJ43: 0 | AK43: 0 | AL43: 0 | AM43: 0 | AN43: 0 | AO43: 0 | AP43: 0 | AQ43: 0
B44: Economique | C44: oSupPL_SEPM_E_T100% | D44: oSupPL_SEPM_E_T100% | F44: 0 | G44: 18263 | H44: 0 | I44: 18073.4 | J44: 12575.38 | K44: 12865.13 | L44: 12845.64 | M44: 12922.43 | N44: 12961.78 | O44: 15807.47 | P44: 16596.46 | Q44: 16525.46 | R44: 16376.33 | S44: 14817.84 | T44: 16683.64 | U44: 18263 | V44: 16773.82 | W44: 16446.18 | X44: 11024.44 | Y44: 14690.44 | Z44: 14941.78 | AA44: 16774.9 | AB44: 14876.51 | AC44: 17720.85 | AD44: 17627.15 | AE44: 11511.34 | AF44: 11138.82 | AG44: 11124.83 | AH44: 10239.62 | AI44: 4890.86 | AJ44: 1944.17 | AK44: 4583.72 | AL44: 6456.06 | AM44: 12834.072 | AN44: 16024.712 | AO44: 15608.30111 | AP44: 9723.742 | AQ44: 13172.62241
B45: Economique | C45: oSupPL_SEPM_I_T100% | D45: oSupPL_SEPM_I_T100% | F45: 0 | G45: 11323.09 | H45: 0 | I45: 0 | J45: 484.62 | K45: 194.87 | L45: 214.36 | M45: 137.57 | N45: 98.22 | O45: 259.37 | P45: 599.15 | Q45: 345.23 | R45: 76.22 | S45: 721.25 | T45: 409.36 | U45: 50.14 | V45: 505.45 | W45: 555.99 | X45: 2226.32 | Y45: 217.08 | Z45: 964.02 | AA45: 721.48 | AB45: 546.91 | AC45: 984.97 | AD45: 1385.5 | AE45: 5600.04 | AF45: 6101.26 | AG45: 4391.23 | AH45: 3714.99 | AI45: 6229.69 | AJ45: 11323.09 | AK45: 6597.85 | AL45: 3302.34 | AM45: 225.928 | AN45: 400.244 | AO45: 688.5277778 | AP45: 4963.096 | AQ45: 2033.054138
B46: Economique | C46: oSupPL_PPF | D46: oSupPL_PPF | F46: 0 | G46: 0 | H46: 0 | I46: 0 | J46: 0 | K46: 0 | L46: 0 | M46: 0 | N46: 0 | O46: 0 | P46: 0 | Q46: 0 | R46: 0 | S46: 0 | T46: 0 | U46: 0 | V46: 0 | W46: 0 | X46: 0 | Y46: 0 | Z46: 0 | AA46: 0 | AB46: 0 | AC46: 0 | AD46: 0 | AE46: 0 | AF46: 0 | AG46: 0 | AH46: 0 | AI46: 0 | AJ46: 0 | AK46: 0 | AL46: 0 | AM46: 0 | AN46: 0 | AO46: 0 | AP46: 0 | AQ46: 0
B47: Economique | C47: oSupPL_SEPM_E | D47: oSupPL_SEPM_E | F47: 0 | G47: 18263 | H47: 0 | I47: 18073.4 | J47: 12575.38 | K47: 12865.13 | L47: 12845.64 | M47: 12922.43 | N47: 12961.78 | O47: 15807.47 | P47: 16596.46 | Q47: 16525.46 | R47: 16376.33 | S47: 14817.84 | T47: 16683.64 | U47: 18263 | V47: 16773.82 | W47: 16446.18 | X47: 11024.44 | Y47: 14690.44 | Z47: 14941.78 | AA47: 16774.9 | AB47: 14876.51 | AC47: 17720.85 | AD47: 17627.15 | AE47: 11511.34 | AF47: 11138.82 | AG47: 11124.83 | AH47: 10239.62 | AI47: 4890.86 | AJ47: 1944.17 | AK47: 4583.72 | AL47: 6456.06 | AM47: 12834.072 | AN47: 16024.712 | AO47: 15608.30111 | AP47: 9723.742 | AQ47: 13172.62241
B48: Economique | C48: oSupPL_SEPM_I | D48: oSupPL_SEPM_I | F48: 0 | G48: 11323.09 | H48: 0 | I48: 0 | J48: 484.62 | K48: 194.87 | L48: 214.36 | M48: 137.57 | N48: 98.22 | O48: 259.37 | P48: 599.15 | Q48: 345.23 | R48: 76.22 | S48: 721.25 | T48: 409.36 | U48: 50.14 | V48: 505.45 | W48: 555.99 | X48: 2226.32 | Y48: 217.08 | Z48: 964.02 | AA48: 721.48 | AB48: 546.91 | AC48: 984.97 | AD48: 1385.5 | AE48: 5600.04 | AF48: 6101.26 | AG48: 4391.23 | AH48: 3714.99 | AI48: 6229.69 | AJ48: 11323.09 | AK48: 6597.85 | AL48: 3302.34 | AM48: 225.928 | AN48: 400.244 | AO48: 688.5277778 | AP48: 4963.096 | AQ48: 2033.054138
B49: Economique | C49: oSupActEPC_1_T100% | D49: oSupActEPC_1_T100% | F49: 0 | G49: 2480 | H49: 0 | I49: 0 | J49: 0 | K49: 2480 | L49: 2480 | M49: 2030 | N49: 2030 | O49: 0 | P49: 574.91 | Q49: 0 | R49: 56.25 | S49: 0 | T49: 0 | U49: 298.53 | V49: 0 | W49: 267.65 | X49: 660.93 | Y49: 246.4 | Z49: 798.33 | AA49: 532.34 | AB49: 381.58 | AC49: 0 | AD49: 20.72 | AE49: 0 | AF49: 372.16 | AG49: 0 | AH49: 241.62 | AI49: 1774.99 | AJ49: 1224.69 | AK49: 270.13 | AL49: 276.95 | AM49: 1804 | AN49: 126.232 | AO49: 353.9733333 | AP49: 418.126 | AQ49: 586.8337931
B50: Economique | C50: oSupActEPC_2_T100% | D50: oSupActEPC_2_T100% | F50: 0 | G50: 1705.54 | H50: 0 | I50: 0 | J50: 0 | K50: 0 | L50: 280 | M50: 280 | N50: 280 | O50: 308 | P50: 338.8 | Q50: 372.68 | R50: 409.95 | S50: 450.94 | T50: 494.03 | U50: 543.44 | V50: 597.78 | W50: 657.56 | X50: 723.31 | Y50: 795.65 | Z50: 875.21 | AA50: 962.73 | AB50: 1059 | AC50: 1164.91 | AD50: 1281.4 | AE50: 1409.54 | AF50: 1550.49 | AG50: 1705.54 | AH50: 1534.98 | AI50: 1381.49 | AJ50: 1243.34 | AK50: 1119 | AL50: 1007.1 | AM50: 168 | AN50: 376.074 | AO50: 745.4122222 | AP50: 1339.779 | AQ50: 787.1334483
B51: Economique | C51: oSupEPC_1_T100% | D51: oSupEPC_1_T100% | F51: 0 | G51: 2480 | H51: 0 | I51: 0 | J51: 0 | K51: 2480 | L51: 2480 | M51: 2030 | N51: 2030 | O51: 0 | P51: 574.91 | Q51: 0 | R51: 56.25 | S51: 0 | T51: 0 | U51: 298.53 | V51: 0 | W51: 267.65 | X51: 660.93 | Y51: 246.4 | Z51: 798.33 | AA51: 532.34 | AB51: 381.58 | AC51: 0 | AD51: 20.72 | AE51: 0 | AF51: 372.16 | AG51: 0 | AH51: 241.62 | AI51: 1774.99 | AJ51: 1224.69 | AK51: 270.13 | AL51: 276.95 | AM51: 1804 | AN51: 126.232 | AO51: 353.9733333 | AP51: 418.126 | AQ51: 586.8337931
B52: Economique | C52: oSupEPC_2_T100% | D52: oSupEPC_2_T100% | F52: 0 | G52: 1705.54 | H52: 0 | I52: 0 | J52: 0 | K52: 0 | L52: 280 | M52: 280 | N52: 280 | O52: 308 | P52: 338.8 | Q52: 372.68 | R52: 409.95 | S52: 450.94 | T52: 494.03 | U52: 543.44 | V52: 597.78 | W52: 657.56 | X52: 723.31 | Y52: 795.65 | Z52: 875.21 | AA52: 962.73 | AB52: 1059 | AC52: 1164.91 | AD52: 1281.4 | AE52: 1409.54 | AF52: 1550.49 | AG52: 1705.54 | AH52: 1534.98 | AI52: 1381.49 | AJ52: 1243.34 | AK52: 1119 | AL52: 1007.1 | AM52: 168 | AN52: 376.074 | AO52: 745.4122222 | AP52: 1339.779 | AQ52: 787.1334483
B53: Economique | C53: oSupEPC_1 | D53: oSupEPC_1 | F53: 0 | G53: 2480 | H53: 0 | I53: 0 | J53: 0 | K53: 2480 | L53: 2480 | M53: 2030 | N53: 2030 | O53: 0 | P53: 574.91 | Q53: 0 | R53: 56.25 | S53: 0 | T53: 0 | U53: 298.53 | V53: 0 | W53: 267.65 | X53: 660.93 | Y53: 246.4 | Z53: 798.33 | AA53: 532.34 | AB53: 381.58 | AC53: 0 | AD53: 20.72 | AE53: 0 | AF53: 372.16 | AG53: 0 | AH53: 241.62 | AI53: 1774.99 | AJ53: 1224.69 | AK53: 270.13 | AL53: 276.95 | AM53: 1804 | AN53: 126.232 | AO53: 353.9733333 | AP53: 418.126 | AQ53: 586.8337931
B54: Economique | C54: oSupEPC_2 | D54: oSupEPC_2 | F54: 0 | G54: 1705.54 | H54: 0 | I54: 0 | J54: 0 | K54: 0 | L54: 280 | M54: 280 | N54: 280 | O54: 308 | P54: 338.8 | Q54: 372.68 | R54: 409.95 | S54: 450.94 | T54: 494.03 | U54: 543.44 | V54: 597.78 | W54: 657.56 | X54: 723.31 | Y54: 795.65 | Z54: 875.21 | AA54: 962.73 | AB54: 1059 | AC54: 1164.91 | AD54: 1281.4 | AE54: 1409.54 | AF54: 1550.49 | AG54: 1705.54 | AH54: 1534.98 | AI54: 1381.49 | AJ54: 1243.34 | AK54: 1119 | AL54: 1007.1 | AM54: 168 | AN54: 376.074 | AO54: 745.4122222 | AP54: 1339.779 | AQ54: 787.1334483
B55: Economique | C55: oSupActEC_SEPM_T100% | D55: oSupActEC_SEPM_T100% | F55: 0 | G55: 1083.47 | H55: 0 | I55: 0 | J55: 110 | K55: 110 | L55: 110 | M55: 110 | N55: 110 | O55: 121 | P55: 133.1 | Q55: 146.41 | R55: 161.05 | S55: 177.16 | T55: 194.87 | U55: 214.36 | V55: 235.79 | W55: 259.37 | X55: 285.31 | Y55: 313.84 | Z55: 345.23 | AA55: 379.75 | AB55: 417.72 | AC55: 459.5 | AD55: 505.45 | AE55: 555.99 | AF55: 611.59 | AG55: 672.75 | AH55: 740.02 | AI55: 814.03 | AJ55: 895.43 | AK55: 984.97 | AL55: 1083.47 | AM55: 110 | AN55: 147.744 | AO55: 294.0266667 | AP55: 732.32 | AQ55: 388.2124138
B56: Economique | C56: oSupEC_SEPM_T100% | D56: oSupEC_SEPM_T100% | F56: 0 | G56: 1083.47 | H56: 0 | I56: 0 | J56: 110 | K56: 110 | L56: 110 | M56: 110 | N56: 110 | O56: 121 | P56: 133.1 | Q56: 146.41 | R56: 161.05 | S56: 177.16 | T56: 194.87 | U56: 214.36 | V56: 235.79 | W56: 259.37 | X56: 285.31 | Y56: 313.84 | Z56: 345.23 | AA56: 379.75 | AB56: 417.72 | AC56: 459.5 | AD56: 505.45 | AE56: 555.99 | AF56: 611.59 | AG56: 672.75 | AH56: 740.02 | AI56: 814.03 | AJ56: 895.43 | AK56: 984.97 | AL56: 1083.47 | AM56: 110 | AN56: 147.744 | AO56: 294.0266667 | AP56: 732.32 | AQ56: 388.2124138
B57: Economique | C57: oSupEC_SEPM | D57: oSupEC_SEPM | F57: 0 | G57: 1083.47 | H57: 0 | I57: 0 | J57: 110 | K57: 110 | L57: 110 | M57: 110 | N57: 110 | O57: 121 | P57: 133.1 | Q57: 146.41 | R57: 161.05 | S57: 177.16 | T57: 194.87 | U57: 214.36 | V57: 235.79 | W57: 259.37 | X57: 285.31 | Y57: 313.84 | Z57: 345.23 | AA57: 379.75 | AB57: 417.72 | AC57: 459.5 | AD57: 505.45 | AE57: 555.99 | AF57: 611.59 | AG57: 672.75 | AH57: 740.02 | AI57: 814.03 | AJ57: 895.43 | AK57: 984.97 | AL57: 1083.47 | AM57: 110 | AN57: 147.744 | AO57: 294.0266667 | AP57: 732.32 | AQ57: 388.2124138
B58: Economique | C58: oSupActNETT_T100% | D58: oSupActNETT_T100% | F58: 0 | G58: 3819.12 | H58: 0 | I58: 2171.59 | J58: 2750 | K58: 280 | L58: 280 | M58: 280 | N58: 280 | O58: 0 | P58: 272.05 | Q58: 0 | R58: 468.04 | S58: 0 | T58: 2889.02 | U58: 3490.18 | V58: 3587.35 | W58: 1040.71 | X58: 0 | Y58: 2788.14 | Z58: 3819.12 | AA58: 2046.04 | AB58: 0 | AC58: 2239.65 | AD58: 3429.98 | AE58: 1642.23 | AF58: 2197.08 | AG58: 2573.91 | AH58: 2867.69 | AI58: 0 | AJ58: 0 | AK58: 0 | AL58: 629.9 | AM58: 774 | AN58: 148.018 | AO58: 2184.506667 | AP58: 1558.044 | AQ58: 1374.175517
B59: Economique | C59: oSupTcadNETT_T100% | D59: oSupTcadNETT_T100% | F59: 0 | G59: 9987.96 | H59: 0 | I59: 0 | J59: 0 | K59: 6314.67 | L59: 7221.67 | M59: 5174.44 | N59: 5951.75 | O59: 5836.85 | P59: 7093.01 | Q59: 5901.54 | R59: 6994.63 | S59: 6956.2 | T59: 4552.81 | U59: 2782.56 | V59: 2859.57 | W59: 5006.84 | X59: 6949.16 | Y59: 7567.18 | Z59: 4445.17 | AA59: 4207.99 | AB59: 3722.23 | AC59: 5032.07 | AD59: 4004.29 | AE59: 3476.68 | AF59: 4228.45 | AG59: 7996.14 | AH59: 7704.67 | AI59: 5065.11 | AJ59: 5248.29 | AK59: 7454.4 | AL59: 9987.96 | AM59: 4932.506 | AN59: 6556.446 | AO59: 4677.056667 | AP59: 6019.806 | AQ59: 5508.14931
B60: Economique | C60: oSupNETT_T100% | D60: oSupNETT_T100% | F60: 0 | G60: 10617.87 | H60: 0 | I60: 2171.59 | J60: 2750 | K60: 6594.67 | L60: 7501.67 | M60: 5454.44 | N60: 6231.75 | O60: 5836.85 | P60: 7365.05 | Q60: 5901.54 | R60: 7462.66 | S60: 6956.2 | T60: 7441.83 | U60: 6272.74 | V60: 6446.92 | W60: 6047.55 | X60: 6949.16 | Y60: 10355.32 | Z60: 8264.29 | AA60: 6254.03 | AB60: 3722.23 | AC60: 7271.72 | AD60: 7434.27 | AE60: 5118.91 | AF60: 6425.52 | AG60: 10570.05 | AH60: 10572.36 | AI60: 5065.11 | AJ60: 5248.29 | AK60: 7454.4 | AL60: 10617.87 | AM60: 5706.506 | AN60: 6704.46 | AO60: 6861.563333 | AP60: 7577.85 | AQ60: 6882.324138
B61: Economique | C61: oSupNETT | D61: oSupNETT | F61: 0 | G61: 10617.87 | H61: 0 | I61: 2171.59 | J61: 2750 | K61: 6594.67 | L61: 7501.67 | M61: 5454.44 | N61: 6231.75 | O61: 5836.85 | P61: 7365.05 | Q61: 5901.54 | R61: 7462.66 | S61: 6956.2 | T61: 7441.83 | U61: 6272.74 | V61: 6446.92 | W61: 6047.55 | X61: 6949.16 | Y61: 10355.32 | Z61: 8264.29 | AA61: 6254.03 | AB61: 3722.23 | AC61: 7271.72 | AD61: 7434.27 | AE61: 5118.91 | AF61: 6425.52 | AG61: 10570.05 | AH61: 10572.36 | AI61: 5065.11 | AJ61: 5248.29 | AK61: 7454.4 | AL61: 10617.87 | AM61: 5706.506 | AN61: 6704.46 | AO61: 6861.563333 | AP61: 7577.85 | AQ61: 6882.324138
B62: Economique | C62: oTauxDEG | D62: oTauxDEG | F62: 0 | G62: 18344711.05 | H62: 0 | I62: 13452489.65 | J62: 18344711.05 | K62: 11064123.23 | L62: 10570607.93 | M62: 13167419.49 | N62: 12291516 | O62: 13295084.63 | P62: 12664527.22 | Q62: 15863322.78 | R62: 12811770.65 | S62: 15788792.42 | T62: 12572340.33 | U62: 11350669.62 | V62: 9603974.64 | W62: 11565940.51 | X62: 11866787.82 | Y62: 5652582.92 | Z62: 5499874.48 | AA62: 6491366.9 | AB62: 9223340.55 | AC62: 6385594.23 | AD62: 5863112.58 | AE62: 10424662.07 | AF62: 9961854.44 | AG62: 6968590.3 | AH62: 7012282.01 | AI62: 14630848.42 | AJ62: 13188139.45 | AK62: 12753541.01 | AL62: 10413107.18 | AM62: 13087675.54 | AN62: 14084699.54 | AO62: 9314097.53 | AP62: 9760173.169 | AQ62: 10941051.2
B63: Economique | C63: oTauxSCA | D63: oTauxSCA | F63: 0 | G63: 11875641.38 | H63: 0 | I63: 10873338.08 | J63: 9728600 | K63: 9501800 | L63: 9123800 | M63: 9501800 | N63: 9501800 | O63: 8741739.67 | P63: 7208201.38 | Q63: 6929698.58 | R63: 7717051.3 | S63: 6659085.1 | T63: 7564149.6 | U63: 8189486.46 | V63: 9422126.43 | W63: 8582912.2 | X63: 9395004.64 | Y63: 9591434.88 | Z63: 9983430.92 | AA63: 10259738.12 | AB63: 11875641.38 | AC63: 9659204.17 | AD63: 9466827.35 | AE63: 8347622 | AF63: 7411026.97 | AG63: 7550679.2 | AH63: 8085868.74 | AI63: 7679440.03 | AJ63: 6654164.71 | AK63: 8155252.45 | AL63: 8472356.79 | AM63: 9471560 | AN63: 7451155.206 | AO63: 9429324.959 | AP63: 8148244.241 | AQ63: 8653791.14
B64: Economique | C64: oTauxREG | D64: oTauxREG | F64: 0 | G64: 1809500 | H64: 0 | I64: 1234502 | J64: 1809500 | K64: 1809500 | L64: 1480500 | M64: 1809500 | N64: 1809500 | O64: 265316.34 | P64: 28905.94 | Q64: 8483.27 | R64: 97894.18 | S64: 0 | T64: 0 | U64: 0 | V64: 40710.7 | W64: 5610.63 | X64: 969109.38 | Y64: 12613.87 | Z64: 0 | AA64: 0 | AB64: 1472556.95 | AC64: 0 | AD64: 0 | AE64: 0 | AF64: 0 | AG64: 0 | AH64: 4625.98 | AI64: 1701802.13 | AJ64: 0 | AK64: 724450.88 | AL64: 795363.93 | AM64: 1743700 | AN64: 80119.946 | AO64: 277844.6144 | AP64: 322624.292 | AQ64: 511929.1097
B65: Economique | C65: oTauxCPI | D65: oTauxCPI | F65: 0 | G65: 3788681.64 | H65: 0 | I65: 2007011.93 | J65: 2252500 | K65: 2029900 | L65: 2029900 | M65: 2029900 | N65: 2029900 | O65: 1815250 | P65: 122478.61 | Q65: 2915 | R65: 843121.04 | S65: 282723.51 | T65: 421781.55 | U65: 668489 | V65: 2248429.75 | W65: 1371839.49 | X65: 2029239.91 | Y65: 3396505.16 | Z65: 3394139.38 | AA65: 3025883.79 | AB65: 3788681.64 | AC65: 1592059.38 | AD65: 1446072.6 | AE65: 1307290.1 | AF65: 168731.72 | AG65: 750985.25 | AH65: 1778959.32 | AI65: 597349.09 | AJ65: 673915.43 | AK65: 1302408.32 | AL65: 2066387.14 | AM65: 2074420 | AN65: 613297.632 | AO65: 2260554.408 | AP65: 1168415.835 | AQ65: 1567852.972
B66: Economique | C66: oTauxCT | D66: oTauxCT | F66: 0 | G66: 0 | H66: 0 | I66: 0 | J66: 0 | K66: 0 | L66: 0 | M66: 0 | N66: 0 | O66: 0 | P66: 0 | Q66: 0 | R66: 0 | S66: 0 | T66: 0 | U66: 0 | V66: 0 | W66: 0 | X66: 0 | Y66: 0 | Z66: 0 | AA66: 0 | AB66: 0 | AC66: 0 | AD66: 0 | AE66: 0 | AF66: 0 | AG66: 0 | AH66: 0 | AI66: 0 | AJ66: 0 | AK66: 0 | AL66: 0 | AM66: 0 | AN66: 0 | AO66: 0 | AP66: 0 | AQ66: 0
B67: Economique | C67: oTauxPL | D67: oTauxPL | F67: 0 | G67: 20133380.72 | H67: 0 | I67: 18796336 | J67: 13708400.45 | K67: 13633066.64 | L67: 13638133.31 | M67: 13618168.53 | N67: 13607938.11 | O67: 16776960.36 | P67: 18039216.29 | Q67: 17635274 | R67: 17130477.06 | S67: 16348179.35 | T67: 17883153.29 | U67: 19058693.89 | V67: 18101853.94 | W67: 17826815.92 | X67: 14359638.02 | Y67: 15560264.5 | Z67: 16792668.35 | AA67: 18383810.12 | AB67: 16182550.77 | AC67: 19710152.15 | AD67: 20133380.72 | AE67: 19251845.63 | AF67: 19516002.42 | AG67: 17278428.42 | AH67: 15478699.62 | AI67: 13185085.94 | AJ67: 16741954.86 | AK67: 13344277.68 | AL67: 11007343.14 | AM67: 13641141.41 | AN67: 17186021.41 | AO67: 17127716.53 | AP67: 16564717.06 | AQ67: 16342497.71
B68: Economique | C68: oTauxEPC | D68: oTauxEPC | F68: 0 | G68: 4355937.67 | H68: 0 | I68: 0 | J68: 0 | K68: 3422400 | L68: 3808800 | M68: 3187800 | N68: 3187800 | O68: 425040 | P68: 1260919.8 | Q68: 514298.4 | R68: 643352.55 | S68: 622301.06 | T68: 681766.28 | U68: 1161918.44 | V68: 824937.19 | W68: 1276794.12 | X68: 1910256.41 | Y68: 1438029.49 | Z68: 2309484.4 | AA68: 2063204.62 | AB68: 1988011.13 | AC68: 1607569.22 | AD68: 1796924.57 | AE68: 1945158.75 | AF68: 2653260.26 | AG68: 2353642.09 | AH68: 2451714.86 | AI68: 4355937.67 | AJ68: 3405880.04 | AK68: 1916998.57 | AL68: 1771993.12 | AM68: =AVERAGE(J68:N68) -> 2721360 | AN68: =AVERAGE(O68:S68) -> 693182.362 | AO68: =AVERAGE(T68:AB68) -> 1517155.787 | AP68: =AVERAGE(AC68:AL68) -> 2425907.915 | AQ68: =AVERAGE(J68:AL68) -> 1896075.622
B69: Economique | C69: oTauxEC | D69: oTauxEC | F69: 0 | G69: 1484354.71 | H69: 0 | I69: 0 | J69: 150700 | K69: 150700 | L69: 150700 | M69: 150700 | N69: 150700 | O69: 165770 | P69: 182347 | Q69: 200581.7 | R69: 220639.87 | S69: 242703.86 | T69: 266974.24 | U69: 293671.67 | V69: 323038.83 | W69: 355342.72 | X69: 390876.99 | Y69: 429964.69 | Z69: 472961.16 | AA69: 520257.27 | AB69: 572283 | AC69: 629511.3 | AD69: 692462.43 | AE69: 761708.67 | AF69: 837879.54 | AG69: 921667.49 | AH69: 1013834.24 | AI69: 1115217.67 | AJ69: 1226739.43 | AK69: 1349413.38 | AL69: 1484354.71 | AM69: 150700 | AN69: 202408.486 | AO69: 402818.9522 | AP69: 1003278.886 | AQ69: 531851.7883
B70: Economique | C70: oTauxNET | D70: oTauxNET | F70: 0 | G70: 12104369.42 | H70: 0 | I70: 2475614.34 | J70: 3135000 | K70: 7517921.63 | L70: 8551908.76 | M70: 6218061.98 | N70: 7104195.89 | O70: 6654005.33 | P70: 8396159.7 | Q70: 6727759.54 | R70: 8507437.52 | S70: 7930064.69 | T70: 8483684.71 | U70: 7150920.92 | V70: 7349489.22 | W70: 6894205.04 | X70: 7922046.21 | Y70: 11805068.37 | Z70: 9421291.31 | AA70: 7129589.17 | AB70: 4243341.53 | AC70: 8289759.57 | AD70: 8475069.77 | AE70: 5835562.78 | AF70: 7325094.66 | AG70: 12049857.26 | AH70: 12052491.2 | AI70: 5774223.1 | AJ70: 5983056.07 | AK70: 8498020.09 | AL70: 12104369.42 | AM70: 6505417.652 | AN70: 7643085.356 | AO70: 7822181.831 | AP70: 8638750.392 | AQ70: 7845850.188
B71: Economique | C71: oSupRealDEG | D71: oSupRealDEG | F71: 0 | G71: 14220.71 | H71: 0 | I71: 10428.29 | J71: 14220.71 | K71: 8576.84 | L71: 8194.27 | M71: 10207.3 | N71: 9528.31 | O71: 10306.27 | P71: 9817.46 | Q71: 12297.15 | R71: 9931.61 | S71: 12239.37 | T71: 9746 | U71: 8798.97 | V71: 7444.94 | W71: 8965.85 | X71: 9199.06 | Y71: 4381.85 | Z71: 4263.47 | AA71: 5032.07 | AB71: 7149.88 | AC71: 4950.07 | AD71: 4545.05 | AE71: 8081.13 | AF71: 7722.37 | AG71: 5402.01 | AH71: 5435.88 | AI71: 11341.74 | AJ71: 10223.36 | AK71: 9886.47 | AL71: 8072.18 | AM71: 10145.486 | AN71: 10918.372 | AO71: 7220.232222 | AP71: 7566.026 | AQ71: 8481.435862
B72: Economique | C72: oSupRealSCA | D72: oSupRealSCA | F72: 0 | G72: 25704.97 | H72: 0 | I72: 24486.81 | J72: 21160 | K72: 20740 | L72: 20040 | M72: 20740 | N72: 20740 | O72: 20056.35 | P72: 17488.21 | Q72: 16894.24 | R72: 18251.64 | S72: 16072.53 | T72: 18196.81 | U72: 19574.43 | V72: 21608.21 | W72: 20109.44 | X72: 21046.87 | Y72: 21353.27 | Z72: 22319.28 | AA72: 23213.51 | AB72: 25704.97 | AC72: 22606.58 | AD72: 22224.71 | AE72: 19577.97 | AF72: 17974.73 | AG72: 17967.01 | AH72: 18654.25 | AI72: 17224.9 | AJ72: 15826.5 | AK72: 18622.96 | AL72: 18891.49 | AM72: 20684 | AN72: 17752.594 | AO72: 21458.53222 | AP72: 18957.11 | AQ72: 19823.47793
B73: Economique | C73: oSupRealREG | D73: oSupRealREG | F73: 0 | G73: 3850 | H73: 0 | I73: 2626.6 | J73: 3850 | K73: 3850 | L73: 3150 | M73: 3850 | N73: 3850 | O73: 564.5 | P73: 61.5 | Q73: 18.05 | R73: 208.29 | S73: 0 | T73: 0 | U73: 0 | V73: 86.62 | W73: 11.94 | X73: 2061.93 | Y73: 26.84 | Z73: 0 | AA73: 0 | AB73: 3133.1 | AC73: 0 | AD73: 0 | AE73: 0 | AF73: 0 | AG73: 0 | AH73: 9.84 | AI73: 3620.86 | AJ73: 0 | AK73: 1541.38 | AL73: 1692.26 | AM73: 3710 | AN73: 170.468 | AO73: 591.1588889 | AP73: 686.434 | AQ73: 1089.21069
B74: Economique | C74: oSupRealCPI | D74: oSupRealCPI | F74: 0 | G74: 7979.92 | H74: 0 | I74: 3786.81 | J74: 4250 | K74: 3830 | L74: 3830 | M74: 3830 | N74: 3830 | O74: 3425 | P74: 3767.5 | Q74: 4144.25 | R74: 3700.54 | S74: 3750.83 | T74: 4125.92 | U74: 4538.51 | V74: 4992.36 | W74: 5491.6 | X74: 6040.76 | Y74: 6644.83 | Z74: 7029.68 | AA74: 6594.97 | AB74: 7254.47 | AC74: 7979.92 | AD74: 7090.03 | AE74: 6279.93 | AF74: 6359.59 | AG74: 6995.55 | AH74: 7016.65 | AI74: 7718.31 | AJ74: 6783.68 | AK74: 5926.22 | AL74: 6277.33 | AM74: 3914 | AN74: 3757.624 | AO74: 5857.011111 | AP74: 6842.721 | AQ74: 5499.945862
B75: Economique | C75: oSupRealCT | D75: oSupRealCT | F75: 0 | G75: 66686.56 | H75: 0 | I75: 51266.27 | J75: 44915.62 | K75: 44674.24 | L75: 44457.83 | M75: 44680.47 | N75: 43019.57 | O75: 40390.28 | P75: 38620.49 | Q75: 40994.04 | R75: 43237.81 | S75: 38859.97 | T75: 36489.83 | U75: 36023.42 | V75: 40426.01 | W75: 35358.09 | X75: 48770.01 | Y75: 39462.15 | Z75: 62268.28 | AA75: 51016.2 | AB75: 49452.64 | AC75: 49056.58 | AD75: 51352.06 | AE75: 51894.27 | AF75: 47775.09 | AG75: 52121.04 | AH75: 66686.56 | AI75: 48274.13 | AJ75: 46091.64 | AK75: 53039.83 | AL75: 49564.68 | AM75: 44349.546 | AN75: 40420.518 | AO75: 44362.95889 | AP75: 51585.588 | AQ75: 46171.4769
B76: Economique | C76: oSupRealPL | D76: oSupRealPL | F76: 0 | G76: 19012.65 | H76: 0 | I76: 18073.4 | J76: 13060 | K76: 13060 | L76: 13060 | M76: 13060 | N76: 13060 | O76: 16066.85 | P76: 17195.61 | Q76: 16870.69 | R76: 16452.56 | S76: 15539.09 | T76: 17093 | U76: 18313.13 | V76: 17279.27 | W76: 17002.17 | X76: 13250.76 | Y76: 14907.52 | Z76: 15905.79 | AA76: 17496.37 | AB76: 15423.42 | AC76: 18705.83 | AD76: 19012.65 | AE76: 17111.38 | AF76: 17240.07 | AG76: 15516.07 | AH76: 13954.62 | AI76: 11120.55 | AJ76: 13267.26 | AK76: 11181.57 | AL76: 9758.4 | AM76: 13060 | AN76: 16424.96 | AO76: 16296.82556 | AP76: 14686.84 | AQ76: 15205.6769
B77: Economique | C77: oSupRealEPC | D77: oSupRealEPC | F77: 0 | G77: 3156.48 | H77: 0 | I77: 0 | J77: 0 | K77: 2480 | L77: 2760 | M77: 2310 | N77: 2310 | O77: 308 | P77: 913.71 | Q77: 372.68 | R77: 466.2 | S77: 450.94 | T77: 494.03 | U77: 841.97 | V77: 597.78 | W77: 925.21 | X77: 1384.24 | Y77: 1042.05 | Z77: 1673.54 | AA77: 1495.08 | AB77: 1440.59 | AC77: 1164.91 | AD77: 1302.12 | AE77: 1409.54 | AF77: 1922.65 | AG77: 1705.54 | AH77: 1776.6 | AI77: 3156.48 | AJ77: 2468.03 | AK77: 1389.13 | AL77: 1284.05 | AM77: 1972 | AN77: 502.306 | AO77: 1099.387778 | AP77: 1757.905 | AQ77: 1373.967931
B78: Economique | C78: oSupRealEC | D78: oSupRealEC | F78: 0 | G78: 1083.47 | H78: 0 | I78: 0 | J78: 110 | K78: 110 | L78: 110 | M78: 110 | N78: 110 | O78: 121 | P78: 133.1 | Q78: 146.41 | R78: 161.05 | S78: 177.16 | T78: 194.87 | U78: 214.36 | V78: 235.79 | W78: 259.37 | X78: 285.31 | Y78: 313.84 | Z78: 345.23 | AA78: 379.75 | AB78: 417.72 | AC78: 459.5 | AD78: 505.45 | AE78: 555.99 | AF78: 611.59 | AG78: 672.75 | AH78: 740.02 | AI78: 814.03 | AJ78: 895.43 | AK78: 984.97 | AL78: 1083.47 | AM78: 110 | AN78: 147.744 | AO78: 294.0266667 | AP78: 732.32 | AQ78: 388.2124138
B79: Economique | C79: oSupRealNET | D79: oSupRealNET | F79: 0 | G79: 10617.87 | H79: 0 | I79: 2171.59 | J79: 2750 | K79: 6594.67 | L79: 7501.67 | M79: 5454.44 | N79: 6231.75 | O79: 5836.85 | P79: 7365.05 | Q79: 5901.54 | R79: 7462.66 | S79: 6956.2 | T79: 7441.83 | U79: 6272.74 | V79: 6446.92 | W79: 6047.55 | X79: 6949.16 | Y79: 10355.32 | Z79: 8264.29 | AA79: 6254.03 | AB79: 3722.23 | AC79: 7271.72 | AD79: 7434.27 | AE79: 5118.91 | AF79: 6425.52 | AG79: 10570.05 | AH79: 10572.36 | AI79: 5065.11 | AJ79: 5248.29 | AK79: 7454.4 | AL79: 10617.87 | AM79: 5706.506 | AN79: 6704.46 | AO79: 6861.563333 | AP79: 7577.85 | AQ79: 6882.324138
B80: Economique | C80: oCoutProdPlants | D80: oCoutProdPlants | F80: 0 | G80: 0 | H80: 0 | I80: 0 | J80: 0 | K80: 0 | L80: 0 | M80: 0 | N80: 0 | O80: 0 | P80: 0 | Q80: 0 | R80: 0 | S80: 0 | T80: 0 | U80: 0 | V80: 0 | W80: 0 | X80: 0 | Y80: 0 | Z80: 0 | AA80: 0 | AB80: 0 | AC80: 0 | AD80: 0 | AE80: 0 | AF80: 0 | AG80: 0 | AH80: 0 | AI80: 0 | AJ80: 0 | AK80: 0 | AL80: 0 | AM80: 0 | AN80: 0 | AO80: 0 | AP80: 0 | AQ80: 0
B81: Economique | C81: oCoutTransPlants | D81: oCoutTransPlants | F81: 0 | G81: 0 | H81: 0 | I81: 0 | J81: 0 | K81: 0 | L81: 0 | M81: 0 | N81: 0 | O81: 0 | P81: 0 | Q81: 0 | R81: 0 | S81: 0 | T81: 0 | U81: 0 | V81: 0 | W81: 0 | X81: 0 | Y81: 0 | Z81: 0 | AA81: 0 | AB81: 0 | AC81: 0 | AD81: 0 | AE81: 0 | AF81: 0 | AG81: 0 | AH81: 0 | AI81: 0 | AJ81: 0 | AK81: 0 | AL81: 0 | AM81: 0 | AN81: 0 | AO81: 0 | AP81: 0 | AQ81: 0
B82: Economique | C82: o$InvestisTS | D82: o$InvestisTS | F82: 0 | G82: 49683350 | H82: 0 | I82: 48839292 | J82: 49129411.5 | K82: 49129411.5 | L82: 49354350 | M82: 49683350 | N82: 49683350 | O82: 48139166.34 | P82: 47902755.94 | Q82: 47882333.26 | R82: 47971744.18 | S82: 47873850 | T82: 47873850 | U82: 47873850 | V82: 47914560.7 | W82: 47879460.63 | X82: 48842959.38 | Y82: 47886463.87 | Z82: 47873850 | AA82: 47873850 | AB82: 49346406.95 | AC82: 47873850 | AD82: 47873850 | AE82: 47873850 | AF82: 47873850 | AG82: 47873850 | AH82: 47878475.98 | AI82: 49039904.05 | AJ82: 47873850 | AK82: 48044362.38 | AL82: 48115275.43 | AM82: 49395974.6 | AN82: 47953969.94 | AO82: 48151694.61 | AP82: 48032111.78 | AQ82: 48290899.73
B83: Economique | C83: oTauxREGAPAR | D83: oTauxREGAPAR | F83: 0 | G83: 4360964.64 | H83: 0 | I83: 2007011.93 | J83: 2403200 | K83: 2180600 | L83: 2180600 | M83: 2180600 | N83: 2180600 | O83: 1981020 | P83: 304825.61 | Q83: 203496.7 | R83: 1063760.91 | S83: 525427.37 | T83: 688755.8 | U83: 962160.67 | V83: 2571468.59 | W83: 1727182.21 | X83: 2420116.9 | Y83: 3826469.85 | Z83: 3867100.53 | AA83: 3546141.06 | AB83: 4360964.64 | AC83: 2221570.67 | AD83: 2138535.02 | AE83: 2068998.77 | AF83: 1006611.26 | AG83: 1672652.74 | AH83: 2792793.57 | AI83: 1712566.76 | AJ83: 1900654.87 | AK83: 2651821.7 | AL83: 3550741.85 | AM83: 2225120 | AN83: 815706.118 | AO83: 2663373.361 | AP83: 2171694.721 | AQ83: 2099704.76
B84: Economique | C84: oTauxREGAEDU; | D84: oTauxREGAEDU; | F84: 0 | G84: 24761009.19 | H84: 0 | I84: 15928103.99 | J84: 21479711.05 | K84: 22004444.86 | L84: 22931316.69 | M84: 22573281.47 | N84: 22583511.89 | O84: 20374129.96 | P84: 22321606.72 | Q84: 23105380.72 | R84: 21962560.73 | S84: 24341158.18 | T84: 21737791.31 | U84: 19663508.98 | V84: 17778401.05 | W84: 19736939.68 | X84: 21699090.45 | Y84: 18895680.77 | Z84: 17230650.19 | AA84: 15684160.7 | AB84: 15454693.21 | AC84: 16282923.01 | AD84: 16135106.91 | AE84: 18205383.6 | AF84: 19940209.36 | AG84: 21372089.64 | AH84: 21516488.07 | AI84: 24761009.19 | AJ84: 22577075.57 | AK84: 23168559.67 | AL84: 24289469.72 | AM84: 22314453.19 | AN84: 22420967.26 | AO84: 18653435.15 | AP84: 20824831.47 | AQ84: 20682977.01
B85: Economique | C85: oTauxREGAREG | D85: oTauxREGAREG | F85: 0 | G85: 20133380.72 | H85: 0 | I85: 20030838 | J85: 15517900.45 | K85: 15442566.64 | L85: 15118633.31 | M85: 15427668.53 | N85: 15417438.11 | O85: 17042276.71 | P85: 18068122.23 | Q85: 17643757.26 | R85: 17228371.25 | S85: 16348179.35 | T85: 17883153.29 | U85: 19058693.89 | V85: 18142564.63 | W85: 17832426.55 | X85: 15328747.4 | Y85: 15572878.37 | Z85: 16792668.35 | AA85: 18383810.12 | AB85: 17655107.72 | AC85: 19710152.15 | AD85: 20133380.72 | AE85: 19251845.63 | AF85: 19516002.42 | AG85: 17278428.42 | AH85: 15483325.6 | AI85: 14886888.08 | AJ85: 16741954.86 | AK85: 14068728.56 | AL85: 11802707.08 | AM85: 15384841.41 | AN85: 17266141.36 | AO85: 17405561.15 | AP85: 16887341.35 | AQ85: 16854426.82
B86: Economique | C86: oTauxAUTRES | D86: oTauxAUTRES | F86: 0 | G86: 11875641.38 | H86: 0 | I86: 10873338.08 | J86: 9728600 | K86: 9501800 | L86: 9123800 | M86: 9501800 | N86: 9501800 | O86: 8741739.67 | P86: 7208201.38 | Q86: 6929698.58 | R86: 7717051.3 | S86: 6659085.1 | T86: 7564149.6 | U86: 8189486.46 | V86: 9422126.43 | W86: 8582912.2 | X86: 9395004.64 | Y86: 9591434.88 | Z86: 9983430.92 | AA86: 10259738.12 | AB86: 11875641.38 | AC86: 9659204.17 | AD86: 9466827.35 | AE86: 8347622 | AF86: 7411026.97 | AG86: 7550679.2 | AH86: 8085868.74 | AI86: 7679440.03 | AJ86: 6654164.71 | AK86: 8155252.45 | AL86: 8472356.79 | AM86: 9471560 | AN86: 7451155.206 | AO86: 9429324.959 | AP86: 8148244.241 | AQ86: 8653791.14
B87: Economique | C87: oTauxREGAFIN | D87: oTauxREGAFIN | F87: 0 | G87: 0 | H87: 0 | I87: 0 | J87: 0 | K87: 0 | L87: 0 | M87: 0 | N87: 0 | O87: 0 | P87: 0 | Q87: 0 | R87: 0 | S87: 0 | T87: 0 | U87: 0 | V87: 0 | W87: 0 | X87: 0 | Y87: 0 | Z87: 0 | AA87: 0 | AB87: 0 | AC87: 0 | AD87: 0 | AE87: 0 | AF87: 0 | AG87: 0 | AH87: 0 | AI87: 0 | AJ87: 0 | AK87: 0 | AL87: 0 | AM87: 0 | AN87: 0 | AO87: 0 | AP87: 0 | AQ87: 0
B88: Economique | C88: oSupRealREGAPAR | D88: oSupRealREGAPAR | F88: 0 | G88: 8532.34 | H88: 0 | I88: 3786.81 | J88: 4360 | K88: 3940 | L88: 3940 | M88: 3940 | N88: 3940 | O88: 3546 | P88: 3900.6 | Q88: 4290.66 | R88: 3861.59 | S88: 3927.99 | T88: 4320.79 | U88: 4752.87 | V88: 5228.16 | W88: 5750.97 | X88: 6326.07 | Y88: 6958.68 | Z88: 7374.91 | AA88: 6974.72 | AB88: 7672.2 | AC88: 8439.41 | AD88: 7595.47 | AE88: 6835.93 | AF88: 6971.18 | AG88: 7668.3 | AH88: 7756.67 | AI88: 8532.34 | AJ88: 7679.11 | AK88: 6911.2 | AL88: 7360.8 | AM88: 4024 | AN88: 3905.368 | AO88: 6151.041111 | AP88: 7575.041 | AQ88: 5888.15931
B89: Economique | C89: oSupRealREGAEDU | D89: oSupRealREGAEDU | F89: 0 | G89: 19974.1 | H89: 0 | I89: 12599.88 | J89: 16970.71 | K89: 17651.51 | L89: 18455.94 | M89: 17971.74 | N89: 18070.06 | O89: 16451.11 | P89: 18096.23 | Q89: 18571.37 | R89: 17860.47 | S89: 19646.51 | T89: 17681.86 | U89: 15913.68 | V89: 14489.64 | W89: 15938.61 | X89: 17532.47 | Y89: 15779.22 | Z89: 14201.3 | AA89: 12781.17 | AB89: 12312.69 | AC89: 13386.7 | AD89: 13281.44 | AE89: 14609.58 | AF89: 16070.54 | AG89: 17677.6 | AH89: 17784.84 | AI89: 19563.33 | AJ89: 17939.69 | AK89: 18730 | AL89: 19974.1 | AM89: 17823.992 | AN89: 18125.138 | AO89: 15181.18222 | AP89: 16901.782 | AQ89: 16737.72793
B90: Economique | C90: oSupRealREGAREG | D90: oSupRealREGAREG | F90: 0 | G90: 20700 | H90: 0 | I90: 20700 | J90: 16910 | K90: 16910 | L90: 16210 | M90: 16910 | N90: 16910 | O90: 16631.35 | P90: 17257.11 | Q90: 16888.74 | R90: 16660.84 | S90: 15539.09 | T90: 17093 | U90: 18313.13 | V90: 17365.89 | W90: 17014.11 | X90: 15312.7 | Y90: 14934.36 | Z90: 15905.79 | AA90: 17496.37 | AB90: 18556.52 | AC90: 18705.83 | AD90: 19012.65 | AE90: 17111.38 | AF90: 17240.07 | AG90: 15516.07 | AH90: 13964.46 | AI90: 14741.4 | AJ90: 13267.26 | AK90: 12722.96 | AL90: 11450.66 | AM90: 16770 | AN90: 16595.426 | AO90: 16887.98556 | AP90: 15373.274 | AQ90: 16294.88759
B91: Economique | C91: oSupRealAUTRES | D91: oSupRealAUTRES | F91: 0 | G91: 25704.97 | H91: 0 | I91: 24486.81 | J91: 21160 | K91: 20740 | L91: 20040 | M91: 20740 | N91: 20740 | O91: 20056.35 | P91: 17488.21 | Q91: 16894.24 | R91: 18251.64 | S91: 16072.53 | T91: 18196.81 | U91: 19574.43 | V91: 21608.21 | W91: 20109.44 | X91: 21046.87 | Y91: 21353.27 | Z91: 22319.28 | AA91: 23213.51 | AB91: 25704.97 | AC91: 22606.58 | AD91: 22224.71 | AE91: 19577.97 | AF91: 17974.73 | AG91: 17967.01 | AH91: 18654.25 | AI91: 17224.9 | AJ91: 15826.5 | AK91: 18622.96 | AL91: 18891.49 | AM91: 20684 | AN91: 17752.594 | AO91: 21458.53222 | AP91: 18957.11 | AQ91: 19823.47793
B92: Economique | C92: oSupRealREGAFIN | D92: oSupRealREGAFIN | F92: 0 | G92: 66686.56 | H92: 0 | I92: 51266.27 | J92: 44915.62 | K92: 44674.24 | L92: 44457.83 | M92: 44680.47 | N92: 43019.57 | O92: 40390.28 | P92: 38620.49 | Q92: 40994.04 | R92: 43237.81 | S92: 38859.97 | T92: 36489.83 | U92: 36023.42 | V92: 40426.01 | W92: 35358.09 | X92: 48770.01 | Y92: 39462.15 | Z92: 62268.28 | AA92: 51016.2 | AB92: 49452.64 | AC92: 49056.58 | AD92: 51352.06 | AE92: 51894.27 | AF92: 47775.09 | AG92: 52121.04 | AH92: 66686.56 | AI92: 48274.13 | AJ92: 46091.64 | AK92: 53039.83 | AL92: 49564.68 | AM92: 44349.546 | AN92: 40420.518 | AO92: 44362.95889 | AP92: 51585.588 | AQ92: 46171.4769
B93: VolExpl | C93: OVOLBOJADMaEC | D93: Volume BOJ Admissible InclusActions aEC | F93: 0 | G93: 0 | H93: 0 | I93: 0 | J93: 0 | K93: 0 | L93: 0 | M93: 0 | N93: 0 | O93: 0 | P93: 0 | Q93: 0 | R93: 0 | S93: 0 | T93: 0 | U93: 0 | V93: 0 | W93: 0 | X93: 0 | Y93: 0 | Z93: 0 | AA93: 0 | AB93: 0 | AC93: 0 | AD93: 0 | AE93: 0 | AF93: 0 | AG93: 0 | AH93: 0 | AI93: 0 | AJ93: 0 | AK93: 0 | AL93: 0 | AM93: 0 | AN93: 0 | AO93: 0 | AP93: 0 | AQ93: 0
B94: VolExpl | C94: OVOLBOJADMaEC2 | D94: Volume BOJ Admissible InclusActions aEC2 | F94: 0 | G94: 0 | H94: 0 | I94: 0 | J94: 0 | K94: 0 | L94: 0 | M94: 0 | N94: 0 | O94: 0 | P94: 0 | Q94: 0 | R94: 0 | S94: 0 | T94: 0 | U94: 0 | V94: 0 | W94: 0 | X94: 0 | Y94: 0 | Z94: 0 | AA94: 0 | AB94: 0 | AC94: 0 | AD94: 0 | AE94: 0 | AF94: 0 | AG94: 0 | AH94: 0 | AI94: 0 | AJ94: 0 | AK94: 0 | AL94: 0 | AM94: 0 | AN94: 0 | AO94: 0 | AP94: 0 | AQ94: 0
B95: VolExpl | C95: OVOLBOJADMaEC3 | D95: Volume BOJ Admissible InclusActions aEC3 | F95: 0 | G95: 0 | H95: 0 | I95: 0 | J95: 0 | K95: 0 | L95: 0 | M95: 0 | N95: 0 | O95: 0 | P95: 0 | Q95: 0 | R95: 0 | S95: 0 | T95: 0 | U95: 0 | V95: 0 | W95: 0 | X95: 0 | Y95: 0 | Z95: 0 | AA95: 0 | AB95: 0 | AC95: 0 | AD95: 0 | AE95: 0 | AF95: 0 | AG95: 0 | AH95: 0 | AI95: 0 | AJ95: 0 | AK95: 0 | AL95: 0 | AM95: 0 | AN95: 0 | AO95: 0 | AP95: 0 | AQ95: 0
B96: VolExpl | C96: OVOLBOJADMaCA | D96: Volume BOJ Admissible InclusActions aCA | F96: 0 | G96: 0 | H96: 0 | I96: 0 | J96: 0 | K96: 0 | L96: 0 | M96: 0 | N96: 0 | O96: 0 | P96: 0 | Q96: 0 | R96: 0 | S96: 0 | T96: 0 | U96: 0 | V96: 0 | W96: 0 | X96: 0 | Y96: 0 | Z96: 0 | AA96: 0 | AB96: 0 | AC96: 0 | AD96: 0 | AE96: 0 | AF96: 0 | AG96: 0 | AH96: 0 | AI96: 0 | AJ96: 0 | AK96: 0 | AL96: 0 | AM96: 0 | AN96: 0 | AO96: 0 | AP96: 0 | AQ96: 0
B97: VolExpl | C97: OVOLBOJADMaCA2 | D97: Volume BOJ Admissible InclusActions aCA2 | F97: 0 | G97: 0 | H97: 0 | I97: 0 | J97: 0 | K97: 0 | L97: 0 | M97: 0 | N97: 0 | O97: 0 | P97: 0 | Q97: 0 | R97: 0 | S97: 0 | T97: 0 | U97: 0 | V97: 0 | W97: 0 | X97: 0 | Y97: 0 | Z97: 0 | AA97: 0 | AB97: 0 | AC97: 0 | AD97: 0 | AE97: 0 | AF97: 0 | AG97: 0 | AH97: 0 | AI97: 0 | AJ97: 0 | AK97: 0 | AL97: 0 | AM97: 0 | AN97: 0 | AO97: 0 | AP97: 0 | AQ97: 0
B98: VolExpl | C98: OVOLBOJADMaCPROG | D98: Volume BOJ Admissible InclusActions aCPROG | F98: 0 | G98: 0 | H98: 0 | I98: 0 | J98: 0 | K98: 0 | L98: 0 | M98: 0 | N98: 0 | O98: 0 | P98: 0 | Q98: 0 | R98: 0 | S98: 0 | T98: 0 | U98: 0 | V98: 0 | W98: 0 | X98: 0 | Y98: 0 | Z98: 0 | AA98: 0 | AB98: 0 | AC98: 0 | AD98: 0 | AE98: 0 | AF98: 0 | AG98: 0 | AH98: 0 | AI98: 0 | AJ98: 0 | AK98: 0 | AL98: 0 | AM98: 0 | AN98: 0 | AO98: 0 | AP98: 0 | AQ98: 0
B99: VolExpl | C99: OVOLBOJADMaCPIL | D99: Volume BOJ Admissible InclusActions aCPIL | F99: 0 | G99: 0 | H99: 0 | I99: 0 | J99: 0 | K99: 0 | L99: 0 | M99: 0 | N99: 0 | O99: 0 | P99: 0 | Q99: 0 | R99: 0 | S99: 0 | T99: 0 | U99: 0 | V99: 0 | W99: 0 | X99: 0 | Y99: 0 | Z99: 0 | AA99: 0 | AB99: 0 | AC99: 0 | AD99: 0 | AE99: 0 | AF99: 0 | AG99: 0 | AH99: 0 | AI99: 0 | AJ99: 0 | AK99: 0 | AL99: 0 | AM99: 0 | AN99: 0 | AO99: 0 | AP99: 0 | AQ99: 0
B100: VolExpl | C100: OVOLBOJADMaCPIP | D100: Volume BOJ Admissible InclusActions aCPIP | F100: 0 | G100: 0 | H100: 0 | I100: 0 | J100: 0 | K100: 0 | L100: 0 | M100: 0 | N100: 0 | O100: 0 | P100: 0 | Q100: 0 | R100: 0 | S100: 0 | T100: 0 | U100: 0 | V100: 0 | W100: 0 | X100: 0 | Y100: 0 | Z100: 0 | AA100: 0 | AB100: 0 | AC100: 0 | AD100: 0 | AE100: 0 | AF100: 0 | AG100: 0 | AH100: 0 | AI100: 0 | AJ100: 0 | AK100: 0 | AL100: 0 | AM100: 0 | AN100: 0 | AO100: 0 | AP100: 0 | AQ100: 0
B101: VolExpl | C101: OVOLBOJADMaCPFORT | D101: Volume BOJ Admissible InclusActions aCPFORT | F101: 0 | G101: 0 | H101: 0 | I101: 0 | J101: 0 | K101: 0 | L101: 0 | M101: 0 | N101: 0 | O101: 0 | P101: 0 | Q101: 0 | R101: 0 | S101: 0 | T101: 0 | U101: 0 | V101: 0 | W101: 0 | X101: 0 | Y101: 0 | Z101: 0 | AA101: 0 | AB101: 0 | AC101: 0 | AD101: 0 | AE101: 0 | AF101: 0 | AG101: 0 | AH101: 0 | AI101: 0 | AJ101: 0 | AK101: 0 | AL101: 0 | AM101: 0 | AN101: 0 | AO101: 0 | AP101: 0 | AQ101: 0
B102: VolExpl | C102: OVOLBOJADMaCPFAIBL | D102: Volume BOJ Admissible InclusActions aCPFAIBL | F102: 0 | G102: 0 | H102: 0 | I102: 0 | J102: 0 | K102: 0 | L102: 0 | M102: 0 | N102: 0 | O102: 0 | P102: 0 | Q102: 0 | R102: 0 | S102: 0 | T102: 0 | U102: 0 | V102: 0 | W102: 0 | X102: 0 | Y102: 0 | Z102: 0 | AA102: 0 | AB102: 0 | AC102: 0 | AD102: 0 | AE102: 0 | AF102: 0 | AG102: 0 | AH102: 0 | AI102: 0 | AJ102: 0 | AK102: 0 | AL102: 0 | AM102: 0 | AN102: 0 | AO102: 0 | AP102: 0 | AQ102: 0
B103: VolExpl | C103: OVOLBOJADMaCP | D103: Volume BOJ Admissible InclusActions aCP | F103: 0 | G103: 0 | H103: 0 | I103: 0 | J103: 0 | K103: 0 | L103: 0 | M103: 0 | N103: 0 | O103: 0 | P103: 0 | Q103: 0 | R103: 0 | S103: 0 | T103: 0 | U103: 0 | V103: 0 | W103: 0 | X103: 0 | Y103: 0 | Z103: 0 | AA103: 0 | AB103: 0 | AC103: 0 | AD103: 0 | AE103: 0 | AF103: 0 | AG103: 0 | AH103: 0 | AI103: 0 | AJ103: 0 | AK103: 0 | AL103: 0 | AM103: 0 | AN103: 0 | AO103: 0 | AP103: 0 | AQ103: 0
